Workbook

Sheet Velkomst

Sheet Tabel 1 S
A1: Tabel 1. Forsikrede medlemmer
A4: Sjælland
B6: 0
B7: 0 | C7: Mænd | D7: 0 | E7: Kvinder | F7: 0 | G7: I alt
B8: 0
A9: Civ. ing. | B9: 0 | C9: 1693 | D9: 0 | E9: 635 | F9: 0 | G9: 2328
A10: Diplom ing. | B10: 0 | C10: 3157 | D10: 0 | E10: 751 | F10: 0 | G10: 3908
A11: Cand. Scient. Tek. | B11: 0 | C11: 675 | D11: 0 | E11: 634 | F11: 0 | G11: 1309
A12: MA. Hum. | B12: 0 | C12: 968 | D12: 0 | E12: 2253 | F12: 0 | G12: 3221
A13: MA. Nat. | B13: 0 | C13: 727 | D13: 0 | E13: 739 | F13: 0 | G13: 1466
A14: MA. Ph.d. | B14: 0 | C14: 84 | D14: 0 | E14: 68 | F14: 0 | G14: 152
A15: MA. Samf. | B15: 0 | C15: 120 | D15: 0 | E15: 307 | F15: 0 | G15: 427
A16: Øvrige Mag. | B16: 0 | C16: 89 | D16: 0 | E16: 178 | F16: 0 | G16: 267
A17: Agronom | B17: 0 | C17: 210 | D17: 0 | E17: 246 | F17: 0 | G17: 456
A18: Landsk. Arkt. | B18: 0 | C18: 25 | D18: 0 | E18: 69 | F18: 0 | G18: 94
A19: Hortonom | B19: 0 | C19: 20 | D19: 0 | E19: 36 | F19: 0 | G19: 56
A20: Forstkand. | B20: 0 | C20: 61 | D20: 0 | E20: 19 | F20: 0 | G20: 80
A21: Jordbrugsakad. | B21: 0 | C21: 316 | D21: 0 | E21: 370 | F21: 0 | G21: 686
A22: Mejeriing. | B22: 0 | C22: 16 | D22: 0 | E22: 24 | F22: 0 | G22: 40
A23: Levn.m.kand. | B23: 0 | C23: 10 | D23: 0 | E23: 51 | F23: 0 | G23: 61
A24: Dyrlæge | B24: 0 | C24: 79 | D24: 0 | E24: 339 | F24: 0 | G24: 418
A25: Farmaceut | B25: 0 | C25: 137 | D25: 0 | E25: 447 | F25: 0 | G25: 584
A26: Læge | B26: 0 | C26: 225 | D26: 0 | E26: 503 | F26: 0 | G26: 728
A27: Tandlæge | B27: 0 | C27: 28 | D27: 0 | E27: 151 | F27: 0 | G27: 179
A28: Arkitekt | B28: 0 | C28: 110 | D28: 0 | E28: 140 | F28: 0 | G28: 250
A29: Landinspek. | B29: 0 | C29: 49 | D29: 0 | E29: 22 | F29: 0 | G29: 71
A30: Bibliotekar | B30: 0 | C30: 103 | D30: 0 | E30: 286 | F30: 0 | G30: 389
A31: Musikudd. | B31: 0 | C31: 36 | D31: 0 | E31: 67 | F31: 0 | G31: 103
A32: Teolog | B32: 0 | C32: 75 | D32: 0 | E32: 138 | F32: 0 | G32: 213
A33: Psykolog | B33: 0 | C33: 99 | D33: 0 | E33: 513 | F33: 0 | G33: 612
A34: Jurist | B34: 0 | C34: 341 | D34: 0 | E34: 831 | F34: 0 | G34: 1172
A35: Økonom | B35: 0 | C35: 329 | D35: 0 | E35: 266 | F35: 0 | G35: 595
A36: Samf. Adm. | B36: 0 | C36: 853 | D36: 0 | E36: 1241 | F36: 0 | G36: 2094
A37: Cand. Merc. | B37: 0 | C37: 1187 | D37: 0 | E37: 1158 | F37: 0 | G37: 2345
A38: HA | B38: 0 | C38: 325 | D38: 0 | E38: 265 | F38: 0 | G38: 590
A39: HD | B39: 0 | C39: 299 | D39: 0 | E39: 213 | F39: 0 | G39: 512
A40: Komm. og Sprog | B40: 0 | C40: 66 | D40: 0 | E40: 555 | F40: 0 | G40: 621
A41: Bygningskonst. | B41: 0 | C41: 1025 | D41: 0 | E41: 178 | F41: 0 | G41: 1203
A42: Cand. IT. | B42: 0 | C42: 133 | D42: 0 | E42: 102 | F42: 0 | G42: 235
A43: Bac. Samf. | B43: 0 | C43: 47 | D43: 0 | E43: 54 | F43: 0 | G43: 101
A44: Bac. Hum. | B44: 0 | C44: 115 | D44: 0 | E44: 208 | F44: 0 | G44: 323
A45: Bac. Nat. | B45: 0 | C45: 163 | D45: 0 | E45: 85 | F45: 0 | G45: 248
A46: Andre | B46: 0 | C46: 984 | D46: 0 | E46: 878 | F46: 0 | G46: 1862
A48: Total | B48: 0 | C48: 14663 | D48: 0 | E48: 14650 | F48: 0 | G48: 29313
A50: Ingeniører i alt | B50: 0 | C50: 4850 | D50: 0 | E50: 1386 | F50: 0 | G50: 6236
A51: Magistre i alt | B51: 0 | C51: 1988 | D51: 0 | E51: 3545 | F51: 0 | G51: 5533
A52: DJØF'ere i alt | B52: 0 | C52: 3035 | D52: 0 | E52: 3761 | F52: 0 | G52: 6796
A58: Greve | B58: 0
B59: 0
B60: 0 | C60: Mænd | D60: 0 | E60: Kvinder | F60: 0 | G60: I alt
B61: 0
A62: Civ. ing. | B62: 0 | C62: 136 | D62: 0 | E62: 56 | F62: 0 | G62: 192
A63: Diplom ing. | B63: 0 | C63: 289 | D63: 0 | E63: 65 | F63: 0 | G63: 354
A64: Cand. Scient. Tek. | B64: 0 | C64: 47 | D64: 0 | E64: 42 | F64: 0 | G64: 89
A65: MA. Hum. | B65: 0 | C65: 31 | D65: 0 | E65: 112 | F65: 0 | G65: 143
A66: MA. Nat. | B66: 0 | C66: 41 | D66: 0 | E66: 38 | F66: 0 | G66: 79
A67: MA. Ph.d. | B67: 0 | C67: 3 | D67: 0 | E67: 6 | F67: 0 | G67: 9
A68: MA. Samf. | B68: 0 | C68: 5 | D68: 0 | E68: 11 | F68: 0 | G68: 16
A69: Øvrige Mag. | B69: 0 | C69: 3 | D69: 0 | E69: 15 | F69: 0 | G69: 18
A70: Agronom | B70: 0 | C70: 5 | D70: 0 | E70: 10 | F70: 0 | G70: 15
A71: Landsk. Arkt. | B71: 0 | C71: 2 | D71: 0 | E71: 3 | F71: 0 | G71: 5
A72: Hortonom | B72: 0 | C72: 0 | D72: 0 | E72: 2 | F72: 0 | G72: 2
A73: Forstkand. | B73: 0 | C73: 0 | D73: 0 | E73: 0 | F73: 0 | G73: 0
A74: Jordbrugsakad. | B74: 0 | C74: 7 | D74: 0 | E74: 15 | F74: 0 | G74: 22
A75: Mejeriing. | B75: 0 | C75: 0 | D75: 0 | E75: 1 | F75: 0 | G75: 1
A76: Levn.m.kand. | B76: 0 | C76: 0 | D76: 0 | E76: 2 | F76: 0 | G76: 2
A77: Dyrlæge | B77: 0 | C77: 5 | D77: 0 | E77: 12 | F77: 0 | G77: 17
A78: Farmaceut | B78: 0 | C78: 17 | D78: 0 | E78: 50 | F78: 0 | G78: 67
A79: Læge | B79: 0 | C79: 10 | D79: 0 | E79: 34 | F79: 0 | G79: 44
A80: Tandlæge | B80: 0 | C80: 2 | D80: 0 | E80: 16 | F80: 0 | G80: 18
A81: Arkitekt | B81: 0 | C81: 3 | D81: 0 | E81: 11 | F81: 0 | G81: 14
A82: Landinspek. | B82: 0 | C82: 2 | D82: 0 | E82: 3 | F82: 0 | G82: 5
A83: Bibliotekar | B83: 0 | C83: 6 | D83: 0 | E83: 17 | F83: 0 | G83: 23
A84: Musikudd. | B84: 0 | C84: 1 | D84: 0 | E84: 3 | F84: 0 | G84: 4
A85: Teolog | B85: 0 | C85: 5 | D85: 0 | E85: 11 | F85: 0 | G85: 16
A86: Psykolog | B86: 0 | C86: 4 | D86: 0 | E86: 18 | F86: 0 | G86: 22
A87: Jurist | B87: 0 | C87: 36 | D87: 0 | E87: 82 | F87: 0 | G87: 118
A88: Økonom | B88: 0 | C88: 28 | D88: 0 | E88: 26 | F88: 0 | G88: 54
A89: Samf. Adm. | B89: 0 | C89: 56 | D89: 0 | E89: 69 | F89: 0 | G89: 125
A90: Cand. Merc. | B90: 0 | C90: 144 | D90: 0 | E90: 156 | F90: 0 | G90: 300
A91: HA | B91: 0 | C91: 48 | D91: 0 | E91: 22 | F91: 0 | G91: 70
A92: HD | B92: 0 | C92: 45 | D92: 0 | E92: 30 | F92: 0 | G92: 75
A93: Komm. og Sprog | B93: 0 | C93: 4 | D93: 0 | E93: 55 | F93: 0 | G93: 59
A94: Bygningskonst. | B94: 0 | C94: 68 | D94: 0 | E94: 8 | F94: 0 | G94: 76
A95: Cand. IT. | B95: 0 | C95: 15 | D95: 0 | E95: 9 | F95: 0 | G95: 24
A96: Bac. Samf. | B96: 0 | C96: 4 | D96: 0 | E96: 5 | F96: 0 | G96: 9
A97: Bac. Hum. | B97: 0 | C97: 6 | D97: 0 | E97: 9 | F97: 0 | G97: 15
A98: Bac. Nat. | B98: 0 | C98: 12 | D98: 0 | E98: 6 | F98: 0 | G98: 18
A99: Andre | B99: 0 | C99: 73 | D99: 0 | E99: 85 | F99: 0 | G99: 158
A101: Total | B101: 0 | C101: 1156 | D101: 0 | E101: 1100 | F101: 0 | G101: 2256
A103: Ingeniører i alt | B103: 0 | C103: 425 | D103: 0 | E103: 121 | F103: 0 | G103: 546
A104: Magistre i alt | B104: 0 | C104: 83 | D104: 0 | E104: 182 | F104: 0 | G104: 265
A105: DJØF'ere i alt | B105: 0 | C105: 312 | D105: 0 | E105: 355 | F105: 0 | G105: 667
A112: Køge | B112: 0 | F112: 0
B113: 0 | F113: 0
B114: 0 | C114: Mænd | D114: 0 | E114: Kvinder | F114: 0 | G114: I alt
B115: 0 | F115: 0
A116: Civ. ing. | B116: 0 | C116: 151 | D116: 0 | E116: 54 | F116: 0 | G116: 205
A117: Diplom ing. | B117: 0 | C117: 286 | D117: 0 | E117: 67 | F117: 0 | G117: 353
A118: Cand. Scient. Tek. | B118: 0 | C118: 56 | D118: 0 | E118: 36 | F118: 0 | G118: 92
A119: MA. Hum. | B119: 0 | C119: 64 | D119: 0 | E119: 167 | F119: 0 | G119: 231
A120: MA. Nat. | B120: 0 | C120: 46 | D120: 0 | E120: 60 | F120: 0 | G120: 106
A121: MA. Ph.d. | B121: 0 | C121: 1 | D121: 0 | E121: 5 | F121: 0 | G121: 6
A122: MA. Samf. | B122: 0 | C122: 11 | D122: 0 | E122: 24 | F122: 0 | G122: 35
A123: Øvrige Mag. | B123: 0 | C123: 6 | D123: 0 | E123: 15 | F123: 0 | G123: 21
A124: Agronom | B124: 0 | C124: 15 | D124: 0 | E124: 22 | F124: 0 | G124: 37
A125: Landsk. Arkt. | B125: 0 | C125: 0 | D125: 0 | E125: 7 | F125: 0 | G125: 7
A126: Hortonom | B126: 0 | C126: 2 | D126: 0 | E126: 4 | F126: 0 | G126: 6
A127: Forstkand. | B127: 0 | C127: 3 | D127: 0 | E127: 1 | F127: 0 | G127: 4
A128: Jordbrugsakad. | B128: 0 | C128: 20 | D128: 0 | E128: 34 | F128: 0 | G128: 54
A129: Mejeriing. | B129: 0 | C129: 0 | D129: 0 | E129: 0 | F129: 0 | G129: 0
A130: Levn.m.kand. | B130: 0 | C130: 1 | D130: 0 | E130: 7 | F130: 0 | G130: 8
A131: Dyrlæge | B131: 0 | C131: 5 | D131: 0 | E131: 28 | F131: 0 | G131: 33
A132: Farmaceut | B132: 0 | C132: 10 | D132: 0 | E132: 39 | F132: 0 | G132: 49
A133: Læge | B133: 0 | C133: 23 | D133: 0 | E133: 33 | F133: 0 | G133: 56
A134: Tandlæge | B134: 0 | C134: 2 | D134: 0 | E134: 16 | F134: 0 | G134: 18
A135: Arkitekt | B135: 0 | C135: 7 | D135: 0 | E135: 9 | F135: 0 | G135: 16
A136: Landinspek. | B136: 0 | C136: 4 | D136: 0 | E136: 2 | F136: 0 | G136: 6
A137: Bibliotekar | B137: 0 | C137: 2 | D137: 0 | E137: 26 | F137: 0 | G137: 28
A138: Musikudd. | B138: 0 | C138: 2 | D138: 0 | E138: 6 | F138: 0 | G138: 8
A139: Teolog | B139: 0 | C139: 4 | D139: 0 | E139: 4 | F139: 0 | G139: 8
A140: Psykolog | B140: 0 | C140: 8 | D140: 0 | E140: 49 | F140: 0 | G140: 57
A141: Jurist | B141: 0 | C141: 30 | D141: 0 | E141: 86 | F141: 0 | G141: 116
A142: Økonom | B142: 0 | C142: 45 | D142: 0 | E142: 30 | F142: 0 | G142: 75
A143: Samf. Adm. | B143: 0 | C143: 65 | D143: 0 | E143: 104 | F143: 0 | G143: 169
A144: Cand. Merc. | B144: 0 | C144: 116 | D144: 0 | E144: 129 | F144: 0 | G144: 245
A145: HA | B145: 0 | C145: 25 | D145: 0 | E145: 23 | F145: 0 | G145: 48
A146: HD | B146: 0 | C146: 27 | D146: 0 | E146: 26 | F146: 0 | G146: 53
A147: Komm. og Sprog | B147: 0 | C147: 7 | D147: 0 | E147: 56 | F147: 0 | G147: 63
A148: Bygningskonst. | B148: 0 | C148: 81 | D148: 0 | E148: 16 | F148: 0 | G148: 97
A149: Cand. IT. | B149: 0 | C149: 21 | D149: 0 | E149: 8 | F149: 0 | G149: 29
A150: Bac. Samf. | B150: 0 | C150: 4 | D150: 0 | E150: 5 | F150: 0 | G150: 9
A151: Bac. Hum. | B151: 0 | C151: 5 | D151: 0 | E151: 20 | F151: 0 | G151: 25
A152: Bac. Nat. | B152: 0 | C152: 12 | D152: 0 | E152: 10 | F152: 0 | G152: 22
A153: Andre | B153: 0 | C153: 90 | D153: 0 | E153: 88 | F153: 0 | G153: 178
A155: Total | B155: 0 | C155: 1237 | D155: 0 | E155: 1282 | F155: 0 | G155: 2519
A157: Ingeniører i alt | B157: 0 | C157: 437 | D157: 0 | E157: 121 | F157: 0 | G157: 558
A158: Magistre i alt | B158: 0 | C158: 128 | D158: 0 | E158: 271 | F158: 0 | G158: 399
A159: DJØF'ere i alt | B159: 0 | C159: 281 | D159: 0 | E159: 372 | F159: 0 | G159: 653
A166: Roskilde | B166: 0
B167: 0
B168: 0 | C168: Mænd | D168: 0 | E168: Kvinder | G168: I alt
B169: 0
A170: Civ. ing. | B170: 0 | C170: 526 | D170: 0 | E170: 196 | F170: 0 | G170: 722
A171: Diplom ing. | B171: 0 | C171: 639 | D171: 0 | E171: 173 | F171: 0 | G171: 812
A172: Cand. Scient. Tek. | B172: 0 | C172: 180 | D172: 0 | E172: 166 | F172: 0 | G172: 346
A173: MA. Hum. | B173: 0 | C173: 228 | D173: 0 | E173: 529 | F173: 0 | G173: 757
A174: MA. Nat. | B174: 0 | C174: 205 | D174: 0 | E174: 197 | F174: 0 | G174: 402
A175: MA. Ph.d. | B175: 0 | C175: 34 | D175: 0 | E175: 16 | F175: 0 | G175: 50
A176: MA. Samf. | B176: 0 | C176: 44 | D176: 0 | E176: 77 | F176: 0 | G176: 121
A177: Øvrige Mag. | B177: 0 | C177: 18 | D177: 0 | E177: 43 | F177: 0 | G177: 61
A178: Agronom | B178: 0 | C178: 34 | D178: 0 | E178: 41 | F178: 0 | G178: 75
A179: Landsk. Arkt. | B179: 0 | C179: 3 | D179: 0 | E179: 22 | F179: 0 | G179: 25
A180: Hortonom | B180: 0 | C180: 2 | D180: 0 | E180: 1 | F180: 0 | G180: 3
A181: Forstkand. | B181: 0 | C181: 10 | D181: 0 | E181: 5 | F181: 0 | G181: 15
A182: Jordbrugsakad. | B182: 0 | C182: 49 | D182: 0 | E182: 69 | F182: 0 | G182: 118
A183: Mejeriing. | B183: 0 | C183: 2 | D183: 0 | E183: 2 | F183: 0 | G183: 4
A184: Levn.m.kand. | B184: 0 | C184: 6 | D184: 0 | E184: 11 | F184: 0 | G184: 17
A185: Dyrlæge | B185: 0 | C185: 15 | D185: 0 | E185: 44 | F185: 0 | G185: 59
A186: Farmaceut | B186: 0 | C186: 35 | D186: 0 | E186: 129 | F186: 0 | G186: 164
A187: Læge | B187: 0 | C187: 70 | D187: 0 | E187: 148 | F187: 0 | G187: 218
A188: Tandlæge | B188: 0 | C188: 7 | D188: 0 | E188: 31 | F188: 0 | G188: 38
A189: Arkitekt | B189: 0 | C189: 25 | D189: 0 | E189: 36 | F189: 0 | G189: 61
A190: Landinspek. | B190: 0 | C190: 9 | D190: 0 | E190: 4 | F190: 0 | G190: 13
A191: Bibliotekar | B191: 0 | C191: 23 | D191: 0 | E191: 64 | F191: 0 | G191: 87
A192: Musikudd. | B192: 0 | C192: 4 | D192: 0 | E192: 11 | F192: 0 | G192: 15
A193: Teolog | B193: 0 | C193: 12 | D193: 0 | E193: 16 | F193: 0 | G193: 28
A194: Psykolog | B194: 0 | C194: 20 | D194: 0 | E194: 116 | F194: 0 | G194: 136
A195: Jurist | B195: 0 | C195: 78 | D195: 0 | E195: 179 | F195: 0 | G195: 257
A196: Økonom | B196: 0 | C196: 96 | D196: 0 | E196: 65 | F196: 0 | G196: 161
A197: Samf. Adm. | B197: 0 | C197: 303 | D197: 0 | E197: 380 | F197: 0 | G197: 683
A198: Cand. Merc. | B198: 0 | C198: 283 | D198: 0 | E198: 310 | F198: 0 | G198: 593
A199: HA | B199: 0 | C199: 55 | D199: 0 | E199: 63 | F199: 0 | G199: 118
A200: HD | B200: 0 | C200: 51 | D200: 0 | E200: 42 | F200: 0 | G200: 93
A201: Komm. og Sprog | B201: 0 | C201: 12 | D201: 0 | E201: 107 | F201: 0 | G201: 119
A202: Bygningskonst. | B202: 0 | C202: 118 | D202: 0 | E202: 29 | F202: 0 | G202: 147
A203: Cand. IT. | B203: 0 | C203: 34 | D203: 0 | E203: 32 | F203: 0 | G203: 66
A204: Bac. Samf. | B204: 0 | C204: 10 | D204: 0 | E204: 14 | F204: 0 | G204: 24
A205: Bac. Hum. | B205: 0 | C205: 37 | D205: 0 | E205: 45 | F205: 0 | G205: 82
A206: Bac. Nat. | B206: 0 | C206: 33 | D206: 0 | E206: 12 | F206: 0 | G206: 45
A207: Andre | B207: 0 | C207: 182 | D207: 0 | E207: 209 | F207: 0 | G207: 391
A209: Total | B209: 0 | C209: 3443 | D209: 0 | E209: 3565 | F209: 0 | G209: 7008
A211: Ingeniører i alt | B211: 0 | C211: 1165 | D211: 0 | E211: 369 | F211: 0 | G211: 1534
A212: Magistre i alt | B212: 0 | C212: 529 | D212: 0 | E212: 862 | F212: 0 | G212: 1391
A213: DJØF'ere i alt | B213: 0 | C213: 815 | D213: 0 | E213: 997 | F213: 0 | G213: 1812
A220: Solrød | B220: 0
B221: 0
B222: 0 | C222: Mænd | D222: 0 | E222: Kvinder | G222: I alt
B223: 0
A224: Civ. ing. | B224: 0 | C224: 94 | D224: 0 | E224: 38 | F224: 0 | G224: 132
A225: Diplom ing. | B225: 0 | C225: 144 | D225: 0 | E225: 34 | F225: 0 | G225: 178
A226: Cand. Scient. Tek. | B226: 0 | C226: 23 | D226: 0 | E226: 28 | F226: 0 | G226: 51
A227: MA. Hum. | B227: 0 | C227: 21 | D227: 0 | E227: 61 | F227: 0 | G227: 82
A228: MA. Nat. | B228: 0 | C228: 21 | D228: 0 | E228: 18 | F228: 0 | G228: 39
A229: MA. Ph.d. | B229: 0 | C229: 2 | D229: 0 | E229: 1 | F229: 0 | G229: 3
A230: MA. Samf. | B230: 0 | C230: 3 | D230: 0 | E230: 12 | F230: 0 | G230: 15
A231: Øvrige Mag. | B231: 0 | C231: 6 | D231: 0 | E231: 5 | F231: 0 | G231: 11
A232: Agronom | B232: 0 | C232: 2 | D232: 0 | E232: 1 | F232: 0 | G232: 3
A233: Landsk. Arkt. | B233: 0 | C233: 0 | D233: 0 | E233: 1 | F233: 0 | G233: 1
A234: Hortonom | B234: 0 | C234: 0 | D234: 0 | E234: 2 | F234: 0 | G234: 2
... 629 more rows

Sheet Tabel 2 S
A1: Tabel 2. Antal bruttoledighedsberørte og gennemsnitlig antal ledige brutto
A3: Sjælland
C5: Mænd | F5: Kvinder | I5: I alt
C6: Ledigheds- berørte | D6: Gns. brutto- ledighed | F6: Ledigheds- berørte | G6: Gns. brutto- ledighed | I6: Ledigheds- berørte | J6: Gns. brutto- ledighed
A9: Civ. ing. | C9: 44 | D9: 38.43759746 | F9: 14 | G9: 11.48131978 | I9: 58 | J9: 49.91891723
A10: Diplom ing. | C10: 74 | D10: 62.73560781 | F10: 22 | G10: 18.71639743 | I10: 96 | J10: 81.45200524
A11: Cand. Scient. Tek. | C11: 39 | D11: 34.28553608 | F11: 37 | G11: 31.49441776 | I11: 76 | J11: 65.77995385
A12: MA. Hum. | C12: 86 | D12: 68.56920102 | F12: 196 | G12: 153.327512 | I12: 282 | J12: 221.896713
A13: MA. Nat. | C13: 28 | D13: 24.91112081 | F13: 38 | G13: 26.43111083 | I13: 66 | J13: 51.34223165
A14: MA. Ph.d. | C14: 5 | D14: 4.294268072 | F14: 2 | G14: 1.999625772 | I14: 7 | J14: 6.293893844
A15: MA. Samf. | C15: 16 | D15: 13.80091062 | F15: 31 | G15: 27.17021144 | I15: 47 | J15: 40.97112206
A16: Øvrige Mag. | C16: 7 | D16: 5.665814258 | F16: 10 | G16: 9.335121312 | I16: 17 | J16: 15.00093557
A17: Agronom | C17: 6 | D17: 5.499906443 | F17: 13 | G17: 8.862346411 | I17: 19 | J17: 14.36225285
A18: Landsk. Arkt. | C18: 1 | D18: 0.9998128859 | F18: 4 | G18: 3.306929458 | I18: 5 | J18: 4.306742344
A19: Hortonom | C19: 1 | D19: 0.9000187114 | F19: 1 | G19: 0.9998128859 | I19: 2 | J19: 1.899831597
A20: Forstkand. | C20: 2 | D20: 1.999625772 | F20: 1 | G20: 0.9998128859 | I20: 3 | J20: 2.999438658
A21: Jordbrugsakad. | C21: 10 | D21: 9.399363812 | F21: 19 | G21: 14.16890164 | I21: 29 | J21: 23.56826545
A22: Mejeriing. | C22: 1 | D22: 0.9998128859 | F22: 0 | G22: 0 | I22: 1 | J22: 0.9998128859
A23: Levn.m.kand. | C23: 1 | D23: 0.7690388574 | F23: 1 | G23: 0.9998128859 | I23: 2 | J23: 1.768851743
A24: Dyrlæge | C24: 0 | D24: 0 | F24: 11 | G24: 7.420944302 | I24: 11 | J24: 7.420944302
A25: Farmaceut | C25: 2 | D25: 1.676542132 | F25: 4 | G25: 3.030000624 | I25: 6 | J25: 4.706542756
A26: Læge | C26: 7 | D26: 5.14501341 | F26: 14 | G26: 10.54200711 | I26: 21 | J26: 15.68702052
A27: Tandlæge | C27: 0 | D27: 0 | F27: 3 | G27: 1.458866089 | I27: 3 | J27: 1.458866089
A28: Arkitekt | C28: 10 | D28: 8.030936194 | F28: 6 | G28: 4.577434042 | I28: 16 | J28: 12.60837024
A29: Landinspek. | C29: 1 | D29: 0.9998128859 | F29: 0 | G29: 0 | I29: 1 | J29: 0.9998128859
A30: Bibliotekar | C30: 4 | D30: 3.01378407 | F30: 13 | G30: 9.164223788 | I30: 17 | J30: 12.17800786
A31: Musikudd. | C31: 0 | D31: 0 | F31: 3 | G31: 2.592777397 | I31: 3 | J31: 2.592777397
A32: Teolog | C32: 1 | D32: 0.374851868 | F32: 2 | G32: 1.999625772 | I32: 3 | J32: 2.37447764
A33: Psykolog | C33: 5 | D33: 4.67598079 | F33: 31 | G33: 23.8320963 | I33: 36 | J33: 28.50807709
A34: Jurist | C34: 7 | D34: 4.883677415 | F34: 10 | G34: 7.707852554 | I34: 17 | J34: 12.59152997
A35: Økonom | C35: 10 | D35: 7.818873573 | F35: 4 | G35: 2.845381401 | I35: 14 | J35: 10.66425497
A36: Samf. Adm. | C36: 41 | D36: 33.95184931 | F36: 70 | G36: 52.13122934 | I36: 111 | J36: 86.08307865
A37: Cand. Merc. | C37: 55 | D37: 43.70298759 | F37: 59 | G37: 47.98166282 | I37: 114 | J37: 91.68465041
A38: HA | C38: 17 | D38: 14.08657145 | F38: 15 | G38: 12.57281856 | I38: 32 | J38: 26.65939001
A39: HD | C39: 9 | D39: 7.571259278 | F39: 10 | G39: 8.528035926 | I39: 19 | J39: 16.0992952
A40: Komm. og Sprog | C40: 3 | D40: 2.660138464 | F40: 45 | G40: 32.44183871 | I40: 48 | J40: 35.10197717
A41: Bygningskonst. | C41: 27 | D41: 24.32283415 | F41: 3 | G41: 1.753820246 | I41: 30 | J41: 26.0766544
A42: Cand. IT. | C42: 10 | D42: 9.660076093 | F42: 10 | G42: 7.405975176 | I42: 20 | J42: 17.06605127
A43: Bac. Samf. | C43: 1 | D43: 0.9187301191 | F43: 6 | G43: 5.214245618 | I43: 7 | J43: 6.132975738
A44: Bac. Hum. | C44: 12 | D44: 10.42537267 | F44: 24 | G44: 20.44907379 | I44: 36 | J44: 30.87444645
A45: Bac. Nat. | C45: 11 | D45: 10.25946485 | F45: 12 | G45: 10.00124743 | I45: 23 | J45: 20.26071228
A46: Andre | C46: 58 | D46: 46.60637435 | F46: 57 | G46: 45.32713778 | I46: 115 | J46: 91.93351213
A48: Total | C48: 602 | D48: 504.6534024 | F48: 782 | G48: 614.1027256 | I48: 1384 | J48: 1118.756128
A50: Ingeniører i alt | C50: 118 | D50: 101.1732053 | F50: 36 | G50: 30.19771721 | I50: 154 | J50: 131.3709225
A51: Magistre i alt | C51: 142 | D51: 117.2413148 | F51: 277 | G51: 218.2635814 | I51: 419 | J51: 335.5048962
A52: DJØF'ere i alt | C52: 130 | D52: 104.4439593 | F52: 158 | G52: 123.2389447 | I52: 288 | J52: 227.682904
A56: Greve
C58: Mænd | F58: Kvinder | I58: I alt
C59: Ledigheds- berørte | D59: Gns. brutto- ledighed | F59: Ledigheds- berørte | G59: Gns. brutto- ledighed | I59: Ledigheds- berørte | J59: Gns. brutto- ledighed
A62: Civ. ing. | C62: 3 | D62: 2.260961766 | F62: 0 | G62: 0 | I62: 3 | J62: 2.260961766
A63: Diplom ing. | C63: 5 | D63: 4.99906443 | F63: 2 | G63: 1.999625772 | I63: 7 | J63: 6.998690201
A64: Cand. Scient. Tek. | C64: 3 | D64: 2.630200212 | F64: 4 | G64: 3.306929458 | I64: 7 | J64: 5.93712967
A65: MA. Hum. | C65: 4 | D65: 2.933948731 | F65: 7 | G65: 6.121748893 | I65: 11 | J65: 9.055697624
A66: MA. Nat. | C66: 1 | D66: 0.9998128859 | F66: 1 | G66: 0.9998128859 | I66: 2 | J66: 1.999625772
A67: MA. Ph.d. | C67: 1 | D67: 0.9998128859 | F67: 0 | G67: 0 | I67: 1 | J67: 0.9998128859
A68: MA. Samf. | C68: 1 | D68: 0.3074908002 | F68: 1 | G68: 0.5382648288 | I68: 2 | J68: 0.845755629
A69: Øvrige Mag. | C69: 0 | D69: 0 | F69: 0 | G69: 0 | I69: 0 | J69: 0
A70: Agronom | C70: 0 | D70: 0 | F70: 1 | G70: 0.5382648288 | I70: 1 | J70: 0.5382648288
A71: Landsk. Arkt. | C71: 0 | D71: 0 | F71: 1 | G71: 0.7690388574 | I71: 1 | J71: 0.7690388574
A72: Hortonom | C72: 0 | D72: 0 | F72: 0 | G72: 0 | I72: 0 | J72: 0
A73: Forstkand. | C73: 0 | D73: 0 | F73: 0 | G73: 0 | I73: 0 | J73: 0
A74: Jordbrugsakad. | C74: 0 | D74: 0 | F74: 2 | G74: 1.307303686 | I74: 2 | J74: 1.307303686
A75: Mejeriing. | C75: 0 | D75: 0 | F75: 0 | G75: 0 | I75: 0 | J75: 0
A76: Levn.m.kand. | C76: 0 | D76: 0 | F76: 0 | G76: 0 | I76: 0 | J76: 0
A77: Dyrlæge | C77: 0 | D77: 0 | F77: 0 | G77: 0 | I77: 0 | J77: 0
A78: Farmaceut | C78: 0 | D78: 0 | F78: 1 | G78: 0.9998128859 | I78: 1 | J78: 0.9998128859
A79: Læge | C79: 0 | D79: 0 | F79: 1 | G79: 0.3074908002 | I79: 1 | J79: 0.3074908002
A80: Tandlæge | C80: 0 | D80: 0 | F80: 0 | G80: 0 | I80: 0 | J80: 0
A81: Arkitekt | C81: 0 | D81: 0 | F81: 0 | G81: 0 | I81: 0 | J81: 0
A82: Landinspek. | C82: 0 | D82: 0 | F82: 0 | G82: 0 | I82: 0 | J82: 0
A83: Bibliotekar | C83: 0 | D83: 0 | F83: 0 | G83: 0 | I83: 0 | J83: 0
A84: Musikudd. | C84: 0 | D84: 0 | F84: 0 | G84: 0 | I84: 0 | J84: 0
A85: Teolog | C85: 0 | D85: 0 | F85: 0 | G85: 0 | I85: 0 | J85: 0
A86: Psykolog | C86: 0 | D86: 0 | F86: 1 | G86: 0.6767292459 | I86: 1 | J86: 0.6767292459
A87: Jurist | C87: 0 | D87: 0 | F87: 0 | G87: 0 | I87: 0 | J87: 0
A88: Økonom | C88: 1 | D88: 0.9998128859 | F88: 1 | G88: 0.3074908002 | I88: 2 | J88: 1.307303686
A89: Samf. Adm. | C89: 2 | D89: 1.681531841 | F89: 0 | G89: 0 | I89: 2 | J89: 1.681531841
A90: Cand. Merc. | C90: 3 | D90: 2.676355018 | F90: 1 | G90: 0.9998128859 | I90: 4 | J90: 3.676167904
A91: HA | C91: 1 | D91: 0.9998128859 | F91: 0 | G91: 0 | I91: 1 | J91: 0.9998128859
A92: HD | C92: 1 | D92: 0.9998128859 | F92: 1 | G92: 0.7690388574 | I92: 2 | J92: 1.768851743
A93: Komm. og Sprog | C93: 0 | D93: 0 | F93: 4 | G93: 3.119191667 | I93: 4 | J93: 3.119191667
A94: Bygningskonst. | C94: 5 | D94: 4.523482817 | F94: 0 | G94: 0 | I94: 5 | J94: 4.523482817
A95: Cand. IT. | C95: 0 | D95: 0 | F95: 1 | G95: 0.4459552174 | I95: 1 | J95: 0.4459552174
A96: Bac. Samf. | C96: 0 | D96: 0 | F96: 1 | G96: 0.9998128859 | I96: 1 | J96: 0.9998128859
A97: Bac. Hum. | C97: 0 | D97: 0 | F97: 3 | G97: 1.799413709 | I97: 3 | J97: 1.799413709
A98: Bac. Nat. | C98: 2 | D98: 1.999625772 | F98: 1 | G98: 0.8170648038 | I98: 3 | J98: 2.816690576
A99: Andre | C99: 4 | D99: 2.614607372 | F99: 4 | G99: 2.860350527 | I99: 8 | J99: 5.474957899
A101: Total | C101: 37 | D101: 31.62633319 | F101: 37 | G101: 28.37584981 | I101: 74 | J101: 60.002183
A103: Ingeniører i alt | C103: 8 | D103: 7.260026196 | F103: 2 | G103: 1.999625772 | I103: 10 | J103: 9.259651968
A104: Magistre i alt | C104: 7 | D104: 5.241065303 | F104: 9 | G104: 7.659826608 | I104: 16 | J104: 12.90089191
A105: DJØF'ere i alt | C105: 7 | D105: 6.35751263 | F105: 2 | G105: 1.307303686 | I105: 9 | J105: 7.664816316
A110: Køge
C112: Mænd | F112: Kvinder | I112: I alt
C113: Ledigheds- berørte | D113: Gns. brutto- ledighed | F113: Ledigheds- berørte | G113: Gns. brutto- ledighed | I113: Ledigheds- berørte | J113: Gns. brutto- ledighed
A116: Civ. ing. | C116: 0 | D116: 0 | F116: 0 | G116: 0 | I116: 0 | J116: 0
A117: Diplom ing. | C117: 6 | D117: 4.772656396 | F117: 1 | G117: 0.5382648288 | I117: 7 | J117: 5.310921225
A118: Cand. Scient. Tek. | C118: 6 | D118: 4.795110085 | F118: 2 | G118: 1.999625772 | I118: 8 | J118: 6.794735857
A119: MA. Hum. | C119: 3 | D119: 2.993201522 | F119: 13 | G119: 10.41414582 | I119: 16 | J119: 13.40734735
A120: MA. Nat. | C120: 4 | D120: 3.484687831 | F120: 4 | G120: 2.679473586 | I120: 8 | J120: 6.164161417
A121: MA. Ph.d. | C121: 0 | D121: 0 | F121: 1 | G121: 0.9998128859 | I121: 1 | J121: 0.9998128859
A122: MA. Samf. | C122: 0 | D122: 0 | F122: 5 | G122: 4.99906443 | I122: 5 | J122: 4.99906443
A123: Øvrige Mag. | C123: 2 | D123: 1.768851743 | F123: 3 | G123: 2.76180378 | I123: 5 | J123: 4.530655523
A124: Agronom | C124: 1 | D124: 0.9998128859 | F124: 1 | G124: 0.9998128859 | I124: 2 | J124: 1.999625772
A125: Landsk. Arkt. | C125: 0 | D125: 0 | F125: 0 | G125: 0 | I125: 0 | J125: 0
A126: Hortonom | C126: 0 | D126: 0 | F126: 0 | G126: 0 | I126: 0 | J126: 0
A127: Forstkand. | C127: 0 | D127: 0 | F127: 0 | G127: 0 | I127: 0 | J127: 0
A128: Jordbrugsakad. | C128: 1 | D128: 0.9998128859 | F128: 1 | G128: 0.9998128859 | I128: 2 | J128: 1.999625772
A129: Mejeriing. | C129: 0 | D129: 0 | F129: 0 | G129: 0 | I129: 0 | J129: 0
A130: Levn.m.kand. | C130: 0 | D130: 0 | F130: 0 | G130: 0 | I130: 0 | J130: 0
A131: Dyrlæge | C131: 0 | D131: 0 | F131: 1 | G131: 0.9998128859 | I131: 1 | J131: 0.9998128859
A132: Farmaceut | C132: 1 | D132: 0.6767292459 | F132: 0 | G132: 0 | I132: 1 | J132: 0.6767292459
A133: Læge | C133: 1 | D133: 0.2151811888 | F133: 1 | G133: 0.2613359945 | I133: 2 | J133: 0.4765171833
A134: Tandlæge | C134: 0 | D134: 0 | F134: 0 | G134: 0 | I134: 0 | J134: 0
A135: Arkitekt | C135: 0 | D135: 0 | F135: 0 | G135: 0 | I135: 0 | J135: 0
A136: Landinspek. | C136: 0 | D136: 0 | F136: 0 | G136: 0 | I136: 0 | J136: 0
A137: Bibliotekar | C137: 0 | D137: 0 | F137: 3 | G137: 2.154930456 | I137: 3 | J137: 2.154930456
A138: Musikudd. | C138: 0 | D138: 0 | F138: 0 | G138: 0 | I138: 0 | J138: 0
A139: Teolog | C139: 0 | D139: 0 | F139: 0 | G139: 0 | I139: 0 | J139: 0
A140: Psykolog | C140: 1 | D140: 0.9075032745 | F140: 5 | G140: 3.500904385 | I140: 6 | J140: 4.408407659
A141: Jurist | C141: 3 | D141: 1.853676792 | F141: 2 | G141: 1.307303686 | I141: 5 | J141: 3.160980478
A142: Økonom | C142: 2 | D142: 1.307303686 | F142: 0 | G142: 0 | I142: 2 | J142: 1.307303686
A143: Samf. Adm. | C143: 3 | D143: 2.768664629 | F143: 3 | G143: 2.999438658 | I143: 6 | J143: 5.768103287
A144: Cand. Merc. | C144: 5 | D144: 4.755816129 | F144: 6 | G144: 3.492796108 | I144: 11 | J144: 8.248612237
A145: HA | C145: 1 | D145: 0.9998128859 | F145: 2 | G145: 1.999625772 | I145: 3 | J145: 2.999438658
A146: HD | C146: 0 | D146: 0 | F146: 0 | G146: 0 | I146: 0 | J146: 0
A147: Komm. og Sprog | C147: 2 | D147: 1.660325578 | F147: 2 | G147: 1.26114888 | I147: 4 | J147: 2.921474459
A148: Bygningskonst. | C148: 1 | D148: 1 | F148: 1 | G148: 0.4461423314 | I148: 2 | J148: 1.446142331
A149: Cand. IT. | C149: 3 | D149: 2.999438658 | F149: 1 | G149: 0.9998128859 | I149: 4 | J149: 3.999251544
A150: Bac. Samf. | C150: 0 | D150: 0 | F150: 0 | G150: 0 | I150: 0 | J150: 0
A151: Bac. Hum. | C151: 1 | D151: 0.9998128859 | F151: 1 | G151: 0.9998128859 | I151: 2 | J151: 1.999625772
A152: Bac. Nat. | C152: 2 | D152: 1.999625772 | F152: 1 | G152: 0.9998128859 | I152: 3 | J152: 2.999438658
A153: Andre | C153: 4 | D153: 3.906941932 | F153: 11 | G153: 7.750265078 | I153: 15 | J153: 11.65720701
A155: Total | C155: 52 | D155: 44.86515312 | F155: 70 | G155: 54.56514688 | I155: 122 | J155: 99.43030001
A157: Ingeniører i alt | C157: 6 | D157: 4.772656396 | F157: 1 | G157: 0.5382648288 | I157: 7 | J157: 5.310921225
A158: Magistre i alt | C158: 9 | D158: 8.246741096 | F158: 26 | G158: 21.85430051 | I158: 35 | J158: 30.1010416
A159: DJØF'ere i alt | C159: 14 | D159: 11.68527412 | F159: 13 | G159: 9.799164224 | I159: 27 | J159: 21.48443835
A164: Roskilde
C166: Mænd | F166: Kvinder | I166: I alt
C167: Ledigheds- berørte | D167: Gns. brutto- ledighed | F167: Ledigheds- berørte | G167: Gns. brutto- ledighed | I167: Ledigheds- berørte | J167: Gns. brutto- ledighed
A170: Civ. ing. | C170: 9 | D170: 6.640054887 | F170: 5 | G170: 3.199027007 | I170: 14 | J170: 9.839081894
A171: Diplom ing. | C171: 18 | D171: 16.02819185 | F171: 6 | G171: 4.679723071 | I171: 24 | J171: 20.70791493
A172: Cand. Scient. Tek. | C172: 8 | D172: 6.993076779 | F172: 10 | G172: 9.562776773 | I172: 18 | J172: 16.55585355
A173: MA. Hum. | C173: 19 | D173: 15.76436101 | F173: 45 | G173: 36.36624462 | I173: 64 | J173: 52.13060563
A174: MA. Nat. | C174: 8 | D174: 6.853364935 | F174: 11 | G174: 7.571882991 | I174: 19 | J174: 14.42524793
A175: MA. Ph.d. | C175: 4 | D175: 3.294455186 | F175: 0 | G175: 0 | I175: 4 | J175: 3.294455186
A176: MA. Samf. | C176: 4 | D176: 3.768477515 | F176: 8 | G176: 7.583109836 | I176: 12 | J176: 11.35158735
A177: Øvrige Mag. | C177: 1 | D177: 0.3074908002 | F177: 4 | G177: 3.74851868 | I177: 5 | J177: 4.05600948
A178: Agronom | C178: 0 | D178: 0 | F178: 1 | G178: 0.6767292459 | I178: 1 | J178: 0.6767292459
A179: Landsk. Arkt. | C179: 0 | D179: 0 | F179: 0 | G179: 0 | I179: 0 | J179: 0
A180: Hortonom | C180: 0 | D180: 0 | F180: 0 | G180: 0 | I180: 0 | J180: 0
A181: Forstkand. | C181: 0 | D181: 0 | F181: 1 | G181: 0.9998128859 | I181: 1 | J181: 0.9998128859
A182: Jordbrugsakad. | C182: 0 | D182: 0 | F182: 2 | G182: 1.676542132 | I182: 2 | J182: 1.676542132
A183: Mejeriing. | C183: 0 | D183: 0 | F183: 0 | G183: 0 | I183: 0 | J183: 0
A184: Levn.m.kand. | C184: 1 | D184: 0.7690388574 | F184: 0 | G184: 0 | I184: 1 | J184: 0.7690388574
A185: Dyrlæge | C185: 0 | D185: 0 | F185: 1 | G185: 0.9998128859 | I185: 1 | J185: 0.9998128859
A186: Farmaceut | C186: 0 | D186: 0 | F186: 1 | G186: 0.6767292459 | I186: 1 | J186: 0.6767292459
A187: Læge | C187: 4 | D187: 3.576373729 | F187: 1 | G187: 0.9998128859 | I187: 5 | J187: 4.576186615
A188: Tandlæge | C188: 0 | D188: 0 | F188: 1 | G188: 0.4447077902 | I188: 1 | J188: 0.4447077902
A189: Arkitekt | C189: 2 | D189: 1.538077715 | F189: 2 | G189: 1.487556914 | I189: 4 | J189: 3.025634629
A190: Landinspek. | C190: 0 | D190: 0 | F190: 0 | G190: 0 | I190: 0 | J190: 0
A191: Bibliotekar | C191: 2 | D191: 1.353458492 | F191: 1 | G191: 0.5382648288 | I191: 3 | J191: 1.891723321
A192: Musikudd. | C192: 0 | D192: 0 | F192: 1 | G192: 0.6854612362 | I192: 1 | J192: 0.6854612362
A193: Teolog | C193: 0 | D193: 0 | F193: 0 | G193: 0 | I193: 0 | J193: 0
A194: Psykolog | C194: 2 | D194: 1.768851743 | F194: 12 | G194: 9.680034928 | I194: 14 | J194: 11.44888667
A195: Jurist | C195: 1 | D195: 0.9998128859 | F195: 2 | G195: 1.093993638 | I195: 3 | J195: 2.093806524
A196: Økonom | C196: 1 | D196: 0.9998128859 | F196: 1 | G196: 0.9998128859 | I196: 2 | J196: 1.999625772
A197: Samf. Adm. | C197: 11 | D197: 10.00623714 | F197: 15 | G197: 10.74097175 | I197: 26 | J197: 20.74720888
A198: Cand. Merc. | C198: 8 | D198: 7.329882118 | F198: 20 | G198: 15.61030375 | I198: 28 | J198: 22.94018587
A199: HA | C199: 3 | D199: 2.73747895 | F199: 2 | G199: 1.214994075 | I199: 5 | J199: 3.952473024
A200: HD | C200: 2 | D200: 1.999625772 | F200: 2 | G200: 1.505644608 | I200: 4 | J200: 3.50527038
A201: Komm. og Sprog | C201: 0 | D201: 0 | F201: 8 | G201: 6.028191854 | I201: 8 | J201: 6.028191854
A202: Bygningskonst. | C202: 4 | D202: 3.815380777 | F202: 1 | G202: 0.3076779143 | I202: 5 | J202: 4.123058691
A203: Cand. IT. | C203: 2 | D203: 1.999625772 | F203: 3 | G203: 2.023950602 | I203: 5 | J203: 4.023576374
A204: Bac. Samf. | C204: 0 | D204: 0 | F204: 1 | G204: 0.9998128859 | I204: 1 | J204: 0.9998128859
A205: Bac. Hum. | C205: 4 | D205: 3.280109774 | F205: 6 | G205: 5.266013846 | I205: 10 | J205: 8.54612362
A206: Bac. Nat. | C206: 2 | D206: 1.999625772 | F206: 2 | G206: 1.307303686 | I206: 4 | J206: 3.306929458
A207: Andre | C207: 10 | D207: 7.843822117 | F207: 5 | G207: 4.445206761 | I207: 15 | J207: 12.28902888
A209: Total | C209: 130 | D209: 111.6666875 | F209: 179 | G209: 141.4440841 | I209: 309 | J209: 253.1107715
A211: Ingeniører i alt | C211: 27 | D211: 22.66824674 | F211: 11 | G211: 7.878750078 | I211: 38 | J211: 30.54699682
A212: Magistre i alt | C212: 36 | D212: 29.98814944 | F212: 68 | G212: 55.26975613 | I212: 104 | J212: 85.25790557
A213: DJØF'ere i alt | C213: 24 | D213: 22.07322398 | F213: 40 | G213: 29.66007609 | I213: 64 | J213: 51.73330007
A218: Solrød
C220: Mænd | F220: Kvinder | I220: I alt
C221: Ledigheds- berørte | D221: Gns. brutto- ledighed | F221: Ledigheds- berørte | G221: Gns. brutto- ledighed | I221: Ledigheds- berørte | J221: Gns. brutto- ledighed
A224: Civ. ing. | C224: 1 | D224: 0.9998128859 | F224: 0 | G224: 0 | I224: 1 | J224: 0.9998128859
A225: Diplom ing. | C225: 1 | D225: 0.4459552174 | F225: 0 | G225: 0 | I225: 1 | J225: 0.4459552174
A226: Cand. Scient. Tek. | C226: 0 | D226: 0 | F226: 0 | G226: 0 | I226: 0 | J226: 0
A227: MA. Hum. | C227: 4 | D227: 3.538950914 | F227: 4 | G227: 3.630013098 | I227: 8 | J227: 7.168964012
A228: MA. Nat. | C228: 1 | D228: 0.9998128859 | F228: 1 | G228: 0.4921100231 | I228: 2 | J228: 1.491922909
A229: MA. Ph.d. | C229: 0 | D229: 0 | F229: 0 | G229: 0 | I229: 0 | J229: 0
A230: MA. Samf. | C230: 2 | D230: 1.676542132 | F230: 0 | G230: 0 | I230: 2 | J230: 1.676542132
A231: Øvrige Mag. | C231: 0 | D231: 0 | F231: 0 | G231: 0 | I231: 0 | J231: 0
A232: Agronom | C232: 0 | D232: 0 | F232: 0 | G232: 0 | I232: 0 | J232: 0
A233: Landsk. Arkt. | C233: 0 | D233: 0 | F233: 0 | G233: 0 | I233: 0 | J233: 0
A234: Hortonom | C234: 0 | D234: 0 | F234: 0 | G234: 0 | I234: 0 | J234: 0
A235: Forstkand. | C235: 0 | D235: 0 | F235: 0 | G235: 0 | I235: 0 | J235: 0
A236: Jordbrugsakad. | C236: 0 | D236: 0 | F236: 0 | G236: 0 | I236: 0 | J236: 0
A237: Mejeriing. | C237: 0 | D237: 0 | F237: 0 | G237: 0 | I237: 0 | J237: 0
A238: Levn.m.kand. | C238: 0 | D238: 0 | F238: 0 | G238: 0 | I238: 0 | J238: 0
A239: Dyrlæge | C239: 0 | D239: 0 | F239: 0 | G239: 0 | I239: 0 | J239: 0
... 611 more rows

Sheet Tabel 3 S
A1: Tabel 3. Ledige i procent af forsikrede
A3: ='Tabel 2 S'!A3 -> Sjælland
C5: Mænd | F5: Kvinder | I5: I alt
C6: Ledigheds- berørte | D6: Gns. brutto- ledighed | F6: Ledigheds- berørte | G6: Gns. brutto- ledighed | I6: Ledigheds- berørte | J6: Gns. brutto- ledighed
A9: Civ. ing. | C9: =IF(OR('Tabel 1 S'!C9<5,'Tabel 2 S'!C9<0.5),"-",IFERROR('Tabel 2 S'!C9/'Tabel 1 S'!C9*100,"-")) -> 2.598936799 | D9: =IF(OR('Tabel 1 S'!C9<5,'Tabel 2 S'!D9<0.5),"-",IFERROR('Tabel 2 S'!D9/'Tabel 1 S'!C9*100,"-")) -> 2.270383784 | F9: =IF(OR('Tabel 1 S'!E9<5,'Tabel 2 S'!F9<0.5),"-",IFERROR('Tabel 2 S'!F9/'Tabel 1 S'!E9*100,"-")) -> 2.204724409 | G9: =IF(OR('Tabel 1 S'!E9<5,'Tabel 2 S'!G9<0.5),"-",IFERROR('Tabel 2 S'!G9/'Tabel 1 S'!E9*100,"-")) -> 1.808081855 | I9: =IF(OR('Tabel 1 S'!G9<5,'Tabel 2 S'!I9<0.5),"-",IFERROR('Tabel 2 S'!I9/'Tabel 1 S'!G9*100,"-")) -> 2.491408935 | J9: =IF(OR('Tabel 1 S'!G9<5,'Tabel 2 S'!J9<0.5),"-",IFERROR('Tabel 2 S'!J9/'Tabel 1 S'!G9*100,"-")) -> 2.144283386
A10: Diplom ing. | C10: =IF(OR('Tabel 1 S'!C10<5,'Tabel 2 S'!C10<0.5),"-",IFERROR('Tabel 2 S'!C10/'Tabel 1 S'!C10*100,"-")) -> 2.343997466 | D10: =IF(OR('Tabel 1 S'!C10<5,'Tabel 2 S'!D10<0.5),"-",IFERROR('Tabel 2 S'!D10/'Tabel 1 S'!C10*100,"-")) -> 1.987190618 | F10: =IF(OR('Tabel 1 S'!E10<5,'Tabel 2 S'!F10<0.5),"-",IFERROR('Tabel 2 S'!F10/'Tabel 1 S'!E10*100,"-")) -> 2.92942743 | G10: =IF(OR('Tabel 1 S'!E10<5,'Tabel 2 S'!G10<0.5),"-",IFERROR('Tabel 2 S'!G10/'Tabel 1 S'!E10*100,"-")) -> 2.492196728 | I10: =IF(OR('Tabel 1 S'!G10<5,'Tabel 2 S'!I10<0.5),"-",IFERROR('Tabel 2 S'!I10/'Tabel 1 S'!G10*100,"-")) -> 2.456499488 | J10: =IF(OR('Tabel 1 S'!G10<5,'Tabel 2 S'!J10<0.5),"-",IFERROR('Tabel 2 S'!J10/'Tabel 1 S'!G10*100,"-")) -> 2.084237596
A11: Cand. Scient. Tek. | C11: =IF(OR('Tabel 1 S'!C11<5,'Tabel 2 S'!C11<0.5),"-",IFERROR('Tabel 2 S'!C11/'Tabel 1 S'!C11*100,"-")) -> 5.777777778 | D11: =IF(OR('Tabel 1 S'!C11<5,'Tabel 2 S'!D11<0.5),"-",IFERROR('Tabel 2 S'!D11/'Tabel 1 S'!C11*100,"-")) -> 5.079338679 | F11: =IF(OR('Tabel 1 S'!E11<5,'Tabel 2 S'!F11<0.5),"-",IFERROR('Tabel 2 S'!F11/'Tabel 1 S'!E11*100,"-")) -> 5.835962145 | G11: =IF(OR('Tabel 1 S'!E11<5,'Tabel 2 S'!G11<0.5),"-",IFERROR('Tabel 2 S'!G11/'Tabel 1 S'!E11*100,"-")) -> 4.96757378 | I11: =IF(OR('Tabel 1 S'!G11<5,'Tabel 2 S'!I11<0.5),"-",IFERROR('Tabel 2 S'!I11/'Tabel 1 S'!G11*100,"-")) -> 5.805958747 | J11: =IF(OR('Tabel 1 S'!G11<5,'Tabel 2 S'!J11<0.5),"-",IFERROR('Tabel 2 S'!J11/'Tabel 1 S'!G11*100,"-")) -> 5.025206558
A12: MA. Hum. | C12: =IF(OR('Tabel 1 S'!C12<5,'Tabel 2 S'!C12<0.5),"-",IFERROR('Tabel 2 S'!C12/'Tabel 1 S'!C12*100,"-")) -> 8.884297521 | D12: =IF(OR('Tabel 1 S'!C12<5,'Tabel 2 S'!D12<0.5),"-",IFERROR('Tabel 2 S'!D12/'Tabel 1 S'!C12*100,"-")) -> 7.083595147 | F12: =IF(OR('Tabel 1 S'!E12<5,'Tabel 2 S'!F12<0.5),"-",IFERROR('Tabel 2 S'!F12/'Tabel 1 S'!E12*100,"-")) -> 8.699511762 | G12: =IF(OR('Tabel 1 S'!E12<5,'Tabel 2 S'!G12<0.5),"-",IFERROR('Tabel 2 S'!G12/'Tabel 1 S'!E12*100,"-")) -> 6.805482113 | I12: =IF(OR('Tabel 1 S'!G12<5,'Tabel 2 S'!I12<0.5),"-",IFERROR('Tabel 2 S'!I12/'Tabel 1 S'!G12*100,"-")) -> 8.755045017 | J12: =IF(OR('Tabel 1 S'!G12<5,'Tabel 2 S'!J12<0.5),"-",IFERROR('Tabel 2 S'!J12/'Tabel 1 S'!G12*100,"-")) -> 6.889062807
A13: MA. Nat. | C13: =IF(OR('Tabel 1 S'!C13<5,'Tabel 2 S'!C13<0.5),"-",IFERROR('Tabel 2 S'!C13/'Tabel 1 S'!C13*100,"-")) -> 3.851444292 | D13: =IF(OR('Tabel 1 S'!C13<5,'Tabel 2 S'!D13<0.5),"-",IFERROR('Tabel 2 S'!D13/'Tabel 1 S'!C13*100,"-")) -> 3.426564073 | F13: =IF(OR('Tabel 1 S'!E13<5,'Tabel 2 S'!F13<0.5),"-",IFERROR('Tabel 2 S'!F13/'Tabel 1 S'!E13*100,"-")) -> 5.142083897 | G13: =IF(OR('Tabel 1 S'!E13<5,'Tabel 2 S'!G13<0.5),"-",IFERROR('Tabel 2 S'!G13/'Tabel 1 S'!E13*100,"-")) -> 3.576604984 | I13: =IF(OR('Tabel 1 S'!G13<5,'Tabel 2 S'!I13<0.5),"-",IFERROR('Tabel 2 S'!I13/'Tabel 1 S'!G13*100,"-")) -> 4.502046385 | J13: =IF(OR('Tabel 1 S'!G13<5,'Tabel 2 S'!J13<0.5),"-",IFERROR('Tabel 2 S'!J13/'Tabel 1 S'!G13*100,"-")) -> 3.502198612
A14: MA. Ph.d. | C14: =IF(OR('Tabel 1 S'!C14<5,'Tabel 2 S'!C14<0.5),"-",IFERROR('Tabel 2 S'!C14/'Tabel 1 S'!C14*100,"-")) -> 5.952380952 | D14: =IF(OR('Tabel 1 S'!C14<5,'Tabel 2 S'!D14<0.5),"-",IFERROR('Tabel 2 S'!D14/'Tabel 1 S'!C14*100,"-")) -> 5.112223895 | F14: =IF(OR('Tabel 1 S'!E14<5,'Tabel 2 S'!F14<0.5),"-",IFERROR('Tabel 2 S'!F14/'Tabel 1 S'!E14*100,"-")) -> 2.941176471 | G14: =IF(OR('Tabel 1 S'!E14<5,'Tabel 2 S'!G14<0.5),"-",IFERROR('Tabel 2 S'!G14/'Tabel 1 S'!E14*100,"-")) -> 2.940626135 | I14: =IF(OR('Tabel 1 S'!G14<5,'Tabel 2 S'!I14<0.5),"-",IFERROR('Tabel 2 S'!I14/'Tabel 1 S'!G14*100,"-")) -> 4.605263158 | J14: =IF(OR('Tabel 1 S'!G14<5,'Tabel 2 S'!J14<0.5),"-",IFERROR('Tabel 2 S'!J14/'Tabel 1 S'!G14*100,"-")) -> 4.140719634
A15: MA. Samf. | C15: =IF(OR('Tabel 1 S'!C15<5,'Tabel 2 S'!C15<0.5),"-",IFERROR('Tabel 2 S'!C15/'Tabel 1 S'!C15*100,"-")) -> 13.33333333 | D15: =IF(OR('Tabel 1 S'!C15<5,'Tabel 2 S'!D15<0.5),"-",IFERROR('Tabel 2 S'!D15/'Tabel 1 S'!C15*100,"-")) -> 11.50075885 | F15: =IF(OR('Tabel 1 S'!E15<5,'Tabel 2 S'!F15<0.5),"-",IFERROR('Tabel 2 S'!F15/'Tabel 1 S'!E15*100,"-")) -> 10.09771987 | G15: =IF(OR('Tabel 1 S'!E15<5,'Tabel 2 S'!G15<0.5),"-",IFERROR('Tabel 2 S'!G15/'Tabel 1 S'!E15*100,"-")) -> 8.850231739 | I15: =IF(OR('Tabel 1 S'!G15<5,'Tabel 2 S'!I15<0.5),"-",IFERROR('Tabel 2 S'!I15/'Tabel 1 S'!G15*100,"-")) -> 11.00702576 | J15: =IF(OR('Tabel 1 S'!G15<5,'Tabel 2 S'!J15<0.5),"-",IFERROR('Tabel 2 S'!J15/'Tabel 1 S'!G15*100,"-")) -> 9.595110553
A16: Øvrige Mag. | C16: =IF(OR('Tabel 1 S'!C16<5,'Tabel 2 S'!C16<0.5),"-",IFERROR('Tabel 2 S'!C16/'Tabel 1 S'!C16*100,"-")) -> 7.865168539 | D16: =IF(OR('Tabel 1 S'!C16<5,'Tabel 2 S'!D16<0.5),"-",IFERROR('Tabel 2 S'!D16/'Tabel 1 S'!C16*100,"-")) -> 6.366083436 | F16: =IF(OR('Tabel 1 S'!E16<5,'Tabel 2 S'!F16<0.5),"-",IFERROR('Tabel 2 S'!F16/'Tabel 1 S'!E16*100,"-")) -> 5.617977528 | G16: =IF(OR('Tabel 1 S'!E16<5,'Tabel 2 S'!G16<0.5),"-",IFERROR('Tabel 2 S'!G16/'Tabel 1 S'!E16*100,"-")) -> 5.244450175 | I16: =IF(OR('Tabel 1 S'!G16<5,'Tabel 2 S'!I16<0.5),"-",IFERROR('Tabel 2 S'!I16/'Tabel 1 S'!G16*100,"-")) -> 6.367041199 | J16: =IF(OR('Tabel 1 S'!G16<5,'Tabel 2 S'!J16<0.5),"-",IFERROR('Tabel 2 S'!J16/'Tabel 1 S'!G16*100,"-")) -> 5.618327929
A17: Agronom | C17: =IF(OR('Tabel 1 S'!C17<5,'Tabel 2 S'!C17<0.5),"-",IFERROR('Tabel 2 S'!C17/'Tabel 1 S'!C17*100,"-")) -> 2.857142857 | D17: =IF(OR('Tabel 1 S'!C17<5,'Tabel 2 S'!D17<0.5),"-",IFERROR('Tabel 2 S'!D17/'Tabel 1 S'!C17*100,"-")) -> 2.619003068 | F17: =IF(OR('Tabel 1 S'!E17<5,'Tabel 2 S'!F17<0.5),"-",IFERROR('Tabel 2 S'!F17/'Tabel 1 S'!E17*100,"-")) -> 5.284552846 | G17: =IF(OR('Tabel 1 S'!E17<5,'Tabel 2 S'!G17<0.5),"-",IFERROR('Tabel 2 S'!G17/'Tabel 1 S'!E17*100,"-")) -> 3.602579842 | I17: =IF(OR('Tabel 1 S'!G17<5,'Tabel 2 S'!I17<0.5),"-",IFERROR('Tabel 2 S'!I17/'Tabel 1 S'!G17*100,"-")) -> 4.166666667 | J17: =IF(OR('Tabel 1 S'!G17<5,'Tabel 2 S'!J17<0.5),"-",IFERROR('Tabel 2 S'!J17/'Tabel 1 S'!G17*100,"-")) -> 3.149616854
A18: Landsk. Arkt. | C18: =IF(OR('Tabel 1 S'!C18<5,'Tabel 2 S'!C18<0.5),"-",IFERROR('Tabel 2 S'!C18/'Tabel 1 S'!C18*100,"-")) -> 4 | D18: =IF(OR('Tabel 1 S'!C18<5,'Tabel 2 S'!D18<0.5),"-",IFERROR('Tabel 2 S'!D18/'Tabel 1 S'!C18*100,"-")) -> 3.999251544 | F18: =IF(OR('Tabel 1 S'!E18<5,'Tabel 2 S'!F18<0.5),"-",IFERROR('Tabel 2 S'!F18/'Tabel 1 S'!E18*100,"-")) -> 5.797101449 | G18: =IF(OR('Tabel 1 S'!E18<5,'Tabel 2 S'!G18<0.5),"-",IFERROR('Tabel 2 S'!G18/'Tabel 1 S'!E18*100,"-")) -> 4.792651388 | I18: =IF(OR('Tabel 1 S'!G18<5,'Tabel 2 S'!I18<0.5),"-",IFERROR('Tabel 2 S'!I18/'Tabel 1 S'!G18*100,"-")) -> 5.319148936 | J18: =IF(OR('Tabel 1 S'!G18<5,'Tabel 2 S'!J18<0.5),"-",IFERROR('Tabel 2 S'!J18/'Tabel 1 S'!G18*100,"-")) -> 4.581640791
A19: Hortonom | C19: =IF(OR('Tabel 1 S'!C19<5,'Tabel 2 S'!C19<0.5),"-",IFERROR('Tabel 2 S'!C19/'Tabel 1 S'!C19*100,"-")) -> 5 | D19: =IF(OR('Tabel 1 S'!C19<5,'Tabel 2 S'!D19<0.5),"-",IFERROR('Tabel 2 S'!D19/'Tabel 1 S'!C19*100,"-")) -> 4.500093557 | F19: =IF(OR('Tabel 1 S'!E19<5,'Tabel 2 S'!F19<0.5),"-",IFERROR('Tabel 2 S'!F19/'Tabel 1 S'!E19*100,"-")) -> 2.777777778 | G19: =IF(OR('Tabel 1 S'!E19<5,'Tabel 2 S'!G19<0.5),"-",IFERROR('Tabel 2 S'!G19/'Tabel 1 S'!E19*100,"-")) -> 2.777258016 | I19: =IF(OR('Tabel 1 S'!G19<5,'Tabel 2 S'!I19<0.5),"-",IFERROR('Tabel 2 S'!I19/'Tabel 1 S'!G19*100,"-")) -> 3.571428571 | J19: =IF(OR('Tabel 1 S'!G19<5,'Tabel 2 S'!J19<0.5),"-",IFERROR('Tabel 2 S'!J19/'Tabel 1 S'!G19*100,"-")) -> 3.392556424
A20: Forstkand. | C20: =IF(OR('Tabel 1 S'!C20<5,'Tabel 2 S'!C20<0.5),"-",IFERROR('Tabel 2 S'!C20/'Tabel 1 S'!C20*100,"-")) -> 3.278688525 | D20: =IF(OR('Tabel 1 S'!C20<5,'Tabel 2 S'!D20<0.5),"-",IFERROR('Tabel 2 S'!D20/'Tabel 1 S'!C20*100,"-")) -> 3.278075036 | F20: =IF(OR('Tabel 1 S'!E20<5,'Tabel 2 S'!F20<0.5),"-",IFERROR('Tabel 2 S'!F20/'Tabel 1 S'!E20*100,"-")) -> 5.263157895 | G20: =IF(OR('Tabel 1 S'!E20<5,'Tabel 2 S'!G20<0.5),"-",IFERROR('Tabel 2 S'!G20/'Tabel 1 S'!E20*100,"-")) -> 5.262173084 | I20: =IF(OR('Tabel 1 S'!G20<5,'Tabel 2 S'!I20<0.5),"-",IFERROR('Tabel 2 S'!I20/'Tabel 1 S'!G20*100,"-")) -> 3.75 | J20: =IF(OR('Tabel 1 S'!G20<5,'Tabel 2 S'!J20<0.5),"-",IFERROR('Tabel 2 S'!J20/'Tabel 1 S'!G20*100,"-")) -> 3.749298322
A21: Jordbrugsakad. | C21: =IF(OR('Tabel 1 S'!C21<5,'Tabel 2 S'!C21<0.5),"-",IFERROR('Tabel 2 S'!C21/'Tabel 1 S'!C21*100,"-")) -> 3.164556962 | D21: =IF(OR('Tabel 1 S'!C21<5,'Tabel 2 S'!D21<0.5),"-",IFERROR('Tabel 2 S'!D21/'Tabel 1 S'!C21*100,"-")) -> 2.974482219 | F21: =IF(OR('Tabel 1 S'!E21<5,'Tabel 2 S'!F21<0.5),"-",IFERROR('Tabel 2 S'!F21/'Tabel 1 S'!E21*100,"-")) -> 5.135135135 | G21: =IF(OR('Tabel 1 S'!E21<5,'Tabel 2 S'!G21<0.5),"-",IFERROR('Tabel 2 S'!G21/'Tabel 1 S'!E21*100,"-")) -> 3.829432876 | I21: =IF(OR('Tabel 1 S'!G21<5,'Tabel 2 S'!I21<0.5),"-",IFERROR('Tabel 2 S'!I21/'Tabel 1 S'!G21*100,"-")) -> 4.227405248 | J21: =IF(OR('Tabel 1 S'!G21<5,'Tabel 2 S'!J21<0.5),"-",IFERROR('Tabel 2 S'!J21/'Tabel 1 S'!G21*100,"-")) -> 3.435607209
A22: Mejeriing. | C22: =IF(OR('Tabel 1 S'!C22<5,'Tabel 2 S'!C22<0.5),"-",IFERROR('Tabel 2 S'!C22/'Tabel 1 S'!C22*100,"-")) -> 6.25 | D22: =IF(OR('Tabel 1 S'!C22<5,'Tabel 2 S'!D22<0.5),"-",IFERROR('Tabel 2 S'!D22/'Tabel 1 S'!C22*100,"-")) -> 6.248830537 | F22: =IF(OR('Tabel 1 S'!E22<5,'Tabel 2 S'!F22<0.5),"-",IFERROR('Tabel 2 S'!F22/'Tabel 1 S'!E22*100,"-")) -> - | G22: =IF(OR('Tabel 1 S'!E22<5,'Tabel 2 S'!G22<0.5),"-",IFERROR('Tabel 2 S'!G22/'Tabel 1 S'!E22*100,"-")) -> - | I22: =IF(OR('Tabel 1 S'!G22<5,'Tabel 2 S'!I22<0.5),"-",IFERROR('Tabel 2 S'!I22/'Tabel 1 S'!G22*100,"-")) -> 2.5 | J22: =IF(OR('Tabel 1 S'!G22<5,'Tabel 2 S'!J22<0.5),"-",IFERROR('Tabel 2 S'!J22/'Tabel 1 S'!G22*100,"-")) -> 2.499532215
A23: Levn.m.kand. | C23: =IF(OR('Tabel 1 S'!C23<5,'Tabel 2 S'!C23<0.5),"-",IFERROR('Tabel 2 S'!C23/'Tabel 1 S'!C23*100,"-")) -> 10 | D23: =IF(OR('Tabel 1 S'!C23<5,'Tabel 2 S'!D23<0.5),"-",IFERROR('Tabel 2 S'!D23/'Tabel 1 S'!C23*100,"-")) -> 7.690388574 | F23: =IF(OR('Tabel 1 S'!E23<5,'Tabel 2 S'!F23<0.5),"-",IFERROR('Tabel 2 S'!F23/'Tabel 1 S'!E23*100,"-")) -> 1.960784314 | G23: =IF(OR('Tabel 1 S'!E23<5,'Tabel 2 S'!G23<0.5),"-",IFERROR('Tabel 2 S'!G23/'Tabel 1 S'!E23*100,"-")) -> 1.960417423 | I23: =IF(OR('Tabel 1 S'!G23<5,'Tabel 2 S'!I23<0.5),"-",IFERROR('Tabel 2 S'!I23/'Tabel 1 S'!G23*100,"-")) -> 3.278688525 | J23: =IF(OR('Tabel 1 S'!G23<5,'Tabel 2 S'!J23<0.5),"-",IFERROR('Tabel 2 S'!J23/'Tabel 1 S'!G23*100,"-")) -> 2.899756956
A24: Dyrlæge | C24: =IF(OR('Tabel 1 S'!C24<5,'Tabel 2 S'!C24<0.5),"-",IFERROR('Tabel 2 S'!C24/'Tabel 1 S'!C24*100,"-")) -> - | D24: =IF(OR('Tabel 1 S'!C24<5,'Tabel 2 S'!D24<0.5),"-",IFERROR('Tabel 2 S'!D24/'Tabel 1 S'!C24*100,"-")) -> - | F24: =IF(OR('Tabel 1 S'!E24<5,'Tabel 2 S'!F24<0.5),"-",IFERROR('Tabel 2 S'!F24/'Tabel 1 S'!E24*100,"-")) -> 3.244837758 | G24: =IF(OR('Tabel 1 S'!E24<5,'Tabel 2 S'!G24<0.5),"-",IFERROR('Tabel 2 S'!G24/'Tabel 1 S'!E24*100,"-")) -> 2.189069116 | I24: =IF(OR('Tabel 1 S'!G24<5,'Tabel 2 S'!I24<0.5),"-",IFERROR('Tabel 2 S'!I24/'Tabel 1 S'!G24*100,"-")) -> 2.631578947 | J24: =IF(OR('Tabel 1 S'!G24<5,'Tabel 2 S'!J24<0.5),"-",IFERROR('Tabel 2 S'!J24/'Tabel 1 S'!G24*100,"-")) -> 1.775345527
A25: Farmaceut | C25: =IF(OR('Tabel 1 S'!C25<5,'Tabel 2 S'!C25<0.5),"-",IFERROR('Tabel 2 S'!C25/'Tabel 1 S'!C25*100,"-")) -> 1.459854015 | D25: =IF(OR('Tabel 1 S'!C25<5,'Tabel 2 S'!D25<0.5),"-",IFERROR('Tabel 2 S'!D25/'Tabel 1 S'!C25*100,"-")) -> 1.223753381 | F25: =IF(OR('Tabel 1 S'!E25<5,'Tabel 2 S'!F25<0.5),"-",IFERROR('Tabel 2 S'!F25/'Tabel 1 S'!E25*100,"-")) -> 0.8948545861 | G25: =IF(OR('Tabel 1 S'!E25<5,'Tabel 2 S'!G25<0.5),"-",IFERROR('Tabel 2 S'!G25/'Tabel 1 S'!E25*100,"-")) -> 0.6778524885 | I25: =IF(OR('Tabel 1 S'!G25<5,'Tabel 2 S'!I25<0.5),"-",IFERROR('Tabel 2 S'!I25/'Tabel 1 S'!G25*100,"-")) -> 1.02739726 | J25: =IF(OR('Tabel 1 S'!G25<5,'Tabel 2 S'!J25<0.5),"-",IFERROR('Tabel 2 S'!J25/'Tabel 1 S'!G25*100,"-")) -> 0.8059148554
A26: Læge | C26: =IF(OR('Tabel 1 S'!C26<5,'Tabel 2 S'!C26<0.5),"-",IFERROR('Tabel 2 S'!C26/'Tabel 1 S'!C26*100,"-")) -> 3.111111111 | D26: =IF(OR('Tabel 1 S'!C26<5,'Tabel 2 S'!D26<0.5),"-",IFERROR('Tabel 2 S'!D26/'Tabel 1 S'!C26*100,"-")) -> 2.286672627 | F26: =IF(OR('Tabel 1 S'!E26<5,'Tabel 2 S'!F26<0.5),"-",IFERROR('Tabel 2 S'!F26/'Tabel 1 S'!E26*100,"-")) -> 2.783300199 | G26: =IF(OR('Tabel 1 S'!E26<5,'Tabel 2 S'!G26<0.5),"-",IFERROR('Tabel 2 S'!G26/'Tabel 1 S'!E26*100,"-")) -> 2.095826463 | I26: =IF(OR('Tabel 1 S'!G26<5,'Tabel 2 S'!I26<0.5),"-",IFERROR('Tabel 2 S'!I26/'Tabel 1 S'!G26*100,"-")) -> 2.884615385 | J26: =IF(OR('Tabel 1 S'!G26<5,'Tabel 2 S'!J26<0.5),"-",IFERROR('Tabel 2 S'!J26/'Tabel 1 S'!G26*100,"-")) -> 2.154810511
A27: Tandlæge | C27: =IF(OR('Tabel 1 S'!C27<5,'Tabel 2 S'!C27<0.5),"-",IFERROR('Tabel 2 S'!C27/'Tabel 1 S'!C27*100,"-")) -> - | D27: =IF(OR('Tabel 1 S'!C27<5,'Tabel 2 S'!D27<0.5),"-",IFERROR('Tabel 2 S'!D27/'Tabel 1 S'!C27*100,"-")) -> - | F27: =IF(OR('Tabel 1 S'!E27<5,'Tabel 2 S'!F27<0.5),"-",IFERROR('Tabel 2 S'!F27/'Tabel 1 S'!E27*100,"-")) -> 1.986754967 | G27: =IF(OR('Tabel 1 S'!E27<5,'Tabel 2 S'!G27<0.5),"-",IFERROR('Tabel 2 S'!G27/'Tabel 1 S'!E27*100,"-")) -> 0.9661364826 | I27: =IF(OR('Tabel 1 S'!G27<5,'Tabel 2 S'!I27<0.5),"-",IFERROR('Tabel 2 S'!I27/'Tabel 1 S'!G27*100,"-")) -> 1.675977654 | J27: =IF(OR('Tabel 1 S'!G27<5,'Tabel 2 S'!J27<0.5),"-",IFERROR('Tabel 2 S'!J27/'Tabel 1 S'!G27*100,"-")) -> 0.8150089881
A28: Arkitekt | C28: =IF(OR('Tabel 1 S'!C28<5,'Tabel 2 S'!C28<0.5),"-",IFERROR('Tabel 2 S'!C28/'Tabel 1 S'!C28*100,"-")) -> 9.090909091 | D28: =IF(OR('Tabel 1 S'!C28<5,'Tabel 2 S'!D28<0.5),"-",IFERROR('Tabel 2 S'!D28/'Tabel 1 S'!C28*100,"-")) -> 7.300851086 | F28: =IF(OR('Tabel 1 S'!E28<5,'Tabel 2 S'!F28<0.5),"-",IFERROR('Tabel 2 S'!F28/'Tabel 1 S'!E28*100,"-")) -> 4.285714286 | G28: =IF(OR('Tabel 1 S'!E28<5,'Tabel 2 S'!G28<0.5),"-",IFERROR('Tabel 2 S'!G28/'Tabel 1 S'!E28*100,"-")) -> 3.269595744 | I28: =IF(OR('Tabel 1 S'!G28<5,'Tabel 2 S'!I28<0.5),"-",IFERROR('Tabel 2 S'!I28/'Tabel 1 S'!G28*100,"-")) -> 6.4 | J28: =IF(OR('Tabel 1 S'!G28<5,'Tabel 2 S'!J28<0.5),"-",IFERROR('Tabel 2 S'!J28/'Tabel 1 S'!G28*100,"-")) -> 5.043348095
A29: Landinspek. | C29: =IF(OR('Tabel 1 S'!C29<5,'Tabel 2 S'!C29<0.5),"-",IFERROR('Tabel 2 S'!C29/'Tabel 1 S'!C29*100,"-")) -> 2.040816327 | D29: =IF(OR('Tabel 1 S'!C29<5,'Tabel 2 S'!D29<0.5),"-",IFERROR('Tabel 2 S'!D29/'Tabel 1 S'!C29*100,"-")) -> 2.040434461 | F29: =IF(OR('Tabel 1 S'!E29<5,'Tabel 2 S'!F29<0.5),"-",IFERROR('Tabel 2 S'!F29/'Tabel 1 S'!E29*100,"-")) -> - | G29: =IF(OR('Tabel 1 S'!E29<5,'Tabel 2 S'!G29<0.5),"-",IFERROR('Tabel 2 S'!G29/'Tabel 1 S'!E29*100,"-")) -> - | I29: =IF(OR('Tabel 1 S'!G29<5,'Tabel 2 S'!I29<0.5),"-",IFERROR('Tabel 2 S'!I29/'Tabel 1 S'!G29*100,"-")) -> 1.408450704 | J29: =IF(OR('Tabel 1 S'!G29<5,'Tabel 2 S'!J29<0.5),"-",IFERROR('Tabel 2 S'!J29/'Tabel 1 S'!G29*100,"-")) -> 1.408187163
A30: Bibliotekar | C30: =IF(OR('Tabel 1 S'!C30<5,'Tabel 2 S'!C30<0.5),"-",IFERROR('Tabel 2 S'!C30/'Tabel 1 S'!C30*100,"-")) -> 3.883495146 | D30: =IF(OR('Tabel 1 S'!C30<5,'Tabel 2 S'!D30<0.5),"-",IFERROR('Tabel 2 S'!D30/'Tabel 1 S'!C30*100,"-")) -> 2.926003952 | F30: =IF(OR('Tabel 1 S'!E30<5,'Tabel 2 S'!F30<0.5),"-",IFERROR('Tabel 2 S'!F30/'Tabel 1 S'!E30*100,"-")) -> 4.545454545 | G30: =IF(OR('Tabel 1 S'!E30<5,'Tabel 2 S'!G30<0.5),"-",IFERROR('Tabel 2 S'!G30/'Tabel 1 S'!E30*100,"-")) -> 3.204274052 | I30: =IF(OR('Tabel 1 S'!G30<5,'Tabel 2 S'!I30<0.5),"-",IFERROR('Tabel 2 S'!I30/'Tabel 1 S'!G30*100,"-")) -> 4.370179949 | J30: =IF(OR('Tabel 1 S'!G30<5,'Tabel 2 S'!J30<0.5),"-",IFERROR('Tabel 2 S'!J30/'Tabel 1 S'!G30*100,"-")) -> 3.13059328
A31: Musikudd. | C31: =IF(OR('Tabel 1 S'!C31<5,'Tabel 2 S'!C31<0.5),"-",IFERROR('Tabel 2 S'!C31/'Tabel 1 S'!C31*100,"-")) -> - | D31: =IF(OR('Tabel 1 S'!C31<5,'Tabel 2 S'!D31<0.5),"-",IFERROR('Tabel 2 S'!D31/'Tabel 1 S'!C31*100,"-")) -> - | F31: =IF(OR('Tabel 1 S'!E31<5,'Tabel 2 S'!F31<0.5),"-",IFERROR('Tabel 2 S'!F31/'Tabel 1 S'!E31*100,"-")) -> 4.47761194 | G31: =IF(OR('Tabel 1 S'!E31<5,'Tabel 2 S'!G31<0.5),"-",IFERROR('Tabel 2 S'!G31/'Tabel 1 S'!E31*100,"-")) -> 3.86981701 | I31: =IF(OR('Tabel 1 S'!G31<5,'Tabel 2 S'!I31<0.5),"-",IFERROR('Tabel 2 S'!I31/'Tabel 1 S'!G31*100,"-")) -> 2.912621359 | J31: =IF(OR('Tabel 1 S'!G31<5,'Tabel 2 S'!J31<0.5),"-",IFERROR('Tabel 2 S'!J31/'Tabel 1 S'!G31*100,"-")) -> 2.517259608
A32: Teolog | C32: =IF(OR('Tabel 1 S'!C32<5,'Tabel 2 S'!C32<0.5),"-",IFERROR('Tabel 2 S'!C32/'Tabel 1 S'!C32*100,"-")) -> 1.333333333 | D32: =IF(OR('Tabel 1 S'!C32<5,'Tabel 2 S'!D32<0.5),"-",IFERROR('Tabel 2 S'!D32/'Tabel 1 S'!C32*100,"-")) -> - | F32: =IF(OR('Tabel 1 S'!E32<5,'Tabel 2 S'!F32<0.5),"-",IFERROR('Tabel 2 S'!F32/'Tabel 1 S'!E32*100,"-")) -> 1.449275362 | G32: =IF(OR('Tabel 1 S'!E32<5,'Tabel 2 S'!G32<0.5),"-",IFERROR('Tabel 2 S'!G32/'Tabel 1 S'!E32*100,"-")) -> 1.449004182 | I32: =IF(OR('Tabel 1 S'!G32<5,'Tabel 2 S'!I32<0.5),"-",IFERROR('Tabel 2 S'!I32/'Tabel 1 S'!G32*100,"-")) -> 1.408450704 | J32: =IF(OR('Tabel 1 S'!G32<5,'Tabel 2 S'!J32<0.5),"-",IFERROR('Tabel 2 S'!J32/'Tabel 1 S'!G32*100,"-")) -> 1.114778235
A33: Psykolog | C33: =IF(OR('Tabel 1 S'!C33<5,'Tabel 2 S'!C33<0.5),"-",IFERROR('Tabel 2 S'!C33/'Tabel 1 S'!C33*100,"-")) -> 5.050505051 | D33: =IF(OR('Tabel 1 S'!C33<5,'Tabel 2 S'!D33<0.5),"-",IFERROR('Tabel 2 S'!D33/'Tabel 1 S'!C33*100,"-")) -> 4.723212919 | F33: =IF(OR('Tabel 1 S'!E33<5,'Tabel 2 S'!F33<0.5),"-",IFERROR('Tabel 2 S'!F33/'Tabel 1 S'!E33*100,"-")) -> 6.04288499 | G33: =IF(OR('Tabel 1 S'!E33<5,'Tabel 2 S'!G33<0.5),"-",IFERROR('Tabel 2 S'!G33/'Tabel 1 S'!E33*100,"-")) -> 4.645632807 | I33: =IF(OR('Tabel 1 S'!G33<5,'Tabel 2 S'!I33<0.5),"-",IFERROR('Tabel 2 S'!I33/'Tabel 1 S'!G33*100,"-")) -> 5.882352941 | J33: =IF(OR('Tabel 1 S'!G33<5,'Tabel 2 S'!J33<0.5),"-",IFERROR('Tabel 2 S'!J33/'Tabel 1 S'!G33*100,"-")) -> 4.658182531
A34: Jurist | C34: =IF(OR('Tabel 1 S'!C34<5,'Tabel 2 S'!C34<0.5),"-",IFERROR('Tabel 2 S'!C34/'Tabel 1 S'!C34*100,"-")) -> 2.052785924 | D34: =IF(OR('Tabel 1 S'!C34<5,'Tabel 2 S'!D34<0.5),"-",IFERROR('Tabel 2 S'!D34/'Tabel 1 S'!C34*100,"-")) -> 1.432163465 | F34: =IF(OR('Tabel 1 S'!E34<5,'Tabel 2 S'!F34<0.5),"-",IFERROR('Tabel 2 S'!F34/'Tabel 1 S'!E34*100,"-")) -> 1.203369434 | G34: =IF(OR('Tabel 1 S'!E34<5,'Tabel 2 S'!G34<0.5),"-",IFERROR('Tabel 2 S'!G34/'Tabel 1 S'!E34*100,"-")) -> 0.9275394169 | I34: =IF(OR('Tabel 1 S'!G34<5,'Tabel 2 S'!I34<0.5),"-",IFERROR('Tabel 2 S'!I34/'Tabel 1 S'!G34*100,"-")) -> 1.450511945 | J34: =IF(OR('Tabel 1 S'!G34<5,'Tabel 2 S'!J34<0.5),"-",IFERROR('Tabel 2 S'!J34/'Tabel 1 S'!G34*100,"-")) -> 1.074362625
A35: Økonom | C35: =IF(OR('Tabel 1 S'!C35<5,'Tabel 2 S'!C35<0.5),"-",IFERROR('Tabel 2 S'!C35/'Tabel 1 S'!C35*100,"-")) -> 3.039513678 | D35: =IF(OR('Tabel 1 S'!C35<5,'Tabel 2 S'!D35<0.5),"-",IFERROR('Tabel 2 S'!D35/'Tabel 1 S'!C35*100,"-")) -> 2.376557317 | F35: =IF(OR('Tabel 1 S'!E35<5,'Tabel 2 S'!F35<0.5),"-",IFERROR('Tabel 2 S'!F35/'Tabel 1 S'!E35*100,"-")) -> 1.503759398 | G35: =IF(OR('Tabel 1 S'!E35<5,'Tabel 2 S'!G35<0.5),"-",IFERROR('Tabel 2 S'!G35/'Tabel 1 S'!E35*100,"-")) -> 1.069692256 | I35: =IF(OR('Tabel 1 S'!G35<5,'Tabel 2 S'!I35<0.5),"-",IFERROR('Tabel 2 S'!I35/'Tabel 1 S'!G35*100,"-")) -> 2.352941176 | J35: =IF(OR('Tabel 1 S'!G35<5,'Tabel 2 S'!J35<0.5),"-",IFERROR('Tabel 2 S'!J35/'Tabel 1 S'!G35*100,"-")) -> 1.79231176
A36: Samf. Adm. | C36: =IF(OR('Tabel 1 S'!C36<5,'Tabel 2 S'!C36<0.5),"-",IFERROR('Tabel 2 S'!C36/'Tabel 1 S'!C36*100,"-")) -> 4.806565064 | D36: =IF(OR('Tabel 1 S'!C36<5,'Tabel 2 S'!D36<0.5),"-",IFERROR('Tabel 2 S'!D36/'Tabel 1 S'!C36*100,"-")) -> 3.980287141 | F36: =IF(OR('Tabel 1 S'!E36<5,'Tabel 2 S'!F36<0.5),"-",IFERROR('Tabel 2 S'!F36/'Tabel 1 S'!E36*100,"-")) -> 5.640612409 | G36: =IF(OR('Tabel 1 S'!E36<5,'Tabel 2 S'!G36<0.5),"-",IFERROR('Tabel 2 S'!G36/'Tabel 1 S'!E36*100,"-")) -> 4.200743702 | I36: =IF(OR('Tabel 1 S'!G36<5,'Tabel 2 S'!I36<0.5),"-",IFERROR('Tabel 2 S'!I36/'Tabel 1 S'!G36*100,"-")) -> 5.300859599 | J36: =IF(OR('Tabel 1 S'!G36<5,'Tabel 2 S'!J36<0.5),"-",IFERROR('Tabel 2 S'!J36/'Tabel 1 S'!G36*100,"-")) -> 4.110939764
A37: Cand. Merc. | C37: =IF(OR('Tabel 1 S'!C37<5,'Tabel 2 S'!C37<0.5),"-",IFERROR('Tabel 2 S'!C37/'Tabel 1 S'!C37*100,"-")) -> 4.633529907 | D37: =IF(OR('Tabel 1 S'!C37<5,'Tabel 2 S'!D37<0.5),"-",IFERROR('Tabel 2 S'!D37/'Tabel 1 S'!C37*100,"-")) -> 3.681801819 | F37: =IF(OR('Tabel 1 S'!E37<5,'Tabel 2 S'!F37<0.5),"-",IFERROR('Tabel 2 S'!F37/'Tabel 1 S'!E37*100,"-")) -> 5.094991364 | G37: =IF(OR('Tabel 1 S'!E37<5,'Tabel 2 S'!G37<0.5),"-",IFERROR('Tabel 2 S'!G37/'Tabel 1 S'!E37*100,"-")) -> 4.143494199 | I37: =IF(OR('Tabel 1 S'!G37<5,'Tabel 2 S'!I37<0.5),"-",IFERROR('Tabel 2 S'!I37/'Tabel 1 S'!G37*100,"-")) -> 4.861407249 | J37: =IF(OR('Tabel 1 S'!G37<5,'Tabel 2 S'!J37<0.5),"-",IFERROR('Tabel 2 S'!J37/'Tabel 1 S'!G37*100,"-")) -> 3.909793194
A38: HA | C38: =IF(OR('Tabel 1 S'!C38<5,'Tabel 2 S'!C38<0.5),"-",IFERROR('Tabel 2 S'!C38/'Tabel 1 S'!C38*100,"-")) -> 5.230769231 | D38: =IF(OR('Tabel 1 S'!C38<5,'Tabel 2 S'!D38<0.5),"-",IFERROR('Tabel 2 S'!D38/'Tabel 1 S'!C38*100,"-")) -> 4.334329676 | F38: =IF(OR('Tabel 1 S'!E38<5,'Tabel 2 S'!F38<0.5),"-",IFERROR('Tabel 2 S'!F38/'Tabel 1 S'!E38*100,"-")) -> 5.660377358 | G38: =IF(OR('Tabel 1 S'!E38<5,'Tabel 2 S'!G38<0.5),"-",IFERROR('Tabel 2 S'!G38/'Tabel 1 S'!E38*100,"-")) -> 4.744459835 | I38: =IF(OR('Tabel 1 S'!G38<5,'Tabel 2 S'!I38<0.5),"-",IFERROR('Tabel 2 S'!I38/'Tabel 1 S'!G38*100,"-")) -> 5.423728814 | J38: =IF(OR('Tabel 1 S'!G38<5,'Tabel 2 S'!J38<0.5),"-",IFERROR('Tabel 2 S'!J38/'Tabel 1 S'!G38*100,"-")) -> 4.518540679
A39: HD | C39: =IF(OR('Tabel 1 S'!C39<5,'Tabel 2 S'!C39<0.5),"-",IFERROR('Tabel 2 S'!C39/'Tabel 1 S'!C39*100,"-")) -> 3.010033445 | D39: =IF(OR('Tabel 1 S'!C39<5,'Tabel 2 S'!D39<0.5),"-",IFERROR('Tabel 2 S'!D39/'Tabel 1 S'!C39*100,"-")) -> 2.532193738 | F39: =IF(OR('Tabel 1 S'!E39<5,'Tabel 2 S'!F39<0.5),"-",IFERROR('Tabel 2 S'!F39/'Tabel 1 S'!E39*100,"-")) -> 4.694835681 | G39: =IF(OR('Tabel 1 S'!E39<5,'Tabel 2 S'!G39<0.5),"-",IFERROR('Tabel 2 S'!G39/'Tabel 1 S'!E39*100,"-")) -> 4.003772735 | I39: =IF(OR('Tabel 1 S'!G39<5,'Tabel 2 S'!I39<0.5),"-",IFERROR('Tabel 2 S'!I39/'Tabel 1 S'!G39*100,"-")) -> 3.7109375 | J39: =IF(OR('Tabel 1 S'!G39<5,'Tabel 2 S'!J39<0.5),"-",IFERROR('Tabel 2 S'!J39/'Tabel 1 S'!G39*100,"-")) -> 3.144393594
A40: Komm. og Sprog | C40: =IF(OR('Tabel 1 S'!C40<5,'Tabel 2 S'!C40<0.5),"-",IFERROR('Tabel 2 S'!C40/'Tabel 1 S'!C40*100,"-")) -> 4.545454545 | D40: =IF(OR('Tabel 1 S'!C40<5,'Tabel 2 S'!D40<0.5),"-",IFERROR('Tabel 2 S'!D40/'Tabel 1 S'!C40*100,"-")) -> 4.030512825 | F40: =IF(OR('Tabel 1 S'!E40<5,'Tabel 2 S'!F40<0.5),"-",IFERROR('Tabel 2 S'!F40/'Tabel 1 S'!E40*100,"-")) -> 8.108108108 | G40: =IF(OR('Tabel 1 S'!E40<5,'Tabel 2 S'!G40<0.5),"-",IFERROR('Tabel 2 S'!G40/'Tabel 1 S'!E40*100,"-")) -> 5.845376344 | I40: =IF(OR('Tabel 1 S'!G40<5,'Tabel 2 S'!I40<0.5),"-",IFERROR('Tabel 2 S'!I40/'Tabel 1 S'!G40*100,"-")) -> 7.729468599 | J40: =IF(OR('Tabel 1 S'!G40<5,'Tabel 2 S'!J40<0.5),"-",IFERROR('Tabel 2 S'!J40/'Tabel 1 S'!G40*100,"-")) -> 5.652492298
A41: Bygningskonst. | C41: =IF(OR('Tabel 1 S'!C41<5,'Tabel 2 S'!C41<0.5),"-",IFERROR('Tabel 2 S'!C41/'Tabel 1 S'!C41*100,"-")) -> 2.634146341 | D41: =IF(OR('Tabel 1 S'!C41<5,'Tabel 2 S'!D41<0.5),"-",IFERROR('Tabel 2 S'!D41/'Tabel 1 S'!C41*100,"-")) -> 2.37295943 | F41: =IF(OR('Tabel 1 S'!E41<5,'Tabel 2 S'!F41<0.5),"-",IFERROR('Tabel 2 S'!F41/'Tabel 1 S'!E41*100,"-")) -> 1.685393258 | G41: =IF(OR('Tabel 1 S'!E41<5,'Tabel 2 S'!G41<0.5),"-",IFERROR('Tabel 2 S'!G41/'Tabel 1 S'!E41*100,"-")) -> 0.9852922729 | I41: =IF(OR('Tabel 1 S'!G41<5,'Tabel 2 S'!I41<0.5),"-",IFERROR('Tabel 2 S'!I41/'Tabel 1 S'!G41*100,"-")) -> 2.493765586 | J41: =IF(OR('Tabel 1 S'!G41<5,'Tabel 2 S'!J41<0.5),"-",IFERROR('Tabel 2 S'!J41/'Tabel 1 S'!G41*100,"-")) -> 2.167635445
A42: Cand. IT. | C42: =IF(OR('Tabel 1 S'!C42<5,'Tabel 2 S'!C42<0.5),"-",IFERROR('Tabel 2 S'!C42/'Tabel 1 S'!C42*100,"-")) -> 7.518796992 | D42: =IF(OR('Tabel 1 S'!C42<5,'Tabel 2 S'!D42<0.5),"-",IFERROR('Tabel 2 S'!D42/'Tabel 1 S'!C42*100,"-")) -> 7.263215108 | F42: =IF(OR('Tabel 1 S'!E42<5,'Tabel 2 S'!F42<0.5),"-",IFERROR('Tabel 2 S'!F42/'Tabel 1 S'!E42*100,"-")) -> 9.803921569 | G42: =IF(OR('Tabel 1 S'!E42<5,'Tabel 2 S'!G42<0.5),"-",IFERROR('Tabel 2 S'!G42/'Tabel 1 S'!E42*100,"-")) -> 7.260759977 | I42: =IF(OR('Tabel 1 S'!G42<5,'Tabel 2 S'!I42<0.5),"-",IFERROR('Tabel 2 S'!I42/'Tabel 1 S'!G42*100,"-")) -> 8.510638298 | J42: =IF(OR('Tabel 1 S'!G42<5,'Tabel 2 S'!J42<0.5),"-",IFERROR('Tabel 2 S'!J42/'Tabel 1 S'!G42*100,"-")) -> 7.262149476
A43: Bac. Samf. | C43: =IF(OR('Tabel 1 S'!C43<5,'Tabel 2 S'!C43<0.5),"-",IFERROR('Tabel 2 S'!C43/'Tabel 1 S'!C43*100,"-")) -> 2.127659574 | D43: =IF(OR('Tabel 1 S'!C43<5,'Tabel 2 S'!D43<0.5),"-",IFERROR('Tabel 2 S'!D43/'Tabel 1 S'!C43*100,"-")) -> 1.954744934 | F43: =IF(OR('Tabel 1 S'!E43<5,'Tabel 2 S'!F43<0.5),"-",IFERROR('Tabel 2 S'!F43/'Tabel 1 S'!E43*100,"-")) -> 11.11111111 | G43: =IF(OR('Tabel 1 S'!E43<5,'Tabel 2 S'!G43<0.5),"-",IFERROR('Tabel 2 S'!G43/'Tabel 1 S'!E43*100,"-")) -> 9.656010404 | I43: =IF(OR('Tabel 1 S'!G43<5,'Tabel 2 S'!I43<0.5),"-",IFERROR('Tabel 2 S'!I43/'Tabel 1 S'!G43*100,"-")) -> 6.930693069 | J43: =IF(OR('Tabel 1 S'!G43<5,'Tabel 2 S'!J43<0.5),"-",IFERROR('Tabel 2 S'!J43/'Tabel 1 S'!G43*100,"-")) -> 6.072253205
A44: Bac. Hum. | C44: =IF(OR('Tabel 1 S'!C44<5,'Tabel 2 S'!C44<0.5),"-",IFERROR('Tabel 2 S'!C44/'Tabel 1 S'!C44*100,"-")) -> 10.43478261 | D44: =IF(OR('Tabel 1 S'!C44<5,'Tabel 2 S'!D44<0.5),"-",IFERROR('Tabel 2 S'!D44/'Tabel 1 S'!C44*100,"-")) -> 9.065541451 | F44: =IF(OR('Tabel 1 S'!E44<5,'Tabel 2 S'!F44<0.5),"-",IFERROR('Tabel 2 S'!F44/'Tabel 1 S'!E44*100,"-")) -> 11.53846154 | G44: =IF(OR('Tabel 1 S'!E44<5,'Tabel 2 S'!G44<0.5),"-",IFERROR('Tabel 2 S'!G44/'Tabel 1 S'!E44*100,"-")) -> 9.831285474 | I44: =IF(OR('Tabel 1 S'!G44<5,'Tabel 2 S'!I44<0.5),"-",IFERROR('Tabel 2 S'!I44/'Tabel 1 S'!G44*100,"-")) -> 11.14551084 | J44: =IF(OR('Tabel 1 S'!G44<5,'Tabel 2 S'!J44<0.5),"-",IFERROR('Tabel 2 S'!J44/'Tabel 1 S'!G44*100,"-")) -> 9.558652153
A45: Bac. Nat. | C45: =IF(OR('Tabel 1 S'!C45<5,'Tabel 2 S'!C45<0.5),"-",IFERROR('Tabel 2 S'!C45/'Tabel 1 S'!C45*100,"-")) -> 6.748466258 | D45: =IF(OR('Tabel 1 S'!C45<5,'Tabel 2 S'!D45<0.5),"-",IFERROR('Tabel 2 S'!D45/'Tabel 1 S'!C45*100,"-")) -> 6.294150217 | F45: =IF(OR('Tabel 1 S'!E45<5,'Tabel 2 S'!F45<0.5),"-",IFERROR('Tabel 2 S'!F45/'Tabel 1 S'!E45*100,"-")) -> 14.11764706 | G45: =IF(OR('Tabel 1 S'!E45<5,'Tabel 2 S'!G45<0.5),"-",IFERROR('Tabel 2 S'!G45/'Tabel 1 S'!E45*100,"-")) -> 11.76617344 | I45: =IF(OR('Tabel 1 S'!G45<5,'Tabel 2 S'!I45<0.5),"-",IFERROR('Tabel 2 S'!I45/'Tabel 1 S'!G45*100,"-")) -> 9.274193548 | J45: =IF(OR('Tabel 1 S'!G45<5,'Tabel 2 S'!J45<0.5),"-",IFERROR('Tabel 2 S'!J45/'Tabel 1 S'!G45*100,"-")) -> 8.169642049
A46: Andre | C46: =IF(OR('Tabel 1 S'!C46<5,'Tabel 2 S'!C46<0.5),"-",IFERROR('Tabel 2 S'!C46/'Tabel 1 S'!C46*100,"-")) -> 5.894308943 | D46: =IF(OR('Tabel 1 S'!C46<5,'Tabel 2 S'!D46<0.5),"-",IFERROR('Tabel 2 S'!D46/'Tabel 1 S'!C46*100,"-")) -> 4.736420158 | F46: =IF(OR('Tabel 1 S'!E46<5,'Tabel 2 S'!F46<0.5),"-",IFERROR('Tabel 2 S'!F46/'Tabel 1 S'!E46*100,"-")) -> 6.492027335 | G46: =IF(OR('Tabel 1 S'!E46<5,'Tabel 2 S'!G46<0.5),"-",IFERROR('Tabel 2 S'!G46/'Tabel 1 S'!E46*100,"-")) -> 5.162544166 | I46: =IF(OR('Tabel 1 S'!G46<5,'Tabel 2 S'!I46<0.5),"-",IFERROR('Tabel 2 S'!I46/'Tabel 1 S'!G46*100,"-")) -> 6.176154672 | J46: =IF(OR('Tabel 1 S'!G46<5,'Tabel 2 S'!J46<0.5),"-",IFERROR('Tabel 2 S'!J46/'Tabel 1 S'!G46*100,"-")) -> 4.937352961
A48: Total | C48: =IF(OR('Tabel 1 S'!C48<5,'Tabel 2 S'!C48<0.5),"-",IFERROR('Tabel 2 S'!C48/'Tabel 1 S'!C48*100,"-")) -> 4.105571848 | D48: =IF(OR('Tabel 1 S'!C48<5,'Tabel 2 S'!D48<0.5),"-",IFERROR('Tabel 2 S'!D48/'Tabel 1 S'!C48*100,"-")) -> 3.441679072 | F48: =IF(OR('Tabel 1 S'!E48<5,'Tabel 2 S'!F48<0.5),"-",IFERROR('Tabel 2 S'!F48/'Tabel 1 S'!E48*100,"-")) -> 5.337883959 | G48: =IF(OR('Tabel 1 S'!E48<5,'Tabel 2 S'!G48<0.5),"-",IFERROR('Tabel 2 S'!G48/'Tabel 1 S'!E48*100,"-")) -> 4.191827479 | I48: =IF(OR('Tabel 1 S'!G48<5,'Tabel 2 S'!I48<0.5),"-",IFERROR('Tabel 2 S'!I48/'Tabel 1 S'!G48*100,"-")) -> 4.721454645 | J48: =IF(OR('Tabel 1 S'!G48<5,'Tabel 2 S'!J48<0.5),"-",IFERROR('Tabel 2 S'!J48/'Tabel 1 S'!G48*100,"-")) -> 3.816586934
A50: Ingeniører i alt | C50: =IF(OR('Tabel 1 S'!C50<5,'Tabel 2 S'!C50<0.5),"-",IFERROR('Tabel 2 S'!C50/'Tabel 1 S'!C50*100,"-")) -> 2.432989691 | D50: =IF(OR('Tabel 1 S'!C50<5,'Tabel 2 S'!D50<0.5),"-",IFERROR('Tabel 2 S'!D50/'Tabel 1 S'!C50*100,"-")) -> 2.086045469 | F50: =IF(OR('Tabel 1 S'!E50<5,'Tabel 2 S'!F50<0.5),"-",IFERROR('Tabel 2 S'!F50/'Tabel 1 S'!E50*100,"-")) -> 2.597402597 | G50: =IF(OR('Tabel 1 S'!E50<5,'Tabel 2 S'!G50<0.5),"-",IFERROR('Tabel 2 S'!G50/'Tabel 1 S'!E50*100,"-")) -> 2.178767475 | I50: =IF(OR('Tabel 1 S'!G50<5,'Tabel 2 S'!I50<0.5),"-",IFERROR('Tabel 2 S'!I50/'Tabel 1 S'!G50*100,"-")) -> 2.469531751 | J50: =IF(OR('Tabel 1 S'!G50<5,'Tabel 2 S'!J50<0.5),"-",IFERROR('Tabel 2 S'!J50/'Tabel 1 S'!G50*100,"-")) -> 2.106653664
A51: Magistre i alt | C51: =IF(OR('Tabel 1 S'!C51<5,'Tabel 2 S'!C51<0.5),"-",IFERROR('Tabel 2 S'!C51/'Tabel 1 S'!C51*100,"-")) -> 7.142857143 | D51: =IF(OR('Tabel 1 S'!C51<5,'Tabel 2 S'!D51<0.5),"-",IFERROR('Tabel 2 S'!D51/'Tabel 1 S'!C51*100,"-")) -> 5.897450442 | F51: =IF(OR('Tabel 1 S'!E51<5,'Tabel 2 S'!F51<0.5),"-",IFERROR('Tabel 2 S'!F51/'Tabel 1 S'!E51*100,"-")) -> 7.813822285 | G51: =IF(OR('Tabel 1 S'!E51<5,'Tabel 2 S'!G51<0.5),"-",IFERROR('Tabel 2 S'!G51/'Tabel 1 S'!E51*100,"-")) -> 6.156941646 | I51: =IF(OR('Tabel 1 S'!G51<5,'Tabel 2 S'!I51<0.5),"-",IFERROR('Tabel 2 S'!I51/'Tabel 1 S'!G51*100,"-")) -> 7.572745346 | J51: =IF(OR('Tabel 1 S'!G51<5,'Tabel 2 S'!J51<0.5),"-",IFERROR('Tabel 2 S'!J51/'Tabel 1 S'!G51*100,"-")) -> 6.06370678
A52: DJØF'ere i alt | C52: =IF(OR('Tabel 1 S'!C52<5,'Tabel 2 S'!C52<0.5),"-",IFERROR('Tabel 2 S'!C52/'Tabel 1 S'!C52*100,"-")) -> 4.283360791 | D52: =IF(OR('Tabel 1 S'!C52<5,'Tabel 2 S'!D52<0.5),"-",IFERROR('Tabel 2 S'!D52/'Tabel 1 S'!C52*100,"-")) -> 3.441316617 | F52: =IF(OR('Tabel 1 S'!E52<5,'Tabel 2 S'!F52<0.5),"-",IFERROR('Tabel 2 S'!F52/'Tabel 1 S'!E52*100,"-")) -> 4.20101037 | G52: =IF(OR('Tabel 1 S'!E52<5,'Tabel 2 S'!G52<0.5),"-",IFERROR('Tabel 2 S'!G52/'Tabel 1 S'!E52*100,"-")) -> 3.276760029 | I52: =IF(OR('Tabel 1 S'!G52<5,'Tabel 2 S'!I52<0.5),"-",IFERROR('Tabel 2 S'!I52/'Tabel 1 S'!G52*100,"-")) -> 4.237786933 | J52: =IF(OR('Tabel 1 S'!G52<5,'Tabel 2 S'!J52<0.5),"-",IFERROR('Tabel 2 S'!J52/'Tabel 1 S'!G52*100,"-")) -> 3.350248735
A56: ='Tabel 2 S'!A56 -> Greve
C58: Mænd | F58: Kvinder | I58: I alt
C59: Ledigheds- berørte | D59: Gns. brutto- ledighed | F59: Ledigheds- berørte | G59: Gns. brutto- ledighed | I59: Ledigheds- berørte | J59: Gns. brutto- ledighed
A62: Civ. ing. | C62: =IF(OR('Tabel 1 S'!C62<5,'Tabel 2 S'!C62<0.5),"-",IFERROR('Tabel 2 S'!C62/'Tabel 1 S'!C62*100,"-")) -> 2.205882353 | D62: =IF(OR('Tabel 1 S'!C62<5,'Tabel 2 S'!D62<0.5),"-",IFERROR('Tabel 2 S'!D62/'Tabel 1 S'!C62*100,"-")) -> 1.662471887 | F62: =IF(OR('Tabel 1 S'!E62<5,'Tabel 2 S'!F62<0.5),"-",IFERROR('Tabel 2 S'!F62/'Tabel 1 S'!E62*100,"-")) -> - | G62: =IF(OR('Tabel 1 S'!E62<5,'Tabel 2 S'!G62<0.5),"-",IFERROR('Tabel 2 S'!G62/'Tabel 1 S'!E62*100,"-")) -> - | I62: =IF(OR('Tabel 1 S'!G62<5,'Tabel 2 S'!I62<0.5),"-",IFERROR('Tabel 2 S'!I62/'Tabel 1 S'!G62*100,"-")) -> 1.5625 | J62: =IF(OR('Tabel 1 S'!G62<5,'Tabel 2 S'!J62<0.5),"-",IFERROR('Tabel 2 S'!J62/'Tabel 1 S'!G62*100,"-")) -> 1.177584253
A63: Diplom ing. | C63: =IF(OR('Tabel 1 S'!C63<5,'Tabel 2 S'!C63<0.5),"-",IFERROR('Tabel 2 S'!C63/'Tabel 1 S'!C63*100,"-")) -> 1.730103806 | D63: =IF(OR('Tabel 1 S'!C63<5,'Tabel 2 S'!D63<0.5),"-",IFERROR('Tabel 2 S'!D63/'Tabel 1 S'!C63*100,"-")) -> 1.729780079 | F63: =IF(OR('Tabel 1 S'!E63<5,'Tabel 2 S'!F63<0.5),"-",IFERROR('Tabel 2 S'!F63/'Tabel 1 S'!E63*100,"-")) -> 3.076923077 | G63: =IF(OR('Tabel 1 S'!E63<5,'Tabel 2 S'!G63<0.5),"-",IFERROR('Tabel 2 S'!G63/'Tabel 1 S'!E63*100,"-")) -> 3.076347341 | I63: =IF(OR('Tabel 1 S'!G63<5,'Tabel 2 S'!I63<0.5),"-",IFERROR('Tabel 2 S'!I63/'Tabel 1 S'!G63*100,"-")) -> 1.97740113 | J63: =IF(OR('Tabel 1 S'!G63<5,'Tabel 2 S'!J63<0.5),"-",IFERROR('Tabel 2 S'!J63/'Tabel 1 S'!G63*100,"-")) -> 1.97703113
A64: Cand. Scient. Tek. | C64: =IF(OR('Tabel 1 S'!C64<5,'Tabel 2 S'!C64<0.5),"-",IFERROR('Tabel 2 S'!C64/'Tabel 1 S'!C64*100,"-")) -> 6.382978723 | D64: =IF(OR('Tabel 1 S'!C64<5,'Tabel 2 S'!D64<0.5),"-",IFERROR('Tabel 2 S'!D64/'Tabel 1 S'!C64*100,"-")) -> 5.596170664 | F64: =IF(OR('Tabel 1 S'!E64<5,'Tabel 2 S'!F64<0.5),"-",IFERROR('Tabel 2 S'!F64/'Tabel 1 S'!E64*100,"-")) -> 9.523809524 | G64: =IF(OR('Tabel 1 S'!E64<5,'Tabel 2 S'!G64<0.5),"-",IFERROR('Tabel 2 S'!G64/'Tabel 1 S'!E64*100,"-")) -> 7.873641567 | I64: =IF(OR('Tabel 1 S'!G64<5,'Tabel 2 S'!I64<0.5),"-",IFERROR('Tabel 2 S'!I64/'Tabel 1 S'!G64*100,"-")) -> 7.865168539 | J64: =IF(OR('Tabel 1 S'!G64<5,'Tabel 2 S'!J64<0.5),"-",IFERROR('Tabel 2 S'!J64/'Tabel 1 S'!G64*100,"-")) -> 6.670932214
A65: MA. Hum. | C65: =IF(OR('Tabel 1 S'!C65<5,'Tabel 2 S'!C65<0.5),"-",IFERROR('Tabel 2 S'!C65/'Tabel 1 S'!C65*100,"-")) -> 12.90322581 | D65: =IF(OR('Tabel 1 S'!C65<5,'Tabel 2 S'!D65<0.5),"-",IFERROR('Tabel 2 S'!D65/'Tabel 1 S'!C65*100,"-")) -> 9.464350744 | F65: =IF(OR('Tabel 1 S'!E65<5,'Tabel 2 S'!F65<0.5),"-",IFERROR('Tabel 2 S'!F65/'Tabel 1 S'!E65*100,"-")) -> 6.25 | G65: =IF(OR('Tabel 1 S'!E65<5,'Tabel 2 S'!G65<0.5),"-",IFERROR('Tabel 2 S'!G65/'Tabel 1 S'!E65*100,"-")) -> 5.465847226 | I65: =IF(OR('Tabel 1 S'!G65<5,'Tabel 2 S'!I65<0.5),"-",IFERROR('Tabel 2 S'!I65/'Tabel 1 S'!G65*100,"-")) -> 7.692307692 | J65: =IF(OR('Tabel 1 S'!G65<5,'Tabel 2 S'!J65<0.5),"-",IFERROR('Tabel 2 S'!J65/'Tabel 1 S'!G65*100,"-")) -> 6.332655681
A66: MA. Nat. | C66: =IF(OR('Tabel 1 S'!C66<5,'Tabel 2 S'!C66<0.5),"-",IFERROR('Tabel 2 S'!C66/'Tabel 1 S'!C66*100,"-")) -> 2.43902439 | D66: =IF(OR('Tabel 1 S'!C66<5,'Tabel 2 S'!D66<0.5),"-",IFERROR('Tabel 2 S'!D66/'Tabel 1 S'!C66*100,"-")) -> 2.438568014 | F66: =IF(OR('Tabel 1 S'!E66<5,'Tabel 2 S'!F66<0.5),"-",IFERROR('Tabel 2 S'!F66/'Tabel 1 S'!E66*100,"-")) -> 2.631578947 | G66: =IF(OR('Tabel 1 S'!E66<5,'Tabel 2 S'!G66<0.5),"-",IFERROR('Tabel 2 S'!G66/'Tabel 1 S'!E66*100,"-")) -> 2.631086542 | I66: =IF(OR('Tabel 1 S'!G66<5,'Tabel 2 S'!I66<0.5),"-",IFERROR('Tabel 2 S'!I66/'Tabel 1 S'!G66*100,"-")) -> 2.53164557 | J66: =IF(OR('Tabel 1 S'!G66<5,'Tabel 2 S'!J66<0.5),"-",IFERROR('Tabel 2 S'!J66/'Tabel 1 S'!G66*100,"-")) -> 2.531171863
A67: MA. Ph.d. | C67: =IF(OR('Tabel 1 S'!C67<5,'Tabel 2 S'!C67<0.5),"-",IFERROR('Tabel 2 S'!C67/'Tabel 1 S'!C67*100,"-")) -> - | D67: =IF(OR('Tabel 1 S'!C67<5,'Tabel 2 S'!D67<0.5),"-",IFERROR('Tabel 2 S'!D67/'Tabel 1 S'!C67*100,"-")) -> - | F67: =IF(OR('Tabel 1 S'!E67<5,'Tabel 2 S'!F67<0.5),"-",IFERROR('Tabel 2 S'!F67/'Tabel 1 S'!E67*100,"-")) -> - | G67: =IF(OR('Tabel 1 S'!E67<5,'Tabel 2 S'!G67<0.5),"-",IFERROR('Tabel 2 S'!G67/'Tabel 1 S'!E67*100,"-")) -> - | I67: =IF(OR('Tabel 1 S'!G67<5,'Tabel 2 S'!I67<0.5),"-",IFERROR('Tabel 2 S'!I67/'Tabel 1 S'!G67*100,"-")) -> 11.11111111 | J67: =IF(OR('Tabel 1 S'!G67<5,'Tabel 2 S'!J67<0.5),"-",IFERROR('Tabel 2 S'!J67/'Tabel 1 S'!G67*100,"-")) -> 11.10903207
A68: MA. Samf. | C68: =IF(OR('Tabel 1 S'!C68<5,'Tabel 2 S'!C68<0.5),"-",IFERROR('Tabel 2 S'!C68/'Tabel 1 S'!C68*100,"-")) -> 20 | D68: =IF(OR('Tabel 1 S'!C68<5,'Tabel 2 S'!D68<0.5),"-",IFERROR('Tabel 2 S'!D68/'Tabel 1 S'!C68*100,"-")) -> - | F68: =IF(OR('Tabel 1 S'!E68<5,'Tabel 2 S'!F68<0.5),"-",IFERROR('Tabel 2 S'!F68/'Tabel 1 S'!E68*100,"-")) -> 9.090909091 | G68: =IF(OR('Tabel 1 S'!E68<5,'Tabel 2 S'!G68<0.5),"-",IFERROR('Tabel 2 S'!G68/'Tabel 1 S'!E68*100,"-")) -> 4.893316625 | I68: =IF(OR('Tabel 1 S'!G68<5,'Tabel 2 S'!I68<0.5),"-",IFERROR('Tabel 2 S'!I68/'Tabel 1 S'!G68*100,"-")) -> 12.5 | J68: =IF(OR('Tabel 1 S'!G68<5,'Tabel 2 S'!J68<0.5),"-",IFERROR('Tabel 2 S'!J68/'Tabel 1 S'!G68*100,"-")) -> 5.285972681
A69: Øvrige Mag. | C69: =IF(OR('Tabel 1 S'!C69<5,'Tabel 2 S'!C69<0.5),"-",IFERROR('Tabel 2 S'!C69/'Tabel 1 S'!C69*100,"-")) -> - | D69: =IF(OR('Tabel 1 S'!C69<5,'Tabel 2 S'!D69<0.5),"-",IFERROR('Tabel 2 S'!D69/'Tabel 1 S'!C69*100,"-")) -> - | F69: =IF(OR('Tabel 1 S'!E69<5,'Tabel 2 S'!F69<0.5),"-",IFERROR('Tabel 2 S'!F69/'Tabel 1 S'!E69*100,"-")) -> - | G69: =IF(OR('Tabel 1 S'!E69<5,'Tabel 2 S'!G69<0.5),"-",IFERROR('Tabel 2 S'!G69/'Tabel 1 S'!E69*100,"-")) -> - | I69: =IF(OR('Tabel 1 S'!G69<5,'Tabel 2 S'!I69<0.5),"-",IFERROR('Tabel 2 S'!I69/'Tabel 1 S'!G69*100,"-")) -> - | J69: =IF(OR('Tabel 1 S'!G69<5,'Tabel 2 S'!J69<0.5),"-",IFERROR('Tabel 2 S'!J69/'Tabel 1 S'!G69*100,"-")) -> -
A70: Agronom | C70: =IF(OR('Tabel 1 S'!C70<5,'Tabel 2 S'!C70<0.5),"-",IFERROR('Tabel 2 S'!C70/'Tabel 1 S'!C70*100,"-")) -> - | D70: =IF(OR('Tabel 1 S'!C70<5,'Tabel 2 S'!D70<0.5),"-",IFERROR('Tabel 2 S'!D70/'Tabel 1 S'!C70*100,"-")) -> - | F70: =IF(OR('Tabel 1 S'!E70<5,'Tabel 2 S'!F70<0.5),"-",IFERROR('Tabel 2 S'!F70/'Tabel 1 S'!E70*100,"-")) -> 10 | G70: =IF(OR('Tabel 1 S'!E70<5,'Tabel 2 S'!G70<0.5),"-",IFERROR('Tabel 2 S'!G70/'Tabel 1 S'!E70*100,"-")) -> 5.382648288 | I70: =IF(OR('Tabel 1 S'!G70<5,'Tabel 2 S'!I70<0.5),"-",IFERROR('Tabel 2 S'!I70/'Tabel 1 S'!G70*100,"-")) -> 6.666666667 | J70: =IF(OR('Tabel 1 S'!G70<5,'Tabel 2 S'!J70<0.5),"-",IFERROR('Tabel 2 S'!J70/'Tabel 1 S'!G70*100,"-")) -> 3.588432192
A71: Landsk. Arkt. | C71: =IF(OR('Tabel 1 S'!C71<5,'Tabel 2 S'!C71<0.5),"-",IFERROR('Tabel 2 S'!C71/'Tabel 1 S'!C71*100,"-")) -> - | D71: =IF(OR('Tabel 1 S'!C71<5,'Tabel 2 S'!D71<0.5),"-",IFERROR('Tabel 2 S'!D71/'Tabel 1 S'!C71*100,"-")) -> - | F71: =IF(OR('Tabel 1 S'!E71<5,'Tabel 2 S'!F71<0.5),"-",IFERROR('Tabel 2 S'!F71/'Tabel 1 S'!E71*100,"-")) -> - | G71: =IF(OR('Tabel 1 S'!E71<5,'Tabel 2 S'!G71<0.5),"-",IFERROR('Tabel 2 S'!G71/'Tabel 1 S'!E71*100,"-")) -> - | I71: =IF(OR('Tabel 1 S'!G71<5,'Tabel 2 S'!I71<0.5),"-",IFERROR('Tabel 2 S'!I71/'Tabel 1 S'!G71*100,"-")) -> 20 | J71: =IF(OR('Tabel 1 S'!G71<5,'Tabel 2 S'!J71<0.5),"-",IFERROR('Tabel 2 S'!J71/'Tabel 1 S'!G71*100,"-")) -> 15.38077715
A72: Hortonom | C72: =IF(OR('Tabel 1 S'!C72<5,'Tabel 2 S'!C72<0.5),"-",IFERROR('Tabel 2 S'!C72/'Tabel 1 S'!C72*100,"-")) -> - | D72: =IF(OR('Tabel 1 S'!C72<5,'Tabel 2 S'!D72<0.5),"-",IFERROR('Tabel 2 S'!D72/'Tabel 1 S'!C72*100,"-")) -> - | F72: =IF(OR('Tabel 1 S'!E72<5,'Tabel 2 S'!F72<0.5),"-",IFERROR('Tabel 2 S'!F72/'Tabel 1 S'!E72*100,"-")) -> - | G72: =IF(OR('Tabel 1 S'!E72<5,'Tabel 2 S'!G72<0.5),"-",IFERROR('Tabel 2 S'!G72/'Tabel 1 S'!E72*100,"-")) -> - | I72: =IF(OR('Tabel 1 S'!G72<5,'Tabel 2 S'!I72<0.5),"-",IFERROR('Tabel 2 S'!I72/'Tabel 1 S'!G72*100,"-")) -> - | J72: =IF(OR('Tabel 1 S'!G72<5,'Tabel 2 S'!J72<0.5),"-",IFERROR('Tabel 2 S'!J72/'Tabel 1 S'!G72*100,"-")) -> -
A73: Forstkand. | C73: =IF(OR('Tabel 1 S'!C73<5,'Tabel 2 S'!C73<0.5),"-",IFERROR('Tabel 2 S'!C73/'Tabel 1 S'!C73*100,"-")) -> - | D73: =IF(OR('Tabel 1 S'!C73<5,'Tabel 2 S'!D73<0.5),"-",IFERROR('Tabel 2 S'!D73/'Tabel 1 S'!C73*100,"-")) -> - | F73: =IF(OR('Tabel 1 S'!E73<5,'Tabel 2 S'!F73<0.5),"-",IFERROR('Tabel 2 S'!F73/'Tabel 1 S'!E73*100,"-")) -> - | G73: =IF(OR('Tabel 1 S'!E73<5,'Tabel 2 S'!G73<0.5),"-",IFERROR('Tabel 2 S'!G73/'Tabel 1 S'!E73*100,"-")) -> - | I73: =IF(OR('Tabel 1 S'!G73<5,'Tabel 2 S'!I73<0.5),"-",IFERROR('Tabel 2 S'!I73/'Tabel 1 S'!G73*100,"-")) -> - | J73: =IF(OR('Tabel 1 S'!G73<5,'Tabel 2 S'!J73<0.5),"-",IFERROR('Tabel 2 S'!J73/'Tabel 1 S'!G73*100,"-")) -> -
A74: Jordbrugsakad. | C74: =IF(OR('Tabel 1 S'!C74<5,'Tabel 2 S'!C74<0.5),"-",IFERROR('Tabel 2 S'!C74/'Tabel 1 S'!C74*100,"-")) -> - | D74: =IF(OR('Tabel 1 S'!C74<5,'Tabel 2 S'!D74<0.5),"-",IFERROR('Tabel 2 S'!D74/'Tabel 1 S'!C74*100,"-")) -> - | F74: =IF(OR('Tabel 1 S'!E74<5,'Tabel 2 S'!F74<0.5),"-",IFERROR('Tabel 2 S'!F74/'Tabel 1 S'!E74*100,"-")) -> 13.33333333 | G74: =IF(OR('Tabel 1 S'!E74<5,'Tabel 2 S'!G74<0.5),"-",IFERROR('Tabel 2 S'!G74/'Tabel 1 S'!E74*100,"-")) -> 8.715357908 | I74: =IF(OR('Tabel 1 S'!G74<5,'Tabel 2 S'!I74<0.5),"-",IFERROR('Tabel 2 S'!I74/'Tabel 1 S'!G74*100,"-")) -> 9.090909091 | J74: =IF(OR('Tabel 1 S'!G74<5,'Tabel 2 S'!J74<0.5),"-",IFERROR('Tabel 2 S'!J74/'Tabel 1 S'!G74*100,"-")) -> 5.942289482
A75: Mejeriing. | C75: =IF(OR('Tabel 1 S'!C75<5,'Tabel 2 S'!C75<0.5),"-",IFERROR('Tabel 2 S'!C75/'Tabel 1 S'!C75*100,"-")) -> - | D75: =IF(OR('Tabel 1 S'!C75<5,'Tabel 2 S'!D75<0.5),"-",IFERROR('Tabel 2 S'!D75/'Tabel 1 S'!C75*100,"-")) -> - | F75: =IF(OR('Tabel 1 S'!E75<5,'Tabel 2 S'!F75<0.5),"-",IFERROR('Tabel 2 S'!F75/'Tabel 1 S'!E75*100,"-")) -> - | G75: =IF(OR('Tabel 1 S'!E75<5,'Tabel 2 S'!G75<0.5),"-",IFERROR('Tabel 2 S'!G75/'Tabel 1 S'!E75*100,"-")) -> - | I75: =IF(OR('Tabel 1 S'!G75<5,'Tabel 2 S'!I75<0.5),"-",IFERROR('Tabel 2 S'!I75/'Tabel 1 S'!G75*100,"-")) -> - | J75: =IF(OR('Tabel 1 S'!G75<5,'Tabel 2 S'!J75<0.5),"-",IFERROR('Tabel 2 S'!J75/'Tabel 1 S'!G75*100,"-")) -> -
A76: Levn.m.kand. | C76: =IF(OR('Tabel 1 S'!C76<5,'Tabel 2 S'!C76<0.5),"-",IFERROR('Tabel 2 S'!C76/'Tabel 1 S'!C76*100,"-")) -> - | D76: =IF(OR('Tabel 1 S'!C76<5,'Tabel 2 S'!D76<0.5),"-",IFERROR('Tabel 2 S'!D76/'Tabel 1 S'!C76*100,"-")) -> - | F76: =IF(OR('Tabel 1 S'!E76<5,'Tabel 2 S'!F76<0.5),"-",IFERROR('Tabel 2 S'!F76/'Tabel 1 S'!E76*100,"-")) -> - | G76: =IF(OR('Tabel 1 S'!E76<5,'Tabel 2 S'!G76<0.5),"-",IFERROR('Tabel 2 S'!G76/'Tabel 1 S'!E76*100,"-")) -> - | I76: =IF(OR('Tabel 1 S'!G76<5,'Tabel 2 S'!I76<0.5),"-",IFERROR('Tabel 2 S'!I76/'Tabel 1 S'!G76*100,"-")) -> - | J76: =IF(OR('Tabel 1 S'!G76<5,'Tabel 2 S'!J76<0.5),"-",IFERROR('Tabel 2 S'!J76/'Tabel 1 S'!G76*100,"-")) -> -
A77: Dyrlæge | C77: =IF(OR('Tabel 1 S'!C77<5,'Tabel 2 S'!C77<0.5),"-",IFERROR('Tabel 2 S'!C77/'Tabel 1 S'!C77*100,"-")) -> - | D77: =IF(OR('Tabel 1 S'!C77<5,'Tabel 2 S'!D77<0.5),"-",IFERROR('Tabel 2 S'!D77/'Tabel 1 S'!C77*100,"-")) -> - | F77: =IF(OR('Tabel 1 S'!E77<5,'Tabel 2 S'!F77<0.5),"-",IFERROR('Tabel 2 S'!F77/'Tabel 1 S'!E77*100,"-")) -> - | G77: =IF(OR('Tabel 1 S'!E77<5,'Tabel 2 S'!G77<0.5),"-",IFERROR('Tabel 2 S'!G77/'Tabel 1 S'!E77*100,"-")) -> - | I77: =IF(OR('Tabel 1 S'!G77<5,'Tabel 2 S'!I77<0.5),"-",IFERROR('Tabel 2 S'!I77/'Tabel 1 S'!G77*100,"-")) -> - | J77: =IF(OR('Tabel 1 S'!G77<5,'Tabel 2 S'!J77<0.5),"-",IFERROR('Tabel 2 S'!J77/'Tabel 1 S'!G77*100,"-")) -> -
A78: Farmaceut | C78: =IF(OR('Tabel 1 S'!C78<5,'Tabel 2 S'!C78<0.5),"-",IFERROR('Tabel 2 S'!C78/'Tabel 1 S'!C78*100,"-")) -> - | D78: =IF(OR('Tabel 1 S'!C78<5,'Tabel 2 S'!D78<0.5),"-",IFERROR('Tabel 2 S'!D78/'Tabel 1 S'!C78*100,"-")) -> - | F78: =IF(OR('Tabel 1 S'!E78<5,'Tabel 2 S'!F78<0.5),"-",IFERROR('Tabel 2 S'!F78/'Tabel 1 S'!E78*100,"-")) -> 2 | G78: =IF(OR('Tabel 1 S'!E78<5,'Tabel 2 S'!G78<0.5),"-",IFERROR('Tabel 2 S'!G78/'Tabel 1 S'!E78*100,"-")) -> 1.999625772 | I78: =IF(OR('Tabel 1 S'!G78<5,'Tabel 2 S'!I78<0.5),"-",IFERROR('Tabel 2 S'!I78/'Tabel 1 S'!G78*100,"-")) -> 1.492537313 | J78: =IF(OR('Tabel 1 S'!G78<5,'Tabel 2 S'!J78<0.5),"-",IFERROR('Tabel 2 S'!J78/'Tabel 1 S'!G78*100,"-")) -> 1.492258039
A79: Læge | C79: =IF(OR('Tabel 1 S'!C79<5,'Tabel 2 S'!C79<0.5),"-",IFERROR('Tabel 2 S'!C79/'Tabel 1 S'!C79*100,"-")) -> - | D79: =IF(OR('Tabel 1 S'!C79<5,'Tabel 2 S'!D79<0.5),"-",IFERROR('Tabel 2 S'!D79/'Tabel 1 S'!C79*100,"-")) -> - | F79: =IF(OR('Tabel 1 S'!E79<5,'Tabel 2 S'!F79<0.5),"-",IFERROR('Tabel 2 S'!F79/'Tabel 1 S'!E79*100,"-")) -> 2.941176471 | G79: =IF(OR('Tabel 1 S'!E79<5,'Tabel 2 S'!G79<0.5),"-",IFERROR('Tabel 2 S'!G79/'Tabel 1 S'!E79*100,"-")) -> - | I79: =IF(OR('Tabel 1 S'!G79<5,'Tabel 2 S'!I79<0.5),"-",IFERROR('Tabel 2 S'!I79/'Tabel 1 S'!G79*100,"-")) -> 2.272727273 | J79: =IF(OR('Tabel 1 S'!G79<5,'Tabel 2 S'!J79<0.5),"-",IFERROR('Tabel 2 S'!J79/'Tabel 1 S'!G79*100,"-")) -> -
A80: Tandlæge | C80: =IF(OR('Tabel 1 S'!C80<5,'Tabel 2 S'!C80<0.5),"-",IFERROR('Tabel 2 S'!C80/'Tabel 1 S'!C80*100,"-")) -> - | D80: =IF(OR('Tabel 1 S'!C80<5,'Tabel 2 S'!D80<0.5),"-",IFERROR('Tabel 2 S'!D80/'Tabel 1 S'!C80*100,"-")) -> - | F80: =IF(OR('Tabel 1 S'!E80<5,'Tabel 2 S'!F80<0.5),"-",IFERROR('Tabel 2 S'!F80/'Tabel 1 S'!E80*100,"-")) -> - | G80: =IF(OR('Tabel 1 S'!E80<5,'Tabel 2 S'!G80<0.5),"-",IFERROR('Tabel 2 S'!G80/'Tabel 1 S'!E80*100,"-")) -> - | I80: =IF(OR('Tabel 1 S'!G80<5,'Tabel 2 S'!I80<0.5),"-",IFERROR('Tabel 2 S'!I80/'Tabel 1 S'!G80*100,"-")) -> - | J80: =IF(OR('Tabel 1 S'!G80<5,'Tabel 2 S'!J80<0.5),"-",IFERROR('Tabel 2 S'!J80/'Tabel 1 S'!G80*100,"-")) -> -
A81: Arkitekt | C81: =IF(OR('Tabel 1 S'!C81<5,'Tabel 2 S'!C81<0.5),"-",IFERROR('Tabel 2 S'!C81/'Tabel 1 S'!C81*100,"-")) -> - | D81: =IF(OR('Tabel 1 S'!C81<5,'Tabel 2 S'!D81<0.5),"-",IFERROR('Tabel 2 S'!D81/'Tabel 1 S'!C81*100,"-")) -> - | F81: =IF(OR('Tabel 1 S'!E81<5,'Tabel 2 S'!F81<0.5),"-",IFERROR('Tabel 2 S'!F81/'Tabel 1 S'!E81*100,"-")) -> - | G81: =IF(OR('Tabel 1 S'!E81<5,'Tabel 2 S'!G81<0.5),"-",IFERROR('Tabel 2 S'!G81/'Tabel 1 S'!E81*100,"-")) -> - | I81: =IF(OR('Tabel 1 S'!G81<5,'Tabel 2 S'!I81<0.5),"-",IFERROR('Tabel 2 S'!I81/'Tabel 1 S'!G81*100,"-")) -> - | J81: =IF(OR('Tabel 1 S'!G81<5,'Tabel 2 S'!J81<0.5),"-",IFERROR('Tabel 2 S'!J81/'Tabel 1 S'!G81*100,"-")) -> -
A82: Landinspek. | C82: =IF(OR('Tabel 1 S'!C82<5,'Tabel 2 S'!C82<0.5),"-",IFERROR('Tabel 2 S'!C82/'Tabel 1 S'!C82*100,"-")) -> - | D82: =IF(OR('Tabel 1 S'!C82<5,'Tabel 2 S'!D82<0.5),"-",IFERROR('Tabel 2 S'!D82/'Tabel 1 S'!C82*100,"-")) -> - | F82: =IF(OR('Tabel 1 S'!E82<5,'Tabel 2 S'!F82<0.5),"-",IFERROR('Tabel 2 S'!F82/'Tabel 1 S'!E82*100,"-")) -> - | G82: =IF(OR('Tabel 1 S'!E82<5,'Tabel 2 S'!G82<0.5),"-",IFERROR('Tabel 2 S'!G82/'Tabel 1 S'!E82*100,"-")) -> - | I82: =IF(OR('Tabel 1 S'!G82<5,'Tabel 2 S'!I82<0.5),"-",IFERROR('Tabel 2 S'!I82/'Tabel 1 S'!G82*100,"-")) -> - | J82: =IF(OR('Tabel 1 S'!G82<5,'Tabel 2 S'!J82<0.5),"-",IFERROR('Tabel 2 S'!J82/'Tabel 1 S'!G82*100,"-")) -> -
A83: Bibliotekar | C83: =IF(OR('Tabel 1 S'!C83<5,'Tabel 2 S'!C83<0.5),"-",IFERROR('Tabel 2 S'!C83/'Tabel 1 S'!C83*100,"-")) -> - | D83: =IF(OR('Tabel 1 S'!C83<5,'Tabel 2 S'!D83<0.5),"-",IFERROR('Tabel 2 S'!D83/'Tabel 1 S'!C83*100,"-")) -> - | F83: =IF(OR('Tabel 1 S'!E83<5,'Tabel 2 S'!F83<0.5),"-",IFERROR('Tabel 2 S'!F83/'Tabel 1 S'!E83*100,"-")) -> - | G83: =IF(OR('Tabel 1 S'!E83<5,'Tabel 2 S'!G83<0.5),"-",IFERROR('Tabel 2 S'!G83/'Tabel 1 S'!E83*100,"-")) -> - | I83: =IF(OR('Tabel 1 S'!G83<5,'Tabel 2 S'!I83<0.5),"-",IFERROR('Tabel 2 S'!I83/'Tabel 1 S'!G83*100,"-")) -> - | J83: =IF(OR('Tabel 1 S'!G83<5,'Tabel 2 S'!J83<0.5),"-",IFERROR('Tabel 2 S'!J83/'Tabel 1 S'!G83*100,"-")) -> -
A84: Musikudd. | C84: =IF(OR('Tabel 1 S'!C84<5,'Tabel 2 S'!C84<0.5),"-",IFERROR('Tabel 2 S'!C84/'Tabel 1 S'!C84*100,"-")) -> - | D84: =IF(OR('Tabel 1 S'!C84<5,'Tabel 2 S'!D84<0.5),"-",IFERROR('Tabel 2 S'!D84/'Tabel 1 S'!C84*100,"-")) -> - | F84: =IF(OR('Tabel 1 S'!E84<5,'Tabel 2 S'!F84<0.5),"-",IFERROR('Tabel 2 S'!F84/'Tabel 1 S'!E84*100,"-")) -> - | G84: =IF(OR('Tabel 1 S'!E84<5,'Tabel 2 S'!G84<0.5),"-",IFERROR('Tabel 2 S'!G84/'Tabel 1 S'!E84*100,"-")) -> - | I84: =IF(OR('Tabel 1 S'!G84<5,'Tabel 2 S'!I84<0.5),"-",IFERROR('Tabel 2 S'!I84/'Tabel 1 S'!G84*100,"-")) -> - | J84: =IF(OR('Tabel 1 S'!G84<5,'Tabel 2 S'!J84<0.5),"-",IFERROR('Tabel 2 S'!J84/'Tabel 1 S'!G84*100,"-")) -> -
A85: Teolog | C85: =IF(OR('Tabel 1 S'!C85<5,'Tabel 2 S'!C85<0.5),"-",IFERROR('Tabel 2 S'!C85/'Tabel 1 S'!C85*100,"-")) -> - | D85: =IF(OR('Tabel 1 S'!C85<5,'Tabel 2 S'!D85<0.5),"-",IFERROR('Tabel 2 S'!D85/'Tabel 1 S'!C85*100,"-")) -> - | F85: =IF(OR('Tabel 1 S'!E85<5,'Tabel 2 S'!F85<0.5),"-",IFERROR('Tabel 2 S'!F85/'Tabel 1 S'!E85*100,"-")) -> - | G85: =IF(OR('Tabel 1 S'!E85<5,'Tabel 2 S'!G85<0.5),"-",IFERROR('Tabel 2 S'!G85/'Tabel 1 S'!E85*100,"-")) -> - | I85: =IF(OR('Tabel 1 S'!G85<5,'Tabel 2 S'!I85<0.5),"-",IFERROR('Tabel 2 S'!I85/'Tabel 1 S'!G85*100,"-")) -> - | J85: =IF(OR('Tabel 1 S'!G85<5,'Tabel 2 S'!J85<0.5),"-",IFERROR('Tabel 2 S'!J85/'Tabel 1 S'!G85*100,"-")) -> -
A86: Psykolog | C86: =IF(OR('Tabel 1 S'!C86<5,'Tabel 2 S'!C86<0.5),"-",IFERROR('Tabel 2 S'!C86/'Tabel 1 S'!C86*100,"-")) -> - | D86: =IF(OR('Tabel 1 S'!C86<5,'Tabel 2 S'!D86<0.5),"-",IFERROR('Tabel 2 S'!D86/'Tabel 1 S'!C86*100,"-")) -> - | F86: =IF(OR('Tabel 1 S'!E86<5,'Tabel 2 S'!F86<0.5),"-",IFERROR('Tabel 2 S'!F86/'Tabel 1 S'!E86*100,"-")) -> 5.555555556 | G86: =IF(OR('Tabel 1 S'!E86<5,'Tabel 2 S'!G86<0.5),"-",IFERROR('Tabel 2 S'!G86/'Tabel 1 S'!E86*100,"-")) -> 3.759606922 | I86: =IF(OR('Tabel 1 S'!G86<5,'Tabel 2 S'!I86<0.5),"-",IFERROR('Tabel 2 S'!I86/'Tabel 1 S'!G86*100,"-")) -> 4.545454545 | J86: =IF(OR('Tabel 1 S'!G86<5,'Tabel 2 S'!J86<0.5),"-",IFERROR('Tabel 2 S'!J86/'Tabel 1 S'!G86*100,"-")) -> 3.076042027
A87: Jurist | C87: =IF(OR('Tabel 1 S'!C87<5,'Tabel 2 S'!C87<0.5),"-",IFERROR('Tabel 2 S'!C87/'Tabel 1 S'!C87*100,"-")) -> - | D87: =IF(OR('Tabel 1 S'!C87<5,'Tabel 2 S'!D87<0.5),"-",IFERROR('Tabel 2 S'!D87/'Tabel 1 S'!C87*100,"-")) -> - | F87: =IF(OR('Tabel 1 S'!E87<5,'Tabel 2 S'!F87<0.5),"-",IFERROR('Tabel 2 S'!F87/'Tabel 1 S'!E87*100,"-")) -> - | G87: =IF(OR('Tabel 1 S'!E87<5,'Tabel 2 S'!G87<0.5),"-",IFERROR('Tabel 2 S'!G87/'Tabel 1 S'!E87*100,"-")) -> - | I87: =IF(OR('Tabel 1 S'!G87<5,'Tabel 2 S'!I87<0.5),"-",IFERROR('Tabel 2 S'!I87/'Tabel 1 S'!G87*100,"-")) -> - | J87: =IF(OR('Tabel 1 S'!G87<5,'Tabel 2 S'!J87<0.5),"-",IFERROR('Tabel 2 S'!J87/'Tabel 1 S'!G87*100,"-")) -> -
A88: Økonom | C88: =IF(OR('Tabel 1 S'!C88<5,'Tabel 2 S'!C88<0.5),"-",IFERROR('Tabel 2 S'!C88/'Tabel 1 S'!C88*100,"-")) -> 3.571428571 | D88: =IF(OR('Tabel 1 S'!C88<5,'Tabel 2 S'!D88<0.5),"-",IFERROR('Tabel 2 S'!D88/'Tabel 1 S'!C88*100,"-")) -> 3.570760307 | F88: =IF(OR('Tabel 1 S'!E88<5,'Tabel 2 S'!F88<0.5),"-",IFERROR('Tabel 2 S'!F88/'Tabel 1 S'!E88*100,"-")) -> 3.846153846 | G88: =IF(OR('Tabel 1 S'!E88<5,'Tabel 2 S'!G88<0.5),"-",IFERROR('Tabel 2 S'!G88/'Tabel 1 S'!E88*100,"-")) -> - | I88: =IF(OR('Tabel 1 S'!G88<5,'Tabel 2 S'!I88<0.5),"-",IFERROR('Tabel 2 S'!I88/'Tabel 1 S'!G88*100,"-")) -> 3.703703704 | J88: =IF(OR('Tabel 1 S'!G88<5,'Tabel 2 S'!J88<0.5),"-",IFERROR('Tabel 2 S'!J88/'Tabel 1 S'!G88*100,"-")) -> 2.420932752
A89: Samf. Adm. | C89: =IF(OR('Tabel 1 S'!C89<5,'Tabel 2 S'!C89<0.5),"-",IFERROR('Tabel 2 S'!C89/'Tabel 1 S'!C89*100,"-")) -> 3.571428571 | D89: =IF(OR('Tabel 1 S'!C89<5,'Tabel 2 S'!D89<0.5),"-",IFERROR('Tabel 2 S'!D89/'Tabel 1 S'!C89*100,"-")) -> 3.00273543 | F89: =IF(OR('Tabel 1 S'!E89<5,'Tabel 2 S'!F89<0.5),"-",IFERROR('Tabel 2 S'!F89/'Tabel 1 S'!E89*100,"-")) -> - | G89: =IF(OR('Tabel 1 S'!E89<5,'Tabel 2 S'!G89<0.5),"-",IFERROR('Tabel 2 S'!G89/'Tabel 1 S'!E89*100,"-")) -> - | I89: =IF(OR('Tabel 1 S'!G89<5,'Tabel 2 S'!I89<0.5),"-",IFERROR('Tabel 2 S'!I89/'Tabel 1 S'!G89*100,"-")) -> 1.6 | J89: =IF(OR('Tabel 1 S'!G89<5,'Tabel 2 S'!J89<0.5),"-",IFERROR('Tabel 2 S'!J89/'Tabel 1 S'!G89*100,"-")) -> 1.345225472
A90: Cand. Merc. | C90: =IF(OR('Tabel 1 S'!C90<5,'Tabel 2 S'!C90<0.5),"-",IFERROR('Tabel 2 S'!C90/'Tabel 1 S'!C90*100,"-")) -> 2.083333333 | D90: =IF(OR('Tabel 1 S'!C90<5,'Tabel 2 S'!D90<0.5),"-",IFERROR('Tabel 2 S'!D90/'Tabel 1 S'!C90*100,"-")) -> 1.858579873 | F90: =IF(OR('Tabel 1 S'!E90<5,'Tabel 2 S'!F90<0.5),"-",IFERROR('Tabel 2 S'!F90/'Tabel 1 S'!E90*100,"-")) -> 0.641025641 | G90: =IF(OR('Tabel 1 S'!E90<5,'Tabel 2 S'!G90<0.5),"-",IFERROR('Tabel 2 S'!G90/'Tabel 1 S'!E90*100,"-")) -> 0.6409056961 | I90: =IF(OR('Tabel 1 S'!G90<5,'Tabel 2 S'!I90<0.5),"-",IFERROR('Tabel 2 S'!I90/'Tabel 1 S'!G90*100,"-")) -> 1.333333333 | J90: =IF(OR('Tabel 1 S'!G90<5,'Tabel 2 S'!J90<0.5),"-",IFERROR('Tabel 2 S'!J90/'Tabel 1 S'!G90*100,"-")) -> 1.225389301
A91: HA | C91: =IF(OR('Tabel 1 S'!C91<5,'Tabel 2 S'!C91<0.5),"-",IFERROR('Tabel 2 S'!C91/'Tabel 1 S'!C91*100,"-")) -> 2.083333333 | D91: =IF(OR('Tabel 1 S'!C91<5,'Tabel 2 S'!D91<0.5),"-",IFERROR('Tabel 2 S'!D91/'Tabel 1 S'!C91*100,"-")) -> 2.082943512 | F91: =IF(OR('Tabel 1 S'!E91<5,'Tabel 2 S'!F91<0.5),"-",IFERROR('Tabel 2 S'!F91/'Tabel 1 S'!E91*100,"-")) -> - | G91: =IF(OR('Tabel 1 S'!E91<5,'Tabel 2 S'!G91<0.5),"-",IFERROR('Tabel 2 S'!G91/'Tabel 1 S'!E91*100,"-")) -> - | I91: =IF(OR('Tabel 1 S'!G91<5,'Tabel 2 S'!I91<0.5),"-",IFERROR('Tabel 2 S'!I91/'Tabel 1 S'!G91*100,"-")) -> 1.428571429 | J91: =IF(OR('Tabel 1 S'!G91<5,'Tabel 2 S'!J91<0.5),"-",IFERROR('Tabel 2 S'!J91/'Tabel 1 S'!G91*100,"-")) -> 1.428304123
A92: HD | C92: =IF(OR('Tabel 1 S'!C92<5,'Tabel 2 S'!C92<0.5),"-",IFERROR('Tabel 2 S'!C92/'Tabel 1 S'!C92*100,"-")) -> 2.222222222 | D92: =IF(OR('Tabel 1 S'!C92<5,'Tabel 2 S'!D92<0.5),"-",IFERROR('Tabel 2 S'!D92/'Tabel 1 S'!C92*100,"-")) -> 2.221806413 | F92: =IF(OR('Tabel 1 S'!E92<5,'Tabel 2 S'!F92<0.5),"-",IFERROR('Tabel 2 S'!F92/'Tabel 1 S'!E92*100,"-")) -> 3.333333333 | G92: =IF(OR('Tabel 1 S'!E92<5,'Tabel 2 S'!G92<0.5),"-",IFERROR('Tabel 2 S'!G92/'Tabel 1 S'!E92*100,"-")) -> 2.563462858 | I92: =IF(OR('Tabel 1 S'!G92<5,'Tabel 2 S'!I92<0.5),"-",IFERROR('Tabel 2 S'!I92/'Tabel 1 S'!G92*100,"-")) -> 2.666666667 | J92: =IF(OR('Tabel 1 S'!G92<5,'Tabel 2 S'!J92<0.5),"-",IFERROR('Tabel 2 S'!J92/'Tabel 1 S'!G92*100,"-")) -> 2.358468991
A93: Komm. og Sprog | C93: =IF(OR('Tabel 1 S'!C93<5,'Tabel 2 S'!C93<0.5),"-",IFERROR('Tabel 2 S'!C93/'Tabel 1 S'!C93*100,"-")) -> - | D93: =IF(OR('Tabel 1 S'!C93<5,'Tabel 2 S'!D93<0.5),"-",IFERROR('Tabel 2 S'!D93/'Tabel 1 S'!C93*100,"-")) -> - | F93: =IF(OR('Tabel 1 S'!E93<5,'Tabel 2 S'!F93<0.5),"-",IFERROR('Tabel 2 S'!F93/'Tabel 1 S'!E93*100,"-")) -> 7.272727273 | G93: =IF(OR('Tabel 1 S'!E93<5,'Tabel 2 S'!G93<0.5),"-",IFERROR('Tabel 2 S'!G93/'Tabel 1 S'!E93*100,"-")) -> 5.671257577 | I93: =IF(OR('Tabel 1 S'!G93<5,'Tabel 2 S'!I93<0.5),"-",IFERROR('Tabel 2 S'!I93/'Tabel 1 S'!G93*100,"-")) -> 6.779661017 | J93: =IF(OR('Tabel 1 S'!G93<5,'Tabel 2 S'!J93<0.5),"-",IFERROR('Tabel 2 S'!J93/'Tabel 1 S'!G93*100,"-")) -> 5.286765538
A94: Bygningskonst. | C94: =IF(OR('Tabel 1 S'!C94<5,'Tabel 2 S'!C94<0.5),"-",IFERROR('Tabel 2 S'!C94/'Tabel 1 S'!C94*100,"-")) -> 7.352941176 | D94: =IF(OR('Tabel 1 S'!C94<5,'Tabel 2 S'!D94<0.5),"-",IFERROR('Tabel 2 S'!D94/'Tabel 1 S'!C94*100,"-")) -> 6.652180613 | F94: =IF(OR('Tabel 1 S'!E94<5,'Tabel 2 S'!F94<0.5),"-",IFERROR('Tabel 2 S'!F94/'Tabel 1 S'!E94*100,"-")) -> - | G94: =IF(OR('Tabel 1 S'!E94<5,'Tabel 2 S'!G94<0.5),"-",IFERROR('Tabel 2 S'!G94/'Tabel 1 S'!E94*100,"-")) -> - | I94: =IF(OR('Tabel 1 S'!G94<5,'Tabel 2 S'!I94<0.5),"-",IFERROR('Tabel 2 S'!I94/'Tabel 1 S'!G94*100,"-")) -> 6.578947368 | J94: =IF(OR('Tabel 1 S'!G94<5,'Tabel 2 S'!J94<0.5),"-",IFERROR('Tabel 2 S'!J94/'Tabel 1 S'!G94*100,"-")) -> 5.951951075
A95: Cand. IT. | C95: =IF(OR('Tabel 1 S'!C95<5,'Tabel 2 S'!C95<0.5),"-",IFERROR('Tabel 2 S'!C95/'Tabel 1 S'!C95*100,"-")) -> - | D95: =IF(OR('Tabel 1 S'!C95<5,'Tabel 2 S'!D95<0.5),"-",IFERROR('Tabel 2 S'!D95/'Tabel 1 S'!C95*100,"-")) -> - | F95: =IF(OR('Tabel 1 S'!E95<5,'Tabel 2 S'!F95<0.5),"-",IFERROR('Tabel 2 S'!F95/'Tabel 1 S'!E95*100,"-")) -> 11.11111111 | G95: =IF(OR('Tabel 1 S'!E95<5,'Tabel 2 S'!G95<0.5),"-",IFERROR('Tabel 2 S'!G95/'Tabel 1 S'!E95*100,"-")) -> - | I95: =IF(OR('Tabel 1 S'!G95<5,'Tabel 2 S'!I95<0.5),"-",IFERROR('Tabel 2 S'!I95/'Tabel 1 S'!G95*100,"-")) -> 4.166666667 | J95: =IF(OR('Tabel 1 S'!G95<5,'Tabel 2 S'!J95<0.5),"-",IFERROR('Tabel 2 S'!J95/'Tabel 1 S'!G95*100,"-")) -> -
A96: Bac. Samf. | C96: =IF(OR('Tabel 1 S'!C96<5,'Tabel 2 S'!C96<0.5),"-",IFERROR('Tabel 2 S'!C96/'Tabel 1 S'!C96*100,"-")) -> - | D96: =IF(OR('Tabel 1 S'!C96<5,'Tabel 2 S'!D96<0.5),"-",IFERROR('Tabel 2 S'!D96/'Tabel 1 S'!C96*100,"-")) -> - | F96: =IF(OR('Tabel 1 S'!E96<5,'Tabel 2 S'!F96<0.5),"-",IFERROR('Tabel 2 S'!F96/'Tabel 1 S'!E96*100,"-")) -> 20 | G96: =IF(OR('Tabel 1 S'!E96<5,'Tabel 2 S'!G96<0.5),"-",IFERROR('Tabel 2 S'!G96/'Tabel 1 S'!E96*100,"-")) -> 19.99625772 | I96: =IF(OR('Tabel 1 S'!G96<5,'Tabel 2 S'!I96<0.5),"-",IFERROR('Tabel 2 S'!I96/'Tabel 1 S'!G96*100,"-")) -> 11.11111111 | J96: =IF(OR('Tabel 1 S'!G96<5,'Tabel 2 S'!J96<0.5),"-",IFERROR('Tabel 2 S'!J96/'Tabel 1 S'!G96*100,"-")) -> 11.10903207
A97: Bac. Hum. | C97: =IF(OR('Tabel 1 S'!C97<5,'Tabel 2 S'!C97<0.5),"-",IFERROR('Tabel 2 S'!C97/'Tabel 1 S'!C97*100,"-")) -> - | D97: =IF(OR('Tabel 1 S'!C97<5,'Tabel 2 S'!D97<0.5),"-",IFERROR('Tabel 2 S'!D97/'Tabel 1 S'!C97*100,"-")) -> - | F97: =IF(OR('Tabel 1 S'!E97<5,'Tabel 2 S'!F97<0.5),"-",IFERROR('Tabel 2 S'!F97/'Tabel 1 S'!E97*100,"-")) -> 33.33333333 | G97: =IF(OR('Tabel 1 S'!E97<5,'Tabel 2 S'!G97<0.5),"-",IFERROR('Tabel 2 S'!G97/'Tabel 1 S'!E97*100,"-")) -> 19.99348566 | I97: =IF(OR('Tabel 1 S'!G97<5,'Tabel 2 S'!I97<0.5),"-",IFERROR('Tabel 2 S'!I97/'Tabel 1 S'!G97*100,"-")) -> 20 | J97: =IF(OR('Tabel 1 S'!G97<5,'Tabel 2 S'!J97<0.5),"-",IFERROR('Tabel 2 S'!J97/'Tabel 1 S'!G97*100,"-")) -> 11.99609139
A98: Bac. Nat. | C98: =IF(OR('Tabel 1 S'!C98<5,'Tabel 2 S'!C98<0.5),"-",IFERROR('Tabel 2 S'!C98/'Tabel 1 S'!C98*100,"-")) -> 16.66666667 | D98: =IF(OR('Tabel 1 S'!C98<5,'Tabel 2 S'!D98<0.5),"-",IFERROR('Tabel 2 S'!D98/'Tabel 1 S'!C98*100,"-")) -> 16.6635481 | F98: =IF(OR('Tabel 1 S'!E98<5,'Tabel 2 S'!F98<0.5),"-",IFERROR('Tabel 2 S'!F98/'Tabel 1 S'!E98*100,"-")) -> 16.66666667 | G98: =IF(OR('Tabel 1 S'!E98<5,'Tabel 2 S'!G98<0.5),"-",IFERROR('Tabel 2 S'!G98/'Tabel 1 S'!E98*100,"-")) -> 13.61774673 | I98: =IF(OR('Tabel 1 S'!G98<5,'Tabel 2 S'!I98<0.5),"-",IFERROR('Tabel 2 S'!I98/'Tabel 1 S'!G98*100,"-")) -> 16.66666667 | J98: =IF(OR('Tabel 1 S'!G98<5,'Tabel 2 S'!J98<0.5),"-",IFERROR('Tabel 2 S'!J98/'Tabel 1 S'!G98*100,"-")) -> 15.64828098
A99: Andre | C99: =IF(OR('Tabel 1 S'!C99<5,'Tabel 2 S'!C99<0.5),"-",IFERROR('Tabel 2 S'!C99/'Tabel 1 S'!C99*100,"-")) -> 5.479452055 | D99: =IF(OR('Tabel 1 S'!C99<5,'Tabel 2 S'!D99<0.5),"-",IFERROR('Tabel 2 S'!D99/'Tabel 1 S'!C99*100,"-")) -> 3.581653935 | F99: =IF(OR('Tabel 1 S'!E99<5,'Tabel 2 S'!F99<0.5),"-",IFERROR('Tabel 2 S'!F99/'Tabel 1 S'!E99*100,"-")) -> 4.705882353 | G99: =IF(OR('Tabel 1 S'!E99<5,'Tabel 2 S'!G99<0.5),"-",IFERROR('Tabel 2 S'!G99/'Tabel 1 S'!E99*100,"-")) -> 3.365118267 | I99: =IF(OR('Tabel 1 S'!G99<5,'Tabel 2 S'!I99<0.5),"-",IFERROR('Tabel 2 S'!I99/'Tabel 1 S'!G99*100,"-")) -> 5.063291139 | J99: =IF(OR('Tabel 1 S'!G99<5,'Tabel 2 S'!J99<0.5),"-",IFERROR('Tabel 2 S'!J99/'Tabel 1 S'!G99*100,"-")) -> 3.465163227
A101: Total | C101: =IF(OR('Tabel 1 S'!C101<5,'Tabel 2 S'!C101<0.5),"-",IFERROR('Tabel 2 S'!C101/'Tabel 1 S'!C101*100,"-")) -> 3.200692042 | D101: =IF(OR('Tabel 1 S'!C101<5,'Tabel 2 S'!D101<0.5),"-",IFERROR('Tabel 2 S'!D101/'Tabel 1 S'!C101*100,"-")) -> 2.735841971 | F101: =IF(OR('Tabel 1 S'!E101<5,'Tabel 2 S'!F101<0.5),"-",IFERROR('Tabel 2 S'!F101/'Tabel 1 S'!E101*100,"-")) -> 3.363636364 | G101: =IF(OR('Tabel 1 S'!E101<5,'Tabel 2 S'!G101<0.5),"-",IFERROR('Tabel 2 S'!G101/'Tabel 1 S'!E101*100,"-")) -> 2.57962271 | I101: =IF(OR('Tabel 1 S'!G101<5,'Tabel 2 S'!I101<0.5),"-",IFERROR('Tabel 2 S'!I101/'Tabel 1 S'!G101*100,"-")) -> 3.280141844 | J101: =IF(OR('Tabel 1 S'!G101<5,'Tabel 2 S'!J101<0.5),"-",IFERROR('Tabel 2 S'!J101/'Tabel 1 S'!G101*100,"-")) -> 2.659671232
A103: Ingeniører i alt | C103: =IF(OR('Tabel 1 S'!C103<5,'Tabel 2 S'!C103<0.5),"-",IFERROR('Tabel 2 S'!C103/'Tabel 1 S'!C103*100,"-")) -> 1.882352941 | D103: =IF(OR('Tabel 1 S'!C103<5,'Tabel 2 S'!D103<0.5),"-",IFERROR('Tabel 2 S'!D103/'Tabel 1 S'!C103*100,"-")) -> 1.708241458 | F103: =IF(OR('Tabel 1 S'!E103<5,'Tabel 2 S'!F103<0.5),"-",IFERROR('Tabel 2 S'!F103/'Tabel 1 S'!E103*100,"-")) -> 1.652892562 | G103: =IF(OR('Tabel 1 S'!E103<5,'Tabel 2 S'!G103<0.5),"-",IFERROR('Tabel 2 S'!G103/'Tabel 1 S'!E103*100,"-")) -> 1.652583283 | I103: =IF(OR('Tabel 1 S'!G103<5,'Tabel 2 S'!I103<0.5),"-",IFERROR('Tabel 2 S'!I103/'Tabel 1 S'!G103*100,"-")) -> 1.831501832 | J103: =IF(OR('Tabel 1 S'!G103<5,'Tabel 2 S'!J103<0.5),"-",IFERROR('Tabel 2 S'!J103/'Tabel 1 S'!G103*100,"-")) -> 1.695906954
A104: Magistre i alt | C104: =IF(OR('Tabel 1 S'!C104<5,'Tabel 2 S'!C104<0.5),"-",IFERROR('Tabel 2 S'!C104/'Tabel 1 S'!C104*100,"-")) -> 8.43373494 | D104: =IF(OR('Tabel 1 S'!C104<5,'Tabel 2 S'!D104<0.5),"-",IFERROR('Tabel 2 S'!D104/'Tabel 1 S'!C104*100,"-")) -> 6.314536509 | F104: =IF(OR('Tabel 1 S'!E104<5,'Tabel 2 S'!F104<0.5),"-",IFERROR('Tabel 2 S'!F104/'Tabel 1 S'!E104*100,"-")) -> 4.945054945 | G104: =IF(OR('Tabel 1 S'!E104<5,'Tabel 2 S'!G104<0.5),"-",IFERROR('Tabel 2 S'!G104/'Tabel 1 S'!E104*100,"-")) -> 4.208695938 | I104: =IF(OR('Tabel 1 S'!G104<5,'Tabel 2 S'!I104<0.5),"-",IFERROR('Tabel 2 S'!I104/'Tabel 1 S'!G104*100,"-")) -> 6.037735849 | J104: =IF(OR('Tabel 1 S'!G104<5,'Tabel 2 S'!J104<0.5),"-",IFERROR('Tabel 2 S'!J104/'Tabel 1 S'!G104*100,"-")) -> 4.868261098
A105: DJØF'ere i alt | C105: =IF(OR('Tabel 1 S'!C105<5,'Tabel 2 S'!C105<0.5),"-",IFERROR('Tabel 2 S'!C105/'Tabel 1 S'!C105*100,"-")) -> 2.243589744 | D105: =IF(OR('Tabel 1 S'!C105<5,'Tabel 2 S'!D105<0.5),"-",IFERROR('Tabel 2 S'!D105/'Tabel 1 S'!C105*100,"-")) -> 2.037664305 | F105: =IF(OR('Tabel 1 S'!E105<5,'Tabel 2 S'!F105<0.5),"-",IFERROR('Tabel 2 S'!F105/'Tabel 1 S'!E105*100,"-")) -> 0.5633802817 | G105: =IF(OR('Tabel 1 S'!E105<5,'Tabel 2 S'!G105<0.5),"-",IFERROR('Tabel 2 S'!G105/'Tabel 1 S'!E105*100,"-")) -> 0.3682545595 | I105: =IF(OR('Tabel 1 S'!G105<5,'Tabel 2 S'!I105<0.5),"-",IFERROR('Tabel 2 S'!I105/'Tabel 1 S'!G105*100,"-")) -> 1.349325337 | J105: =IF(OR('Tabel 1 S'!G105<5,'Tabel 2 S'!J105<0.5),"-",IFERROR('Tabel 2 S'!J105/'Tabel 1 S'!G105*100,"-")) -> 1.149147874
A110: ='Tabel 2 S'!A110 -> Køge
C112: Mænd | F112: Kvinder | I112: I alt
C113: Ledigheds- berørte | D113: Gns. brutto- ledighed | F113: Ledigheds- berørte | G113: Gns. brutto- ledighed | I113: Ledigheds- berørte | J113: Gns. brutto- ledighed
A116: Civ. ing. | C116: =IF(OR('Tabel 1 S'!C116<5,'Tabel 2 S'!C116<0.5),"-",IFERROR('Tabel 2 S'!C116/'Tabel 1 S'!C116*100,"-")) -> - | D116: =IF(OR('Tabel 1 S'!C116<5,'Tabel 2 S'!D116<0.5),"-",IFERROR('Tabel 2 S'!D116/'Tabel 1 S'!C116*100,"-")) -> - | F116: =IF(OR('Tabel 1 S'!E116<5,'Tabel 2 S'!F116<0.5),"-",IFERROR('Tabel 2 S'!F116/'Tabel 1 S'!E116*100,"-")) -> - | G116: =IF(OR('Tabel 1 S'!E116<5,'Tabel 2 S'!G116<0.5),"-",IFERROR('Tabel 2 S'!G116/'Tabel 1 S'!E116*100,"-")) -> - | I116: =IF(OR('Tabel 1 S'!G116<5,'Tabel 2 S'!I116<0.5),"-",IFERROR('Tabel 2 S'!I116/'Tabel 1 S'!G116*100,"-")) -> - | J116: =IF(OR('Tabel 1 S'!G116<5,'Tabel 2 S'!J116<0.5),"-",IFERROR('Tabel 2 S'!J116/'Tabel 1 S'!G116*100,"-")) -> -
A117: Diplom ing. | C117: =IF(OR('Tabel 1 S'!C117<5,'Tabel 2 S'!C117<0.5),"-",IFERROR('Tabel 2 S'!C117/'Tabel 1 S'!C117*100,"-")) -> 2.097902098 | D117: =IF(OR('Tabel 1 S'!C117<5,'Tabel 2 S'!D117<0.5),"-",IFERROR('Tabel 2 S'!D117/'Tabel 1 S'!C117*100,"-")) -> 1.668760978 | F117: =IF(OR('Tabel 1 S'!E117<5,'Tabel 2 S'!F117<0.5),"-",IFERROR('Tabel 2 S'!F117/'Tabel 1 S'!E117*100,"-")) -> 1.492537313 | G117: =IF(OR('Tabel 1 S'!E117<5,'Tabel 2 S'!G117<0.5),"-",IFERROR('Tabel 2 S'!G117/'Tabel 1 S'!E117*100,"-")) -> 0.8033803415 | I117: =IF(OR('Tabel 1 S'!G117<5,'Tabel 2 S'!I117<0.5),"-",IFERROR('Tabel 2 S'!I117/'Tabel 1 S'!G117*100,"-")) -> 1.983002833 | J117: =IF(OR('Tabel 1 S'!G117<5,'Tabel 2 S'!J117<0.5),"-",IFERROR('Tabel 2 S'!J117/'Tabel 1 S'!G117*100,"-")) -> 1.504510262
A118: Cand. Scient. Tek. | C118: =IF(OR('Tabel 1 S'!C118<5,'Tabel 2 S'!C118<0.5),"-",IFERROR('Tabel 2 S'!C118/'Tabel 1 S'!C118*100,"-")) -> 10.71428571 | D118: =IF(OR('Tabel 1 S'!C118<5,'Tabel 2 S'!D118<0.5),"-",IFERROR('Tabel 2 S'!D118/'Tabel 1 S'!C118*100,"-")) -> 8.562696581 | F118: =IF(OR('Tabel 1 S'!E118<5,'Tabel 2 S'!F118<0.5),"-",IFERROR('Tabel 2 S'!F118/'Tabel 1 S'!E118*100,"-")) -> 5.555555556 | G118: =IF(OR('Tabel 1 S'!E118<5,'Tabel 2 S'!G118<0.5),"-",IFERROR('Tabel 2 S'!G118/'Tabel 1 S'!E118*100,"-")) -> 5.554516033 | I118: =IF(OR('Tabel 1 S'!G118<5,'Tabel 2 S'!I118<0.5),"-",IFERROR('Tabel 2 S'!I118/'Tabel 1 S'!G118*100,"-")) -> 8.695652174 | J118: =IF(OR('Tabel 1 S'!G118<5,'Tabel 2 S'!J118<0.5),"-",IFERROR('Tabel 2 S'!J118/'Tabel 1 S'!G118*100,"-")) -> 7.385582454
A119: MA. Hum. | C119: =IF(OR('Tabel 1 S'!C119<5,'Tabel 2 S'!C119<0.5),"-",IFERROR('Tabel 2 S'!C119/'Tabel 1 S'!C119*100,"-")) -> 4.6875 | D119: =IF(OR('Tabel 1 S'!C119<5,'Tabel 2 S'!D119<0.5),"-",IFERROR('Tabel 2 S'!D119/'Tabel 1 S'!C119*100,"-")) -> 4.676877378 | F119: =IF(OR('Tabel 1 S'!E119<5,'Tabel 2 S'!F119<0.5),"-",IFERROR('Tabel 2 S'!F119/'Tabel 1 S'!E119*100,"-")) -> 7.784431138 | G119: =IF(OR('Tabel 1 S'!E119<5,'Tabel 2 S'!G119<0.5),"-",IFERROR('Tabel 2 S'!G119/'Tabel 1 S'!E119*100,"-")) -> 6.236015464 | I119: =IF(OR('Tabel 1 S'!G119<5,'Tabel 2 S'!I119<0.5),"-",IFERROR('Tabel 2 S'!I119/'Tabel 1 S'!G119*100,"-")) -> 6.926406926 | J119: =IF(OR('Tabel 1 S'!G119<5,'Tabel 2 S'!J119<0.5),"-",IFERROR('Tabel 2 S'!J119/'Tabel 1 S'!G119*100,"-")) -> 5.80404647
A120: MA. Nat. | C120: =IF(OR('Tabel 1 S'!C120<5,'Tabel 2 S'!C120<0.5),"-",IFERROR('Tabel 2 S'!C120/'Tabel 1 S'!C120*100,"-")) -> 8.695652174 | D120: =IF(OR('Tabel 1 S'!C120<5,'Tabel 2 S'!D120<0.5),"-",IFERROR('Tabel 2 S'!D120/'Tabel 1 S'!C120*100,"-")) -> 7.575408329 | F120: =IF(OR('Tabel 1 S'!E120<5,'Tabel 2 S'!F120<0.5),"-",IFERROR('Tabel 2 S'!F120/'Tabel 1 S'!E120*100,"-")) -> 6.666666667 | G120: =IF(OR('Tabel 1 S'!E120<5,'Tabel 2 S'!G120<0.5),"-",IFERROR('Tabel 2 S'!G120/'Tabel 1 S'!E120*100,"-")) -> 4.46578931 | I120: =IF(OR('Tabel 1 S'!G120<5,'Tabel 2 S'!I120<0.5),"-",IFERROR('Tabel 2 S'!I120/'Tabel 1 S'!G120*100,"-")) -> 7.547169811 | J120: =IF(OR('Tabel 1 S'!G120<5,'Tabel 2 S'!J120<0.5),"-",IFERROR('Tabel 2 S'!J120/'Tabel 1 S'!G120*100,"-")) -> 5.81524662
A121: MA. Ph.d. | C121: =IF(OR('Tabel 1 S'!C121<5,'Tabel 2 S'!C121<0.5),"-",IFERROR('Tabel 2 S'!C121/'Tabel 1 S'!C121*100,"-")) -> - | D121: =IF(OR('Tabel 1 S'!C121<5,'Tabel 2 S'!D121<0.5),"-",IFERROR('Tabel 2 S'!D121/'Tabel 1 S'!C121*100,"-")) -> - | F121: =IF(OR('Tabel 1 S'!E121<5,'Tabel 2 S'!F121<0.5),"-",IFERROR('Tabel 2 S'!F121/'Tabel 1 S'!E121*100,"-")) -> 20 | G121: =IF(OR('Tabel 1 S'!E121<5,'Tabel 2 S'!G121<0.5),"-",IFERROR('Tabel 2 S'!G121/'Tabel 1 S'!E121*100,"-")) -> 19.99625772 | I121: =IF(OR('Tabel 1 S'!G121<5,'Tabel 2 S'!I121<0.5),"-",IFERROR('Tabel 2 S'!I121/'Tabel 1 S'!G121*100,"-")) -> 16.66666667 | J121: =IF(OR('Tabel 1 S'!G121<5,'Tabel 2 S'!J121<0.5),"-",IFERROR('Tabel 2 S'!J121/'Tabel 1 S'!G121*100,"-")) -> 16.6635481
A122: MA. Samf. | C122: =IF(OR('Tabel 1 S'!C122<5,'Tabel 2 S'!C122<0.5),"-",IFERROR('Tabel 2 S'!C122/'Tabel 1 S'!C122*100,"-")) -> - | D122: =IF(OR('Tabel 1 S'!C122<5,'Tabel 2 S'!D122<0.5),"-",IFERROR('Tabel 2 S'!D122/'Tabel 1 S'!C122*100,"-")) -> - | F122: =IF(OR('Tabel 1 S'!E122<5,'Tabel 2 S'!F122<0.5),"-",IFERROR('Tabel 2 S'!F122/'Tabel 1 S'!E122*100,"-")) -> 20.83333333 | G122: =IF(OR('Tabel 1 S'!E122<5,'Tabel 2 S'!G122<0.5),"-",IFERROR('Tabel 2 S'!G122/'Tabel 1 S'!E122*100,"-")) -> 20.82943512 | I122: =IF(OR('Tabel 1 S'!G122<5,'Tabel 2 S'!I122<0.5),"-",IFERROR('Tabel 2 S'!I122/'Tabel 1 S'!G122*100,"-")) -> 14.28571429 | J122: =IF(OR('Tabel 1 S'!G122<5,'Tabel 2 S'!J122<0.5),"-",IFERROR('Tabel 2 S'!J122/'Tabel 1 S'!G122*100,"-")) -> 14.28304123
A123: Øvrige Mag. | C123: =IF(OR('Tabel 1 S'!C123<5,'Tabel 2 S'!C123<0.5),"-",IFERROR('Tabel 2 S'!C123/'Tabel 1 S'!C123*100,"-")) -> 33.33333333 | D123: =IF(OR('Tabel 1 S'!C123<5,'Tabel 2 S'!D123<0.5),"-",IFERROR('Tabel 2 S'!D123/'Tabel 1 S'!C123*100,"-")) -> 29.48086239 | F123: =IF(OR('Tabel 1 S'!E123<5,'Tabel 2 S'!F123<0.5),"-",IFERROR('Tabel 2 S'!F123/'Tabel 1 S'!E123*100,"-")) -> 20 | G123: =IF(OR('Tabel 1 S'!E123<5,'Tabel 2 S'!G123<0.5),"-",IFERROR('Tabel 2 S'!G123/'Tabel 1 S'!E123*100,"-")) -> 18.4120252 | I123: =IF(OR('Tabel 1 S'!G123<5,'Tabel 2 S'!I123<0.5),"-",IFERROR('Tabel 2 S'!I123/'Tabel 1 S'!G123*100,"-")) -> 23.80952381 | J123: =IF(OR('Tabel 1 S'!G123<5,'Tabel 2 S'!J123<0.5),"-",IFERROR('Tabel 2 S'!J123/'Tabel 1 S'!G123*100,"-")) -> 21.57455011
A124: Agronom | C124: =IF(OR('Tabel 1 S'!C124<5,'Tabel 2 S'!C124<0.5),"-",IFERROR('Tabel 2 S'!C124/'Tabel 1 S'!C124*100,"-")) -> 6.666666667 | D124: =IF(OR('Tabel 1 S'!C124<5,'Tabel 2 S'!D124<0.5),"-",IFERROR('Tabel 2 S'!D124/'Tabel 1 S'!C124*100,"-")) -> 6.665419239 | F124: =IF(OR('Tabel 1 S'!E124<5,'Tabel 2 S'!F124<0.5),"-",IFERROR('Tabel 2 S'!F124/'Tabel 1 S'!E124*100,"-")) -> 4.545454545 | G124: =IF(OR('Tabel 1 S'!E124<5,'Tabel 2 S'!G124<0.5),"-",IFERROR('Tabel 2 S'!G124/'Tabel 1 S'!E124*100,"-")) -> 4.544604027 | I124: =IF(OR('Tabel 1 S'!G124<5,'Tabel 2 S'!I124<0.5),"-",IFERROR('Tabel 2 S'!I124/'Tabel 1 S'!G124*100,"-")) -> 5.405405405 | J124: =IF(OR('Tabel 1 S'!G124<5,'Tabel 2 S'!J124<0.5),"-",IFERROR('Tabel 2 S'!J124/'Tabel 1 S'!G124*100,"-")) -> 5.404393978
A125: Landsk. Arkt. | C125: =IF(OR('Tabel 1 S'!C125<5,'Tabel 2 S'!C125<0.5),"-",IFERROR('Tabel 2 S'!C125/'Tabel 1 S'!C125*100,"-")) -> - | D125: =IF(OR('Tabel 1 S'!C125<5,'Tabel 2 S'!D125<0.5),"-",IFERROR('Tabel 2 S'!D125/'Tabel 1 S'!C125*100,"-")) -> - | F125: =IF(OR('Tabel 1 S'!E125<5,'Tabel 2 S'!F125<0.5),"-",IFERROR('Tabel 2 S'!F125/'Tabel 1 S'!E125*100,"-")) -> - | G125: =IF(OR('Tabel 1 S'!E125<5,'Tabel 2 S'!G125<0.5),"-",IFERROR('Tabel 2 S'!G125/'Tabel 1 S'!E125*100,"-")) -> - | I125: =IF(OR('Tabel 1 S'!G125<5,'Tabel 2 S'!I125<0.5),"-",IFERROR('Tabel 2 S'!I125/'Tabel 1 S'!G125*100,"-")) -> - | J125: =IF(OR('Tabel 1 S'!G125<5,'Tabel 2 S'!J125<0.5),"-",IFERROR('Tabel 2 S'!J125/'Tabel 1 S'!G125*100,"-")) -> -
A126: Hortonom | C126: =IF(OR('Tabel 1 S'!C126<5,'Tabel 2 S'!C126<0.5),"-",IFERROR('Tabel 2 S'!C126/'Tabel 1 S'!C126*100,"-")) -> - | D126: =IF(OR('Tabel 1 S'!C126<5,'Tabel 2 S'!D126<0.5),"-",IFERROR('Tabel 2 S'!D126/'Tabel 1 S'!C126*100,"-")) -> - | F126: =IF(OR('Tabel 1 S'!E126<5,'Tabel 2 S'!F126<0.5),"-",IFERROR('Tabel 2 S'!F126/'Tabel 1 S'!E126*100,"-")) -> - | G126: =IF(OR('Tabel 1 S'!E126<5,'Tabel 2 S'!G126<0.5),"-",IFERROR('Tabel 2 S'!G126/'Tabel 1 S'!E126*100,"-")) -> - | I126: =IF(OR('Tabel 1 S'!G126<5,'Tabel 2 S'!I126<0.5),"-",IFERROR('Tabel 2 S'!I126/'Tabel 1 S'!G126*100,"-")) -> - | J126: =IF(OR('Tabel 1 S'!G126<5,'Tabel 2 S'!J126<0.5),"-",IFERROR('Tabel 2 S'!J126/'Tabel 1 S'!G126*100,"-")) -> -
A127: Forstkand. | C127: =IF(OR('Tabel 1 S'!C127<5,'Tabel 2 S'!C127<0.5),"-",IFERROR('Tabel 2 S'!C127/'Tabel 1 S'!C127*100,"-")) -> - | D127: =IF(OR('Tabel 1 S'!C127<5,'Tabel 2 S'!D127<0.5),"-",IFERROR('Tabel 2 S'!D127/'Tabel 1 S'!C127*100,"-")) -> - | F127: =IF(OR('Tabel 1 S'!E127<5,'Tabel 2 S'!F127<0.5),"-",IFERROR('Tabel 2 S'!F127/'Tabel 1 S'!E127*100,"-")) -> - | G127: =IF(OR('Tabel 1 S'!E127<5,'Tabel 2 S'!G127<0.5),"-",IFERROR('Tabel 2 S'!G127/'Tabel 1 S'!E127*100,"-")) -> - | I127: =IF(OR('Tabel 1 S'!G127<5,'Tabel 2 S'!I127<0.5),"-",IFERROR('Tabel 2 S'!I127/'Tabel 1 S'!G127*100,"-")) -> - | J127: =IF(OR('Tabel 1 S'!G127<5,'Tabel 2 S'!J127<0.5),"-",IFERROR('Tabel 2 S'!J127/'Tabel 1 S'!G127*100,"-")) -> -
A128: Jordbrugsakad. | C128: =IF(OR('Tabel 1 S'!C128<5,'Tabel 2 S'!C128<0.5),"-",IFERROR('Tabel 2 S'!C128/'Tabel 1 S'!C128*100,"-")) -> 5 | D128: =IF(OR('Tabel 1 S'!C128<5,'Tabel 2 S'!D128<0.5),"-",IFERROR('Tabel 2 S'!D128/'Tabel 1 S'!C128*100,"-")) -> 4.99906443 | F128: =IF(OR('Tabel 1 S'!E128<5,'Tabel 2 S'!F128<0.5),"-",IFERROR('Tabel 2 S'!F128/'Tabel 1 S'!E128*100,"-")) -> 2.941176471 | G128: =IF(OR('Tabel 1 S'!E128<5,'Tabel 2 S'!G128<0.5),"-",IFERROR('Tabel 2 S'!G128/'Tabel 1 S'!E128*100,"-")) -> 2.940626135 | I128: =IF(OR('Tabel 1 S'!G128<5,'Tabel 2 S'!I128<0.5),"-",IFERROR('Tabel 2 S'!I128/'Tabel 1 S'!G128*100,"-")) -> 3.703703704 | J128: =IF(OR('Tabel 1 S'!G128<5,'Tabel 2 S'!J128<0.5),"-",IFERROR('Tabel 2 S'!J128/'Tabel 1 S'!G128*100,"-")) -> 3.703010689
A129: Mejeriing. | C129: =IF(OR('Tabel 1 S'!C129<5,'Tabel 2 S'!C129<0.5),"-",IFERROR('Tabel 2 S'!C129/'Tabel 1 S'!C129*100,"-")) -> - | D129: =IF(OR('Tabel 1 S'!C129<5,'Tabel 2 S'!D129<0.5),"-",IFERROR('Tabel 2 S'!D129/'Tabel 1 S'!C129*100,"-")) -> - | F129: =IF(OR('Tabel 1 S'!E129<5,'Tabel 2 S'!F129<0.5),"-",IFERROR('Tabel 2 S'!F129/'Tabel 1 S'!E129*100,"-")) -> - | G129: =IF(OR('Tabel 1 S'!E129<5,'Tabel 2 S'!G129<0.5),"-",IFERROR('Tabel 2 S'!G129/'Tabel 1 S'!E129*100,"-")) -> - | I129: =IF(OR('Tabel 1 S'!G129<5,'Tabel 2 S'!I129<0.5),"-",IFERROR('Tabel 2 S'!I129/'Tabel 1 S'!G129*100,"-")) -> - | J129: =IF(OR('Tabel 1 S'!G129<5,'Tabel 2 S'!J129<0.5),"-",IFERROR('Tabel 2 S'!J129/'Tabel 1 S'!G129*100,"-")) -> -
A130: Levn.m.kand. | C130: =IF(OR('Tabel 1 S'!C130<5,'Tabel 2 S'!C130<0.5),"-",IFERROR('Tabel 2 S'!C130/'Tabel 1 S'!C130*100,"-")) -> - | D130: =IF(OR('Tabel 1 S'!C130<5,'Tabel 2 S'!D130<0.5),"-",IFERROR('Tabel 2 S'!D130/'Tabel 1 S'!C130*100,"-")) -> - | F130: =IF(OR('Tabel 1 S'!E130<5,'Tabel 2 S'!F130<0.5),"-",IFERROR('Tabel 2 S'!F130/'Tabel 1 S'!E130*100,"-")) -> - | G130: =IF(OR('Tabel 1 S'!E130<5,'Tabel 2 S'!G130<0.5),"-",IFERROR('Tabel 2 S'!G130/'Tabel 1 S'!E130*100,"-")) -> - | I130: =IF(OR('Tabel 1 S'!G130<5,'Tabel 2 S'!I130<0.5),"-",IFERROR('Tabel 2 S'!I130/'Tabel 1 S'!G130*100,"-")) -> - | J130: =IF(OR('Tabel 1 S'!G130<5,'Tabel 2 S'!J130<0.5),"-",IFERROR('Tabel 2 S'!J130/'Tabel 1 S'!G130*100,"-")) -> -
A131: Dyrlæge | C131: =IF(OR('Tabel 1 S'!C131<5,'Tabel 2 S'!C131<0.5),"-",IFERROR('Tabel 2 S'!C131/'Tabel 1 S'!C131*100,"-")) -> - | D131: =IF(OR('Tabel 1 S'!C131<5,'Tabel 2 S'!D131<0.5),"-",IFERROR('Tabel 2 S'!D131/'Tabel 1 S'!C131*100,"-")) -> - | F131: =IF(OR('Tabel 1 S'!E131<5,'Tabel 2 S'!F131<0.5),"-",IFERROR('Tabel 2 S'!F131/'Tabel 1 S'!E131*100,"-")) -> 3.571428571 | G131: =IF(OR('Tabel 1 S'!E131<5,'Tabel 2 S'!G131<0.5),"-",IFERROR('Tabel 2 S'!G131/'Tabel 1 S'!E131*100,"-")) -> 3.570760307 | I131: =IF(OR('Tabel 1 S'!G131<5,'Tabel 2 S'!I131<0.5),"-",IFERROR('Tabel 2 S'!I131/'Tabel 1 S'!G131*100,"-")) -> 3.03030303 | J131: =IF(OR('Tabel 1 S'!G131<5,'Tabel 2 S'!J131<0.5),"-",IFERROR('Tabel 2 S'!J131/'Tabel 1 S'!G131*100,"-")) -> 3.029736018
A132: Farmaceut | C132: =IF(OR('Tabel 1 S'!C132<5,'Tabel 2 S'!C132<0.5),"-",IFERROR('Tabel 2 S'!C132/'Tabel 1 S'!C132*100,"-")) -> 10 | D132: =IF(OR('Tabel 1 S'!C132<5,'Tabel 2 S'!D132<0.5),"-",IFERROR('Tabel 2 S'!D132/'Tabel 1 S'!C132*100,"-")) -> 6.767292459 | F132: =IF(OR('Tabel 1 S'!E132<5,'Tabel 2 S'!F132<0.5),"-",IFERROR('Tabel 2 S'!F132/'Tabel 1 S'!E132*100,"-")) -> - | G132: =IF(OR('Tabel 1 S'!E132<5,'Tabel 2 S'!G132<0.5),"-",IFERROR('Tabel 2 S'!G132/'Tabel 1 S'!E132*100,"-")) -> - | I132: =IF(OR('Tabel 1 S'!G132<5,'Tabel 2 S'!I132<0.5),"-",IFERROR('Tabel 2 S'!I132/'Tabel 1 S'!G132*100,"-")) -> 2.040816327 | J132: =IF(OR('Tabel 1 S'!G132<5,'Tabel 2 S'!J132<0.5),"-",IFERROR('Tabel 2 S'!J132/'Tabel 1 S'!G132*100,"-")) -> 1.381080094
A133: Læge | C133: =IF(OR('Tabel 1 S'!C133<5,'Tabel 2 S'!C133<0.5),"-",IFERROR('Tabel 2 S'!C133/'Tabel 1 S'!C133*100,"-")) -> 4.347826087 | D133: =IF(OR('Tabel 1 S'!C133<5,'Tabel 2 S'!D133<0.5),"-",IFERROR('Tabel 2 S'!D133/'Tabel 1 S'!C133*100,"-")) -> - | F133: =IF(OR('Tabel 1 S'!E133<5,'Tabel 2 S'!F133<0.5),"-",IFERROR('Tabel 2 S'!F133/'Tabel 1 S'!E133*100,"-")) -> 3.03030303 | G133: =IF(OR('Tabel 1 S'!E133<5,'Tabel 2 S'!G133<0.5),"-",IFERROR('Tabel 2 S'!G133/'Tabel 1 S'!E133*100,"-")) -> - | I133: =IF(OR('Tabel 1 S'!G133<5,'Tabel 2 S'!I133<0.5),"-",IFERROR('Tabel 2 S'!I133/'Tabel 1 S'!G133*100,"-")) -> 3.571428571 | J133: =IF(OR('Tabel 1 S'!G133<5,'Tabel 2 S'!J133<0.5),"-",IFERROR('Tabel 2 S'!J133/'Tabel 1 S'!G133*100,"-")) -> -
A134: Tandlæge | C134: =IF(OR('Tabel 1 S'!C134<5,'Tabel 2 S'!C134<0.5),"-",IFERROR('Tabel 2 S'!C134/'Tabel 1 S'!C134*100,"-")) -> - | D134: =IF(OR('Tabel 1 S'!C134<5,'Tabel 2 S'!D134<0.5),"-",IFERROR('Tabel 2 S'!D134/'Tabel 1 S'!C134*100,"-")) -> - | F134: =IF(OR('Tabel 1 S'!E134<5,'Tabel 2 S'!F134<0.5),"-",IFERROR('Tabel 2 S'!F134/'Tabel 1 S'!E134*100,"-")) -> - | G134: =IF(OR('Tabel 1 S'!E134<5,'Tabel 2 S'!G134<0.5),"-",IFERROR('Tabel 2 S'!G134/'Tabel 1 S'!E134*100,"-")) -> - | I134: =IF(OR('Tabel 1 S'!G134<5,'Tabel 2 S'!I134<0.5),"-",IFERROR('Tabel 2 S'!I134/'Tabel 1 S'!G134*100,"-")) -> - | J134: =IF(OR('Tabel 1 S'!G134<5,'Tabel 2 S'!J134<0.5),"-",IFERROR('Tabel 2 S'!J134/'Tabel 1 S'!G134*100,"-")) -> -
A135: Arkitekt | C135: =IF(OR('Tabel 1 S'!C135<5,'Tabel 2 S'!C135<0.5),"-",IFERROR('Tabel 2 S'!C135/'Tabel 1 S'!C135*100,"-")) -> - | D135: =IF(OR('Tabel 1 S'!C135<5,'Tabel 2 S'!D135<0.5),"-",IFERROR('Tabel 2 S'!D135/'Tabel 1 S'!C135*100,"-")) -> - | F135: =IF(OR('Tabel 1 S'!E135<5,'Tabel 2 S'!F135<0.5),"-",IFERROR('Tabel 2 S'!F135/'Tabel 1 S'!E135*100,"-")) -> - | G135: =IF(OR('Tabel 1 S'!E135<5,'Tabel 2 S'!G135<0.5),"-",IFERROR('Tabel 2 S'!G135/'Tabel 1 S'!E135*100,"-")) -> - | I135: =IF(OR('Tabel 1 S'!G135<5,'Tabel 2 S'!I135<0.5),"-",IFERROR('Tabel 2 S'!I135/'Tabel 1 S'!G135*100,"-")) -> - | J135: =IF(OR('Tabel 1 S'!G135<5,'Tabel 2 S'!J135<0.5),"-",IFERROR('Tabel 2 S'!J135/'Tabel 1 S'!G135*100,"-")) -> -
A136: Landinspek. | C136: =IF(OR('Tabel 1 S'!C136<5,'Tabel 2 S'!C136<0.5),"-",IFERROR('Tabel 2 S'!C136/'Tabel 1 S'!C136*100,"-")) -> - | D136: =IF(OR('Tabel 1 S'!C136<5,'Tabel 2 S'!D136<0.5),"-",IFERROR('Tabel 2 S'!D136/'Tabel 1 S'!C136*100,"-")) -> - | F136: =IF(OR('Tabel 1 S'!E136<5,'Tabel 2 S'!F136<0.5),"-",IFERROR('Tabel 2 S'!F136/'Tabel 1 S'!E136*100,"-")) -> - | G136: =IF(OR('Tabel 1 S'!E136<5,'Tabel 2 S'!G136<0.5),"-",IFERROR('Tabel 2 S'!G136/'Tabel 1 S'!E136*100,"-")) -> - | I136: =IF(OR('Tabel 1 S'!G136<5,'Tabel 2 S'!I136<0.5),"-",IFERROR('Tabel 2 S'!I136/'Tabel 1 S'!G136*100,"-")) -> - | J136: =IF(OR('Tabel 1 S'!G136<5,'Tabel 2 S'!J136<0.5),"-",IFERROR('Tabel 2 S'!J136/'Tabel 1 S'!G136*100,"-")) -> -
A137: Bibliotekar | C137: =IF(OR('Tabel 1 S'!C137<5,'Tabel 2 S'!C137<0.5),"-",IFERROR('Tabel 2 S'!C137/'Tabel 1 S'!C137*100,"-")) -> - | D137: =IF(OR('Tabel 1 S'!C137<5,'Tabel 2 S'!D137<0.5),"-",IFERROR('Tabel 2 S'!D137/'Tabel 1 S'!C137*100,"-")) -> - | F137: =IF(OR('Tabel 1 S'!E137<5,'Tabel 2 S'!F137<0.5),"-",IFERROR('Tabel 2 S'!F137/'Tabel 1 S'!E137*100,"-")) -> 11.53846154 | G137: =IF(OR('Tabel 1 S'!E137<5,'Tabel 2 S'!G137<0.5),"-",IFERROR('Tabel 2 S'!G137/'Tabel 1 S'!E137*100,"-")) -> 8.288194061 | I137: =IF(OR('Tabel 1 S'!G137<5,'Tabel 2 S'!I137<0.5),"-",IFERROR('Tabel 2 S'!I137/'Tabel 1 S'!G137*100,"-")) -> 10.71428571 | J137: =IF(OR('Tabel 1 S'!G137<5,'Tabel 2 S'!J137<0.5),"-",IFERROR('Tabel 2 S'!J137/'Tabel 1 S'!G137*100,"-")) -> 7.6961802
A138: Musikudd. | C138: =IF(OR('Tabel 1 S'!C138<5,'Tabel 2 S'!C138<0.5),"-",IFERROR('Tabel 2 S'!C138/'Tabel 1 S'!C138*100,"-")) -> - | D138: =IF(OR('Tabel 1 S'!C138<5,'Tabel 2 S'!D138<0.5),"-",IFERROR('Tabel 2 S'!D138/'Tabel 1 S'!C138*100,"-")) -> - | F138: =IF(OR('Tabel 1 S'!E138<5,'Tabel 2 S'!F138<0.5),"-",IFERROR('Tabel 2 S'!F138/'Tabel 1 S'!E138*100,"-")) -> - | G138: =IF(OR('Tabel 1 S'!E138<5,'Tabel 2 S'!G138<0.5),"-",IFERROR('Tabel 2 S'!G138/'Tabel 1 S'!E138*100,"-")) -> - | I138: =IF(OR('Tabel 1 S'!G138<5,'Tabel 2 S'!I138<0.5),"-",IFERROR('Tabel 2 S'!I138/'Tabel 1 S'!G138*100,"-")) -> - | J138: =IF(OR('Tabel 1 S'!G138<5,'Tabel 2 S'!J138<0.5),"-",IFERROR('Tabel 2 S'!J138/'Tabel 1 S'!G138*100,"-")) -> -
A139: Teolog | C139: =IF(OR('Tabel 1 S'!C139<5,'Tabel 2 S'!C139<0.5),"-",IFERROR('Tabel 2 S'!C139/'Tabel 1 S'!C139*100,"-")) -> - | D139: =IF(OR('Tabel 1 S'!C139<5,'Tabel 2 S'!D139<0.5),"-",IFERROR('Tabel 2 S'!D139/'Tabel 1 S'!C139*100,"-")) -> - | F139: =IF(OR('Tabel 1 S'!E139<5,'Tabel 2 S'!F139<0.5),"-",IFERROR('Tabel 2 S'!F139/'Tabel 1 S'!E139*100,"-")) -> - | G139: =IF(OR('Tabel 1 S'!E139<5,'Tabel 2 S'!G139<0.5),"-",IFERROR('Tabel 2 S'!G139/'Tabel 1 S'!E139*100,"-")) -> - | I139: =IF(OR('Tabel 1 S'!G139<5,'Tabel 2 S'!I139<0.5),"-",IFERROR('Tabel 2 S'!I139/'Tabel 1 S'!G139*100,"-")) -> - | J139: =IF(OR('Tabel 1 S'!G139<5,'Tabel 2 S'!J139<0.5),"-",IFERROR('Tabel 2 S'!J139/'Tabel 1 S'!G139*100,"-")) -> -
A140: Psykolog | C140: =IF(OR('Tabel 1 S'!C140<5,'Tabel 2 S'!C140<0.5),"-",IFERROR('Tabel 2 S'!C140/'Tabel 1 S'!C140*100,"-")) -> 12.5 | D140: =IF(OR('Tabel 1 S'!C140<5,'Tabel 2 S'!D140<0.5),"-",IFERROR('Tabel 2 S'!D140/'Tabel 1 S'!C140*100,"-")) -> 11.34379093 | F140: =IF(OR('Tabel 1 S'!E140<5,'Tabel 2 S'!F140<0.5),"-",IFERROR('Tabel 2 S'!F140/'Tabel 1 S'!E140*100,"-")) -> 10.20408163 | G140: =IF(OR('Tabel 1 S'!E140<5,'Tabel 2 S'!G140<0.5),"-",IFERROR('Tabel 2 S'!G140/'Tabel 1 S'!E140*100,"-")) -> 7.144702826 | I140: =IF(OR('Tabel 1 S'!G140<5,'Tabel 2 S'!I140<0.5),"-",IFERROR('Tabel 2 S'!I140/'Tabel 1 S'!G140*100,"-")) -> 10.52631579 | J140: =IF(OR('Tabel 1 S'!G140<5,'Tabel 2 S'!J140<0.5),"-",IFERROR('Tabel 2 S'!J140/'Tabel 1 S'!G140*100,"-")) -> 7.734048525
A141: Jurist | C141: =IF(OR('Tabel 1 S'!C141<5,'Tabel 2 S'!C141<0.5),"-",IFERROR('Tabel 2 S'!C141/'Tabel 1 S'!C141*100,"-")) -> 10 | D141: =IF(OR('Tabel 1 S'!C141<5,'Tabel 2 S'!D141<0.5),"-",IFERROR('Tabel 2 S'!D141/'Tabel 1 S'!C141*100,"-")) -> 6.178922639 | F141: =IF(OR('Tabel 1 S'!E141<5,'Tabel 2 S'!F141<0.5),"-",IFERROR('Tabel 2 S'!F141/'Tabel 1 S'!E141*100,"-")) -> 2.325581395 | G141: =IF(OR('Tabel 1 S'!E141<5,'Tabel 2 S'!G141<0.5),"-",IFERROR('Tabel 2 S'!G141/'Tabel 1 S'!E141*100,"-")) -> 1.520120565 | I141: =IF(OR('Tabel 1 S'!G141<5,'Tabel 2 S'!I141<0.5),"-",IFERROR('Tabel 2 S'!I141/'Tabel 1 S'!G141*100,"-")) -> 4.310344828 | J141: =IF(OR('Tabel 1 S'!G141<5,'Tabel 2 S'!J141<0.5),"-",IFERROR('Tabel 2 S'!J141/'Tabel 1 S'!G141*100,"-")) -> 2.72498317
A142: Økonom | C142: =IF(OR('Tabel 1 S'!C142<5,'Tabel 2 S'!C142<0.5),"-",IFERROR('Tabel 2 S'!C142/'Tabel 1 S'!C142*100,"-")) -> 4.444444444 | D142: =IF(OR('Tabel 1 S'!C142<5,'Tabel 2 S'!D142<0.5),"-",IFERROR('Tabel 2 S'!D142/'Tabel 1 S'!C142*100,"-")) -> 2.905119303 | F142: =IF(OR('Tabel 1 S'!E142<5,'Tabel 2 S'!F142<0.5),"-",IFERROR('Tabel 2 S'!F142/'Tabel 1 S'!E142*100,"-")) -> - | G142: =IF(OR('Tabel 1 S'!E142<5,'Tabel 2 S'!G142<0.5),"-",IFERROR('Tabel 2 S'!G142/'Tabel 1 S'!E142*100,"-")) -> - | I142: =IF(OR('Tabel 1 S'!G142<5,'Tabel 2 S'!I142<0.5),"-",IFERROR('Tabel 2 S'!I142/'Tabel 1 S'!G142*100,"-")) -> 2.666666667 | J142: =IF(OR('Tabel 1 S'!G142<5,'Tabel 2 S'!J142<0.5),"-",IFERROR('Tabel 2 S'!J142/'Tabel 1 S'!G142*100,"-")) -> 1.743071582
A143: Samf. Adm. | C143: =IF(OR('Tabel 1 S'!C143<5,'Tabel 2 S'!C143<0.5),"-",IFERROR('Tabel 2 S'!C143/'Tabel 1 S'!C143*100,"-")) -> 4.615384615 | D143: =IF(OR('Tabel 1 S'!C143<5,'Tabel 2 S'!D143<0.5),"-",IFERROR('Tabel 2 S'!D143/'Tabel 1 S'!C143*100,"-")) -> 4.259484045 | F143: =IF(OR('Tabel 1 S'!E143<5,'Tabel 2 S'!F143<0.5),"-",IFERROR('Tabel 2 S'!F143/'Tabel 1 S'!E143*100,"-")) -> 2.884615385 | G143: =IF(OR('Tabel 1 S'!E143<5,'Tabel 2 S'!G143<0.5),"-",IFERROR('Tabel 2 S'!G143/'Tabel 1 S'!E143*100,"-")) -> 2.884075632 | I143: =IF(OR('Tabel 1 S'!G143<5,'Tabel 2 S'!I143<0.5),"-",IFERROR('Tabel 2 S'!I143/'Tabel 1 S'!G143*100,"-")) -> 3.550295858 | J143: =IF(OR('Tabel 1 S'!G143<5,'Tabel 2 S'!J143<0.5),"-",IFERROR('Tabel 2 S'!J143/'Tabel 1 S'!G143*100,"-")) -> 3.413078868
A144: Cand. Merc. | C144: =IF(OR('Tabel 1 S'!C144<5,'Tabel 2 S'!C144<0.5),"-",IFERROR('Tabel 2 S'!C144/'Tabel 1 S'!C144*100,"-")) -> 4.310344828 | D144: =IF(OR('Tabel 1 S'!C144<5,'Tabel 2 S'!D144<0.5),"-",IFERROR('Tabel 2 S'!D144/'Tabel 1 S'!C144*100,"-")) -> 4.099841491 | F144: =IF(OR('Tabel 1 S'!E144<5,'Tabel 2 S'!F144<0.5),"-",IFERROR('Tabel 2 S'!F144/'Tabel 1 S'!E144*100,"-")) -> 4.651162791 | G144: =IF(OR('Tabel 1 S'!E144<5,'Tabel 2 S'!G144<0.5),"-",IFERROR('Tabel 2 S'!G144/'Tabel 1 S'!E144*100,"-")) -> 2.707593882 | I144: =IF(OR('Tabel 1 S'!G144<5,'Tabel 2 S'!I144<0.5),"-",IFERROR('Tabel 2 S'!I144/'Tabel 1 S'!G144*100,"-")) -> 4.489795918 | J144: =IF(OR('Tabel 1 S'!G144<5,'Tabel 2 S'!J144<0.5),"-",IFERROR('Tabel 2 S'!J144/'Tabel 1 S'!G144*100,"-")) -> 3.366780505
A145: HA | C145: =IF(OR('Tabel 1 S'!C145<5,'Tabel 2 S'!C145<0.5),"-",IFERROR('Tabel 2 S'!C145/'Tabel 1 S'!C145*100,"-")) -> 4 | D145: =IF(OR('Tabel 1 S'!C145<5,'Tabel 2 S'!D145<0.5),"-",IFERROR('Tabel 2 S'!D145/'Tabel 1 S'!C145*100,"-")) -> 3.999251544 | F145: =IF(OR('Tabel 1 S'!E145<5,'Tabel 2 S'!F145<0.5),"-",IFERROR('Tabel 2 S'!F145/'Tabel 1 S'!E145*100,"-")) -> 8.695652174 | G145: =IF(OR('Tabel 1 S'!E145<5,'Tabel 2 S'!G145<0.5),"-",IFERROR('Tabel 2 S'!G145/'Tabel 1 S'!E145*100,"-")) -> 8.694025095 | I145: =IF(OR('Tabel 1 S'!G145<5,'Tabel 2 S'!I145<0.5),"-",IFERROR('Tabel 2 S'!I145/'Tabel 1 S'!G145*100,"-")) -> 6.25 | J145: =IF(OR('Tabel 1 S'!G145<5,'Tabel 2 S'!J145<0.5),"-",IFERROR('Tabel 2 S'!J145/'Tabel 1 S'!G145*100,"-")) -> 6.248830537
A146: HD | C146: =IF(OR('Tabel 1 S'!C146<5,'Tabel 2 S'!C146<0.5),"-",IFERROR('Tabel 2 S'!C146/'Tabel 1 S'!C146*100,"-")) -> - | D146: =IF(OR('Tabel 1 S'!C146<5,'Tabel 2 S'!D146<0.5),"-",IFERROR('Tabel 2 S'!D146/'Tabel 1 S'!C146*100,"-")) -> - | F146: =IF(OR('Tabel 1 S'!E146<5,'Tabel 2 S'!F146<0.5),"-",IFERROR('Tabel 2 S'!F146/'Tabel 1 S'!E146*100,"-")) -> - | G146: =IF(OR('Tabel 1 S'!E146<5,'Tabel 2 S'!G146<0.5),"-",IFERROR('Tabel 2 S'!G146/'Tabel 1 S'!E146*100,"-")) -> - | I146: =IF(OR('Tabel 1 S'!G146<5,'Tabel 2 S'!I146<0.5),"-",IFERROR('Tabel 2 S'!I146/'Tabel 1 S'!G146*100,"-")) -> - | J146: =IF(OR('Tabel 1 S'!G146<5,'Tabel 2 S'!J146<0.5),"-",IFERROR('Tabel 2 S'!J146/'Tabel 1 S'!G146*100,"-")) -> -
A147: Komm. og Sprog | C147: =IF(OR('Tabel 1 S'!C147<5,'Tabel 2 S'!C147<0.5),"-",IFERROR('Tabel 2 S'!C147/'Tabel 1 S'!C147*100,"-")) -> 28.57142857 | D147: =IF(OR('Tabel 1 S'!C147<5,'Tabel 2 S'!D147<0.5),"-",IFERROR('Tabel 2 S'!D147/'Tabel 1 S'!C147*100,"-")) -> 23.71893684 | F147: =IF(OR('Tabel 1 S'!E147<5,'Tabel 2 S'!F147<0.5),"-",IFERROR('Tabel 2 S'!F147/'Tabel 1 S'!E147*100,"-")) -> 3.571428571 | G147: =IF(OR('Tabel 1 S'!E147<5,'Tabel 2 S'!G147<0.5),"-",IFERROR('Tabel 2 S'!G147/'Tabel 1 S'!E147*100,"-")) -> 2.252051572 | I147: =IF(OR('Tabel 1 S'!G147<5,'Tabel 2 S'!I147<0.5),"-",IFERROR('Tabel 2 S'!I147/'Tabel 1 S'!G147*100,"-")) -> 6.349206349 | J147: =IF(OR('Tabel 1 S'!G147<5,'Tabel 2 S'!J147<0.5),"-",IFERROR('Tabel 2 S'!J147/'Tabel 1 S'!G147*100,"-")) -> 4.637261046
A148: Bygningskonst. | C148: =IF(OR('Tabel 1 S'!C148<5,'Tabel 2 S'!C148<0.5),"-",IFERROR('Tabel 2 S'!C148/'Tabel 1 S'!C148*100,"-")) -> 1.234567901 | D148: =IF(OR('Tabel 1 S'!C148<5,'Tabel 2 S'!D148<0.5),"-",IFERROR('Tabel 2 S'!D148/'Tabel 1 S'!C148*100,"-")) -> 1.234567901 | F148: =IF(OR('Tabel 1 S'!E148<5,'Tabel 2 S'!F148<0.5),"-",IFERROR('Tabel 2 S'!F148/'Tabel 1 S'!E148*100,"-")) -> 6.25 | G148: =IF(OR('Tabel 1 S'!E148<5,'Tabel 2 S'!G148<0.5),"-",IFERROR('Tabel 2 S'!G148/'Tabel 1 S'!E148*100,"-")) -> - | I148: =IF(OR('Tabel 1 S'!G148<5,'Tabel 2 S'!I148<0.5),"-",IFERROR('Tabel 2 S'!I148/'Tabel 1 S'!G148*100,"-")) -> 2.06185567 | J148: =IF(OR('Tabel 1 S'!G148<5,'Tabel 2 S'!J148<0.5),"-",IFERROR('Tabel 2 S'!J148/'Tabel 1 S'!G148*100,"-")) -> 1.490868383
A149: Cand. IT. | C149: =IF(OR('Tabel 1 S'!C149<5,'Tabel 2 S'!C149<0.5),"-",IFERROR('Tabel 2 S'!C149/'Tabel 1 S'!C149*100,"-")) -> 14.28571429 | D149: =IF(OR('Tabel 1 S'!C149<5,'Tabel 2 S'!D149<0.5),"-",IFERROR('Tabel 2 S'!D149/'Tabel 1 S'!C149*100,"-")) -> 14.28304123 | F149: =IF(OR('Tabel 1 S'!E149<5,'Tabel 2 S'!F149<0.5),"-",IFERROR('Tabel 2 S'!F149/'Tabel 1 S'!E149*100,"-")) -> 12.5 | G149: =IF(OR('Tabel 1 S'!E149<5,'Tabel 2 S'!G149<0.5),"-",IFERROR('Tabel 2 S'!G149/'Tabel 1 S'!E149*100,"-")) -> 12.49766107 | I149: =IF(OR('Tabel 1 S'!G149<5,'Tabel 2 S'!I149<0.5),"-",IFERROR('Tabel 2 S'!I149/'Tabel 1 S'!G149*100,"-")) -> 13.79310345 | J149: =IF(OR('Tabel 1 S'!G149<5,'Tabel 2 S'!J149<0.5),"-",IFERROR('Tabel 2 S'!J149/'Tabel 1 S'!G149*100,"-")) -> 13.79052256
A150: Bac. Samf. | C150: =IF(OR('Tabel 1 S'!C150<5,'Tabel 2 S'!C150<0.5),"-",IFERROR('Tabel 2 S'!C150/'Tabel 1 S'!C150*100,"-")) -> - | D150: =IF(OR('Tabel 1 S'!C150<5,'Tabel 2 S'!D150<0.5),"-",IFERROR('Tabel 2 S'!D150/'Tabel 1 S'!C150*100,"-")) -> - | F150: =IF(OR('Tabel 1 S'!E150<5,'Tabel 2 S'!F150<0.5),"-",IFERROR('Tabel 2 S'!F150/'Tabel 1 S'!E150*100,"-")) -> - | G150: =IF(OR('Tabel 1 S'!E150<5,'Tabel 2 S'!G150<0.5),"-",IFERROR('Tabel 2 S'!G150/'Tabel 1 S'!E150*100,"-")) -> - | I150: =IF(OR('Tabel 1 S'!G150<5,'Tabel 2 S'!I150<0.5),"-",IFERROR('Tabel 2 S'!I150/'Tabel 1 S'!G150*100,"-")) -> - | J150: =IF(OR('Tabel 1 S'!G150<5,'Tabel 2 S'!J150<0.5),"-",IFERROR('Tabel 2 S'!J150/'Tabel 1 S'!G150*100,"-")) -> -
A151: Bac. Hum. | C151: =IF(OR('Tabel 1 S'!C151<5,'Tabel 2 S'!C151<0.5),"-",IFERROR('Tabel 2 S'!C151/'Tabel 1 S'!C151*100,"-")) -> 20 | D151: =IF(OR('Tabel 1 S'!C151<5,'Tabel 2 S'!D151<0.5),"-",IFERROR('Tabel 2 S'!D151/'Tabel 1 S'!C151*100,"-")) -> 19.99625772 | F151: =IF(OR('Tabel 1 S'!E151<5,'Tabel 2 S'!F151<0.5),"-",IFERROR('Tabel 2 S'!F151/'Tabel 1 S'!E151*100,"-")) -> 5 | G151: =IF(OR('Tabel 1 S'!E151<5,'Tabel 2 S'!G151<0.5),"-",IFERROR('Tabel 2 S'!G151/'Tabel 1 S'!E151*100,"-")) -> 4.99906443 | I151: =IF(OR('Tabel 1 S'!G151<5,'Tabel 2 S'!I151<0.5),"-",IFERROR('Tabel 2 S'!I151/'Tabel 1 S'!G151*100,"-")) -> 8 | J151: =IF(OR('Tabel 1 S'!G151<5,'Tabel 2 S'!J151<0.5),"-",IFERROR('Tabel 2 S'!J151/'Tabel 1 S'!G151*100,"-")) -> 7.998503087
A152: Bac. Nat. | C152: =IF(OR('Tabel 1 S'!C152<5,'Tabel 2 S'!C152<0.5),"-",IFERROR('Tabel 2 S'!C152/'Tabel 1 S'!C152*100,"-")) -> 16.66666667 | D152: =IF(OR('Tabel 1 S'!C152<5,'Tabel 2 S'!D152<0.5),"-",IFERROR('Tabel 2 S'!D152/'Tabel 1 S'!C152*100,"-")) -> 16.6635481 | F152: =IF(OR('Tabel 1 S'!E152<5,'Tabel 2 S'!F152<0.5),"-",IFERROR('Tabel 2 S'!F152/'Tabel 1 S'!E152*100,"-")) -> 10 | G152: =IF(OR('Tabel 1 S'!E152<5,'Tabel 2 S'!G152<0.5),"-",IFERROR('Tabel 2 S'!G152/'Tabel 1 S'!E152*100,"-")) -> 9.998128859 | I152: =IF(OR('Tabel 1 S'!G152<5,'Tabel 2 S'!I152<0.5),"-",IFERROR('Tabel 2 S'!I152/'Tabel 1 S'!G152*100,"-")) -> 13.63636364 | J152: =IF(OR('Tabel 1 S'!G152<5,'Tabel 2 S'!J152<0.5),"-",IFERROR('Tabel 2 S'!J152/'Tabel 1 S'!G152*100,"-")) -> 13.63381208
A153: Andre | C153: =IF(OR('Tabel 1 S'!C153<5,'Tabel 2 S'!C153<0.5),"-",IFERROR('Tabel 2 S'!C153/'Tabel 1 S'!C153*100,"-")) -> 4.444444444 | D153: =IF(OR('Tabel 1 S'!C153<5,'Tabel 2 S'!D153<0.5),"-",IFERROR('Tabel 2 S'!D153/'Tabel 1 S'!C153*100,"-")) -> 4.341046591 | F153: =IF(OR('Tabel 1 S'!E153<5,'Tabel 2 S'!F153<0.5),"-",IFERROR('Tabel 2 S'!F153/'Tabel 1 S'!E153*100,"-")) -> 12.5 | G153: =IF(OR('Tabel 1 S'!E153<5,'Tabel 2 S'!G153<0.5),"-",IFERROR('Tabel 2 S'!G153/'Tabel 1 S'!E153*100,"-")) -> 8.807119407 | I153: =IF(OR('Tabel 1 S'!G153<5,'Tabel 2 S'!I153<0.5),"-",IFERROR('Tabel 2 S'!I153/'Tabel 1 S'!G153*100,"-")) -> 8.426966292 | J153: =IF(OR('Tabel 1 S'!G153<5,'Tabel 2 S'!J153<0.5),"-",IFERROR('Tabel 2 S'!J153/'Tabel 1 S'!G153*100,"-")) -> 6.548992703
A155: Total | C155: =IF(OR('Tabel 1 S'!C155<5,'Tabel 2 S'!C155<0.5),"-",IFERROR('Tabel 2 S'!C155/'Tabel 1 S'!C155*100,"-")) -> 4.203718674 | D155: =IF(OR('Tabel 1 S'!C155<5,'Tabel 2 S'!D155<0.5),"-",IFERROR('Tabel 2 S'!D155/'Tabel 1 S'!C155*100,"-")) -> 3.626932346 | F155: =IF(OR('Tabel 1 S'!E155<5,'Tabel 2 S'!F155<0.5),"-",IFERROR('Tabel 2 S'!F155/'Tabel 1 S'!E155*100,"-")) -> 5.460218409 | G155: =IF(OR('Tabel 1 S'!E155<5,'Tabel 2 S'!G155<0.5),"-",IFERROR('Tabel 2 S'!G155/'Tabel 1 S'!E155*100,"-")) -> 4.256251707 | I155: =IF(OR('Tabel 1 S'!G155<5,'Tabel 2 S'!I155<0.5),"-",IFERROR('Tabel 2 S'!I155/'Tabel 1 S'!G155*100,"-")) -> 4.843191743 | J155: =IF(OR('Tabel 1 S'!G155<5,'Tabel 2 S'!J155<0.5),"-",IFERROR('Tabel 2 S'!J155/'Tabel 1 S'!G155*100,"-")) -> 3.94721318
A157: Ingeniører i alt | C157: =IF(OR('Tabel 1 S'!C157<5,'Tabel 2 S'!C157<0.5),"-",IFERROR('Tabel 2 S'!C157/'Tabel 1 S'!C157*100,"-")) -> 1.372997712 | D157: =IF(OR('Tabel 1 S'!C157<5,'Tabel 2 S'!D157<0.5),"-",IFERROR('Tabel 2 S'!D157/'Tabel 1 S'!C157*100,"-")) -> 1.092141052 | F157: =IF(OR('Tabel 1 S'!E157<5,'Tabel 2 S'!F157<0.5),"-",IFERROR('Tabel 2 S'!F157/'Tabel 1 S'!E157*100,"-")) -> 0.826446281 | G157: =IF(OR('Tabel 1 S'!E157<5,'Tabel 2 S'!G157<0.5),"-",IFERROR('Tabel 2 S'!G157/'Tabel 1 S'!E157*100,"-")) -> 0.4448469659 | I157: =IF(OR('Tabel 1 S'!G157<5,'Tabel 2 S'!I157<0.5),"-",IFERROR('Tabel 2 S'!I157/'Tabel 1 S'!G157*100,"-")) -> 1.254480287 | J157: =IF(OR('Tabel 1 S'!G157<5,'Tabel 2 S'!J157<0.5),"-",IFERROR('Tabel 2 S'!J157/'Tabel 1 S'!G157*100,"-")) -> 0.9517779973
A158: Magistre i alt | C158: =IF(OR('Tabel 1 S'!C158<5,'Tabel 2 S'!C158<0.5),"-",IFERROR('Tabel 2 S'!C158/'Tabel 1 S'!C158*100,"-")) -> 7.03125 | D158: =IF(OR('Tabel 1 S'!C158<5,'Tabel 2 S'!D158<0.5),"-",IFERROR('Tabel 2 S'!D158/'Tabel 1 S'!C158*100,"-")) -> 6.442766482 | F158: =IF(OR('Tabel 1 S'!E158<5,'Tabel 2 S'!F158<0.5),"-",IFERROR('Tabel 2 S'!F158/'Tabel 1 S'!E158*100,"-")) -> 9.594095941 | G158: =IF(OR('Tabel 1 S'!E158<5,'Tabel 2 S'!G158<0.5),"-",IFERROR('Tabel 2 S'!G158/'Tabel 1 S'!E158*100,"-")) -> 8.06431753 | I158: =IF(OR('Tabel 1 S'!G158<5,'Tabel 2 S'!I158<0.5),"-",IFERROR('Tabel 2 S'!I158/'Tabel 1 S'!G158*100,"-")) -> 8.771929825 | J158: =IF(OR('Tabel 1 S'!G158<5,'Tabel 2 S'!J158<0.5),"-",IFERROR('Tabel 2 S'!J158/'Tabel 1 S'!G158*100,"-")) -> 7.544120702
A159: DJØF'ere i alt | C159: =IF(OR('Tabel 1 S'!C159<5,'Tabel 2 S'!C159<0.5),"-",IFERROR('Tabel 2 S'!C159/'Tabel 1 S'!C159*100,"-")) -> 4.982206406 | D159: =IF(OR('Tabel 1 S'!C159<5,'Tabel 2 S'!D159<0.5),"-",IFERROR('Tabel 2 S'!D159/'Tabel 1 S'!C159*100,"-")) -> 4.158460542 | F159: =IF(OR('Tabel 1 S'!E159<5,'Tabel 2 S'!F159<0.5),"-",IFERROR('Tabel 2 S'!F159/'Tabel 1 S'!E159*100,"-")) -> 3.494623656 | G159: =IF(OR('Tabel 1 S'!E159<5,'Tabel 2 S'!G159<0.5),"-",IFERROR('Tabel 2 S'!G159/'Tabel 1 S'!E159*100,"-")) -> 2.634183931 | I159: =IF(OR('Tabel 1 S'!G159<5,'Tabel 2 S'!I159<0.5),"-",IFERROR('Tabel 2 S'!I159/'Tabel 1 S'!G159*100,"-")) -> 4.134762634 | J159: =IF(OR('Tabel 1 S'!G159<5,'Tabel 2 S'!J159<0.5),"-",IFERROR('Tabel 2 S'!J159/'Tabel 1 S'!G159*100,"-")) -> 3.29011307
A164: ='Tabel 2 S'!A164 -> Roskilde
C166: Mænd | F166: Kvinder | I166: I alt
C167: Ledigheds- berørte | D167: Gns. brutto- ledighed | F167: Ledigheds- berørte | G167: Gns. brutto- ledighed | I167: Ledigheds- berørte | J167: Gns. brutto- ledighed
A170: Civ. ing. | C170: =IF(OR('Tabel 1 S'!C170<5,'Tabel 2 S'!C170<0.5),"-",IFERROR('Tabel 2 S'!C170/'Tabel 1 S'!C170*100,"-")) -> 1.711026616 | D170: =IF(OR('Tabel 1 S'!C170<5,'Tabel 2 S'!D170<0.5),"-",IFERROR('Tabel 2 S'!D170/'Tabel 1 S'!C170*100,"-")) -> 1.262367849 | F170: =IF(OR('Tabel 1 S'!E170<5,'Tabel 2 S'!F170<0.5),"-",IFERROR('Tabel 2 S'!F170/'Tabel 1 S'!E170*100,"-")) -> 2.551020408 | G170: =IF(OR('Tabel 1 S'!E170<5,'Tabel 2 S'!G170<0.5),"-",IFERROR('Tabel 2 S'!G170/'Tabel 1 S'!E170*100,"-")) -> 1.632156636 | I170: =IF(OR('Tabel 1 S'!G170<5,'Tabel 2 S'!I170<0.5),"-",IFERROR('Tabel 2 S'!I170/'Tabel 1 S'!G170*100,"-")) -> 1.939058172 | J170: =IF(OR('Tabel 1 S'!G170<5,'Tabel 2 S'!J170<0.5),"-",IFERROR('Tabel 2 S'!J170/'Tabel 1 S'!G170*100,"-")) -> 1.362753725
A171: Diplom ing. | C171: =IF(OR('Tabel 1 S'!C171<5,'Tabel 2 S'!C171<0.5),"-",IFERROR('Tabel 2 S'!C171/'Tabel 1 S'!C171*100,"-")) -> 2.816901408 | D171: =IF(OR('Tabel 1 S'!C171<5,'Tabel 2 S'!D171<0.5),"-",IFERROR('Tabel 2 S'!D171/'Tabel 1 S'!C171*100,"-")) -> 2.508324234 | F171: =IF(OR('Tabel 1 S'!E171<5,'Tabel 2 S'!F171<0.5),"-",IFERROR('Tabel 2 S'!F171/'Tabel 1 S'!E171*100,"-")) -> 3.468208092 | G171: =IF(OR('Tabel 1 S'!E171<5,'Tabel 2 S'!G171<0.5),"-",IFERROR('Tabel 2 S'!G171/'Tabel 1 S'!E171*100,"-")) -> 2.705042238 | I171: =IF(OR('Tabel 1 S'!G171<5,'Tabel 2 S'!I171<0.5),"-",IFERROR('Tabel 2 S'!I171/'Tabel 1 S'!G171*100,"-")) -> 2.955665025 | J171: =IF(OR('Tabel 1 S'!G171<5,'Tabel 2 S'!J171<0.5),"-",IFERROR('Tabel 2 S'!J171/'Tabel 1 S'!G171*100,"-")) -> 2.550235828
A172: Cand. Scient. Tek. | C172: =IF(OR('Tabel 1 S'!C172<5,'Tabel 2 S'!C172<0.5),"-",IFERROR('Tabel 2 S'!C172/'Tabel 1 S'!C172*100,"-")) -> 4.444444444 | D172: =IF(OR('Tabel 1 S'!C172<5,'Tabel 2 S'!D172<0.5),"-",IFERROR('Tabel 2 S'!D172/'Tabel 1 S'!C172*100,"-")) -> 3.885042655 | F172: =IF(OR('Tabel 1 S'!E172<5,'Tabel 2 S'!F172<0.5),"-",IFERROR('Tabel 2 S'!F172/'Tabel 1 S'!E172*100,"-")) -> 6.024096386 | G172: =IF(OR('Tabel 1 S'!E172<5,'Tabel 2 S'!G172<0.5),"-",IFERROR('Tabel 2 S'!G172/'Tabel 1 S'!E172*100,"-")) -> 5.760708899 | I172: =IF(OR('Tabel 1 S'!G172<5,'Tabel 2 S'!I172<0.5),"-",IFERROR('Tabel 2 S'!I172/'Tabel 1 S'!G172*100,"-")) -> 5.202312139 | J172: =IF(OR('Tabel 1 S'!G172<5,'Tabel 2 S'!J172<0.5),"-",IFERROR('Tabel 2 S'!J172/'Tabel 1 S'!G172*100,"-")) -> 4.784928772
A173: MA. Hum. | C173: =IF(OR('Tabel 1 S'!C173<5,'Tabel 2 S'!C173<0.5),"-",IFERROR('Tabel 2 S'!C173/'Tabel 1 S'!C173*100,"-")) -> 8.333333333 | D173: =IF(OR('Tabel 1 S'!C173<5,'Tabel 2 S'!D173<0.5),"-",IFERROR('Tabel 2 S'!D173/'Tabel 1 S'!C173*100,"-")) -> 6.914193423 | F173: =IF(OR('Tabel 1 S'!E173<5,'Tabel 2 S'!F173<0.5),"-",IFERROR('Tabel 2 S'!F173/'Tabel 1 S'!E173*100,"-")) -> 8.506616257 | G173: =IF(OR('Tabel 1 S'!E173<5,'Tabel 2 S'!G173<0.5),"-",IFERROR('Tabel 2 S'!G173/'Tabel 1 S'!E173*100,"-")) -> 6.874526393 | I173: =IF(OR('Tabel 1 S'!G173<5,'Tabel 2 S'!I173<0.5),"-",IFERROR('Tabel 2 S'!I173/'Tabel 1 S'!G173*100,"-")) -> 8.454425363 | J173: =IF(OR('Tabel 1 S'!G173<5,'Tabel 2 S'!J173<0.5),"-",IFERROR('Tabel 2 S'!J173/'Tabel 1 S'!G173*100,"-")) -> 6.886473663
A174: MA. Nat. | C174: =IF(OR('Tabel 1 S'!C174<5,'Tabel 2 S'!C174<0.5),"-",IFERROR('Tabel 2 S'!C174/'Tabel 1 S'!C174*100,"-")) -> 3.902439024 | D174: =IF(OR('Tabel 1 S'!C174<5,'Tabel 2 S'!D174<0.5),"-",IFERROR('Tabel 2 S'!D174/'Tabel 1 S'!C174*100,"-")) -> 3.343104846 | F174: =IF(OR('Tabel 1 S'!E174<5,'Tabel 2 S'!F174<0.5),"-",IFERROR('Tabel 2 S'!F174/'Tabel 1 S'!E174*100,"-")) -> 5.583756345 | G174: =IF(OR('Tabel 1 S'!E174<5,'Tabel 2 S'!G174<0.5),"-",IFERROR('Tabel 2 S'!G174/'Tabel 1 S'!E174*100,"-")) -> 3.843595427 | I174: =IF(OR('Tabel 1 S'!G174<5,'Tabel 2 S'!I174<0.5),"-",IFERROR('Tabel 2 S'!I174/'Tabel 1 S'!G174*100,"-")) -> 4.726368159 | J174: =IF(OR('Tabel 1 S'!G174<5,'Tabel 2 S'!J174<0.5),"-",IFERROR('Tabel 2 S'!J174/'Tabel 1 S'!G174*100,"-")) -> 3.588370131
A175: MA. Ph.d. | C175: =IF(OR('Tabel 1 S'!C175<5,'Tabel 2 S'!C175<0.5),"-",IFERROR('Tabel 2 S'!C175/'Tabel 1 S'!C175*100,"-")) -> 11.76470588 | D175: =IF(OR('Tabel 1 S'!C175<5,'Tabel 2 S'!D175<0.5),"-",IFERROR('Tabel 2 S'!D175/'Tabel 1 S'!C175*100,"-")) -> 9.689574077 | F175: =IF(OR('Tabel 1 S'!E175<5,'Tabel 2 S'!F175<0.5),"-",IFERROR('Tabel 2 S'!F175/'Tabel 1 S'!E175*100,"-")) -> - | G175: =IF(OR('Tabel 1 S'!E175<5,'Tabel 2 S'!G175<0.5),"-",IFERROR('Tabel 2 S'!G175/'Tabel 1 S'!E175*100,"-")) -> - | I175: =IF(OR('Tabel 1 S'!G175<5,'Tabel 2 S'!I175<0.5),"-",IFERROR('Tabel 2 S'!I175/'Tabel 1 S'!G175*100,"-")) -> 8 | J175: =IF(OR('Tabel 1 S'!G175<5,'Tabel 2 S'!J175<0.5),"-",IFERROR('Tabel 2 S'!J175/'Tabel 1 S'!G175*100,"-")) -> 6.588910372
A176: MA. Samf. | C176: =IF(OR('Tabel 1 S'!C176<5,'Tabel 2 S'!C176<0.5),"-",IFERROR('Tabel 2 S'!C176/'Tabel 1 S'!C176*100,"-")) -> 9.090909091 | D176: =IF(OR('Tabel 1 S'!C176<5,'Tabel 2 S'!D176<0.5),"-",IFERROR('Tabel 2 S'!D176/'Tabel 1 S'!C176*100,"-")) -> 8.564721625 | F176: =IF(OR('Tabel 1 S'!E176<5,'Tabel 2 S'!F176<0.5),"-",IFERROR('Tabel 2 S'!F176/'Tabel 1 S'!E176*100,"-")) -> 10.38961039 | G176: =IF(OR('Tabel 1 S'!E176<5,'Tabel 2 S'!G176<0.5),"-",IFERROR('Tabel 2 S'!G176/'Tabel 1 S'!E176*100,"-")) -> 9.848194592 | I176: =IF(OR('Tabel 1 S'!G176<5,'Tabel 2 S'!I176<0.5),"-",IFERROR('Tabel 2 S'!I176/'Tabel 1 S'!G176*100,"-")) -> 9.917355372 | J176: =IF(OR('Tabel 1 S'!G176<5,'Tabel 2 S'!J176<0.5),"-",IFERROR('Tabel 2 S'!J176/'Tabel 1 S'!G176*100,"-")) -> 9.38147715
A177: Øvrige Mag. | C177: =IF(OR('Tabel 1 S'!C177<5,'Tabel 2 S'!C177<0.5),"-",IFERROR('Tabel 2 S'!C177/'Tabel 1 S'!C177*100,"-")) -> 5.555555556 | D177: =IF(OR('Tabel 1 S'!C177<5,'Tabel 2 S'!D177<0.5),"-",IFERROR('Tabel 2 S'!D177/'Tabel 1 S'!C177*100,"-")) -> - | F177: =IF(OR('Tabel 1 S'!E177<5,'Tabel 2 S'!F177<0.5),"-",IFERROR('Tabel 2 S'!F177/'Tabel 1 S'!E177*100,"-")) -> 9.302325581 | G177: =IF(OR('Tabel 1 S'!E177<5,'Tabel 2 S'!G177<0.5),"-",IFERROR('Tabel 2 S'!G177/'Tabel 1 S'!E177*100,"-")) -> 8.717485303 | I177: =IF(OR('Tabel 1 S'!G177<5,'Tabel 2 S'!I177<0.5),"-",IFERROR('Tabel 2 S'!I177/'Tabel 1 S'!G177*100,"-")) -> 8.196721311 | J177: =IF(OR('Tabel 1 S'!G177<5,'Tabel 2 S'!J177<0.5),"-",IFERROR('Tabel 2 S'!J177/'Tabel 1 S'!G177*100,"-")) -> 6.64919587
A178: Agronom | C178: =IF(OR('Tabel 1 S'!C178<5,'Tabel 2 S'!C178<0.5),"-",IFERROR('Tabel 2 S'!C178/'Tabel 1 S'!C178*100,"-")) -> - | D178: =IF(OR('Tabel 1 S'!C178<5,'Tabel 2 S'!D178<0.5),"-",IFERROR('Tabel 2 S'!D178/'Tabel 1 S'!C178*100,"-")) -> - | F178: =IF(OR('Tabel 1 S'!E178<5,'Tabel 2 S'!F178<0.5),"-",IFERROR('Tabel 2 S'!F178/'Tabel 1 S'!E178*100,"-")) -> 2.43902439 | G178: =IF(OR('Tabel 1 S'!E178<5,'Tabel 2 S'!G178<0.5),"-",IFERROR('Tabel 2 S'!G178/'Tabel 1 S'!E178*100,"-")) -> 1.650559136 | I178: =IF(OR('Tabel 1 S'!G178<5,'Tabel 2 S'!I178<0.5),"-",IFERROR('Tabel 2 S'!I178/'Tabel 1 S'!G178*100,"-")) -> 1.333333333 | J178: =IF(OR('Tabel 1 S'!G178<5,'Tabel 2 S'!J178<0.5),"-",IFERROR('Tabel 2 S'!J178/'Tabel 1 S'!G178*100,"-")) -> 0.9023056612
A179: Landsk. Arkt. | C179: =IF(OR('Tabel 1 S'!C179<5,'Tabel 2 S'!C179<0.5),"-",IFERROR('Tabel 2 S'!C179/'Tabel 1 S'!C179*100,"-")) -> - | D179: =IF(OR('Tabel 1 S'!C179<5,'Tabel 2 S'!D179<0.5),"-",IFERROR('Tabel 2 S'!D179/'Tabel 1 S'!C179*100,"-")) -> - | F179: =IF(OR('Tabel 1 S'!E179<5,'Tabel 2 S'!F179<0.5),"-",IFERROR('Tabel 2 S'!F179/'Tabel 1 S'!E179*100,"-")) -> - | G179: =IF(OR('Tabel 1 S'!E179<5,'Tabel 2 S'!G179<0.5),"-",IFERROR('Tabel 2 S'!G179/'Tabel 1 S'!E179*100,"-")) -> - | I179: =IF(OR('Tabel 1 S'!G179<5,'Tabel 2 S'!I179<0.5),"-",IFERROR('Tabel 2 S'!I179/'Tabel 1 S'!G179*100,"-")) -> - | J179: =IF(OR('Tabel 1 S'!G179<5,'Tabel 2 S'!J179<0.5),"-",IFERROR('Tabel 2 S'!J179/'Tabel 1 S'!G179*100,"-")) -> -
A180: Hortonom | C180: =IF(OR('Tabel 1 S'!C180<5,'Tabel 2 S'!C180<0.5),"-",IFERROR('Tabel 2 S'!C180/'Tabel 1 S'!C180*100,"-")) -> - | D180: =IF(OR('Tabel 1 S'!C180<5,'Tabel 2 S'!D180<0.5),"-",IFERROR('Tabel 2 S'!D180/'Tabel 1 S'!C180*100,"-")) -> - | F180: =IF(OR('Tabel 1 S'!E180<5,'Tabel 2 S'!F180<0.5),"-",IFERROR('Tabel 2 S'!F180/'Tabel 1 S'!E180*100,"-")) -> - | G180: =IF(OR('Tabel 1 S'!E180<5,'Tabel 2 S'!G180<0.5),"-",IFERROR('Tabel 2 S'!G180/'Tabel 1 S'!E180*100,"-")) -> - | I180: =IF(OR('Tabel 1 S'!G180<5,'Tabel 2 S'!I180<0.5),"-",IFERROR('Tabel 2 S'!I180/'Tabel 1 S'!G180*100,"-")) -> - | J180: =IF(OR('Tabel 1 S'!G180<5,'Tabel 2 S'!J180<0.5),"-",IFERROR('Tabel 2 S'!J180/'Tabel 1 S'!G180*100,"-")) -> -
A181: Forstkand. | C181: =IF(OR('Tabel 1 S'!C181<5,'Tabel 2 S'!C181<0.5),"-",IFERROR('Tabel 2 S'!C181/'Tabel 1 S'!C181*100,"-")) -> - | D181: =IF(OR('Tabel 1 S'!C181<5,'Tabel 2 S'!D181<0.5),"-",IFERROR('Tabel 2 S'!D181/'Tabel 1 S'!C181*100,"-")) -> - | F181: =IF(OR('Tabel 1 S'!E181<5,'Tabel 2 S'!F181<0.5),"-",IFERROR('Tabel 2 S'!F181/'Tabel 1 S'!E181*100,"-")) -> 20 | G181: =IF(OR('Tabel 1 S'!E181<5,'Tabel 2 S'!G181<0.5),"-",IFERROR('Tabel 2 S'!G181/'Tabel 1 S'!E181*100,"-")) -> 19.99625772 | I181: =IF(OR('Tabel 1 S'!G181<5,'Tabel 2 S'!I181<0.5),"-",IFERROR('Tabel 2 S'!I181/'Tabel 1 S'!G181*100,"-")) -> 6.666666667 | J181: =IF(OR('Tabel 1 S'!G181<5,'Tabel 2 S'!J181<0.5),"-",IFERROR('Tabel 2 S'!J181/'Tabel 1 S'!G181*100,"-")) -> 6.665419239
A182: Jordbrugsakad. | C182: =IF(OR('Tabel 1 S'!C182<5,'Tabel 2 S'!C182<0.5),"-",IFERROR('Tabel 2 S'!C182/'Tabel 1 S'!C182*100,"-")) -> - | D182: =IF(OR('Tabel 1 S'!C182<5,'Tabel 2 S'!D182<0.5),"-",IFERROR('Tabel 2 S'!D182/'Tabel 1 S'!C182*100,"-")) -> - | F182: =IF(OR('Tabel 1 S'!E182<5,'Tabel 2 S'!F182<0.5),"-",IFERROR('Tabel 2 S'!F182/'Tabel 1 S'!E182*100,"-")) -> 2.898550725 | G182: =IF(OR('Tabel 1 S'!E182<5,'Tabel 2 S'!G182<0.5),"-",IFERROR('Tabel 2 S'!G182/'Tabel 1 S'!E182*100,"-")) -> 2.429771206 | I182: =IF(OR('Tabel 1 S'!G182<5,'Tabel 2 S'!I182<0.5),"-",IFERROR('Tabel 2 S'!I182/'Tabel 1 S'!G182*100,"-")) -> 1.694915254 | J182: =IF(OR('Tabel 1 S'!G182<5,'Tabel 2 S'!J182<0.5),"-",IFERROR('Tabel 2 S'!J182/'Tabel 1 S'!G182*100,"-")) -> 1.420798417
A183: Mejeriing. | C183: =IF(OR('Tabel 1 S'!C183<5,'Tabel 2 S'!C183<0.5),"-",IFERROR('Tabel 2 S'!C183/'Tabel 1 S'!C183*100,"-")) -> - | D183: =IF(OR('Tabel 1 S'!C183<5,'Tabel 2 S'!D183<0.5),"-",IFERROR('Tabel 2 S'!D183/'Tabel 1 S'!C183*100,"-")) -> - | F183: =IF(OR('Tabel 1 S'!E183<5,'Tabel 2 S'!F183<0.5),"-",IFERROR('Tabel 2 S'!F183/'Tabel 1 S'!E183*100,"-")) -> - | G183: =IF(OR('Tabel 1 S'!E183<5,'Tabel 2 S'!G183<0.5),"-",IFERROR('Tabel 2 S'!G183/'Tabel 1 S'!E183*100,"-")) -> - | I183: =IF(OR('Tabel 1 S'!G183<5,'Tabel 2 S'!I183<0.5),"-",IFERROR('Tabel 2 S'!I183/'Tabel 1 S'!G183*100,"-")) -> - | J183: =IF(OR('Tabel 1 S'!G183<5,'Tabel 2 S'!J183<0.5),"-",IFERROR('Tabel 2 S'!J183/'Tabel 1 S'!G183*100,"-")) -> -
A184: Levn.m.kand. | C184: =IF(OR('Tabel 1 S'!C184<5,'Tabel 2 S'!C184<0.5),"-",IFERROR('Tabel 2 S'!C184/'Tabel 1 S'!C184*100,"-")) -> 16.66666667 | D184: =IF(OR('Tabel 1 S'!C184<5,'Tabel 2 S'!D184<0.5),"-",IFERROR('Tabel 2 S'!D184/'Tabel 1 S'!C184*100,"-")) -> 12.81731429 | F184: =IF(OR('Tabel 1 S'!E184<5,'Tabel 2 S'!F184<0.5),"-",IFERROR('Tabel 2 S'!F184/'Tabel 1 S'!E184*100,"-")) -> - | G184: =IF(OR('Tabel 1 S'!E184<5,'Tabel 2 S'!G184<0.5),"-",IFERROR('Tabel 2 S'!G184/'Tabel 1 S'!E184*100,"-")) -> - | I184: =IF(OR('Tabel 1 S'!G184<5,'Tabel 2 S'!I184<0.5),"-",IFERROR('Tabel 2 S'!I184/'Tabel 1 S'!G184*100,"-")) -> 5.882352941 | J184: =IF(OR('Tabel 1 S'!G184<5,'Tabel 2 S'!J184<0.5),"-",IFERROR('Tabel 2 S'!J184/'Tabel 1 S'!G184*100,"-")) -> 4.523757984
A185: Dyrlæge | C185: =IF(OR('Tabel 1 S'!C185<5,'Tabel 2 S'!C185<0.5),"-",IFERROR('Tabel 2 S'!C185/'Tabel 1 S'!C185*100,"-")) -> - | D185: =IF(OR('Tabel 1 S'!C185<5,'Tabel 2 S'!D185<0.5),"-",IFERROR('Tabel 2 S'!D185/'Tabel 1 S'!C185*100,"-")) -> - | F185: =IF(OR('Tabel 1 S'!E185<5,'Tabel 2 S'!F185<0.5),"-",IFERROR('Tabel 2 S'!F185/'Tabel 1 S'!E185*100,"-")) -> 2.272727273 | G185: =IF(OR('Tabel 1 S'!E185<5,'Tabel 2 S'!G185<0.5),"-",IFERROR('Tabel 2 S'!G185/'Tabel 1 S'!E185*100,"-")) -> 2.272302013 | I185: =IF(OR('Tabel 1 S'!G185<5,'Tabel 2 S'!I185<0.5),"-",IFERROR('Tabel 2 S'!I185/'Tabel 1 S'!G185*100,"-")) -> 1.694915254 | J185: =IF(OR('Tabel 1 S'!G185<5,'Tabel 2 S'!J185<0.5),"-",IFERROR('Tabel 2 S'!J185/'Tabel 1 S'!G185*100,"-")) -> 1.694598112
A186: Farmaceut | C186: =IF(OR('Tabel 1 S'!C186<5,'Tabel 2 S'!C186<0.5),"-",IFERROR('Tabel 2 S'!C186/'Tabel 1 S'!C186*100,"-")) -> - | D186: =IF(OR('Tabel 1 S'!C186<5,'Tabel 2 S'!D186<0.5),"-",IFERROR('Tabel 2 S'!D186/'Tabel 1 S'!C186*100,"-")) -> - | F186: =IF(OR('Tabel 1 S'!E186<5,'Tabel 2 S'!F186<0.5),"-",IFERROR('Tabel 2 S'!F186/'Tabel 1 S'!E186*100,"-")) -> 0.7751937984 | G186: =IF(OR('Tabel 1 S'!E186<5,'Tabel 2 S'!G186<0.5),"-",IFERROR('Tabel 2 S'!G186/'Tabel 1 S'!E186*100,"-")) -> 0.5245963147 | I186: =IF(OR('Tabel 1 S'!G186<5,'Tabel 2 S'!I186<0.5),"-",IFERROR('Tabel 2 S'!I186/'Tabel 1 S'!G186*100,"-")) -> 0.6097560976 | J186: =IF(OR('Tabel 1 S'!G186<5,'Tabel 2 S'!J186<0.5),"-",IFERROR('Tabel 2 S'!J186/'Tabel 1 S'!G186*100,"-")) -> 0.4126397841
A187: Læge | C187: =IF(OR('Tabel 1 S'!C187<5,'Tabel 2 S'!C187<0.5),"-",IFERROR('Tabel 2 S'!C187/'Tabel 1 S'!C187*100,"-")) -> 5.714285714 | D187: =IF(OR('Tabel 1 S'!C187<5,'Tabel 2 S'!D187<0.5),"-",IFERROR('Tabel 2 S'!D187/'Tabel 1 S'!C187*100,"-")) -> 5.109105327 | F187: =IF(OR('Tabel 1 S'!E187<5,'Tabel 2 S'!F187<0.5),"-",IFERROR('Tabel 2 S'!F187/'Tabel 1 S'!E187*100,"-")) -> 0.6756756757 | G187: =IF(OR('Tabel 1 S'!E187<5,'Tabel 2 S'!G187<0.5),"-",IFERROR('Tabel 2 S'!G187/'Tabel 1 S'!E187*100,"-")) -> 0.6755492472 | I187: =IF(OR('Tabel 1 S'!G187<5,'Tabel 2 S'!I187<0.5),"-",IFERROR('Tabel 2 S'!I187/'Tabel 1 S'!G187*100,"-")) -> 2.293577982 | J187: =IF(OR('Tabel 1 S'!G187<5,'Tabel 2 S'!J187<0.5),"-",IFERROR('Tabel 2 S'!J187/'Tabel 1 S'!G187*100,"-")) -> 2.099168172
A188: Tandlæge | C188: =IF(OR('Tabel 1 S'!C188<5,'Tabel 2 S'!C188<0.5),"-",IFERROR('Tabel 2 S'!C188/'Tabel 1 S'!C188*100,"-")) -> - | D188: =IF(OR('Tabel 1 S'!C188<5,'Tabel 2 S'!D188<0.5),"-",IFERROR('Tabel 2 S'!D188/'Tabel 1 S'!C188*100,"-")) -> - | F188: =IF(OR('Tabel 1 S'!E188<5,'Tabel 2 S'!F188<0.5),"-",IFERROR('Tabel 2 S'!F188/'Tabel 1 S'!E188*100,"-")) -> 3.225806452 | G188: =IF(OR('Tabel 1 S'!E188<5,'Tabel 2 S'!G188<0.5),"-",IFERROR('Tabel 2 S'!G188/'Tabel 1 S'!E188*100,"-")) -> - | I188: =IF(OR('Tabel 1 S'!G188<5,'Tabel 2 S'!I188<0.5),"-",IFERROR('Tabel 2 S'!I188/'Tabel 1 S'!G188*100,"-")) -> 2.631578947 | J188: =IF(OR('Tabel 1 S'!G188<5,'Tabel 2 S'!J188<0.5),"-",IFERROR('Tabel 2 S'!J188/'Tabel 1 S'!G188*100,"-")) -> -
A189: Arkitekt | C189: =IF(OR('Tabel 1 S'!C189<5,'Tabel 2 S'!C189<0.5),"-",IFERROR('Tabel 2 S'!C189/'Tabel 1 S'!C189*100,"-")) -> 8 | D189: =IF(OR('Tabel 1 S'!C189<5,'Tabel 2 S'!D189<0.5),"-",IFERROR('Tabel 2 S'!D189/'Tabel 1 S'!C189*100,"-")) -> 6.152310859 | F189: =IF(OR('Tabel 1 S'!E189<5,'Tabel 2 S'!F189<0.5),"-",IFERROR('Tabel 2 S'!F189/'Tabel 1 S'!E189*100,"-")) -> 5.555555556 | G189: =IF(OR('Tabel 1 S'!E189<5,'Tabel 2 S'!G189<0.5),"-",IFERROR('Tabel 2 S'!G189/'Tabel 1 S'!E189*100,"-")) -> 4.132102539 | I189: =IF(OR('Tabel 1 S'!G189<5,'Tabel 2 S'!I189<0.5),"-",IFERROR('Tabel 2 S'!I189/'Tabel 1 S'!G189*100,"-")) -> 6.557377049 | J189: =IF(OR('Tabel 1 S'!G189<5,'Tabel 2 S'!J189<0.5),"-",IFERROR('Tabel 2 S'!J189/'Tabel 1 S'!G189*100,"-")) -> 4.960056768
A190: Landinspek. | C190: =IF(OR('Tabel 1 S'!C190<5,'Tabel 2 S'!C190<0.5),"-",IFERROR('Tabel 2 S'!C190/'Tabel 1 S'!C190*100,"-")) -> - | D190: =IF(OR('Tabel 1 S'!C190<5,'Tabel 2 S'!D190<0.5),"-",IFERROR('Tabel 2 S'!D190/'Tabel 1 S'!C190*100,"-")) -> - | F190: =IF(OR('Tabel 1 S'!E190<5,'Tabel 2 S'!F190<0.5),"-",IFERROR('Tabel 2 S'!F190/'Tabel 1 S'!E190*100,"-")) -> - | G190: =IF(OR('Tabel 1 S'!E190<5,'Tabel 2 S'!G190<0.5),"-",IFERROR('Tabel 2 S'!G190/'Tabel 1 S'!E190*100,"-")) -> - | I190: =IF(OR('Tabel 1 S'!G190<5,'Tabel 2 S'!I190<0.5),"-",IFERROR('Tabel 2 S'!I190/'Tabel 1 S'!G190*100,"-")) -> - | J190: =IF(OR('Tabel 1 S'!G190<5,'Tabel 2 S'!J190<0.5),"-",IFERROR('Tabel 2 S'!J190/'Tabel 1 S'!G190*100,"-")) -> -
A191: Bibliotekar | C191: =IF(OR('Tabel 1 S'!C191<5,'Tabel 2 S'!C191<0.5),"-",IFERROR('Tabel 2 S'!C191/'Tabel 1 S'!C191*100,"-")) -> 8.695652174 | D191: =IF(OR('Tabel 1 S'!C191<5,'Tabel 2 S'!D191<0.5),"-",IFERROR('Tabel 2 S'!D191/'Tabel 1 S'!C191*100,"-")) -> 5.884602139 | F191: =IF(OR('Tabel 1 S'!E191<5,'Tabel 2 S'!F191<0.5),"-",IFERROR('Tabel 2 S'!F191/'Tabel 1 S'!E191*100,"-")) -> 1.5625 | G191: =IF(OR('Tabel 1 S'!E191<5,'Tabel 2 S'!G191<0.5),"-",IFERROR('Tabel 2 S'!G191/'Tabel 1 S'!E191*100,"-")) -> 0.841038795 | I191: =IF(OR('Tabel 1 S'!G191<5,'Tabel 2 S'!I191<0.5),"-",IFERROR('Tabel 2 S'!I191/'Tabel 1 S'!G191*100,"-")) -> 3.448275862 | J191: =IF(OR('Tabel 1 S'!G191<5,'Tabel 2 S'!J191<0.5),"-",IFERROR('Tabel 2 S'!J191/'Tabel 1 S'!G191*100,"-")) -> 2.174394621
A192: Musikudd. | C192: =IF(OR('Tabel 1 S'!C192<5,'Tabel 2 S'!C192<0.5),"-",IFERROR('Tabel 2 S'!C192/'Tabel 1 S'!C192*100,"-")) -> - | D192: =IF(OR('Tabel 1 S'!C192<5,'Tabel 2 S'!D192<0.5),"-",IFERROR('Tabel 2 S'!D192/'Tabel 1 S'!C192*100,"-")) -> - | F192: =IF(OR('Tabel 1 S'!E192<5,'Tabel 2 S'!F192<0.5),"-",IFERROR('Tabel 2 S'!F192/'Tabel 1 S'!E192*100,"-")) -> 9.090909091 | G192: =IF(OR('Tabel 1 S'!E192<5,'Tabel 2 S'!G192<0.5),"-",IFERROR('Tabel 2 S'!G192/'Tabel 1 S'!E192*100,"-")) -> 6.231465784 | I192: =IF(OR('Tabel 1 S'!G192<5,'Tabel 2 S'!I192<0.5),"-",IFERROR('Tabel 2 S'!I192/'Tabel 1 S'!G192*100,"-")) -> 6.666666667 | J192: =IF(OR('Tabel 1 S'!G192<5,'Tabel 2 S'!J192<0.5),"-",IFERROR('Tabel 2 S'!J192/'Tabel 1 S'!G192*100,"-")) -> 4.569741575
A193: Teolog | C193: =IF(OR('Tabel 1 S'!C193<5,'Tabel 2 S'!C193<0.5),"-",IFERROR('Tabel 2 S'!C193/'Tabel 1 S'!C193*100,"-")) -> - | D193: =IF(OR('Tabel 1 S'!C193<5,'Tabel 2 S'!D193<0.5),"-",IFERROR('Tabel 2 S'!D193/'Tabel 1 S'!C193*100,"-")) -> - | F193: =IF(OR('Tabel 1 S'!E193<5,'Tabel 2 S'!F193<0.5),"-",IFERROR('Tabel 2 S'!F193/'Tabel 1 S'!E193*100,"-")) -> - | G193: =IF(OR('Tabel 1 S'!E193<5,'Tabel 2 S'!G193<0.5),"-",IFERROR('Tabel 2 S'!G193/'Tabel 1 S'!E193*100,"-")) -> - | I193: =IF(OR('Tabel 1 S'!G193<5,'Tabel 2 S'!I193<0.5),"-",IFERROR('Tabel 2 S'!I193/'Tabel 1 S'!G193*100,"-")) -> - | J193: =IF(OR('Tabel 1 S'!G193<5,'Tabel 2 S'!J193<0.5),"-",IFERROR('Tabel 2 S'!J193/'Tabel 1 S'!G193*100,"-")) -> -
A194: Psykolog | C194: =IF(OR('Tabel 1 S'!C194<5,'Tabel 2 S'!C194<0.5),"-",IFERROR('Tabel 2 S'!C194/'Tabel 1 S'!C194*100,"-")) -> 10 | D194: =IF(OR('Tabel 1 S'!C194<5,'Tabel 2 S'!D194<0.5),"-",IFERROR('Tabel 2 S'!D194/'Tabel 1 S'!C194*100,"-")) -> 8.844258716 | F194: =IF(OR('Tabel 1 S'!E194<5,'Tabel 2 S'!F194<0.5),"-",IFERROR('Tabel 2 S'!F194/'Tabel 1 S'!E194*100,"-")) -> 10.34482759 | G194: =IF(OR('Tabel 1 S'!E194<5,'Tabel 2 S'!G194<0.5),"-",IFERROR('Tabel 2 S'!G194/'Tabel 1 S'!E194*100,"-")) -> 8.344857697 | I194: =IF(OR('Tabel 1 S'!G194<5,'Tabel 2 S'!I194<0.5),"-",IFERROR('Tabel 2 S'!I194/'Tabel 1 S'!G194*100,"-")) -> 10.29411765 | J194: =IF(OR('Tabel 1 S'!G194<5,'Tabel 2 S'!J194<0.5),"-",IFERROR('Tabel 2 S'!J194/'Tabel 1 S'!G194*100,"-")) -> 8.418299023
A195: Jurist | C195: =IF(OR('Tabel 1 S'!C195<5,'Tabel 2 S'!C195<0.5),"-",IFERROR('Tabel 2 S'!C195/'Tabel 1 S'!C195*100,"-")) -> 1.282051282 | D195: =IF(OR('Tabel 1 S'!C195<5,'Tabel 2 S'!D195<0.5),"-",IFERROR('Tabel 2 S'!D195/'Tabel 1 S'!C195*100,"-")) -> 1.281811392 | F195: =IF(OR('Tabel 1 S'!E195<5,'Tabel 2 S'!F195<0.5),"-",IFERROR('Tabel 2 S'!F195/'Tabel 1 S'!E195*100,"-")) -> 1.117318436 | G195: =IF(OR('Tabel 1 S'!E195<5,'Tabel 2 S'!G195<0.5),"-",IFERROR('Tabel 2 S'!G195/'Tabel 1 S'!E195*100,"-")) -> 0.6111696302 | I195: =IF(OR('Tabel 1 S'!G195<5,'Tabel 2 S'!I195<0.5),"-",IFERROR('Tabel 2 S'!I195/'Tabel 1 S'!G195*100,"-")) -> 1.167315175 | J195: =IF(OR('Tabel 1 S'!G195<5,'Tabel 2 S'!J195<0.5),"-",IFERROR('Tabel 2 S'!J195/'Tabel 1 S'!G195*100,"-")) -> 0.8147107097
A196: Økonom | C196: =IF(OR('Tabel 1 S'!C196<5,'Tabel 2 S'!C196<0.5),"-",IFERROR('Tabel 2 S'!C196/'Tabel 1 S'!C196*100,"-")) -> 1.041666667 | D196: =IF(OR('Tabel 1 S'!C196<5,'Tabel 2 S'!D196<0.5),"-",IFERROR('Tabel 2 S'!D196/'Tabel 1 S'!C196*100,"-")) -> 1.041471756 | F196: =IF(OR('Tabel 1 S'!E196<5,'Tabel 2 S'!F196<0.5),"-",IFERROR('Tabel 2 S'!F196/'Tabel 1 S'!E196*100,"-")) -> 1.538461538 | G196: =IF(OR('Tabel 1 S'!E196<5,'Tabel 2 S'!G196<0.5),"-",IFERROR('Tabel 2 S'!G196/'Tabel 1 S'!E196*100,"-")) -> 1.538173671 | I196: =IF(OR('Tabel 1 S'!G196<5,'Tabel 2 S'!I196<0.5),"-",IFERROR('Tabel 2 S'!I196/'Tabel 1 S'!G196*100,"-")) -> 1.242236025 | J196: =IF(OR('Tabel 1 S'!G196<5,'Tabel 2 S'!J196<0.5),"-",IFERROR('Tabel 2 S'!J196/'Tabel 1 S'!G196*100,"-")) -> 1.242003585
A197: Samf. Adm. | C197: =IF(OR('Tabel 1 S'!C197<5,'Tabel 2 S'!C197<0.5),"-",IFERROR('Tabel 2 S'!C197/'Tabel 1 S'!C197*100,"-")) -> 3.630363036 | D197: =IF(OR('Tabel 1 S'!C197<5,'Tabel 2 S'!D197<0.5),"-",IFERROR('Tabel 2 S'!D197/'Tabel 1 S'!C197*100,"-")) -> 3.302388494 | F197: =IF(OR('Tabel 1 S'!E197<5,'Tabel 2 S'!F197<0.5),"-",IFERROR('Tabel 2 S'!F197/'Tabel 1 S'!E197*100,"-")) -> 3.947368421 | G197: =IF(OR('Tabel 1 S'!E197<5,'Tabel 2 S'!G197<0.5),"-",IFERROR('Tabel 2 S'!G197/'Tabel 1 S'!E197*100,"-")) -> 2.826571512 | I197: =IF(OR('Tabel 1 S'!G197<5,'Tabel 2 S'!I197<0.5),"-",IFERROR('Tabel 2 S'!I197/'Tabel 1 S'!G197*100,"-")) -> 3.806734993 | J197: =IF(OR('Tabel 1 S'!G197<5,'Tabel 2 S'!J197<0.5),"-",IFERROR('Tabel 2 S'!J197/'Tabel 1 S'!G197*100,"-")) -> 3.037658694
A198: Cand. Merc. | C198: =IF(OR('Tabel 1 S'!C198<5,'Tabel 2 S'!C198<0.5),"-",IFERROR('Tabel 2 S'!C198/'Tabel 1 S'!C198*100,"-")) -> 2.826855124 | D198: =IF(OR('Tabel 1 S'!C198<5,'Tabel 2 S'!D198<0.5),"-",IFERROR('Tabel 2 S'!D198/'Tabel 1 S'!C198*100,"-")) -> 2.590064353 | F198: =IF(OR('Tabel 1 S'!E198<5,'Tabel 2 S'!F198<0.5),"-",IFERROR('Tabel 2 S'!F198/'Tabel 1 S'!E198*100,"-")) -> 6.451612903 | G198: =IF(OR('Tabel 1 S'!E198<5,'Tabel 2 S'!G198<0.5),"-",IFERROR('Tabel 2 S'!G198/'Tabel 1 S'!E198*100,"-")) -> 5.035581854 | I198: =IF(OR('Tabel 1 S'!G198<5,'Tabel 2 S'!I198<0.5),"-",IFERROR('Tabel 2 S'!I198/'Tabel 1 S'!G198*100,"-")) -> 4.721753794 | J198: =IF(OR('Tabel 1 S'!G198<5,'Tabel 2 S'!J198<0.5),"-",IFERROR('Tabel 2 S'!J198/'Tabel 1 S'!G198*100,"-")) -> 3.868496773
A199: HA | C199: =IF(OR('Tabel 1 S'!C199<5,'Tabel 2 S'!C199<0.5),"-",IFERROR('Tabel 2 S'!C199/'Tabel 1 S'!C199*100,"-")) -> 5.454545455 | D199: =IF(OR('Tabel 1 S'!C199<5,'Tabel 2 S'!D199<0.5),"-",IFERROR('Tabel 2 S'!D199/'Tabel 1 S'!C199*100,"-")) -> 4.977234454 | F199: =IF(OR('Tabel 1 S'!E199<5,'Tabel 2 S'!F199<0.5),"-",IFERROR('Tabel 2 S'!F199/'Tabel 1 S'!E199*100,"-")) -> 3.174603175 | G199: =IF(OR('Tabel 1 S'!E199<5,'Tabel 2 S'!G199<0.5),"-",IFERROR('Tabel 2 S'!G199/'Tabel 1 S'!E199*100,"-")) -> 1.928562023 | I199: =IF(OR('Tabel 1 S'!G199<5,'Tabel 2 S'!I199<0.5),"-",IFERROR('Tabel 2 S'!I199/'Tabel 1 S'!G199*100,"-")) -> 4.237288136 | J199: =IF(OR('Tabel 1 S'!G199<5,'Tabel 2 S'!J199<0.5),"-",IFERROR('Tabel 2 S'!J199/'Tabel 1 S'!G199*100,"-")) -> 3.34955341
A200: HD | C200: =IF(OR('Tabel 1 S'!C200<5,'Tabel 2 S'!C200<0.5),"-",IFERROR('Tabel 2 S'!C200/'Tabel 1 S'!C200*100,"-")) -> 3.921568627 | D200: =IF(OR('Tabel 1 S'!C200<5,'Tabel 2 S'!D200<0.5),"-",IFERROR('Tabel 2 S'!D200/'Tabel 1 S'!C200*100,"-")) -> 3.920834847 | F200: =IF(OR('Tabel 1 S'!E200<5,'Tabel 2 S'!F200<0.5),"-",IFERROR('Tabel 2 S'!F200/'Tabel 1 S'!E200*100,"-")) -> 4.761904762 | G200: =IF(OR('Tabel 1 S'!E200<5,'Tabel 2 S'!G200<0.5),"-",IFERROR('Tabel 2 S'!G200/'Tabel 1 S'!E200*100,"-")) -> 3.584868114 | I200: =IF(OR('Tabel 1 S'!G200<5,'Tabel 2 S'!I200<0.5),"-",IFERROR('Tabel 2 S'!I200/'Tabel 1 S'!G200*100,"-")) -> 4.301075269 | J200: =IF(OR('Tabel 1 S'!G200<5,'Tabel 2 S'!J200<0.5),"-",IFERROR('Tabel 2 S'!J200/'Tabel 1 S'!G200*100,"-")) -> 3.769107935
A201: Komm. og Sprog | C201: =IF(OR('Tabel 1 S'!C201<5,'Tabel 2 S'!C201<0.5),"-",IFERROR('Tabel 2 S'!C201/'Tabel 1 S'!C201*100,"-")) -> - | D201: =IF(OR('Tabel 1 S'!C201<5,'Tabel 2 S'!D201<0.5),"-",IFERROR('Tabel 2 S'!D201/'Tabel 1 S'!C201*100,"-")) -> - | F201: =IF(OR('Tabel 1 S'!E201<5,'Tabel 2 S'!F201<0.5),"-",IFERROR('Tabel 2 S'!F201/'Tabel 1 S'!E201*100,"-")) -> 7.476635514 | G201: =IF(OR('Tabel 1 S'!E201<5,'Tabel 2 S'!G201<0.5),"-",IFERROR('Tabel 2 S'!G201/'Tabel 1 S'!E201*100,"-")) -> 5.633824163 | I201: =IF(OR('Tabel 1 S'!G201<5,'Tabel 2 S'!I201<0.5),"-",IFERROR('Tabel 2 S'!I201/'Tabel 1 S'!G201*100,"-")) -> 6.722689076 | J201: =IF(OR('Tabel 1 S'!G201<5,'Tabel 2 S'!J201<0.5),"-",IFERROR('Tabel 2 S'!J201/'Tabel 1 S'!G201*100,"-")) -> 5.065707441
A202: Bygningskonst. | C202: =IF(OR('Tabel 1 S'!C202<5,'Tabel 2 S'!C202<0.5),"-",IFERROR('Tabel 2 S'!C202/'Tabel 1 S'!C202*100,"-")) -> 3.389830508 | D202: =IF(OR('Tabel 1 S'!C202<5,'Tabel 2 S'!D202<0.5),"-",IFERROR('Tabel 2 S'!D202/'Tabel 1 S'!C202*100,"-")) -> 3.23337354 | F202: =IF(OR('Tabel 1 S'!E202<5,'Tabel 2 S'!F202<0.5),"-",IFERROR('Tabel 2 S'!F202/'Tabel 1 S'!E202*100,"-")) -> 3.448275862 | G202: =IF(OR('Tabel 1 S'!E202<5,'Tabel 2 S'!G202<0.5),"-",IFERROR('Tabel 2 S'!G202/'Tabel 1 S'!E202*100,"-")) -> - | I202: =IF(OR('Tabel 1 S'!G202<5,'Tabel 2 S'!I202<0.5),"-",IFERROR('Tabel 2 S'!I202/'Tabel 1 S'!G202*100,"-")) -> 3.401360544 | J202: =IF(OR('Tabel 1 S'!G202<5,'Tabel 2 S'!J202<0.5),"-",IFERROR('Tabel 2 S'!J202/'Tabel 1 S'!G202*100,"-")) -> 2.804801831
A203: Cand. IT. | C203: =IF(OR('Tabel 1 S'!C203<5,'Tabel 2 S'!C203<0.5),"-",IFERROR('Tabel 2 S'!C203/'Tabel 1 S'!C203*100,"-")) -> 5.882352941 | D203: =IF(OR('Tabel 1 S'!C203<5,'Tabel 2 S'!D203<0.5),"-",IFERROR('Tabel 2 S'!D203/'Tabel 1 S'!C203*100,"-")) -> 5.88125227 | F203: =IF(OR('Tabel 1 S'!E203<5,'Tabel 2 S'!F203<0.5),"-",IFERROR('Tabel 2 S'!F203/'Tabel 1 S'!E203*100,"-")) -> 9.375 | G203: =IF(OR('Tabel 1 S'!E203<5,'Tabel 2 S'!G203<0.5),"-",IFERROR('Tabel 2 S'!G203/'Tabel 1 S'!E203*100,"-")) -> 6.324845631 | I203: =IF(OR('Tabel 1 S'!G203<5,'Tabel 2 S'!I203<0.5),"-",IFERROR('Tabel 2 S'!I203/'Tabel 1 S'!G203*100,"-")) -> 7.575757576 | J203: =IF(OR('Tabel 1 S'!G203<5,'Tabel 2 S'!J203<0.5),"-",IFERROR('Tabel 2 S'!J203/'Tabel 1 S'!G203*100,"-")) -> 6.096327839
A204: Bac. Samf. | C204: =IF(OR('Tabel 1 S'!C204<5,'Tabel 2 S'!C204<0.5),"-",IFERROR('Tabel 2 S'!C204/'Tabel 1 S'!C204*100,"-")) -> - | D204: =IF(OR('Tabel 1 S'!C204<5,'Tabel 2 S'!D204<0.5),"-",IFERROR('Tabel 2 S'!D204/'Tabel 1 S'!C204*100,"-")) -> - | F204: =IF(OR('Tabel 1 S'!E204<5,'Tabel 2 S'!F204<0.5),"-",IFERROR('Tabel 2 S'!F204/'Tabel 1 S'!E204*100,"-")) -> 7.142857143 | G204: =IF(OR('Tabel 1 S'!E204<5,'Tabel 2 S'!G204<0.5),"-",IFERROR('Tabel 2 S'!G204/'Tabel 1 S'!E204*100,"-")) -> 7.141520614 | I204: =IF(OR('Tabel 1 S'!G204<5,'Tabel 2 S'!I204<0.5),"-",IFERROR('Tabel 2 S'!I204/'Tabel 1 S'!G204*100,"-")) -> 4.166666667 | J204: =IF(OR('Tabel 1 S'!G204<5,'Tabel 2 S'!J204<0.5),"-",IFERROR('Tabel 2 S'!J204/'Tabel 1 S'!G204*100,"-")) -> 4.165887025
A205: Bac. Hum. | C205: =IF(OR('Tabel 1 S'!C205<5,'Tabel 2 S'!C205<0.5),"-",IFERROR('Tabel 2 S'!C205/'Tabel 1 S'!C205*100,"-")) -> 10.81081081 | D205: =IF(OR('Tabel 1 S'!C205<5,'Tabel 2 S'!D205<0.5),"-",IFERROR('Tabel 2 S'!D205/'Tabel 1 S'!C205*100,"-")) -> 8.86516155 | F205: =IF(OR('Tabel 1 S'!E205<5,'Tabel 2 S'!F205<0.5),"-",IFERROR('Tabel 2 S'!F205/'Tabel 1 S'!E205*100,"-")) -> 13.33333333 | G205: =IF(OR('Tabel 1 S'!E205<5,'Tabel 2 S'!G205<0.5),"-",IFERROR('Tabel 2 S'!G205/'Tabel 1 S'!E205*100,"-")) -> 11.70225299 | I205: =IF(OR('Tabel 1 S'!G205<5,'Tabel 2 S'!I205<0.5),"-",IFERROR('Tabel 2 S'!I205/'Tabel 1 S'!G205*100,"-")) -> 12.19512195 | J205: =IF(OR('Tabel 1 S'!G205<5,'Tabel 2 S'!J205<0.5),"-",IFERROR('Tabel 2 S'!J205/'Tabel 1 S'!G205*100,"-")) -> 10.42210198
A206: Bac. Nat. | C206: =IF(OR('Tabel 1 S'!C206<5,'Tabel 2 S'!C206<0.5),"-",IFERROR('Tabel 2 S'!C206/'Tabel 1 S'!C206*100,"-")) -> 6.060606061 | D206: =IF(OR('Tabel 1 S'!C206<5,'Tabel 2 S'!D206<0.5),"-",IFERROR('Tabel 2 S'!D206/'Tabel 1 S'!C206*100,"-")) -> 6.059472036 | F206: =IF(OR('Tabel 1 S'!E206<5,'Tabel 2 S'!F206<0.5),"-",IFERROR('Tabel 2 S'!F206/'Tabel 1 S'!E206*100,"-")) -> 16.66666667 | G206: =IF(OR('Tabel 1 S'!E206<5,'Tabel 2 S'!G206<0.5),"-",IFERROR('Tabel 2 S'!G206/'Tabel 1 S'!E206*100,"-")) -> 10.89419738 | I206: =IF(OR('Tabel 1 S'!G206<5,'Tabel 2 S'!I206<0.5),"-",IFERROR('Tabel 2 S'!I206/'Tabel 1 S'!G206*100,"-")) -> 8.888888889 | J206: =IF(OR('Tabel 1 S'!G206<5,'Tabel 2 S'!J206<0.5),"-",IFERROR('Tabel 2 S'!J206/'Tabel 1 S'!G206*100,"-")) -> 7.348732129
A207: Andre | C207: =IF(OR('Tabel 1 S'!C207<5,'Tabel 2 S'!C207<0.5),"-",IFERROR('Tabel 2 S'!C207/'Tabel 1 S'!C207*100,"-")) -> 5.494505495 | D207: =IF(OR('Tabel 1 S'!C207<5,'Tabel 2 S'!D207<0.5),"-",IFERROR('Tabel 2 S'!D207/'Tabel 1 S'!C207*100,"-")) -> 4.309792372 | F207: =IF(OR('Tabel 1 S'!E207<5,'Tabel 2 S'!F207<0.5),"-",IFERROR('Tabel 2 S'!F207/'Tabel 1 S'!E207*100,"-")) -> 2.392344498 | G207: =IF(OR('Tabel 1 S'!E207<5,'Tabel 2 S'!G207<0.5),"-",IFERROR('Tabel 2 S'!G207/'Tabel 1 S'!E207*100,"-")) -> 2.126893187 | I207: =IF(OR('Tabel 1 S'!G207<5,'Tabel 2 S'!I207<0.5),"-",IFERROR('Tabel 2 S'!I207/'Tabel 1 S'!G207*100,"-")) -> 3.836317136 | J207: =IF(OR('Tabel 1 S'!G207<5,'Tabel 2 S'!J207<0.5),"-",IFERROR('Tabel 2 S'!J207/'Tabel 1 S'!G207*100,"-")) -> 3.142974138
A209: Total | C209: =IF(OR('Tabel 1 S'!C209<5,'Tabel 2 S'!C209<0.5),"-",IFERROR('Tabel 2 S'!C209/'Tabel 1 S'!C209*100,"-")) -> 3.775776939 | D209: =IF(OR('Tabel 1 S'!C209<5,'Tabel 2 S'!D209<0.5),"-",IFERROR('Tabel 2 S'!D209/'Tabel 1 S'!C209*100,"-")) -> 3.243296179 | F209: =IF(OR('Tabel 1 S'!E209<5,'Tabel 2 S'!F209<0.5),"-",IFERROR('Tabel 2 S'!F209/'Tabel 1 S'!E209*100,"-")) -> 5.021037868 | G209: =IF(OR('Tabel 1 S'!E209<5,'Tabel 2 S'!G209<0.5),"-",IFERROR('Tabel 2 S'!G209/'Tabel 1 S'!E209*100,"-")) -> 3.967575991 | I209: =IF(OR('Tabel 1 S'!G209<5,'Tabel 2 S'!I209<0.5),"-",IFERROR('Tabel 2 S'!I209/'Tabel 1 S'!G209*100,"-")) -> 4.409246575 | J209: =IF(OR('Tabel 1 S'!G209<5,'Tabel 2 S'!J209<0.5),"-",IFERROR('Tabel 2 S'!J209/'Tabel 1 S'!G209*100,"-")) -> 3.611740461
A211: Ingeniører i alt | C211: =IF(OR('Tabel 1 S'!C211<5,'Tabel 2 S'!C211<0.5),"-",IFERROR('Tabel 2 S'!C211/'Tabel 1 S'!C211*100,"-")) -> 2.317596567 | D211: =IF(OR('Tabel 1 S'!C211<5,'Tabel 2 S'!D211<0.5),"-",IFERROR('Tabel 2 S'!D211/'Tabel 1 S'!C211*100,"-")) -> 1.945772252 | F211: =IF(OR('Tabel 1 S'!E211<5,'Tabel 2 S'!F211<0.5),"-",IFERROR('Tabel 2 S'!F211/'Tabel 1 S'!E211*100,"-")) -> 2.98102981 | G211: =IF(OR('Tabel 1 S'!E211<5,'Tabel 2 S'!G211<0.5),"-",IFERROR('Tabel 2 S'!G211/'Tabel 1 S'!E211*100,"-")) -> 2.135162623 | I211: =IF(OR('Tabel 1 S'!G211<5,'Tabel 2 S'!I211<0.5),"-",IFERROR('Tabel 2 S'!I211/'Tabel 1 S'!G211*100,"-")) -> 2.477183833 | J211: =IF(OR('Tabel 1 S'!G211<5,'Tabel 2 S'!J211<0.5),"-",IFERROR('Tabel 2 S'!J211/'Tabel 1 S'!G211*100,"-")) -> 1.991329649
A212: Magistre i alt | C212: =IF(OR('Tabel 1 S'!C212<5,'Tabel 2 S'!C212<0.5),"-",IFERROR('Tabel 2 S'!C212/'Tabel 1 S'!C212*100,"-")) -> 6.805293006 | D212: =IF(OR('Tabel 1 S'!C212<5,'Tabel 2 S'!D212<0.5),"-",IFERROR('Tabel 2 S'!D212/'Tabel 1 S'!C212*100,"-")) -> 5.668837324 | F212: =IF(OR('Tabel 1 S'!E212<5,'Tabel 2 S'!F212<0.5),"-",IFERROR('Tabel 2 S'!F212/'Tabel 1 S'!E212*100,"-")) -> 7.88863109 | G212: =IF(OR('Tabel 1 S'!E212<5,'Tabel 2 S'!G212<0.5),"-",IFERROR('Tabel 2 S'!G212/'Tabel 1 S'!E212*100,"-")) -> 6.411804655 | I212: =IF(OR('Tabel 1 S'!G212<5,'Tabel 2 S'!I212<0.5),"-",IFERROR('Tabel 2 S'!I212/'Tabel 1 S'!G212*100,"-")) -> 7.476635514 | J212: =IF(OR('Tabel 1 S'!G212<5,'Tabel 2 S'!J212<0.5),"-",IFERROR('Tabel 2 S'!J212/'Tabel 1 S'!G212*100,"-")) -> 6.129252737
A213: DJØF'ere i alt | C213: =IF(OR('Tabel 1 S'!C213<5,'Tabel 2 S'!C213<0.5),"-",IFERROR('Tabel 2 S'!C213/'Tabel 1 S'!C213*100,"-")) -> 2.944785276 | D213: =IF(OR('Tabel 1 S'!C213<5,'Tabel 2 S'!D213<0.5),"-",IFERROR('Tabel 2 S'!D213/'Tabel 1 S'!C213*100,"-")) -> 2.70837104 | F213: =IF(OR('Tabel 1 S'!E213<5,'Tabel 2 S'!F213<0.5),"-",IFERROR('Tabel 2 S'!F213/'Tabel 1 S'!E213*100,"-")) -> 4.012036108 | G213: =IF(OR('Tabel 1 S'!E213<5,'Tabel 2 S'!G213<0.5),"-",IFERROR('Tabel 2 S'!G213/'Tabel 1 S'!E213*100,"-")) -> 2.974932407 | I213: =IF(OR('Tabel 1 S'!G213<5,'Tabel 2 S'!I213<0.5),"-",IFERROR('Tabel 2 S'!I213/'Tabel 1 S'!G213*100,"-")) -> 3.53200883 | J213: =IF(OR('Tabel 1 S'!G213<5,'Tabel 2 S'!J213<0.5),"-",IFERROR('Tabel 2 S'!J213/'Tabel 1 S'!G213*100,"-")) -> 2.855038635
A218: ='Tabel 2 S'!A218 -> Solrød
C220: Mænd | F220: Kvinder | I220: I alt
C221: Ledigheds- berørte | D221: Gns. brutto- ledighed | F221: Ledigheds- berørte | G221: Gns. brutto- ledighed | I221: Ledigheds- berørte | J221: Gns. brutto- ledighed
A224: Civ. ing. | C224: =IF(OR('Tabel 1 S'!C224<5,'Tabel 2 S'!C224<0.5),"-",IFERROR('Tabel 2 S'!C224/'Tabel 1 S'!C224*100,"-")) -> 1.063829787 | D224: =IF(OR('Tabel 1 S'!C224<5,'Tabel 2 S'!D224<0.5),"-",IFERROR('Tabel 2 S'!D224/'Tabel 1 S'!C224*100,"-")) -> 1.06363073 | F224: =IF(OR('Tabel 1 S'!E224<5,'Tabel 2 S'!F224<0.5),"-",IFERROR('Tabel 2 S'!F224/'Tabel 1 S'!E224*100,"-")) -> - | G224: =IF(OR('Tabel 1 S'!E224<5,'Tabel 2 S'!G224<0.5),"-",IFERROR('Tabel 2 S'!G224/'Tabel 1 S'!E224*100,"-")) -> - | I224: =IF(OR('Tabel 1 S'!G224<5,'Tabel 2 S'!I224<0.5),"-",IFERROR('Tabel 2 S'!I224/'Tabel 1 S'!G224*100,"-")) -> 0.7575757576 | J224: =IF(OR('Tabel 1 S'!G224<5,'Tabel 2 S'!J224<0.5),"-",IFERROR('Tabel 2 S'!J224/'Tabel 1 S'!G224*100,"-")) -> 0.7574340045
A225: Diplom ing. | C225: =IF(OR('Tabel 1 S'!C225<5,'Tabel 2 S'!C225<0.5),"-",IFERROR('Tabel 2 S'!C225/'Tabel 1 S'!C225*100,"-")) -> 0.6944444444 | D225: =IF(OR('Tabel 1 S'!C225<5,'Tabel 2 S'!D225<0.5),"-",IFERROR('Tabel 2 S'!D225/'Tabel 1 S'!C225*100,"-")) -> - | F225: =IF(OR('Tabel 1 S'!E225<5,'Tabel 2 S'!F225<0.5),"-",IFERROR('Tabel 2 S'!F225/'Tabel 1 S'!E225*100,"-")) -> - | G225: =IF(OR('Tabel 1 S'!E225<5,'Tabel 2 S'!G225<0.5),"-",IFERROR('Tabel 2 S'!G225/'Tabel 1 S'!E225*100,"-")) -> - | I225: =IF(OR('Tabel 1 S'!G225<5,'Tabel 2 S'!I225<0.5),"-",IFERROR('Tabel 2 S'!I225/'Tabel 1 S'!G225*100,"-")) -> 0.5617977528 | J225: =IF(OR('Tabel 1 S'!G225<5,'Tabel 2 S'!J225<0.5),"-",IFERROR('Tabel 2 S'!J225/'Tabel 1 S'!G225*100,"-")) -> -
A226: Cand. Scient. Tek. | C226: =IF(OR('Tabel 1 S'!C226<5,'Tabel 2 S'!C226<0.5),"-",IFERROR('Tabel 2 S'!C226/'Tabel 1 S'!C226*100,"-")) -> - | D226: =IF(OR('Tabel 1 S'!C226<5,'Tabel 2 S'!D226<0.5),"-",IFERROR('Tabel 2 S'!D226/'Tabel 1 S'!C226*100,"-")) -> - | F226: =IF(OR('Tabel 1 S'!E226<5,'Tabel 2 S'!F226<0.5),"-",IFERROR('Tabel 2 S'!F226/'Tabel 1 S'!E226*100,"-")) -> - | G226: =IF(OR('Tabel 1 S'!E226<5,'Tabel 2 S'!G226<0.5),"-",IFERROR('Tabel 2 S'!G226/'Tabel 1 S'!E226*100,"-")) -> - | I226: =IF(OR('Tabel 1 S'!G226<5,'Tabel 2 S'!I226<0.5),"-",IFERROR('Tabel 2 S'!I226/'Tabel 1 S'!G226*100,"-")) -> - | J226: =IF(OR('Tabel 1 S'!G226<5,'Tabel 2 S'!J226<0.5),"-",IFERROR('Tabel 2 S'!J226/'Tabel 1 S'!G226*100,"-")) -> -
A227: MA. Hum. | C227: =IF(OR('Tabel 1 S'!C227<5,'Tabel 2 S'!C227<0.5),"-",IFERROR('Tabel 2 S'!C227/'Tabel 1 S'!C227*100,"-")) -> 19.04761905 | D227: =IF(OR('Tabel 1 S'!C227<5,'Tabel 2 S'!D227<0.5),"-",IFERROR('Tabel 2 S'!D227/'Tabel 1 S'!C227*100,"-")) -> 16.85214721 | F227: =IF(OR('Tabel 1 S'!E227<5,'Tabel 2 S'!F227<0.5),"-",IFERROR('Tabel 2 S'!F227/'Tabel 1 S'!E227*100,"-")) -> 6.557377049 | G227: =IF(OR('Tabel 1 S'!E227<5,'Tabel 2 S'!G227<0.5),"-",IFERROR('Tabel 2 S'!G227/'Tabel 1 S'!E227*100,"-")) -> 5.950841144 | I227: =IF(OR('Tabel 1 S'!G227<5,'Tabel 2 S'!I227<0.5),"-",IFERROR('Tabel 2 S'!I227/'Tabel 1 S'!G227*100,"-")) -> 9.756097561 | J227: =IF(OR('Tabel 1 S'!G227<5,'Tabel 2 S'!J227<0.5),"-",IFERROR('Tabel 2 S'!J227/'Tabel 1 S'!G227*100,"-")) -> 8.742639039
A228: MA. Nat. | C228: =IF(OR('Tabel 1 S'!C228<5,'Tabel 2 S'!C228<0.5),"-",IFERROR('Tabel 2 S'!C228/'Tabel 1 S'!C228*100,"-")) -> 4.761904762 | D228: =IF(OR('Tabel 1 S'!C228<5,'Tabel 2 S'!D228<0.5),"-",IFERROR('Tabel 2 S'!D228/'Tabel 1 S'!C228*100,"-")) -> 4.761013742 | F228: =IF(OR('Tabel 1 S'!E228<5,'Tabel 2 S'!F228<0.5),"-",IFERROR('Tabel 2 S'!F228/'Tabel 1 S'!E228*100,"-")) -> 5.555555556 | G228: =IF(OR('Tabel 1 S'!E228<5,'Tabel 2 S'!G228<0.5),"-",IFERROR('Tabel 2 S'!G228/'Tabel 1 S'!E228*100,"-")) -> - | I228: =IF(OR('Tabel 1 S'!G228<5,'Tabel 2 S'!I228<0.5),"-",IFERROR('Tabel 2 S'!I228/'Tabel 1 S'!G228*100,"-")) -> 5.128205128 | J228: =IF(OR('Tabel 1 S'!G228<5,'Tabel 2 S'!J228<0.5),"-",IFERROR('Tabel 2 S'!J228/'Tabel 1 S'!G228*100,"-")) -> 3.825443356
A229: MA. Ph.d. | C229: =IF(OR('Tabel 1 S'!C229<5,'Tabel 2 S'!C229<0.5),"-",IFERROR('Tabel 2 S'!C229/'Tabel 1 S'!C229*100,"-")) -> - | D229: =IF(OR('Tabel 1 S'!C229<5,'Tabel 2 S'!D229<0.5),"-",IFERROR('Tabel 2 S'!D229/'Tabel 1 S'!C229*100,"-")) -> - | F229: =IF(OR('Tabel 1 S'!E229<5,'Tabel 2 S'!F229<0.5),"-",IFERROR('Tabel 2 S'!F229/'Tabel 1 S'!E229*100,"-")) -> - | G229: =IF(OR('Tabel 1 S'!E229<5,'Tabel 2 S'!G229<0.5),"-",IFERROR('Tabel 2 S'!G229/'Tabel 1 S'!E229*100,"-")) -> - | I229: =IF(OR('Tabel 1 S'!G229<5,'Tabel 2 S'!I229<0.5),"-",IFERROR('Tabel 2 S'!I229/'Tabel 1 S'!G229*100,"-")) -> - | J229: =IF(OR('Tabel 1 S'!G229<5,'Tabel 2 S'!J229<0.5),"-",IFERROR('Tabel 2 S'!J229/'Tabel 1 S'!G229*100,"-")) -> -
A230: MA. Samf. | C230: =IF(OR('Tabel 1 S'!C230<5,'Tabel 2 S'!C230<0.5),"-",IFERROR('Tabel 2 S'!C230/'Tabel 1 S'!C230*100,"-")) -> - | D230: =IF(OR('Tabel 1 S'!C230<5,'Tabel 2 S'!D230<0.5),"-",IFERROR('Tabel 2 S'!D230/'Tabel 1 S'!C230*100,"-")) -> - | F230: =IF(OR('Tabel 1 S'!E230<5,'Tabel 2 S'!F230<0.5),"-",IFERROR('Tabel 2 S'!F230/'Tabel 1 S'!E230*100,"-")) -> - | G230: =IF(OR('Tabel 1 S'!E230<5,'Tabel 2 S'!G230<0.5),"-",IFERROR('Tabel 2 S'!G230/'Tabel 1 S'!E230*100,"-")) -> - | I230: =IF(OR('Tabel 1 S'!G230<5,'Tabel 2 S'!I230<0.5),"-",IFERROR('Tabel 2 S'!I230/'Tabel 1 S'!G230*100,"-")) -> 13.33333333 | J230: =IF(OR('Tabel 1 S'!G230<5,'Tabel 2 S'!J230<0.5),"-",IFERROR('Tabel 2 S'!J230/'Tabel 1 S'!G230*100,"-")) -> 11.17694755
A231: Øvrige Mag. | C231: =IF(OR('Tabel 1 S'!C231<5,'Tabel 2 S'!C231<0.5),"-",IFERROR('Tabel 2 S'!C231/'Tabel 1 S'!C231*100,"-")) -> - | D231: =IF(OR('Tabel 1 S'!C231<5,'Tabel 2 S'!D231<0.5),"-",IFERROR('Tabel 2 S'!D231/'Tabel 1 S'!C231*100,"-")) -> - | F231: =IF(OR('Tabel 1 S'!E231<5,'Tabel 2 S'!F231<0.5),"-",IFERROR('Tabel 2 S'!F231/'Tabel 1 S'!E231*100,"-")) -> - | G231: =IF(OR('Tabel 1 S'!E231<5,'Tabel 2 S'!G231<0.5),"-",IFERROR('Tabel 2 S'!G231/'Tabel 1 S'!E231*100,"-")) -> - | I231: =IF(OR('Tabel 1 S'!G231<5,'Tabel 2 S'!I231<0.5),"-",IFERROR('Tabel 2 S'!I231/'Tabel 1 S'!G231*100,"-")) -> - | J231: =IF(OR('Tabel 1 S'!G231<5,'Tabel 2 S'!J231<0.5),"-",IFERROR('Tabel 2 S'!J231/'Tabel 1 S'!G231*100,"-")) -> -
A232: Agronom | C232: =IF(OR('Tabel 1 S'!C232<5,'Tabel 2 S'!C232<0.5),"-",IFERROR('Tabel 2 S'!C232/'Tabel 1 S'!C232*100,"-")) -> - | D232: =IF(OR('Tabel 1 S'!C232<5,'Tabel 2 S'!D232<0.5),"-",IFERROR('Tabel 2 S'!D232/'Tabel 1 S'!C232*100,"-")) -> - | F232: =IF(OR('Tabel 1 S'!E232<5,'Tabel 2 S'!F232<0.5),"-",IFERROR('Tabel 2 S'!F232/'Tabel 1 S'!E232*100,"-")) -> - | G232: =IF(OR('Tabel 1 S'!E232<5,'Tabel 2 S'!G232<0.5),"-",IFERROR('Tabel 2 S'!G232/'Tabel 1 S'!E232*100,"-")) -> - | I232: =IF(OR('Tabel 1 S'!G232<5,'Tabel 2 S'!I232<0.5),"-",IFERROR('Tabel 2 S'!I232/'Tabel 1 S'!G232*100,"-")) -> - | J232: =IF(OR('Tabel 1 S'!G232<5,'Tabel 2 S'!J232<0.5),"-",IFERROR('Tabel 2 S'!J232/'Tabel 1 S'!G232*100,"-")) -> -
A233: Landsk. Arkt. | C233: =IF(OR('Tabel 1 S'!C233<5,'Tabel 2 S'!C233<0.5),"-",IFERROR('Tabel 2 S'!C233/'Tabel 1 S'!C233*100,"-")) -> - | D233: =IF(OR('Tabel 1 S'!C233<5,'Tabel 2 S'!D233<0.5),"-",IFERROR('Tabel 2 S'!D233/'Tabel 1 S'!C233*100,"-")) -> - | F233: =IF(OR('Tabel 1 S'!E233<5,'Tabel 2 S'!F233<0.5),"-",IFERROR('Tabel 2 S'!F233/'Tabel 1 S'!E233*100,"-")) -> - | G233: =IF(OR('Tabel 1 S'!E233<5,'Tabel 2 S'!G233<0.5),"-",IFERROR('Tabel 2 S'!G233/'Tabel 1 S'!E233*100,"-")) -> - | I233: =IF(OR('Tabel 1 S'!G233<5,'Tabel 2 S'!I233<0.5),"-",IFERROR('Tabel 2 S'!I233/'Tabel 1 S'!G233*100,"-")) -> - | J233: =IF(OR('Tabel 1 S'!G233<5,'Tabel 2 S'!J233<0.5),"-",IFERROR('Tabel 2 S'!J233/'Tabel 1 S'!G233*100,"-")) -> -
A234: Hortonom | C234: =IF(OR('Tabel 1 S'!C234<5,'Tabel 2 S'!C234<0.5),"-",IFERROR('Tabel 2 S'!C234/'Tabel 1 S'!C234*100,"-")) -> - | D234: =IF(OR('Tabel 1 S'!C234<5,'Tabel 2 S'!D234<0.5),"-",IFERROR('Tabel 2 S'!D234/'Tabel 1 S'!C234*100,"-")) -> - | F234: =IF(OR('Tabel 1 S'!E234<5,'Tabel 2 S'!F234<0.5),"-",IFERROR('Tabel 2 S'!F234/'Tabel 1 S'!E234*100,"-")) -> - | G234: =IF(OR('Tabel 1 S'!E234<5,'Tabel 2 S'!G234<0.5),"-",IFERROR('Tabel 2 S'!G234/'Tabel 1 S'!E234*100,"-")) -> - | I234: =IF(OR('Tabel 1 S'!G234<5,'Tabel 2 S'!I234<0.5),"-",IFERROR('Tabel 2 S'!I234/'Tabel 1 S'!G234*100,"-")) -> - | J234: =IF(OR('Tabel 1 S'!G234<5,'Tabel 2 S'!J234<0.5),"-",IFERROR('Tabel 2 S'!J234/'Tabel 1 S'!G234*100,"-")) -> -
A235: Forstkand. | C235: =IF(OR('Tabel 1 S'!C235<5,'Tabel 2 S'!C235<0.5),"-",IFERROR('Tabel 2 S'!C235/'Tabel 1 S'!C235*100,"-")) -> - | D235: =IF(OR('Tabel 1 S'!C235<5,'Tabel 2 S'!D235<0.5),"-",IFERROR('Tabel 2 S'!D235/'Tabel 1 S'!C235*100,"-")) -> - | F235: =IF(OR('Tabel 1 S'!E235<5,'Tabel 2 S'!F235<0.5),"-",IFERROR('Tabel 2 S'!F235/'Tabel 1 S'!E235*100,"-")) -> - | G235: =IF(OR('Tabel 1 S'!E235<5,'Tabel 2 S'!G235<0.5),"-",IFERROR('Tabel 2 S'!G235/'Tabel 1 S'!E235*100,"-")) -> - | I235: =IF(OR('Tabel 1 S'!G235<5,'Tabel 2 S'!I235<0.5),"-",IFERROR('Tabel 2 S'!I235/'Tabel 1 S'!G235*100,"-")) -> - | J235: =IF(OR('Tabel 1 S'!G235<5,'Tabel 2 S'!J235<0.5),"-",IFERROR('Tabel 2 S'!J235/'Tabel 1 S'!G235*100,"-")) -> -
A236: Jordbrugsakad. | C236: =IF(OR('Tabel 1 S'!C236<5,'Tabel 2 S'!C236<0.5),"-",IFERROR('Tabel 2 S'!C236/'Tabel 1 S'!C236*100,"-")) -> - | D236: =IF(OR('Tabel 1 S'!C236<5,'Tabel 2 S'!D236<0.5),"-",IFERROR('Tabel 2 S'!D236/'Tabel 1 S'!C236*100,"-")) -> - | F236: =IF(OR('Tabel 1 S'!E236<5,'Tabel 2 S'!F236<0.5),"-",IFERROR('Tabel 2 S'!F236/'Tabel 1 S'!E236*100,"-")) -> - | G236: =IF(OR('Tabel 1 S'!E236<5,'Tabel 2 S'!G236<0.5),"-",IFERROR('Tabel 2 S'!G236/'Tabel 1 S'!E236*100,"-")) -> - | I236: =IF(OR('Tabel 1 S'!G236<5,'Tabel 2 S'!I236<0.5),"-",IFERROR('Tabel 2 S'!I236/'Tabel 1 S'!G236*100,"-")) -> - | J236: =IF(OR('Tabel 1 S'!G236<5,'Tabel 2 S'!J236<0.5),"-",IFERROR('Tabel 2 S'!J236/'Tabel 1 S'!G236*100,"-")) -> -
A237: Mejeriing. | C237: =IF(OR('Tabel 1 S'!C237<5,'Tabel 2 S'!C237<0.5),"-",IFERROR('Tabel 2 S'!C237/'Tabel 1 S'!C237*100,"-")) -> - | D237: =IF(OR('Tabel 1 S'!C237<5,'Tabel 2 S'!D237<0.5),"-",IFERROR('Tabel 2 S'!D237/'Tabel 1 S'!C237*100,"-")) -> - | F237: =IF(OR('Tabel 1 S'!E237<5,'Tabel 2 S'!F237<0.5),"-",IFERROR('Tabel 2 S'!F237/'Tabel 1 S'!E237*100,"-")) -> - | G237: =IF(OR('Tabel 1 S'!E237<5,'Tabel 2 S'!G237<0.5),"-",IFERROR('Tabel 2 S'!G237/'Tabel 1 S'!E237*100,"-")) -> - | I237: =IF(OR('Tabel 1 S'!G237<5,'Tabel 2 S'!I237<0.5),"-",IFERROR('Tabel 2 S'!I237/'Tabel 1 S'!G237*100,"-")) -> - | J237: =IF(OR('Tabel 1 S'!G237<5,'Tabel 2 S'!J237<0.5),"-",IFERROR('Tabel 2 S'!J237/'Tabel 1 S'!G237*100,"-")) -> -
A238: Levn.m.kand. | C238: =IF(OR('Tabel 1 S'!C238<5,'Tabel 2 S'!C238<0.5),"-",IFERROR('Tabel 2 S'!C238/'Tabel 1 S'!C238*100,"-")) -> - | D238: =IF(OR('Tabel 1 S'!C238<5,'Tabel 2 S'!D238<0.5),"-",IFERROR('Tabel 2 S'!D238/'Tabel 1 S'!C238*100,"-")) -> - | F238: =IF(OR('Tabel 1 S'!E238<5,'Tabel 2 S'!F238<0.5),"-",IFERROR('Tabel 2 S'!F238/'Tabel 1 S'!E238*100,"-")) -> - | G238: =IF(OR('Tabel 1 S'!E238<5,'Tabel 2 S'!G238<0.5),"-",IFERROR('Tabel 2 S'!G238/'Tabel 1 S'!E238*100,"-")) -> - | I238: =IF(OR('Tabel 1 S'!G238<5,'Tabel 2 S'!I238<0.5),"-",IFERROR('Tabel 2 S'!I238/'Tabel 1 S'!G238*100,"-")) -> - | J238: =IF(OR('Tabel 1 S'!G238<5,'Tabel 2 S'!J238<0.5),"-",IFERROR('Tabel 2 S'!J238/'Tabel 1 S'!G238*100,"-")) -> -
A239: Dyrlæge | C239: =IF(OR('Tabel 1 S'!C239<5,'Tabel 2 S'!C239<0.5),"-",IFERROR('Tabel 2 S'!C239/'Tabel 1 S'!C239*100,"-")) -> - | D239: =IF(OR('Tabel 1 S'!C239<5,'Tabel 2 S'!D239<0.5),"-",IFERROR('Tabel 2 S'!D239/'Tabel 1 S'!C239*100,"-")) -> - | F239: =IF(OR('Tabel 1 S'!E239<5,'Tabel 2 S'!F239<0.5),"-",IFERROR('Tabel 2 S'!F239/'Tabel 1 S'!E239*100,"-")) -> - | G239: =IF(OR('Tabel 1 S'!E239<5,'Tabel 2 S'!G239<0.5),"-",IFERROR('Tabel 2 S'!G239/'Tabel 1 S'!E239*100,"-")) -> - | I239: =IF(OR('Tabel 1 S'!G239<5,'Tabel 2 S'!I239<0.5),"-",IFERROR('Tabel 2 S'!I239/'Tabel 1 S'!G239*100,"-")) -> - | J239: =IF(OR('Tabel 1 S'!G239<5,'Tabel 2 S'!J239<0.5),"-",IFERROR('Tabel 2 S'!J239/'Tabel 1 S'!G239*100,"-")) -> -
... 611 more rows

Sheet Tabel 4F S
A1: Tabel 4. Antal forsikrede - aldersfordelt
A3: Sjælland
C5: Under 30 år | D5: 30 - 39 år | E5: 40 - 49 år | F5: 50 - 59 år | G5: Over 60 år | I5: I alt
A7: Civ. ing. | C7: 186 | D7: 593 | E7: 614 | F7: 724 | G7: 212 | I7: 2329
A8: Diplom ing. | C8: 236 | D8: 574 | E8: 981 | F8: 1615 | G8: 503 | I8: 3909
A9: Cand. Scient. Tek. | C9: 247 | D9: 656 | E9: 273 | F9: 113 | G9: 21 | I9: 1310
A10: MA. Hum. | C10: 275 | D10: 1052 | E10: 1108 | F10: 547 | G10: 240 | I10: 3222
A11: MA. Nat. | C11: 64 | D11: 277 | E11: 484 | F11: 444 | G11: 198 | I11: 1467
A12: MA. Ph.d. | C12: 2 | D12: 33 | E12: 52 | F12: 51 | G12: 15 | I12: 153
A13: MA. Samf. | C13: 70 | D13: 206 | E13: 94 | F13: 41 | G13: 17 | I13: 428
A14: Øvrige Mag. | C14: 23 | D14: 41 | E14: 72 | F14: 90 | G14: 42 | I14: 268
A15: Agronom | C15: 20 | D15: 46 | E15: 121 | F15: 177 | G15: 93 | I15: 457
A16: Landsk. Arkt. | C16: 2 | D16: 25 | E16: 32 | F16: 24 | G16: 12 | I16: 95
A17: Hortonom | C17: 2 | D17: 1 | E17: 12 | F17: 27 | G17: 15 | I17: 57
A18: Forstkand. | C18: 4 | D18: 12 | E18: 34 | F18: 17 | G18: 14 | I18: 81
A19: Jordbrugsakad. | C19: 28 | D19: 84 | E19: 199 | F19: 245 | G19: 134 | I19: 690
A20: Mejeriing. | C20: 4 | D20: 10 | E20: 6 | F20: 13 | G20: 8 | I20: 41
A21: Levn.m.kand. | C21: 11 | D21: 33 | E21: 12 | F21: 5 | G21: 1 | I21: 62
A22: Dyrlæge | C22: 31 | D22: 136 | E22: 113 | F22: 105 | G22: 34 | I22: 419
A23: Farmaceut | C23: 74 | D23: 169 | E23: 168 | F23: 136 | G23: 38 | I23: 585
A24: Læge | C24: 83 | D24: 277 | E24: 163 | F24: 131 | G24: 75 | I24: 729
A25: Tandlæge | C25: 29 | D25: 42 | E25: 57 | F25: 35 | G25: 17 | I25: 180
A26: Arkitekt | C26: 11 | D26: 65 | E26: 67 | F26: 68 | G26: 40 | I26: 251
A27: Landinspek. | C27: 7 | D27: 17 | E27: 14 | F27: 26 | G27: 8 | I27: 72
A28: Bibliotekar | C28: 11 | D28: 69 | E28: 117 | F28: 118 | G28: 75 | I28: 390
A29: Musikudd. | C29: 3 | D29: 10 | E29: 26 | F29: 31 | G29: 34 | I29: 104
A30: Teolog | C30: 7 | D30: 29 | E30: 56 | F30: 82 | G30: 40 | I30: 214
A31: Psykolog | C31: 78 | D31: 200 | E31: 159 | F31: 118 | G31: 58 | I31: 613
A32: Jurist | C32: 126 | D32: 346 | E32: 326 | F32: 276 | G32: 99 | I32: 1173
A33: Økonom | C33: 39 | D33: 121 | E33: 164 | F33: 227 | G33: 45 | I33: 596
A34: Samf. Adm. | C34: 192 | D34: 699 | E34: 636 | F34: 439 | G34: 129 | I34: 2095
A35: Cand. Merc. | C35: 287 | D35: 812 | E35: 626 | F35: 526 | G35: 95 | I35: 2346
A36: HA | C36: 64 | D36: 73 | E36: 148 | F36: 245 | G36: 61 | I36: 591
A37: HD | C37: 32 | D37: 56 | E37: 90 | F37: 250 | G37: 85 | I37: 513
A38: Komm. og Sprog | C38: 59 | D38: 137 | E38: 178 | F38: 164 | G38: 84 | I38: 622
A39: Bygningskonst. | C39: 157 | D39: 467 | E39: 333 | F39: 190 | G39: 57 | I39: 1204
A40: Cand. IT. | C40: 31 | D40: 110 | E40: 80 | F40: 15 | G40: 0 | I40: 236
A41: Bac. Samf. | C41: 17 | D41: 23 | E41: 29 | F41: 29 | G41: 4 | I41: 102
A42: Bac. Hum. | C42: 94 | D42: 70 | E42: 61 | F42: 74 | G42: 25 | I42: 324
A43: Bac. Nat. | C43: 90 | D43: 74 | E43: 42 | F43: 30 | G43: 13 | I43: 249
A44: Andre | C44: 135 | D44: 568 | E44: 514 | F44: 438 | G44: 208 | I44: 1863
A46: Total | C46: 2803 | D46: 8129 | E46: 8062 | F46: 7641 | G46: 2715 | I46: 29350
A48: Ingeniører i alt | C48: 422 | D48: 1167 | E48: 1595 | F48: 2339 | G48: 715 | I48: 6238
A49: Magistre i alt | C49: 434 | D49: 1609 | E49: 1810 | F49: 1173 | G49: 512 | I49: 5538
A50: DJØF'ere i alt | C50: 708 | D50: 2051 | E50: 1900 | F50: 1713 | G50: 429 | I50: 6801
A57: Greve
C59: Under 30 år | D59: 30 - 39 år | E59: 40 - 49 år | F59: 50 - 59 år | G59: Over 60 år | I59: I alt
A61: Civ. ing. | C61: 11 | D61: 58 | E61: 54 | F61: 50 | G61: 19 | I61: 192
A62: Diplom ing. | C62: 23 | D62: 61 | E62: 86 | F62: 146 | G62: 38 | I62: 354
A63: Cand. Scient. Tek. | C63: 13 | D63: 36 | E63: 28 | F63: 10 | G63: 2 | I63: 89
A64: MA. Hum. | C64: 15 | D64: 47 | E64: 54 | F64: 20 | G64: 7 | I64: 143
A65: MA. Nat. | C65: 4 | D65: 15 | E65: 25 | F65: 30 | G65: 5 | I65: 79
A66: MA. Ph.d. | C66: 0 | D66: 5 | E66: 3 | F66: 1 | G66: 0 | I66: 9
A67: MA. Samf. | C67: 4 | D67: 9 | E67: 2 | F67: 0 | G67: 1 | I67: 16
A68: Øvrige Mag. | C68: 0 | D68: 3 | E68: 6 | F68: 5 | G68: 4 | I68: 18
A69: Agronom | C69: 2 | D69: 1 | E69: 6 | F69: 5 | G69: 1 | I69: 15
A70: Landsk. Arkt. | C70: 1 | D70: 2 | E70: 2 | F70: 0 | G70: 0 | I70: 5
A71: Hortonom | C71: 0 | D71: 0 | E71: 0 | F71: 2 | G71: 0 | I71: 2
A72: Forstkand. | C72: 0 | D72: 0 | E72: 0 | F72: 0 | G72: 0 | I72: 0
A73: Jordbrugsakad. | C73: 3 | D73: 3 | E73: 8 | F73: 7 | G73: 1 | I73: 22
A74: Mejeriing. | C74: 0 | D74: 0 | E74: 0 | F74: 1 | G74: 0 | I74: 1
A75: Levn.m.kand. | C75: 0 | D75: 1 | E75: 1 | F75: 0 | G75: 0 | I75: 2
A76: Dyrlæge | C76: 2 | D76: 9 | E76: 3 | F76: 2 | G76: 1 | I76: 17
A77: Farmaceut | C77: 6 | D77: 27 | E77: 17 | F77: 15 | G77: 2 | I77: 67
A78: Læge | C78: 4 | D78: 14 | E78: 10 | F78: 9 | G78: 7 | I78: 44
A79: Tandlæge | C79: 3 | D79: 6 | E79: 4 | F79: 4 | G79: 1 | I79: 18
A80: Arkitekt | C80: 2 | D80: 6 | E80: 3 | F80: 2 | G80: 1 | I80: 14
A81: Landinspek. | C81: 0 | D81: 1 | E81: 0 | F81: 4 | G81: 0 | I81: 5
A82: Bibliotekar | C82: 1 | D82: 4 | E82: 6 | F82: 5 | G82: 7 | I82: 23
A83: Musikudd. | C83: 0 | D83: 1 | E83: 2 | F83: 0 | G83: 1 | I83: 4
A84: Teolog | C84: 0 | D84: 4 | E84: 1 | F84: 7 | G84: 4 | I84: 16
A85: Psykolog | C85: 2 | D85: 9 | E85: 7 | F85: 4 | G85: 0 | I85: 22
A86: Jurist | C86: 8 | D86: 32 | E86: 35 | F86: 34 | G86: 9 | I86: 118
A87: Økonom | C87: 3 | D87: 10 | E87: 24 | F87: 15 | G87: 2 | I87: 54
A88: Samf. Adm. | C88: 9 | D88: 51 | E88: 37 | F88: 24 | G88: 4 | I88: 125
A89: Cand. Merc. | C89: 25 | D89: 105 | E89: 91 | F89: 67 | G89: 12 | I89: 300
A90: HA | C90: 2 | D90: 15 | E90: 19 | F90: 26 | G90: 8 | I90: 70
A91: HD | C91: 1 | D91: 11 | E91: 13 | F91: 33 | G91: 17 | I91: 75
A92: Komm. og Sprog | C92: 3 | D92: 11 | E92: 23 | F92: 14 | G92: 8 | I92: 59
A93: Bygningskonst. | C93: 8 | D93: 30 | E93: 20 | F93: 11 | G93: 7 | I93: 76
A94: Cand. IT. | C94: 2 | D94: 12 | E94: 9 | F94: 1 | G94: 0 | I94: 24
A95: Bac. Samf. | C95: 3 | D95: 1 | E95: 2 | F95: 3 | G95: 0 | I95: 9
A96: Bac. Hum. | C96: 1 | D96: 5 | E96: 5 | F96: 3 | G96: 1 | I96: 15
A97: Bac. Nat. | C97: 4 | D97: 6 | E97: 4 | F97: 2 | G97: 2 | I97: 18
A98: Andre | C98: 11 | D98: 58 | E98: 47 | F98: 31 | G98: 11 | I98: 158
A100: Total | C100: 173 | D100: 666 | E100: 649 | F100: 586 | G100: 182 | I100: 2256
A102: Ingeniører i alt | C102: 34 | D102: 119 | E102: 140 | F102: 196 | G102: 57 | I102: 546
A103: Magistre i alt | C103: 23 | D103: 79 | E103: 90 | F103: 56 | G103: 17 | I103: 265
A104: DJØF'ere i alt | C104: 47 | D104: 213 | E104: 206 | F104: 166 | G104: 35 | I104: 667
A111: Køge
C113: Under 30 år | D113: 30 - 39 år | E113: 40 - 49 år | F113: 50 - 59 år | G113: Over 60 år | I113: I alt
A115: Civ. ing. | C115: 22 | D115: 60 | E115: 42 | F115: 70 | G115: 11 | I115: 205
A116: Diplom ing. | C116: 21 | D116: 55 | E116: 75 | F116: 157 | G116: 45 | I116: 353
A117: Cand. Scient. Tek. | C117: 16 | D117: 46 | E117: 18 | F117: 12 | G117: 0 | I117: 92
A118: MA. Hum. | C118: 16 | D118: 93 | E118: 79 | F118: 28 | G118: 15 | I118: 231
A119: MA. Nat. | C119: 7 | D119: 26 | E119: 27 | F119: 38 | G119: 8 | I119: 106
A120: MA. Ph.d. | C120: 0 | D120: 2 | E120: 0 | F120: 3 | G120: 1 | I120: 6
A121: MA. Samf. | C121: 6 | D121: 18 | E121: 5 | F121: 5 | G121: 1 | I121: 35
A122: Øvrige Mag. | C122: 1 | D122: 3 | E122: 8 | F122: 6 | G122: 3 | I122: 21
A123: Agronom | C123: 1 | D123: 5 | E123: 10 | F123: 10 | G123: 11 | I123: 37
A124: Landsk. Arkt. | C124: 0 | D124: 3 | E124: 1 | F124: 2 | G124: 1 | I124: 7
A125: Hortonom | C125: 0 | D125: 0 | E125: 2 | F125: 2 | G125: 2 | I125: 6
A126: Forstkand. | C126: 0 | D126: 0 | E126: 3 | F126: 0 | G126: 1 | I126: 4
A127: Jordbrugsakad. | C127: 1 | D127: 8 | E127: 16 | F127: 14 | G127: 15 | I127: 54
A128: Mejeriing. | C128: 0 | D128: 0 | E128: 0 | F128: 0 | G128: 0 | I128: 0
A129: Levn.m.kand. | C129: 2 | D129: 4 | E129: 1 | F129: 1 | G129: 0 | I129: 8
A130: Dyrlæge | C130: 3 | D130: 7 | E130: 10 | F130: 11 | G130: 2 | I130: 33
A131: Farmaceut | C131: 7 | D131: 16 | E131: 17 | F131: 9 | G131: 0 | I131: 49
A132: Læge | C132: 2 | D132: 24 | E132: 15 | F132: 11 | G132: 4 | I132: 56
A133: Tandlæge | C133: 4 | D133: 3 | E133: 9 | F133: 1 | G133: 1 | I133: 18
A134: Arkitekt | C134: 1 | D134: 4 | E134: 4 | F134: 4 | G134: 3 | I134: 16
A135: Landinspek. | C135: 0 | D135: 1 | E135: 0 | F135: 4 | G135: 1 | I135: 6
A136: Bibliotekar | C136: 1 | D136: 1 | E136: 7 | F136: 11 | G136: 8 | I136: 28
A137: Musikudd. | C137: 1 | D137: 0 | E137: 3 | F137: 2 | G137: 2 | I137: 8
A138: Teolog | C138: 0 | D138: 2 | E138: 3 | F138: 2 | G138: 1 | I138: 8
A139: Psykolog | C139: 8 | D139: 20 | E139: 10 | F139: 11 | G139: 8 | I139: 57
A140: Jurist | C140: 14 | D140: 43 | E140: 38 | F140: 17 | G140: 4 | I140: 116
A141: Økonom | C141: 4 | D141: 16 | E141: 26 | F141: 23 | G141: 6 | I141: 75
A142: Samf. Adm. | C142: 16 | D142: 79 | E142: 34 | F142: 29 | G142: 11 | I142: 169
A143: Cand. Merc. | C143: 31 | D143: 84 | E143: 77 | F143: 47 | G143: 6 | I143: 245
A144: HA | C144: 9 | D144: 4 | E144: 15 | F144: 12 | G144: 8 | I144: 48
A145: HD | C145: 4 | D145: 8 | E145: 10 | F145: 28 | G145: 3 | I145: 53
A146: Komm. og Sprog | C146: 6 | D146: 20 | E146: 14 | F146: 13 | G146: 10 | I146: 63
A147: Bygningskonst. | C147: 12 | D147: 49 | E147: 18 | F147: 16 | G147: 2 | I147: 97
A148: Cand. IT. | C148: 5 | D148: 17 | E148: 6 | F148: 1 | G148: 0 | I148: 29
A149: Bac. Samf. | C149: 1 | D149: 3 | E149: 2 | F149: 2 | G149: 1 | I149: 9
A150: Bac. Hum. | C150: 5 | D150: 3 | E150: 12 | F150: 5 | G150: 0 | I150: 25
A151: Bac. Nat. | C151: 12 | D151: 3 | E151: 2 | F151: 4 | G151: 1 | I151: 22
A152: Andre | C152: 23 | D152: 51 | E152: 52 | F152: 36 | G152: 16 | I152: 178
A154: Total | C154: 261 | D154: 773 | E154: 655 | F154: 633 | G154: 197 | I154: 2519
A156: Ingeniører i alt | C156: 43 | D156: 115 | E156: 117 | F156: 227 | G156: 56 | I156: 558
A157: Magistre i alt | C157: 30 | D157: 142 | E157: 119 | F157: 80 | G157: 28 | I157: 399
A158: DJØF'ere i alt | C158: 74 | D158: 226 | E158: 190 | F158: 128 | G158: 35 | I158: 653
A165: Roskilde
C167: Under 30 år | D167: 30 - 39 år | E167: 40 - 49 år | F167: 50 - 59 år | G167: Over 60 år | I167: I alt
A169: Civ. ing. | C169: 46 | D169: 174 | E169: 200 | F169: 231 | G169: 71 | I169: 722
A170: Diplom ing. | C170: 38 | D170: 110 | E170: 214 | F170: 348 | G170: 102 | I170: 812
A171: Cand. Scient. Tek. | C171: 57 | D171: 167 | E171: 78 | F171: 39 | G171: 5 | I171: 346
A172: MA. Hum. | C172: 70 | D172: 226 | E172: 271 | F172: 138 | G172: 52 | I172: 757
A173: MA. Nat. | C173: 15 | D173: 57 | E173: 143 | F173: 129 | G173: 58 | I173: 402
A174: MA. Ph.d. | C174: 1 | D174: 7 | E174: 14 | F174: 25 | G174: 3 | I174: 50
A175: MA. Samf. | C175: 20 | D175: 46 | E175: 28 | F175: 20 | G175: 7 | I175: 121
A176: Øvrige Mag. | C176: 9 | D176: 7 | E176: 12 | F176: 21 | G176: 12 | I176: 61
A177: Agronom | C177: 3 | D177: 9 | E177: 20 | F177: 28 | G177: 15 | I177: 75
A178: Landsk. Arkt. | C178: 0 | D178: 6 | E178: 12 | F178: 6 | G178: 1 | I178: 25
A179: Hortonom | C179: 0 | D179: 0 | E179: 2 | F179: 0 | G179: 1 | I179: 3
A180: Forstkand. | C180: 1 | D180: 3 | E180: 7 | F180: 2 | G180: 2 | I180: 15
A181: Jordbrugsakad. | C181: 4 | D181: 18 | E181: 41 | F181: 36 | G181: 19 | I181: 118
A182: Mejeriing. | C182: 1 | D182: 1 | E182: 1 | F182: 1 | G182: 0 | I182: 4
A183: Levn.m.kand. | C183: 2 | D183: 10 | E183: 5 | F183: 0 | G183: 0 | I183: 17
A184: Dyrlæge | C184: 2 | D184: 14 | E184: 13 | F184: 22 | G184: 8 | I184: 59
A185: Farmaceut | C185: 9 | D185: 36 | E185: 57 | F185: 46 | G185: 16 | I185: 164
A186: Læge | C186: 16 | D186: 91 | E186: 55 | F186: 34 | G186: 22 | I186: 218
A187: Tandlæge | C187: 5 | D187: 10 | E187: 11 | F187: 9 | G187: 3 | I187: 38
A188: Arkitekt | C188: 0 | D188: 17 | E188: 22 | F188: 17 | G188: 5 | I188: 61
A189: Landinspek. | C189: 0 | D189: 1 | E189: 4 | F189: 5 | G189: 3 | I189: 13
A190: Bibliotekar | C190: 1 | D190: 11 | E190: 28 | F190: 29 | G190: 18 | I190: 87
A191: Musikudd. | C191: 0 | D191: 3 | E191: 4 | F191: 4 | G191: 4 | I191: 15
A192: Teolog | C192: 0 | D192: 0 | E192: 12 | F192: 11 | G192: 5 | I192: 28
A193: Psykolog | C193: 15 | D193: 41 | E193: 48 | F193: 23 | G193: 9 | I193: 136
A194: Jurist | C194: 20 | D194: 77 | E194: 73 | F194: 60 | G194: 27 | I194: 257
A195: Økonom | C195: 12 | D195: 29 | E195: 43 | F195: 66 | G195: 11 | I195: 161
A196: Samf. Adm. | C196: 49 | D196: 179 | E196: 240 | F196: 159 | G196: 56 | I196: 683
A197: Cand. Merc. | C197: 64 | D197: 201 | E197: 156 | F197: 148 | G197: 24 | I197: 593
A198: HA | C198: 15 | D198: 10 | E198: 24 | F198: 60 | G198: 9 | I198: 118
A199: HD | C199: 4 | D199: 7 | E199: 25 | F199: 44 | G199: 13 | I199: 93
A200: Komm. og Sprog | C200: 9 | D200: 26 | E200: 34 | F200: 34 | G200: 16 | I200: 119
A201: Bygningskonst. | C201: 17 | D201: 51 | E201: 51 | F201: 22 | G201: 6 | I201: 147
A202: Cand. IT. | C202: 6 | D202: 26 | E202: 29 | F202: 5 | G202: 0 | I202: 66
A203: Bac. Samf. | C203: 1 | D203: 8 | E203: 7 | F203: 8 | G203: 0 | I203: 24
A204: Bac. Hum. | C204: 34 | D204: 14 | E204: 10 | F204: 16 | G204: 8 | I204: 82
A205: Bac. Nat. | C205: 19 | D205: 11 | E205: 7 | F205: 5 | G205: 3 | I205: 45
A206: Andre | C206: 26 | D206: 134 | E206: 123 | F206: 79 | G206: 29 | I206: 391
A208: Total | C208: 587 | D208: 1820 | E208: 2083 | F208: 1894 | G208: 624 | I208: 7008
A210: Ingeniører i alt | C210: 84 | D210: 284 | E210: 414 | F210: 579 | G210: 173 | I210: 1534
A211: Magistre i alt | C211: 115 | D211: 343 | E211: 468 | F211: 333 | G211: 132 | I211: 1391
A212: DJØF'ere i alt | C212: 160 | D212: 496 | E212: 536 | F212: 493 | G212: 127 | I212: 1812
A219: Solrød
C221: Under 30 år | D221: 30 - 39 år | E221: 40 - 49 år | F221: 50 - 59 år | G221: Over 60 år | I221: I alt
A223: Civ. ing. | C223: 8 | D223: 33 | E223: 43 | F223: 44 | G223: 4 | I223: 132
A224: Diplom ing. | C224: 6 | D224: 37 | E224: 36 | F224: 72 | G224: 27 | I224: 178
A225: Cand. Scient. Tek. | C225: 11 | D225: 24 | E225: 10 | F225: 6 | G225: 0 | I225: 51
A226: MA. Hum. | C226: 8 | D226: 27 | E226: 34 | F226: 10 | G226: 3 | I226: 82
A227: MA. Nat. | C227: 3 | D227: 13 | E227: 10 | F227: 9 | G227: 4 | I227: 39
A228: MA. Ph.d. | C228: 0 | D228: 0 | E228: 2 | F228: 1 | G228: 0 | I228: 3
A229: MA. Samf. | C229: 2 | D229: 10 | E229: 2 | F229: 0 | G229: 1 | I229: 15
A230: Øvrige Mag. | C230: 0 | D230: 3 | E230: 6 | F230: 2 | G230: 0 | I230: 11
A231: Agronom | C231: 1 | D231: 0 | E231: 2 | F231: 0 | G231: 0 | I231: 3
A232: Landsk. Arkt. | C232: 0 | D232: 0 | E232: 1 | F232: 0 | G232: 0 | I232: 1
A233: Hortonom | C233: 0 | D233: 0 | E233: 1 | F233: 1 | G233: 0 | I233: 2
A234: Forstkand. | C234: 0 | D234: 0 | E234: 0 | F234: 0 | G234: 0 | I234: 0
A235: Jordbrugsakad. | C235: 1 | D235: 0 | E235: 4 | F235: 1 | G235: 0 | I235: 6
A236: Mejeriing. | C236: 0 | D236: 0 | E236: 1 | F236: 0 | G236: 0 | I236: 1
A237: Levn.m.kand. | C237: 0 | D237: 2 | E237: 0 | F237: 1 | G237: 0 | I237: 3
A238: Dyrlæge | C238: 1 | D238: 9 | E238: 0 | F238: 3 | G238: 0 | I238: 13
A239: Farmaceut | C239: 3 | D239: 9 | E239: 6 | F239: 3 | G239: 5 | I239: 26
A240: Læge | C240: 1 | D240: 16 | E240: 8 | F240: 1 | G240: 2 | I240: 28
A241: Tandlæge | C241: 1 | D241: 2 | E241: 0 | F241: 2 | G241: 2 | I241: 7
A242: Arkitekt | C242: 0 | D242: 2 | E242: 2 | F242: 2 | G242: 1 | I242: 7
A243: Landinspek. | C243: 0 | D243: 1 | E243: 1 | F243: 0 | G243: 0 | I243: 2
... 593 more rows

Sheet Tabel 4 S
A1: Tabel 4. Ledighedsberørte - aldersfordelt
A3: Sjælland
C5: Under 30 år | D5: 30 - 39 år | E5: 40 - 49 år | F5: 50 - 59 år | G5: Over 60 år | I5: I alt
A7: Civ. ing. | C7: 21.01 | D7: 15 | E7: 6 | F7: 9 | G7: 7 | I7: 58.01
A8: Diplom ing. | C8: 21.01 | D8: 14 | E8: 14 | F8: 22 | G8: 25 | I8: 96.01
A9: Cand. Scient. Tek | C9: 29.01 | D9: 31 | E9: 9 | F9: 7 | G9: 0 | I9: 76.01
A10: MA. Hum. | C10: 70.01 | D10: 111 | E10: 54 | F10: 30 | G10: 17 | I10: 282.01
A11: MA. Nat. | C11: 21.01 | D11: 18 | E11: 14 | F11: 10 | G11: 3 | I11: 66.01
A12: MA. Ph.d. | C12: 0.01 | D12: 3 | E12: 0 | F12: 3 | G12: 1 | I12: 7.01
A13: MA. Samf. | C13: 14.01 | D13: 23 | E13: 5 | F13: 2 | G13: 3 | I13: 47.01
A14: Øvrige Mag. | C14: 8.01 | D14: 4 | E14: 0 | F14: 3 | G14: 2 | I14: 17.01
A15: Agronom | C15: 4.01 | D15: 1 | E15: 2 | F15: 4 | G15: 8 | I15: 19.01
A16: Landsk. Arkt. | C16: 0.01 | D16: 4 | E16: 0 | F16: 0 | G16: 1 | I16: 5.01
A17: Hortonom | C17: 0.01 | D17: 0 | E17: 1 | F17: 1 | G17: 0 | I17: 2.01
A18: Forstkand. | C18: 1.01 | D18: 0 | E18: 0 | F18: 1 | G18: 1 | I18: 3.01
A19: Jordbrugsakad. | C19: 5.04 | D19: 5 | E19: 3 | F19: 6 | G19: 10 | I19: 29.04
A20: Mejeriing. | C20: 0.01 | D20: 0 | E20: 0 | F20: 0 | G20: 1 | I20: 1.01
A21: Levn.m.kand. | C21: 1.01 | D21: 1 | E21: 0 | F21: 0 | G21: 0 | I21: 2.01
A22: Dyrlæge | C22: 4.01 | D22: 5 | E22: 1 | F22: 1 | G22: 0 | I22: 11.01
A23: Farmaceut | C23: 5.01 | D23: 1 | E23: 0 | F23: 0 | G23: 0 | I23: 6.01
A24: Læge | C24: 11.01 | D24: 7 | E24: 2 | F24: 1 | G24: 0 | I24: 21.01
A25: Tandlæge | C25: 3.01 | D25: 0 | E25: 0 | F25: 0 | G25: 0 | I25: 3.01
A26: Arkitekt | C26: 0.01 | D26: 3 | E26: 8 | F26: 5 | G26: 0 | I26: 16.01
A27: Landinspek. | C27: 1.01 | D27: 0 | E27: 0 | F27: 0 | G27: 0 | I27: 1.01
A28: Bibliotekar | C28: 2.01 | D28: 7 | E28: 5 | F28: 2 | G28: 1 | I28: 17.01
A29: Musikudd. | C29: 0.01 | D29: 1 | E29: 0 | F29: 0 | G29: 2 | I29: 3.01
A30: Teolog | C30: 1.01 | D30: 1 | E30: 1 | F30: 0 | G30: 0 | I30: 3.01
A31: Psykolog | C31: 15.01 | D31: 14 | E31: 4 | F31: 2 | G31: 1 | I31: 36.01
A32: Jurist | C32: 6.01 | D32: 5 | E32: 1 | F32: 3 | G32: 2 | I32: 17.01
A33: Økonom | C33: 1.01 | D33: 4 | E33: 4 | F33: 2 | G33: 3 | I33: 14.01
A34: Samf. Adm. | C34: 35.01 | D34: 40 | E34: 20 | F34: 11 | G34: 5 | I34: 111.01
A35: Cand. Merc. | C35: 37.01 | D35: 32 | E35: 12 | F35: 26 | G35: 7 | I35: 114.01
A36: HA | C36: 10.01 | D36: 3 | E36: 5 | F36: 8 | G36: 6 | I36: 32.01
A37: HD | C37: 5.01 | D37: 3 | E37: 2 | F37: 4 | G37: 5 | I37: 19.01
A38: Komm. og Sprog | C38: 13.01 | D38: 10 | E38: 5 | F38: 11 | G38: 9 | I38: 48.01
A39: Bygningskonst. | C39: 13.01 | D39: 4 | E39: 6 | F39: 3 | G39: 4 | I39: 30.01
A40: Cand. IT. | C40: 7.01 | D40: 8 | E40: 4 | F40: 1 | G40: 0 | I40: 20.01
A41: Bac. Samf. | C41: 2.01 | D41: 1 | E41: 2 | F41: 2 | G41: 0 | I41: 7.01
A42: Bac. Hum. | C42: 15.01 | D42: 10 | E42: 3 | F42: 5 | G42: 3 | I42: 36.01
A43: Bac. Nat. | C43: 16.01 | D43: 6 | E43: 0 | F43: 1 | G43: 0 | I43: 23.01
A44: Andre | C44: 20.01 | D44: 45 | E44: 17 | F44: 23 | G44: 10 | I44: 115.01
A46: Total | C46: 412.37 | D46: 435 | E46: 207 | F46: 203 | G46: 127 | I46: 1384.37
A48: Ingeniører i alt | C48: 42.02 | D48: 29 | E48: 20 | F48: 31 | G48: 32 | I48: 154.02
A49: Magistre i alt | C49: 113.05 | D49: 159 | E49: 73 | F49: 48 | G49: 26 | I49: 419.05
A50: DJØF'ere i alt | C50: 89.05 | D50: 84 | E50: 42 | F50: 50 | G50: 23 | I50: 288.05
A57: Greve
C59: Under 30 år | D59: 30 - 39 år | E59: 40 - 49 år | F59: 50 - 59 år | G59: Over 60 år | I59: I alt
A61: Civ. ing. | C61: 0 | D61: 1 | E61: 0 | F61: 0 | G61: 2 | I61: 3
A62: Diplom ing. | C62: 2 | D62: 1 | E62: 1 | F62: 2 | G62: 1 | I62: 7
A63: Cand. Scient. Tek | C63: 3 | D63: 3 | E63: 0 | F63: 1 | G63: 0 | I63: 7
A64: MA. Hum. | C64: 4 | D64: 3 | E64: 1 | F64: 3 | G64: 0 | I64: 11
A65: MA. Nat. | C65: 1 | D65: 1 | E65: 0 | F65: 0 | G65: 0 | I65: 2
A66: MA. Ph.d. | C66: 0 | D66: 1 | E66: 0 | F66: 0 | G66: 0 | I66: 1
A67: MA. Samf. | C67: 0 | D67: 1 | E67: 1 | F67: 0 | G67: 0 | I67: 2
A68: Øvrige Mag. | C68: 0 | D68: 0 | E68: 0 | F68: 0 | G68: 0 | I68: 0
A69: Agronom | C69: 1 | D69: 0 | E69: 0 | F69: 0 | G69: 0 | I69: 1
A70: Landsk. Arkt. | C70: 0 | D70: 1 | E70: 0 | F70: 0 | G70: 0 | I70: 1
A71: Hortonom | C71: 0 | D71: 0 | E71: 0 | F71: 0 | G71: 0 | I71: 0
A72: Forstkand. | C72: 0 | D72: 0 | E72: 0 | F72: 0 | G72: 0 | I72: 0
A73: Jordbrugsakad. | C73: 1 | D73: 1 | E73: 0 | F73: 0 | G73: 0 | I73: 2
A74: Mejeriing. | C74: 0 | D74: 0 | E74: 0 | F74: 0 | G74: 0 | I74: 0
A75: Levn.m.kand. | C75: 0 | D75: 0 | E75: 0 | F75: 0 | G75: 0 | I75: 0
A76: Dyrlæge | C76: 0 | D76: 0 | E76: 0 | F76: 0 | G76: 0 | I76: 0
A77: Farmaceut | C77: 1 | D77: 0 | E77: 0 | F77: 0 | G77: 0 | I77: 1
A78: Læge | C78: 0 | D78: 0 | E78: 1 | F78: 0 | G78: 0 | I78: 1
A79: Tandlæge | C79: 0 | D79: 0 | E79: 0 | F79: 0 | G79: 0 | I79: 0
A80: Arkitekt | C80: 0 | D80: 0 | E80: 0 | F80: 0 | G80: 0 | I80: 0
A81: Landinspek. | C81: 0 | D81: 0 | E81: 0 | F81: 0 | G81: 0 | I81: 0
A82: Bibliotekar | C82: 0 | D82: 0 | E82: 0 | F82: 0 | G82: 0 | I82: 0
A83: Musikudd. | C83: 0 | D83: 0 | E83: 0 | F83: 0 | G83: 0 | I83: 0
A84: Teolog | C84: 0 | D84: 0 | E84: 0 | F84: 0 | G84: 0 | I84: 0
A85: Psykolog | C85: 1 | D85: 0 | E85: 0 | F85: 0 | G85: 0 | I85: 1
A86: Jurist | C86: 0 | D86: 0 | E86: 0 | F86: 0 | G86: 0 | I86: 0
A87: Økonom | C87: 0 | D87: 1 | E87: 1 | F87: 0 | G87: 0 | I87: 2
A88: Samf. Adm. | C88: 1 | D88: 1 | E88: 0 | F88: 0 | G88: 0 | I88: 2
A89: Cand. Merc. | C89: 0 | D89: 1 | E89: 0 | F89: 2 | G89: 1 | I89: 4
A90: HA | C90: 1 | D90: 0 | E90: 0 | F90: 0 | G90: 0 | I90: 1
A91: HD | C91: 0 | D91: 0 | E91: 0 | F91: 0 | G91: 2 | I91: 2
A92: Komm. og Sprog | C92: 0 | D92: 2 | E92: 0 | F92: 1 | G92: 1 | I92: 4
A93: Bygningskonst. | C93: 3 | D93: 0 | E93: 1 | F93: 0 | G93: 1 | I93: 5
A94: Cand. IT. | C94: 0 | D94: 0 | E94: 1 | F94: 0 | G94: 0 | I94: 1
A95: Bac. Samf. | C95: 1 | D95: 0 | E95: 0 | F95: 0 | G95: 0 | I95: 1
A96: Bac. Hum. | C96: 0 | D96: 3 | E96: 0 | F96: 0 | G96: 0 | I96: 3
A97: Bac. Nat. | C97: 2 | D97: 0 | E97: 0 | F97: 1 | G97: 0 | I97: 3
A98: Andre | C98: 1 | D98: 6 | E98: 1 | F98: 0 | G98: 0 | I98: 8
A100: Total | C100: 22 | D100: 26 | E100: 8 | F100: 10 | G100: 8 | I100: 74
A102: Ingeniører i alt | C102: 2 | D102: 2 | E102: 1 | F102: 2 | G102: 3 | I102: 10
A103: Magistre i alt | C103: 5 | D103: 6 | E103: 2 | F103: 3 | G103: 0 | I103: 16
A104: DJØF'ere i alt | C104: 2 | D104: 3 | E104: 1 | F104: 2 | G104: 1 | I104: 9
A111: Køge
C113: Under 30 år | D113: 30 - 39 år | E113: 40 - 49 år | F113: 50 - 59 år | G113: Over 60 år | I113: I alt
A115: Civ. ing. | C115: 0 | D115: 0 | E115: 0 | F115: 0 | G115: 0 | I115: 0
A116: Diplom ing. | C116: 0 | D116: 1 | E116: 0 | F116: 3 | G116: 3 | I116: 7
A117: Cand. Scient. Tek | C117: 3 | D117: 2 | E117: 1 | F117: 2 | G117: 0 | I117: 8
A118: MA. Hum. | C118: 4 | D118: 6 | E118: 3 | F118: 2 | G118: 1 | I118: 16
A119: MA. Nat. | C119: 2 | D119: 1 | E119: 1 | F119: 4 | G119: 0 | I119: 8
A120: MA. Ph.d. | C120: 0 | D120: 1 | E120: 0 | F120: 0 | G120: 0 | I120: 1
A121: MA. Samf. | C121: 2 | D121: 2 | E121: 0 | F121: 1 | G121: 0 | I121: 5
A122: Øvrige Mag. | C122: 1 | D122: 1 | E122: 0 | F122: 3 | G122: 0 | I122: 5
A123: Agronom | C123: 0 | D123: 0 | E123: 0 | F123: 0 | G123: 2 | I123: 2
A124: Landsk. Arkt. | C124: 0 | D124: 0 | E124: 0 | F124: 0 | G124: 0 | I124: 0
A125: Hortonom | C125: 0 | D125: 0 | E125: 0 | F125: 0 | G125: 0 | I125: 0
A126: Forstkand. | C126: 0 | D126: 0 | E126: 0 | F126: 0 | G126: 0 | I126: 0
A127: Jordbrugsakad. | C127: 0 | D127: 0 | E127: 0 | F127: 0 | G127: 2 | I127: 2
A128: Mejeriing. | C128: 0 | D128: 0 | E128: 0 | F128: 0 | G128: 0 | I128: 0
A129: Levn.m.kand. | C129: 0 | D129: 0 | E129: 0 | F129: 0 | G129: 0 | I129: 0
A130: Dyrlæge | C130: 1 | D130: 0 | E130: 0 | F130: 0 | G130: 0 | I130: 1
A131: Farmaceut | C131: 1 | D131: 0 | E131: 0 | F131: 0 | G131: 0 | I131: 1
A132: Læge | C132: 0 | D132: 2 | E132: 0 | F132: 0 | G132: 0 | I132: 2
A133: Tandlæge | C133: 0 | D133: 0 | E133: 0 | F133: 0 | G133: 0 | I133: 0
A134: Arkitekt | C134: 0 | D134: 0 | E134: 0 | F134: 0 | G134: 0 | I134: 0
A135: Landinspek. | C135: 0 | D135: 0 | E135: 0 | F135: 0 | G135: 0 | I135: 0
A136: Bibliotekar | C136: 0 | D136: 0 | E136: 2 | F136: 0 | G136: 1 | I136: 3
A137: Musikudd. | C137: 0 | D137: 0 | E137: 0 | F137: 0 | G137: 0 | I137: 0
A138: Teolog | C138: 0 | D138: 0 | E138: 0 | F138: 0 | G138: 0 | I138: 0
A139: Psykolog | C139: 2 | D139: 2 | E139: 1 | F139: 0 | G139: 1 | I139: 6
A140: Jurist | C140: 1 | D140: 3 | E140: 0 | F140: 0 | G140: 1 | I140: 5
A141: Økonom | C141: 0 | D141: 1 | E141: 1 | F141: 0 | G141: 0 | I141: 2
A142: Samf. Adm. | C142: 0 | D142: 3 | E142: 0 | F142: 2 | G142: 1 | I142: 6
A143: Cand. Merc. | C143: 3 | D143: 5 | E143: 2 | F143: 1 | G143: 0 | I143: 11
A144: HA | C144: 3 | D144: 0 | E144: 0 | F144: 0 | G144: 0 | I144: 3
A145: HD | C145: 0 | D145: 0 | E145: 0 | F145: 0 | G145: 0 | I145: 0
A146: Komm. og Sprog | C146: 2 | D146: 1 | E146: 0 | F146: 0 | G146: 1 | I146: 4
A147: Bygningskonst. | C147: 0 | D147: 1 | E147: 0 | F147: 1 | G147: 0 | I147: 2
A148: Cand. IT. | C148: 1 | D148: 2 | E148: 1 | F148: 0 | G148: 0 | I148: 4
A149: Bac. Samf. | C149: 0 | D149: 0 | E149: 0 | F149: 0 | G149: 0 | I149: 0
A150: Bac. Hum. | C150: 2 | D150: 0 | E150: 0 | F150: 0 | G150: 0 | I150: 2
A151: Bac. Nat. | C151: 2 | D151: 1 | E151: 0 | F151: 0 | G151: 0 | I151: 3
A152: Andre | C152: 4 | D152: 5 | E152: 0 | F152: 4 | G152: 2 | I152: 15
A154: Total | C154: 34 | D154: 40 | E154: 12 | F154: 23 | G154: 13 | I154: 122
A156: Ingeniører i alt | C156: 0 | D156: 1 | E156: 0 | F156: 3 | G156: 3 | I156: 7
A157: Magistre i alt | C157: 9 | D157: 11 | E157: 4 | F157: 10 | G157: 1 | I157: 35
A158: DJØF'ere i alt | C158: 7 | D158: 12 | E158: 3 | F158: 3 | G158: 2 | I158: 27
A165: Roskilde
C167: Under 30 år | D167: 30 - 39 år | E167: 40 - 49 år | F167: 50 - 59 år | G167: Over 60 år | I167: I alt
A169: Civ. ing. | C169: 6 | D169: 3 | E169: 2 | F169: 1 | G169: 2 | I169: 14
A170: Diplom ing. | C170: 4 | D170: 3 | E170: 4 | F170: 5 | G170: 8 | I170: 24
A171: Cand. Scient. Tek | C171: 6 | D171: 10 | E171: 0 | F171: 2 | G171: 0 | I171: 18
A172: MA. Hum. | C172: 23 | D172: 24 | E172: 9 | F172: 5 | G172: 3 | I172: 64
A173: MA. Nat. | C173: 9 | D173: 5 | E173: 5 | F173: 0 | G173: 0 | I173: 19
A174: MA. Ph.d. | C174: 0 | D174: 1 | E174: 0 | F174: 2 | G174: 1 | I174: 4
A175: MA. Samf. | C175: 6 | D175: 3 | E175: 2 | F175: 1 | G175: 0 | I175: 12
A176: Øvrige Mag. | C176: 4 | D176: 0 | E176: 0 | F176: 0 | G176: 1 | I176: 5
A177: Agronom | C177: 0 | D177: 0 | E177: 0 | F177: 1 | G177: 0 | I177: 1
A178: Landsk. Arkt. | C178: 0 | D178: 0 | E178: 0 | F178: 0 | G178: 0 | I178: 0
A179: Hortonom | C179: 0 | D179: 0 | E179: 0 | F179: 0 | G179: 0 | I179: 0
A180: Forstkand. | C180: 1 | D180: 0 | E180: 0 | F180: 0 | G180: 0 | I180: 1
A181: Jordbrugsakad. | C181: 1 | D181: 0 | E181: 0 | F181: 1 | G181: 0 | I181: 2
A182: Mejeriing. | C182: 0 | D182: 0 | E182: 0 | F182: 0 | G182: 0 | I182: 0
A183: Levn.m.kand. | C183: 0 | D183: 1 | E183: 0 | F183: 0 | G183: 0 | I183: 1
A184: Dyrlæge | C184: 0 | D184: 1 | E184: 0 | F184: 0 | G184: 0 | I184: 1
A185: Farmaceut | C185: 1 | D185: 0 | E185: 0 | F185: 0 | G185: 0 | I185: 1
A186: Læge | C186: 2 | D186: 2 | E186: 1 | F186: 0 | G186: 0 | I186: 5
A187: Tandlæge | C187: 1 | D187: 0 | E187: 0 | F187: 0 | G187: 0 | I187: 1
A188: Arkitekt | C188: 0 | D188: 1 | E188: 1 | F188: 2 | G188: 0 | I188: 4
A189: Landinspek. | C189: 0 | D189: 0 | E189: 0 | F189: 0 | G189: 0 | I189: 0
A190: Bibliotekar | C190: 1 | D190: 1 | E190: 0 | F190: 1 | G190: 0 | I190: 3
A191: Musikudd. | C191: 0 | D191: 0 | E191: 0 | F191: 0 | G191: 1 | I191: 1
A192: Teolog | C192: 0 | D192: 0 | E192: 0 | F192: 0 | G192: 0 | I192: 0
A193: Psykolog | C193: 4 | D193: 7 | E193: 2 | F193: 1 | G193: 0 | I193: 14
A194: Jurist | C194: 1 | D194: 0 | E194: 0 | F194: 1 | G194: 1 | I194: 3
A195: Økonom | C195: 0 | D195: 0 | E195: 1 | F195: 0 | G195: 1 | I195: 2
A196: Samf. Adm. | C196: 9 | D196: 9 | E196: 5 | F196: 1 | G196: 2 | I196: 26
A197: Cand. Merc. | C197: 8 | D197: 10 | E197: 2 | F197: 6 | G197: 2 | I197: 28
A198: HA | C198: 1 | D198: 0 | E198: 0 | F198: 2 | G198: 2 | I198: 5
A199: HD | C199: 2 | D199: 1 | E199: 0 | F199: 1 | G199: 0 | I199: 4
A200: Komm. og Sprog | C200: 3 | D200: 1 | E200: 0 | F200: 1 | G200: 3 | I200: 8
A201: Bygningskonst. | C201: 4 | D201: 0 | E201: 1 | F201: 0 | G201: 0 | I201: 5
A202: Cand. IT. | C202: 3 | D202: 1 | E202: 1 | F202: 0 | G202: 0 | I202: 5
A203: Bac. Samf. | C203: 0 | D203: 0 | E203: 1 | F203: 0 | G203: 0 | I203: 1
A204: Bac. Hum. | C204: 5 | D204: 2 | E204: 1 | F204: 0 | G204: 2 | I204: 10
A205: Bac. Nat. | C205: 3 | D205: 1 | E205: 0 | F205: 0 | G205: 0 | I205: 4
A206: Andre | C206: 4 | D206: 4 | E206: 5 | F206: 2 | G206: 0 | I206: 15
A208: Total | C208: 111 | D208: 91 | E208: 43 | F208: 35 | G208: 29 | I208: 309
A210: Ingeniører i alt | C210: 10 | D210: 6 | E210: 6 | F210: 6 | G210: 10 | I210: 38
A211: Magistre i alt | C211: 42 | D211: 33 | E211: 16 | F211: 8 | G211: 5 | I211: 104
A212: DJØF'ere i alt | C212: 19 | D212: 19 | E212: 8 | F212: 10 | G212: 8 | I212: 64
A219: Solrød
C221: Under 30 år | D221: 30 - 39 år | E221: 40 - 49 år | F221: 50 - 59 år | G221: Over 60 år | I221: I alt
A223: Civ. ing. | C223: 1 | D223: 0 | E223: 0 | F223: 0 | G223: 0 | I223: 1
A224: Diplom ing. | C224: 0 | D224: 0 | E224: 0 | F224: 1 | G224: 0 | I224: 1
A225: Cand. Scient. Tek | C225: 0 | D225: 0 | E225: 0 | F225: 0 | G225: 0 | I225: 0
A226: MA. Hum. | C226: 3 | D226: 3 | E226: 1 | F226: 1 | G226: 0 | I226: 8
A227: MA. Nat. | C227: 1 | D227: 1 | E227: 0 | F227: 0 | G227: 0 | I227: 2
A228: MA. Ph.d. | C228: 0 | D228: 0 | E228: 0 | F228: 0 | G228: 0 | I228: 0
A229: MA. Samf. | C229: 0 | D229: 1 | E229: 0 | F229: 0 | G229: 1 | I229: 2
A230: Øvrige Mag. | C230: 0 | D230: 0 | E230: 0 | F230: 0 | G230: 0 | I230: 0
A231: Agronom | C231: 0 | D231: 0 | E231: 0 | F231: 0 | G231: 0 | I231: 0
A232: Landsk. Arkt. | C232: 0 | D232: 0 | E232: 0 | F232: 0 | G232: 0 | I232: 0
A233: Hortonom | C233: 0 | D233: 0 | E233: 0 | F233: 0 | G233: 0 | I233: 0
A234: Forstkand. | C234: 0 | D234: 0 | E234: 0 | F234: 0 | G234: 0 | I234: 0
A235: Jordbrugsakad. | C235: 0 | D235: 0 | E235: 0 | F235: 0 | G235: 0 | I235: 0
A236: Mejeriing. | C236: 0 | D236: 0 | E236: 0 | F236: 0 | G236: 0 | I236: 0
A237: Levn.m.kand. | C237: 0 | D237: 0 | E237: 0 | F237: 0 | G237: 0 | I237: 0
A238: Dyrlæge | C238: 0 | D238: 0 | E238: 0 | F238: 0 | G238: 0 | I238: 0
A239: Farmaceut | C239: 0 | D239: 0 | E239: 0 | F239: 0 | G239: 0 | I239: 0
A240: Læge | C240: 1 | D240: 1 | E240: 0 | F240: 0 | G240: 0 | I240: 2
A241: Tandlæge | C241: 0 | D241: 0 | E241: 0 | F241: 0 | G241: 0 | I241: 0
A242: Arkitekt | C242: 0 | D242: 0 | E242: 0 | F242: 1 | G242: 0 | I242: 1
A243: Landinspek. | C243: 0 | D243: 0 | E243: 0 | F243: 0 | G243: 0 | I243: 0
... 593 more rows

Sheet Tabel 4(Br) S
A1: Tabel 4. Ledighedsberørte - aldersfordelt
A3: Sjælland
C5: Under 30 år | D5: 30 - 39 år | E5: 40 - 49 år | F5: 50 - 59 år | G5: Over 60 år | I5: I alt
A7: Civ. ing. | C7: 18.01721451 | D7: 13.01752635 | E7: 4.66038795 | F7: 8.322210441 | G7: 5.901577995 | I7: 49.91891724
A8: Diplom ing. | C8: 17.97355455 | D8: 13.64934822 | E8: 12.16428616 | F8: 17.93426059 | G8: 19.73055573 | I8: 81.45200525
A9: Cand. Scient. Tek | C9: 27.74839395 | D9: 23.82648288 | E9: 7.410964885 | F9: 6.794112144 | G9: 0 | I9: 65.77995386
A10: MA. Hum. | C10: 55.27973556 | D10: 84.84563089 | E10: 44.97910559 | F10: 22.6252105 | G10: 14.1670305 | I10: 221.896713
A11: MA. Nat. | C11: 14.57992891 | D11: 15.6034429 | E11: 10.02619597 | F11: 8.733237697 | G11: 2.399426183 | I11: 51.34223166
A12: MA. Ph.d. | C12: 1e-08 | D12: 2.999438658 | E12: 0 | F12: 2.2946423 | G12: 0.9998128859 | I12: 6.293893854
A13: MA. Samf. | C13: 12.90213935 | D13: 20.20457806 | E13: 3.660575064 | F13: 1.768851743 | G13: 2.434977858 | I13: 40.97112207
A14: Øvrige Mag. | C14: 7.209505405 | D14: 3.946235888 | E14: 0 | F14: 2.537890601 | G14: 1.307303686 | I14: 15.00093558
A15: Agronom | C15: 3.491548691 | D15: 0.3536456059 | E15: 1.070916235 | F15: 2.370735358 | G15: 7.075406973 | I15: 14.36225286
A16: Landsk. Arkt. | C16: 1e-08 | D16: 3.768477515 | E16: 0 | F16: 0 | G16: 0.5382648288 | I16: 4.306742354
A17: Hortonom | C17: 1e-08 | D17: 0 | E17: 0.9998128859 | F17: 0.9000187114 | G17: 0 | I17: 1.899831607
A18: Forstkand. | C18: 0.9998128959 | D18: 0 | E18: 0 | F18: 0.9998128859 | G18: 0.9998128859 | I18: 2.999438668
A19: Jordbrugsakad. | C19: 4.491361607 | D19: 4.122123121 | E19: 2.070729121 | F19: 4.270566956 | G19: 8.613484688 | I19: 23.56826549
A20: Mejeriing. | C20: 1e-08 | D20: 0 | E20: 0 | F20: 0 | G20: 0.9998128859 | I20: 0.9998128959
A21: Levn.m.kand. | C21: 0.9998128959 | D21: 0.7690388574 | E21: 0 | F21: 0 | G21: 0 | I21: 1.768851753
A22: Dyrlæge | C22: 3.614420268 | D22: 2.329570261 | E22: 0.9075032745 | F22: 0.5694505083 | G22: 0 | I22: 7.420944312
A23: Farmaceut | C23: 4.35289716 | D23: 0.3536456059 | E23: 0 | F23: 0 | G23: 0 | I23: 4.706542766
A24: Læge | C24: 9.745524865 | D24: 4.003617539 | E24: 1.214994075 | F24: 0.7228840516 | G24: 0 | I24: 15.68702053
A25: Tandlæge | C25: 1.458866099 | D25: 0 | E25: 0 | F25: 0 | G25: 0 | I25: 1.458866099
A26: Arkitekt | C26: 1e-08 | D26: 1.654712156 | E26: 6.767292459 | F26: 4.186365621 | G26: 0 | I26: 12.60837025
A27: Landinspek. | C27: 0.9998128959 | D27: 0 | E27: 0 | F27: 0 | G27: 0 | I27: 0.9998128959
A28: Bibliotekar | C28: 1.077777095 | D28: 5.925902825 | E28: 3.605688268 | F28: 0.5688267947 | G28: 0.9998128859 | I28: 12.17800787
A29: Musikudd. | C29: 1e-08 | D29: 0.9075032745 | E29: 0 | F29: 0 | G29: 1.685274122 | I29: 2.592777407
A30: Teolog | C30: 0.374851878 | D30: 0.9998128859 | E30: 0.9998128859 | F30: 0 | G30: 0 | I30: 2.37447765
A31: Psykolog | C31: 12.32894656 | D31: 11.2985717 | E31: 2.685710722 | F31: 1.425809268 | G31: 0.7690388574 | I31: 28.5080771
A32: Jurist | C32: 3.200898158 | D32: 4.399051955 | E32: 0.6767292459 | F32: 2.999438658 | G32: 1.315411963 | I32: 12.59152998
A33: Økonom | C33: 0.9998128959 | D33: 1.968440092 | E33: 3.999251544 | F33: 1.168839269 | G33: 2.527911183 | I33: 10.66425498
A34: Samf. Adm. | C34: 27.78394562 | D34: 31.82810453 | E34: 13.5614046 | F34: 9.064429614 | G34: 3.845194287 | I34: 86.08307866
A35: Cand. Merc. | C35: 30.75032746 | D35: 26.2552236 | E35: 9.042599638 | F35: 21.42144327 | G35: 4.215056446 | I35: 91.68465042
A36: HA | C36: 8.477515135 | D36: 2.937067299 | E36: 3.742281544 | F36: 7.285598453 | G36: 4.216927587 | I36: 26.65939002
A37: HD | C37: 4.821306066 | D37: 2.255972058 | E37: 1.768851743 | F37: 3.361816254 | G37: 3.891349092 | I37: 16.09929521
A38: Komm. og Sprog | C38: 9.025759381 | D38: 8.307865028 | E38: 3.015031498 | F38: 8.90912493 | G38: 5.844196345 | I38: 35.10197718
A39: Bygningskonst. | C39: 11.13883866 | D39: 4 | E39: 5.095053951 | F39: 1.938439469 | G39: 3.904322335 | I39: 26.07665441
A40: Cand. IT. | C40: 5.772469292 | D40: 7.263768478 | E40: 3.030000624 | F40: 0.9998128859 | G40: 0 | I40: 17.06605128
A41: Bac. Samf. | C41: 1.918543015 | D41: 0.9998128859 | E41: 1.999625772 | F41: 1.214994075 | G41: 0 | I41: 6.132975748
A42: Bac. Hum. | C42: 13.14975364 | D42: 7.614919229 | E42: 2.628329071 | F42: 4.952909624 | G42: 2.528534897 | I42: 30.87444646
A43: Bac. Nat. | C43: 13.95434418 | D43: 5.30655523 | E43: 0 | F43: 0.9998128859 | G43: 0 | I43: 20.26071229
A44: Andre | C44: 17.09037611 | D44: 35.5803655 | E44: 14.93606936 | F44: 17.46460425 | G44: 6.862096925 | I44: 91.93351214
A46: Total | C46: 341.2386332 | D46: 349.1743279 | E46: 164.648475 | F46: 164.5355829 | G46: 99.15910934 | I46: 1118.756128
A48: Ingeniører i alt | C48: 35.99076906 | D48: 26.66687457 | E48: 16.82467411 | F48: 26.25647103 | G48: 25.63213372 | I48: 131.3709225
A49: Magistre i alt | C49: 89.97130922 | D49: 127.5993264 | E49: 58.66587663 | F49: 37.95983284 | G49: 21.30855111 | I49: 335.5048962
A50: DJØF'ere i alt | C50: 71.21249927 | D50: 67.38788748 | E50: 31.02226658 | F50: 41.93974927 | G50: 16.12050147 | I50: 227.6829041
A57: Greve
C59: Under 30 år | D59: 30 - 39 år | E59: 40 - 49 år | F59: 50 - 59 år | G59: Over 60 år | I59: I alt
A61: Civ. ing. | C61: 0 | D61: 0.9998128859 | E61: 0 | F61: 0 | G61: 1.26114888 | I61: 2.260961766
A62: Diplom ing. | C62: 1.999625772 | D62: 0.9998128859 | E62: 0.9998128859 | F62: 1.999625772 | G62: 0.9998128859 | I62: 6.998690201
A63: Cand. Scient. Tek | C63: 2.999438658 | D63: 1.984032932 | E63: 0 | F63: 0.9536580802 | G63: 0 | I63: 5.93712967
A64: MA. Hum. | C64: 3.168465041 | D64: 2.722509823 | E64: 0.9075032745 | F64: 2.257219485 | G64: 0 | I64: 9.055697624
A65: MA. Nat. | C65: 0.9998128859 | D65: 0.9998128859 | E65: 0 | F65: 0 | G65: 0 | I65: 1.999625772
A66: MA. Ph.d. | C66: 0 | D66: 0.9998128859 | E66: 0 | F66: 0 | G66: 0 | I66: 0.9998128859
A67: MA. Samf. | C67: 0 | D67: 0.5382648288 | E67: 0.3074908002 | F67: 0 | G67: 0 | I67: 0.845755629
A68: Øvrige Mag. | C68: 0 | D68: 0 | E68: 0 | F68: 0 | G68: 0 | I68: 0
A69: Agronom | C69: 0.5382648288 | D69: 0 | E69: 0 | F69: 0 | G69: 0 | I69: 0.5382648288
A70: Landsk. Arkt. | C70: 0 | D70: 0.7690388574 | E70: 0 | F70: 0 | G70: 0 | I70: 0.7690388574
A71: Hortonom | C71: 0 | D71: 0 | E71: 0 | F71: 0 | G71: 0 | I71: 0
A72: Forstkand. | C72: 0 | D72: 0 | E72: 0 | F72: 0 | G72: 0 | I72: 0
A73: Jordbrugsakad. | C73: 0.5382648288 | D73: 0.7690388574 | E73: 0 | F73: 0 | G73: 0 | I73: 1.307303686
A74: Mejeriing. | C74: 0 | D74: 0 | E74: 0 | F74: 0 | G74: 0 | I74: 0
A75: Levn.m.kand. | C75: 0 | D75: 0 | E75: 0 | F75: 0 | G75: 0 | I75: 0
A76: Dyrlæge | C76: 0 | D76: 0 | E76: 0 | F76: 0 | G76: 0 | I76: 0
A77: Farmaceut | C77: 0.9998128859 | D77: 0 | E77: 0 | F77: 0 | G77: 0 | I77: 0.9998128859
A78: Læge | C78: 0 | D78: 0 | E78: 0.3074908002 | F78: 0 | G78: 0 | I78: 0.3074908002
A79: Tandlæge | C79: 0 | D79: 0 | E79: 0 | F79: 0 | G79: 0 | I79: 0
A80: Arkitekt | C80: 0 | D80: 0 | E80: 0 | F80: 0 | G80: 0 | I80: 0
A81: Landinspek. | C81: 0 | D81: 0 | E81: 0 | F81: 0 | G81: 0 | I81: 0
A82: Bibliotekar | C82: 0 | D82: 0 | E82: 0 | F82: 0 | G82: 0 | I82: 0
A83: Musikudd. | C83: 0 | D83: 0 | E83: 0 | F83: 0 | G83: 0 | I83: 0
A84: Teolog | C84: 0 | D84: 0 | E84: 0 | F84: 0 | G84: 0 | I84: 0
A85: Psykolog | C85: 0.6767292459 | D85: 0 | E85: 0 | F85: 0 | G85: 0 | I85: 0.6767292459
A86: Jurist | C86: 0 | D86: 0 | E86: 0 | F86: 0 | G86: 0 | I86: 0
A87: Økonom | C87: 0 | D87: 0.3074908002 | E87: 0.9998128859 | F87: 0 | G87: 0 | I87: 1.307303686
A88: Samf. Adm. | C88: 0.6817189547 | D88: 0.9998128859 | E88: 0 | F88: 0 | G88: 0 | I88: 1.681531841
A89: Cand. Merc. | C89: 0 | D89: 0.9998128859 | E89: 0 | F89: 1.90731616 | G89: 0.7690388574 | I89: 3.676167904
A90: HA | C90: 0.9998128859 | D90: 0 | E90: 0 | F90: 0 | G90: 0 | I90: 0.9998128859
A91: HD | C91: 0 | D91: 0 | E91: 0 | F91: 0 | G91: 1.768851743 | I91: 1.768851743
A92: Komm. og Sprog | C92: 0 | D92: 1.811887981 | E92: 0 | F92: 0.3074908002 | G92: 0.9998128859 | I92: 3.119191667
A93: Bygningskonst. | C93: 2.800411651 | D93: 0 | E93: 0.7230711657 | F93: 0 | G93: 1 | I93: 4.523482817
A94: Cand. IT. | C94: 0 | D94: 0 | E94: 0.4459552174 | F94: 0 | G94: 0 | I94: 0.4459552174
A95: Bac. Samf. | C95: 0.9998128859 | D95: 0 | E95: 0 | F95: 0 | G95: 0 | I95: 0.9998128859
A96: Bac. Hum. | C96: 0 | D96: 1.799413709 | E96: 0 | F96: 0 | G96: 0 | I96: 1.799413709
A97: Bac. Nat. | C97: 1.81687769 | D97: 0 | E97: 0 | F97: 0.9998128859 | G97: 0 | I97: 2.816690576
A98: Andre | C98: 0.9998128859 | D98: 4.121499407 | E98: 0.3536456059 | F98: 0 | G98: 0 | I98: 5.474957899
A100: Total | C100: 19.68059627 | D100: 20.05301566 | E100: 5.044782636 | F100: 8.425123183 | G100: 6.798665253 | I100: 60.002183
A102: Ingeniører i alt | C102: 1.999625772 | D102: 1.999625772 | E102: 0.9998128859 | F102: 1.999625772 | G102: 2.260961766 | I102: 9.259651968
A103: Magistre i alt | C103: 4.168277927 | D103: 5.260400424 | E103: 1.214994075 | F103: 2.257219485 | G103: 0 | I103: 12.90089191
A104: DJØF'ere i alt | C104: 1.681531841 | D104: 2.307116572 | E104: 0.9998128859 | F104: 1.90731616 | G104: 0.7690388574 | I104: 7.664816316
A111: Køge
C113: Under 30 år | D113: 30 - 39 år | E113: 40 - 49 år | F113: 50 - 59 år | G113: Over 60 år | I113: I alt
A115: Civ. ing. | C115: 0 | D115: 0 | E115: 0 | F115: 0 | G115: 0 | I115: 0
A116: Diplom ing. | C116: 0 | D116: 0.9998128859 | E116: 0 | F116: 2.122497349 | G116: 2.18861099 | I116: 5.310921225
A117: Cand. Scient. Tek | C117: 2.999438658 | D117: 1.587974802 | E117: 0.2076966257 | F117: 1.999625772 | G117: 0 | I117: 6.794735857
A118: MA. Hum. | C118: 3.260774652 | D118: 4.640429115 | E118: 2.701927275 | F118: 1.804403418 | G118: 0.9998128859 | I118: 13.40734735
A119: MA. Nat. | C119: 0.9499157987 | D119: 0.9998128859 | E119: 0.4459552174 | F119: 3.768477515 | G119: 0 | I119: 6.164161417
A120: MA. Ph.d. | C120: 0 | D120: 0.9998128859 | E120: 0 | F120: 0 | G120: 0 | I120: 0.9998128859
A121: MA. Samf. | C121: 1.999625772 | D121: 1.999625772 | E121: 0 | F121: 0.9998128859 | G121: 0 | I121: 4.99906443
A122: Øvrige Mag. | C122: 0.9998128859 | D122: 0.9929520364 | E122: 0 | F122: 2.537890601 | G122: 0 | I122: 4.530655523
A123: Agronom | C123: 0 | D123: 0 | E123: 0 | F123: 0 | G123: 1.999625772 | I123: 1.999625772
A124: Landsk. Arkt. | C124: 0 | D124: 0 | E124: 0 | F124: 0 | G124: 0 | I124: 0
A125: Hortonom | C125: 0 | D125: 0 | E125: 0 | F125: 0 | G125: 0 | I125: 0
A126: Forstkand. | C126: 0 | D126: 0 | E126: 0 | F126: 0 | G126: 0 | I126: 0
A127: Jordbrugsakad. | C127: 0 | D127: 0 | E127: 0 | F127: 0 | G127: 1.999625772 | I127: 1.999625772
A128: Mejeriing. | C128: 0 | D128: 0 | E128: 0 | F128: 0 | G128: 0 | I128: 0
A129: Levn.m.kand. | C129: 0 | D129: 0 | E129: 0 | F129: 0 | G129: 0 | I129: 0
A130: Dyrlæge | C130: 0.9998128859 | D130: 0 | E130: 0 | F130: 0 | G130: 0 | I130: 0.9998128859
A131: Farmaceut | C131: 0.6767292459 | D131: 0 | E131: 0 | F131: 0 | G131: 0 | I131: 0.6767292459
A132: Læge | C132: 0 | D132: 0.4765171833 | E132: 0 | F132: 0 | G132: 0 | I132: 0.4765171833
A133: Tandlæge | C133: 0 | D133: 0 | E133: 0 | F133: 0 | G133: 0 | I133: 0
A134: Arkitekt | C134: 0 | D134: 0 | E134: 0 | F134: 0 | G134: 0 | I134: 0
A135: Landinspek. | C135: 0 | D135: 0 | E135: 0 | F135: 0 | G135: 0 | I135: 0
A136: Bibliotekar | C136: 0 | D136: 0 | E136: 1.15511757 | F136: 0 | G136: 0.9998128859 | I136: 2.154930456
A137: Musikudd. | C137: 0 | D137: 0 | E137: 0 | F137: 0 | G137: 0 | I137: 0
A138: Teolog | C138: 0 | D138: 0 | E138: 0 | F138: 0 | G138: 0 | I138: 0
A139: Psykolog | C139: 1.676542132 | D139: 1.150127861 | E139: 0.8126988087 | F139: 0 | G139: 0.7690388574 | I139: 4.408407659
A140: Jurist | C140: 0.3074908002 | D140: 2.445580989 | E140: 0 | F140: 0 | G140: 0.4079086883 | I140: 3.160980478
A141: Økonom | C141: 0 | D141: 0.3074908002 | E141: 0.9998128859 | F141: 0 | G141: 0 | I141: 1.307303686
A142: Samf. Adm. | C142: 0 | D142: 2.999438658 | E142: 0 | F142: 1.999625772 | G142: 0.7690388574 | I142: 5.768103287
A143: Cand. Merc. | C143: 2.43185929 | D143: 3.06056259 | E143: 1.756377471 | F143: 0.9998128859 | G143: 0 | I143: 8.248612237
A144: HA | C144: 2.999438658 | D144: 0 | E144: 0 | F144: 0 | G144: 0 | I144: 2.999438658
A145: HD | C145: 0 | D145: 0 | E145: 0 | F145: 0 | G145: 0 | I145: 0
A146: Komm. og Sprog | C146: 1.383396744 | D146: 0.5382648288 | E146: 0 | F146: 0 | G146: 0.9998128859 | I146: 2.921474459
A147: Bygningskonst. | C147: 0 | D147: 1 | E147: 0 | F147: 0.4461423314 | G147: 0 | I147: 1.446142331
A148: Cand. IT. | C148: 0.9998128859 | D148: 1.999625772 | E148: 0.9998128859 | F148: 0 | G148: 0 | I148: 3.999251544
A149: Bac. Samf. | C149: 0 | D149: 0 | E149: 0 | F149: 0 | G149: 0 | I149: 0
A150: Bac. Hum. | C150: 1.999625772 | D150: 0 | E150: 0 | F150: 0 | G150: 0 | I150: 1.999625772
A151: Bac. Nat. | C151: 1.999625772 | D151: 0.9998128859 | E151: 0 | F151: 0 | G151: 0 | I151: 2.999438658
A152: Andre | C152: 3.630013098 | D152: 3.565770598 | E152: 0 | F152: 2.545998877 | G152: 1.915424437 | I152: 11.65720701
A154: Total | C154: 29.31391505 | D154: 30.76361255 | E154: 9.07939874 | F154: 19.22428741 | G154: 11.04908626 | I154: 99.43030001
A156: Ingeniører i alt | C156: 0 | D156: 0.9998128859 | E156: 0 | F156: 2.122497349 | G156: 2.18861099 | I156: 5.310921225
A157: Magistre i alt | C157: 7.210129109 | D157: 9.632632695 | E157: 3.147882492 | F157: 9.11058442 | G157: 0.9998128859 | I157: 30.1010416
A158: DJØF'ere i alt | C158: 5.738788748 | D158: 8.813073037 | E158: 2.756190357 | F158: 2.999438658 | G158: 1.176947546 | I158: 21.48443835
A165: Roskilde
C167: Under 30 år | D167: 30 - 39 år | E167: 40 - 49 år | F167: 50 - 59 år | G167: Over 60 år | I167: I alt
A169: Civ. ing. | C169: 4.173891349 | D169: 1.430175264 | E169: 1.538077715 | F169: 0.9998128859 | G169: 1.69712468 | I169: 9.839081894
A170: Diplom ing. | C170: 3.537703487 | D170: 2.907129046 | E170: 3.320027443 | F170: 4.67598079 | G170: 6.26707416 | I170: 20.70791493
A171: Cand. Scient. Tek | C171: 5.906567704 | D171: 8.808083328 | E171: 0 | F171: 1.84120252 | G171: 0 | I171: 16.55585355
A172: MA. Hum. | C172: 19.36256471 | D172: 18.34154556 | E172: 8.461922285 | F172: 2.96513441 | G172: 2.999438658 | I172: 52.13060563
A173: MA. Nat. | C173: 6.392440591 | D173: 4.498222416 | E173: 3.534584919 | F173: 0 | G173: 0 | I173: 14.42524793
A174: MA. Ph.d. | C174: 0 | D174: 0.9998128859 | E174: 0 | F174: 1.294829414 | G174: 0.9998128859 | I174: 3.294455186
A175: MA. Samf. | C175: 5.906567704 | D175: 2.676355018 | E175: 1.999625772 | F175: 0.7690388574 | G175: 0 | I175: 11.35158735
A176: Øvrige Mag. | C176: 3.74851868 | D176: 0 | E176: 0 | F176: 0 | G176: 0.3074908002 | I176: 4.05600948
A177: Agronom | C177: 0 | D177: 0 | E177: 0 | F177: 0.6767292459 | G177: 0 | I177: 0.6767292459
A178: Landsk. Arkt. | C178: 0 | D178: 0 | E178: 0 | F178: 0 | G178: 0 | I178: 0
A179: Hortonom | C179: 0 | D179: 0 | E179: 0 | F179: 0 | G179: 0 | I179: 0
A180: Forstkand. | C180: 0.9998128859 | D180: 0 | E180: 0 | F180: 0 | G180: 0 | I180: 0.9998128859
A181: Jordbrugsakad. | C181: 0.9998128859 | D181: 0 | E181: 0 | F181: 0.6767292459 | G181: 0 | I181: 1.676542132
A182: Mejeriing. | C182: 0 | D182: 0 | E182: 0 | F182: 0 | G182: 0 | I182: 0
A183: Levn.m.kand. | C183: 0 | D183: 0.7690388574 | E183: 0 | F183: 0 | G183: 0 | I183: 0.7690388574
A184: Dyrlæge | C184: 0 | D184: 0.9998128859 | E184: 0 | F184: 0 | G184: 0 | I184: 0.9998128859
A185: Farmaceut | C185: 0.6767292459 | D185: 0 | E185: 0 | F185: 0 | G185: 0 | I185: 0.6767292459
A186: Læge | C186: 1.999625772 | D186: 1.669057569 | E186: 0.9075032745 | F186: 0 | G186: 0 | I186: 4.576186615
A187: Tandlæge | C187: 0.4447077902 | D187: 0 | E187: 0 | F187: 0 | G187: 0 | I187: 0.4447077902
A188: Arkitekt | C188: 0 | D188: 0.5382648288 | E188: 0.9998128859 | F188: 1.487556914 | G188: 0 | I188: 3.025634629
A189: Landinspek. | C189: 0 | D189: 0 | E189: 0 | F189: 0 | G189: 0 | I189: 0
A190: Bibliotekar | C190: 0.5382648288 | D190: 0.9998128859 | E190: 0 | F190: 0.3536456059 | G190: 0 | I190: 1.891723321
A191: Musikudd. | C191: 0 | D191: 0 | E191: 0 | F191: 0 | G191: 0.6854612362 | I191: 0.6854612362
A192: Teolog | C192: 0 | D192: 0 | E192: 0 | F192: 0 | G192: 0 | I192: 0
A193: Psykolog | C193: 2.946423003 | D193: 6.306368116 | E193: 1.427056696 | F193: 0.7690388574 | G193: 0 | I193: 11.44888667
A194: Jurist | C194: 0.1864903636 | D194: 0 | E194: 0 | F194: 0.9998128859 | G194: 0.9075032745 | I194: 2.093806524
A195: Økonom | C195: 0 | D195: 0 | E195: 0.9998128859 | F195: 0 | G195: 0.9998128859 | I195: 1.999625772
A196: Samf. Adm. | C196: 6.996819061 | D196: 7.384768914 | E196: 3.596956278 | F196: 0.9998128859 | G196: 1.768851743 | I196: 20.74720888
A197: Cand. Merc. | C197: 7.049211002 | D197: 8.365246679 | E197: 1.214994075 | F197: 5.234204453 | G197: 1.076529658 | I197: 22.94018587
A198: HA | C198: 0.4459552174 | D198: 0 | E198: 0 | F198: 1.737666064 | G198: 1.768851743 | I198: 3.952473024
A199: HD | C199: 1.874883054 | D199: 0.6305744402 | E199: 0 | F199: 0.9998128859 | G199: 0 | I199: 3.50527038
A200: Komm. og Sprog | C200: 1.895465602 | D200: 0.9998128859 | E200: 0 | F200: 0.9998128859 | G200: 2.13310048 | I200: 6.028191854
A201: Bygningskonst. | C201: 3.123058691 | D201: 0 | E201: 1 | F201: 0 | G201: 0 | I201: 4.123058691
A202: Cand. IT. | C202: 2.439343853 | D202: 0.9998128859 | E202: 0.5844196345 | F202: 0 | G202: 0 | I202: 4.023576374
A203: Bac. Samf. | C203: 0 | D203: 0 | E203: 0.9998128859 | F203: 0 | G203: 0 | I203: 0.9998128859
A204: Bac. Hum. | C204: 3.992390694 | D204: 1.925403855 | E204: 0.6287032994 | F204: 0 | G204: 1.999625772 | I204: 8.54612362
A205: Bac. Nat. | C205: 2.999438658 | D205: 0.3074908002 | E205: 0 | F205: 0 | G205: 0 | I205: 3.306929458
A206: Andre | C206: 3.353084264 | D206: 3.056196595 | E206: 4.814445207 | F206: 1.065302813 | G206: 0 | I206: 12.28902888
A208: Total | C208: 90.98995821 | D208: 74.61298572 | E208: 36.02775525 | F208: 27.86939437 | G208: 23.61067798 | I208: 253.1107715
A210: Ingeniører i alt | C210: 7.711594836 | D210: 4.33730431 | E210: 4.858105158 | F210: 5.675793676 | G210: 7.96419884 | I210: 30.54699682
A211: Magistre i alt | C211: 35.41009169 | D211: 26.51593588 | E211: 13.99613298 | F211: 5.029002682 | G211: 4.306742344 | I211: 85.25790557
A212: DJØF'ere i alt | C212: 14.67847564 | D212: 15.75001559 | E212: 5.811763238 | F212: 8.971496289 | G212: 6.521549305 | I212: 51.73330007
A219: Solrød
C221: Under 30 år | D221: 30 - 39 år | E221: 40 - 49 år | F221: 50 - 59 år | G221: Over 60 år | I221: I alt
A223: Civ. ing. | C223: 0.9998128859 | D223: 0 | E223: 0 | F223: 0 | G223: 0 | I223: 0.9998128859
A224: Diplom ing. | C224: 0 | D224: 0 | E224: 0 | F224: 0.4459552174 | G224: 0 | I224: 0.4459552174
A225: Cand. Scient. Tek | C225: 0 | D225: 0 | E225: 0 | F225: 0 | G225: 0 | I225: 0
A226: MA. Hum. | C226: 2.307116572 | D226: 2.999438658 | E226: 0.862595896 | F226: 0.9998128859 | G226: 0 | I226: 7.168964012
A227: MA. Nat. | C227: 0.4921100231 | D227: 0.9998128859 | E227: 0 | F227: 0 | G227: 0 | I227: 1.491922909
A228: MA. Ph.d. | C228: 0 | D228: 0 | E228: 0 | F228: 0 | G228: 0 | I228: 0
A229: MA. Samf. | C229: 0 | D229: 0.9998128859 | E229: 0 | F229: 0 | G229: 0.6767292459 | I229: 1.676542132
A230: Øvrige Mag. | C230: 0 | D230: 0 | E230: 0 | F230: 0 | G230: 0 | I230: 0
A231: Agronom | C231: 0 | D231: 0 | E231: 0 | F231: 0 | G231: 0 | I231: 0
A232: Landsk. Arkt. | C232: 0 | D232: 0 | E232: 0 | F232: 0 | G232: 0 | I232: 0
A233: Hortonom | C233: 0 | D233: 0 | E233: 0 | F233: 0 | G233: 0 | I233: 0
A234: Forstkand. | C234: 0 | D234: 0 | E234: 0 | F234: 0 | G234: 0 | I234: 0
A235: Jordbrugsakad. | C235: 0 | D235: 0 | E235: 0 | F235: 0 | G235: 0 | I235: 0
A236: Mejeriing. | C236: 0 | D236: 0 | E236: 0 | F236: 0 | G236: 0 | I236: 0
A237: Levn.m.kand. | C237: 0 | D237: 0 | E237: 0 | F237: 0 | G237: 0 | I237: 0
A238: Dyrlæge | C238: 0 | D238: 0 | E238: 0 | F238: 0 | G238: 0 | I238: 0
A239: Farmaceut | C239: 0 | D239: 0 | E239: 0 | F239: 0 | G239: 0 | I239: 0
A240: Læge | C240: 0.8151936631 | D240: 0.7690388574 | E240: 0 | F240: 0 | G240: 0 | I240: 1.58423252
A241: Tandlæge | C241: 0 | D241: 0 | E241: 0 | F241: 0 | G241: 0 | I241: 0
A242: Arkitekt | C242: 0 | D242: 0 | E242: 0 | F242: 0.9998128859 | G242: 0 | I242: 0.9998128859
A243: Landinspek. | C243: 0 | D243: 0 | E243: 0 | F243: 0 | G243: 0 | I243: 0
... 593 more rows

Sheet Tabel 4P S
A1: Tabel 4. Ledighedsberørte - aldersfordelt
A3: Sjælland
C5: Under 30 år | D5: 30 - 39 år | E5: 40 - 49 år | F5: 50 - 59 år | G5: Over 60 år | I5: I alt
A7: Civ. ing. | C7: =IF(OR('Tabel 4F S'!C7<5,'Tabel 4 S'!C7<0.5),"-",IFERROR('Tabel 4 S'!C7/'Tabel 4F S'!C7*100,"-")) -> 11.29569892 | D7: =IF(OR('Tabel 4F S'!D7<5,'Tabel 4 S'!D7<0.5),"-",IFERROR('Tabel 4 S'!D7/'Tabel 4F S'!D7*100,"-")) -> 2.529510961 | E7: =IF(OR('Tabel 4F S'!E7<5,'Tabel 4 S'!E7<0.5),"-",IFERROR('Tabel 4 S'!E7/'Tabel 4F S'!E7*100,"-")) -> 0.9771986971 | F7: =IF(OR('Tabel 4F S'!F7<5,'Tabel 4 S'!F7<0.5),"-",IFERROR('Tabel 4 S'!F7/'Tabel 4F S'!F7*100,"-")) -> 1.243093923 | G7: =IF(OR('Tabel 4F S'!G7<5,'Tabel 4 S'!G7<0.5),"-",IFERROR('Tabel 4 S'!G7/'Tabel 4F S'!G7*100,"-")) -> 3.301886792 | I7: =IF(OR('Tabel 4F S'!I7<5,'Tabel 4 S'!I7<0.5),"-",IFERROR('Tabel 4 S'!I7/'Tabel 4F S'!I7*100,"-")) -> 2.49076857
A8: Diplom ing. | C8: =IF(OR('Tabel 4F S'!C8<5,'Tabel 4 S'!C8<0.5),"-",IFERROR('Tabel 4 S'!C8/'Tabel 4F S'!C8*100,"-")) -> 8.902542373 | D8: =IF(OR('Tabel 4F S'!D8<5,'Tabel 4 S'!D8<0.5),"-",IFERROR('Tabel 4 S'!D8/'Tabel 4F S'!D8*100,"-")) -> 2.43902439 | E8: =IF(OR('Tabel 4F S'!E8<5,'Tabel 4 S'!E8<0.5),"-",IFERROR('Tabel 4 S'!E8/'Tabel 4F S'!E8*100,"-")) -> 1.427115189 | F8: =IF(OR('Tabel 4F S'!F8<5,'Tabel 4 S'!F8<0.5),"-",IFERROR('Tabel 4 S'!F8/'Tabel 4F S'!F8*100,"-")) -> 1.362229102 | G8: =IF(OR('Tabel 4F S'!G8<5,'Tabel 4 S'!G8<0.5),"-",IFERROR('Tabel 4 S'!G8/'Tabel 4F S'!G8*100,"-")) -> 4.970178926 | I8: =IF(OR('Tabel 4F S'!I8<5,'Tabel 4 S'!I8<0.5),"-",IFERROR('Tabel 4 S'!I8/'Tabel 4F S'!I8*100,"-")) -> 2.456126887
A9: Cand. Scient. Tek | C9: =IF(OR('Tabel 4F S'!C9<5,'Tabel 4 S'!C9<0.5),"-",IFERROR('Tabel 4 S'!C9/'Tabel 4F S'!C9*100,"-")) -> 11.74493927 | D9: =IF(OR('Tabel 4F S'!D9<5,'Tabel 4 S'!D9<0.5),"-",IFERROR('Tabel 4 S'!D9/'Tabel 4F S'!D9*100,"-")) -> 4.725609756 | E9: =IF(OR('Tabel 4F S'!E9<5,'Tabel 4 S'!E9<0.5),"-",IFERROR('Tabel 4 S'!E9/'Tabel 4F S'!E9*100,"-")) -> 3.296703297 | F9: =IF(OR('Tabel 4F S'!F9<5,'Tabel 4 S'!F9<0.5),"-",IFERROR('Tabel 4 S'!F9/'Tabel 4F S'!F9*100,"-")) -> 6.194690265 | G9: =IF(OR('Tabel 4F S'!G9<5,'Tabel 4 S'!G9<0.5),"-",IFERROR('Tabel 4 S'!G9/'Tabel 4F S'!G9*100,"-")) -> - | I9: =IF(OR('Tabel 4F S'!I9<5,'Tabel 4 S'!I9<0.5),"-",IFERROR('Tabel 4 S'!I9/'Tabel 4F S'!I9*100,"-")) -> 5.802290076
A10: MA. Hum. | C10: =IF(OR('Tabel 4F S'!C10<5,'Tabel 4 S'!C10<0.5),"-",IFERROR('Tabel 4 S'!C10/'Tabel 4F S'!C10*100,"-")) -> 25.45818182 | D10: =IF(OR('Tabel 4F S'!D10<5,'Tabel 4 S'!D10<0.5),"-",IFERROR('Tabel 4 S'!D10/'Tabel 4F S'!D10*100,"-")) -> 10.5513308 | E10: =IF(OR('Tabel 4F S'!E10<5,'Tabel 4 S'!E10<0.5),"-",IFERROR('Tabel 4 S'!E10/'Tabel 4F S'!E10*100,"-")) -> 4.873646209 | F10: =IF(OR('Tabel 4F S'!F10<5,'Tabel 4 S'!F10<0.5),"-",IFERROR('Tabel 4 S'!F10/'Tabel 4F S'!F10*100,"-")) -> 5.484460695 | G10: =IF(OR('Tabel 4F S'!G10<5,'Tabel 4 S'!G10<0.5),"-",IFERROR('Tabel 4 S'!G10/'Tabel 4F S'!G10*100,"-")) -> 7.083333333 | I10: =IF(OR('Tabel 4F S'!I10<5,'Tabel 4 S'!I10<0.5),"-",IFERROR('Tabel 4 S'!I10/'Tabel 4F S'!I10*100,"-")) -> 8.752638113
A11: MA. Nat. | C11: =IF(OR('Tabel 4F S'!C11<5,'Tabel 4 S'!C11<0.5),"-",IFERROR('Tabel 4 S'!C11/'Tabel 4F S'!C11*100,"-")) -> 32.828125 | D11: =IF(OR('Tabel 4F S'!D11<5,'Tabel 4 S'!D11<0.5),"-",IFERROR('Tabel 4 S'!D11/'Tabel 4F S'!D11*100,"-")) -> 6.498194946 | E11: =IF(OR('Tabel 4F S'!E11<5,'Tabel 4 S'!E11<0.5),"-",IFERROR('Tabel 4 S'!E11/'Tabel 4F S'!E11*100,"-")) -> 2.892561983 | F11: =IF(OR('Tabel 4F S'!F11<5,'Tabel 4 S'!F11<0.5),"-",IFERROR('Tabel 4 S'!F11/'Tabel 4F S'!F11*100,"-")) -> 2.252252252 | G11: =IF(OR('Tabel 4F S'!G11<5,'Tabel 4 S'!G11<0.5),"-",IFERROR('Tabel 4 S'!G11/'Tabel 4F S'!G11*100,"-")) -> 1.515151515 | I11: =IF(OR('Tabel 4F S'!I11<5,'Tabel 4 S'!I11<0.5),"-",IFERROR('Tabel 4 S'!I11/'Tabel 4F S'!I11*100,"-")) -> 4.499659168
A12: MA. Ph.d. | C12: =IF(OR('Tabel 4F S'!C12<5,'Tabel 4 S'!C12<0.5),"-",IFERROR('Tabel 4 S'!C12/'Tabel 4F S'!C12*100,"-")) -> - | D12: =IF(OR('Tabel 4F S'!D12<5,'Tabel 4 S'!D12<0.5),"-",IFERROR('Tabel 4 S'!D12/'Tabel 4F S'!D12*100,"-")) -> 9.090909091 | E12: =IF(OR('Tabel 4F S'!E12<5,'Tabel 4 S'!E12<0.5),"-",IFERROR('Tabel 4 S'!E12/'Tabel 4F S'!E12*100,"-")) -> - | F12: =IF(OR('Tabel 4F S'!F12<5,'Tabel 4 S'!F12<0.5),"-",IFERROR('Tabel 4 S'!F12/'Tabel 4F S'!F12*100,"-")) -> 5.882352941 | G12: =IF(OR('Tabel 4F S'!G12<5,'Tabel 4 S'!G12<0.5),"-",IFERROR('Tabel 4 S'!G12/'Tabel 4F S'!G12*100,"-")) -> 6.666666667 | I12: =IF(OR('Tabel 4F S'!I12<5,'Tabel 4 S'!I12<0.5),"-",IFERROR('Tabel 4 S'!I12/'Tabel 4F S'!I12*100,"-")) -> 4.581699346
A13: MA. Samf. | C13: =IF(OR('Tabel 4F S'!C13<5,'Tabel 4 S'!C13<0.5),"-",IFERROR('Tabel 4 S'!C13/'Tabel 4F S'!C13*100,"-")) -> 20.01428571 | D13: =IF(OR('Tabel 4F S'!D13<5,'Tabel 4 S'!D13<0.5),"-",IFERROR('Tabel 4 S'!D13/'Tabel 4F S'!D13*100,"-")) -> 11.16504854 | E13: =IF(OR('Tabel 4F S'!E13<5,'Tabel 4 S'!E13<0.5),"-",IFERROR('Tabel 4 S'!E13/'Tabel 4F S'!E13*100,"-")) -> 5.319148936 | F13: =IF(OR('Tabel 4F S'!F13<5,'Tabel 4 S'!F13<0.5),"-",IFERROR('Tabel 4 S'!F13/'Tabel 4F S'!F13*100,"-")) -> 4.87804878 | G13: =IF(OR('Tabel 4F S'!G13<5,'Tabel 4 S'!G13<0.5),"-",IFERROR('Tabel 4 S'!G13/'Tabel 4F S'!G13*100,"-")) -> 17.64705882 | I13: =IF(OR('Tabel 4F S'!I13<5,'Tabel 4 S'!I13<0.5),"-",IFERROR('Tabel 4 S'!I13/'Tabel 4F S'!I13*100,"-")) -> 10.98364486
A14: Øvrige Mag. | C14: =IF(OR('Tabel 4F S'!C14<5,'Tabel 4 S'!C14<0.5),"-",IFERROR('Tabel 4 S'!C14/'Tabel 4F S'!C14*100,"-")) -> 34.82608696 | D14: =IF(OR('Tabel 4F S'!D14<5,'Tabel 4 S'!D14<0.5),"-",IFERROR('Tabel 4 S'!D14/'Tabel 4F S'!D14*100,"-")) -> 9.756097561 | E14: =IF(OR('Tabel 4F S'!E14<5,'Tabel 4 S'!E14<0.5),"-",IFERROR('Tabel 4 S'!E14/'Tabel 4F S'!E14*100,"-")) -> - | F14: =IF(OR('Tabel 4F S'!F14<5,'Tabel 4 S'!F14<0.5),"-",IFERROR('Tabel 4 S'!F14/'Tabel 4F S'!F14*100,"-")) -> 3.333333333 | G14: =IF(OR('Tabel 4F S'!G14<5,'Tabel 4 S'!G14<0.5),"-",IFERROR('Tabel 4 S'!G14/'Tabel 4F S'!G14*100,"-")) -> 4.761904762 | I14: =IF(OR('Tabel 4F S'!I14<5,'Tabel 4 S'!I14<0.5),"-",IFERROR('Tabel 4 S'!I14/'Tabel 4F S'!I14*100,"-")) -> 6.347014925
A15: Agronom | C15: =IF(OR('Tabel 4F S'!C15<5,'Tabel 4 S'!C15<0.5),"-",IFERROR('Tabel 4 S'!C15/'Tabel 4F S'!C15*100,"-")) -> 20.05 | D15: =IF(OR('Tabel 4F S'!D15<5,'Tabel 4 S'!D15<0.5),"-",IFERROR('Tabel 4 S'!D15/'Tabel 4F S'!D15*100,"-")) -> 2.173913043 | E15: =IF(OR('Tabel 4F S'!E15<5,'Tabel 4 S'!E15<0.5),"-",IFERROR('Tabel 4 S'!E15/'Tabel 4F S'!E15*100,"-")) -> 1.652892562 | F15: =IF(OR('Tabel 4F S'!F15<5,'Tabel 4 S'!F15<0.5),"-",IFERROR('Tabel 4 S'!F15/'Tabel 4F S'!F15*100,"-")) -> 2.259887006 | G15: =IF(OR('Tabel 4F S'!G15<5,'Tabel 4 S'!G15<0.5),"-",IFERROR('Tabel 4 S'!G15/'Tabel 4F S'!G15*100,"-")) -> 8.602150538 | I15: =IF(OR('Tabel 4F S'!I15<5,'Tabel 4 S'!I15<0.5),"-",IFERROR('Tabel 4 S'!I15/'Tabel 4F S'!I15*100,"-")) -> 4.159737418
A16: Landsk. Arkt. | C16: =IF(OR('Tabel 4F S'!C16<5,'Tabel 4 S'!C16<0.5),"-",IFERROR('Tabel 4 S'!C16/'Tabel 4F S'!C16*100,"-")) -> - | D16: =IF(OR('Tabel 4F S'!D16<5,'Tabel 4 S'!D16<0.5),"-",IFERROR('Tabel 4 S'!D16/'Tabel 4F S'!D16*100,"-")) -> 16 | E16: =IF(OR('Tabel 4F S'!E16<5,'Tabel 4 S'!E16<0.5),"-",IFERROR('Tabel 4 S'!E16/'Tabel 4F S'!E16*100,"-")) -> - | F16: =IF(OR('Tabel 4F S'!F16<5,'Tabel 4 S'!F16<0.5),"-",IFERROR('Tabel 4 S'!F16/'Tabel 4F S'!F16*100,"-")) -> - | G16: =IF(OR('Tabel 4F S'!G16<5,'Tabel 4 S'!G16<0.5),"-",IFERROR('Tabel 4 S'!G16/'Tabel 4F S'!G16*100,"-")) -> 8.333333333 | I16: =IF(OR('Tabel 4F S'!I16<5,'Tabel 4 S'!I16<0.5),"-",IFERROR('Tabel 4 S'!I16/'Tabel 4F S'!I16*100,"-")) -> 5.273684211
A17: Hortonom | C17: =IF(OR('Tabel 4F S'!C17<5,'Tabel 4 S'!C17<0.5),"-",IFERROR('Tabel 4 S'!C17/'Tabel 4F S'!C17*100,"-")) -> - | D17: =IF(OR('Tabel 4F S'!D17<5,'Tabel 4 S'!D17<0.5),"-",IFERROR('Tabel 4 S'!D17/'Tabel 4F S'!D17*100,"-")) -> - | E17: =IF(OR('Tabel 4F S'!E17<5,'Tabel 4 S'!E17<0.5),"-",IFERROR('Tabel 4 S'!E17/'Tabel 4F S'!E17*100,"-")) -> 8.333333333 | F17: =IF(OR('Tabel 4F S'!F17<5,'Tabel 4 S'!F17<0.5),"-",IFERROR('Tabel 4 S'!F17/'Tabel 4F S'!F17*100,"-")) -> 3.703703704 | G17: =IF(OR('Tabel 4F S'!G17<5,'Tabel 4 S'!G17<0.5),"-",IFERROR('Tabel 4 S'!G17/'Tabel 4F S'!G17*100,"-")) -> - | I17: =IF(OR('Tabel 4F S'!I17<5,'Tabel 4 S'!I17<0.5),"-",IFERROR('Tabel 4 S'!I17/'Tabel 4F S'!I17*100,"-")) -> 3.526315789
A18: Forstkand. | C18: =IF(OR('Tabel 4F S'!C18<5,'Tabel 4 S'!C18<0.5),"-",IFERROR('Tabel 4 S'!C18/'Tabel 4F S'!C18*100,"-")) -> - | D18: =IF(OR('Tabel 4F S'!D18<5,'Tabel 4 S'!D18<0.5),"-",IFERROR('Tabel 4 S'!D18/'Tabel 4F S'!D18*100,"-")) -> - | E18: =IF(OR('Tabel 4F S'!E18<5,'Tabel 4 S'!E18<0.5),"-",IFERROR('Tabel 4 S'!E18/'Tabel 4F S'!E18*100,"-")) -> - | F18: =IF(OR('Tabel 4F S'!F18<5,'Tabel 4 S'!F18<0.5),"-",IFERROR('Tabel 4 S'!F18/'Tabel 4F S'!F18*100,"-")) -> 5.882352941 | G18: =IF(OR('Tabel 4F S'!G18<5,'Tabel 4 S'!G18<0.5),"-",IFERROR('Tabel 4 S'!G18/'Tabel 4F S'!G18*100,"-")) -> 7.142857143 | I18: =IF(OR('Tabel 4F S'!I18<5,'Tabel 4 S'!I18<0.5),"-",IFERROR('Tabel 4 S'!I18/'Tabel 4F S'!I18*100,"-")) -> 3.716049383
A19: Jordbrugsakad. | C19: =IF(OR('Tabel 4F S'!C19<5,'Tabel 4 S'!C19<0.5),"-",IFERROR('Tabel 4 S'!C19/'Tabel 4F S'!C19*100,"-")) -> 18 | D19: =IF(OR('Tabel 4F S'!D19<5,'Tabel 4 S'!D19<0.5),"-",IFERROR('Tabel 4 S'!D19/'Tabel 4F S'!D19*100,"-")) -> 5.952380952 | E19: =IF(OR('Tabel 4F S'!E19<5,'Tabel 4 S'!E19<0.5),"-",IFERROR('Tabel 4 S'!E19/'Tabel 4F S'!E19*100,"-")) -> 1.507537688 | F19: =IF(OR('Tabel 4F S'!F19<5,'Tabel 4 S'!F19<0.5),"-",IFERROR('Tabel 4 S'!F19/'Tabel 4F S'!F19*100,"-")) -> 2.448979592 | G19: =IF(OR('Tabel 4F S'!G19<5,'Tabel 4 S'!G19<0.5),"-",IFERROR('Tabel 4 S'!G19/'Tabel 4F S'!G19*100,"-")) -> 7.462686567 | I19: =IF(OR('Tabel 4F S'!I19<5,'Tabel 4 S'!I19<0.5),"-",IFERROR('Tabel 4 S'!I19/'Tabel 4F S'!I19*100,"-")) -> 4.208695652
A20: Mejeriing. | C20: =IF(OR('Tabel 4F S'!C20<5,'Tabel 4 S'!C20<0.5),"-",IFERROR('Tabel 4 S'!C20/'Tabel 4F S'!C20*100,"-")) -> - | D20: =IF(OR('Tabel 4F S'!D20<5,'Tabel 4 S'!D20<0.5),"-",IFERROR('Tabel 4 S'!D20/'Tabel 4F S'!D20*100,"-")) -> - | E20: =IF(OR('Tabel 4F S'!E20<5,'Tabel 4 S'!E20<0.5),"-",IFERROR('Tabel 4 S'!E20/'Tabel 4F S'!E20*100,"-")) -> - | F20: =IF(OR('Tabel 4F S'!F20<5,'Tabel 4 S'!F20<0.5),"-",IFERROR('Tabel 4 S'!F20/'Tabel 4F S'!F20*100,"-")) -> - | G20: =IF(OR('Tabel 4F S'!G20<5,'Tabel 4 S'!G20<0.5),"-",IFERROR('Tabel 4 S'!G20/'Tabel 4F S'!G20*100,"-")) -> 12.5 | I20: =IF(OR('Tabel 4F S'!I20<5,'Tabel 4 S'!I20<0.5),"-",IFERROR('Tabel 4 S'!I20/'Tabel 4F S'!I20*100,"-")) -> 2.463414634
A21: Levn.m.kand. | C21: =IF(OR('Tabel 4F S'!C21<5,'Tabel 4 S'!C21<0.5),"-",IFERROR('Tabel 4 S'!C21/'Tabel 4F S'!C21*100,"-")) -> 9.181818182 | D21: =IF(OR('Tabel 4F S'!D21<5,'Tabel 4 S'!D21<0.5),"-",IFERROR('Tabel 4 S'!D21/'Tabel 4F S'!D21*100,"-")) -> 3.03030303 | E21: =IF(OR('Tabel 4F S'!E21<5,'Tabel 4 S'!E21<0.5),"-",IFERROR('Tabel 4 S'!E21/'Tabel 4F S'!E21*100,"-")) -> - | F21: =IF(OR('Tabel 4F S'!F21<5,'Tabel 4 S'!F21<0.5),"-",IFERROR('Tabel 4 S'!F21/'Tabel 4F S'!F21*100,"-")) -> - | G21: =IF(OR('Tabel 4F S'!G21<5,'Tabel 4 S'!G21<0.5),"-",IFERROR('Tabel 4 S'!G21/'Tabel 4F S'!G21*100,"-")) -> - | I21: =IF(OR('Tabel 4F S'!I21<5,'Tabel 4 S'!I21<0.5),"-",IFERROR('Tabel 4 S'!I21/'Tabel 4F S'!I21*100,"-")) -> 3.241935484
A22: Dyrlæge | C22: =IF(OR('Tabel 4F S'!C22<5,'Tabel 4 S'!C22<0.5),"-",IFERROR('Tabel 4 S'!C22/'Tabel 4F S'!C22*100,"-")) -> 12.93548387 | D22: =IF(OR('Tabel 4F S'!D22<5,'Tabel 4 S'!D22<0.5),"-",IFERROR('Tabel 4 S'!D22/'Tabel 4F S'!D22*100,"-")) -> 3.676470588 | E22: =IF(OR('Tabel 4F S'!E22<5,'Tabel 4 S'!E22<0.5),"-",IFERROR('Tabel 4 S'!E22/'Tabel 4F S'!E22*100,"-")) -> 0.8849557522 | F22: =IF(OR('Tabel 4F S'!F22<5,'Tabel 4 S'!F22<0.5),"-",IFERROR('Tabel 4 S'!F22/'Tabel 4F S'!F22*100,"-")) -> 0.9523809524 | G22: =IF(OR('Tabel 4F S'!G22<5,'Tabel 4 S'!G22<0.5),"-",IFERROR('Tabel 4 S'!G22/'Tabel 4F S'!G22*100,"-")) -> - | I22: =IF(OR('Tabel 4F S'!I22<5,'Tabel 4 S'!I22<0.5),"-",IFERROR('Tabel 4 S'!I22/'Tabel 4F S'!I22*100,"-")) -> 2.627684964
A23: Farmaceut | C23: =IF(OR('Tabel 4F S'!C23<5,'Tabel 4 S'!C23<0.5),"-",IFERROR('Tabel 4 S'!C23/'Tabel 4F S'!C23*100,"-")) -> 6.77027027 | D23: =IF(OR('Tabel 4F S'!D23<5,'Tabel 4 S'!D23<0.5),"-",IFERROR('Tabel 4 S'!D23/'Tabel 4F S'!D23*100,"-")) -> 0.5917159763 | E23: =IF(OR('Tabel 4F S'!E23<5,'Tabel 4 S'!E23<0.5),"-",IFERROR('Tabel 4 S'!E23/'Tabel 4F S'!E23*100,"-")) -> - | F23: =IF(OR('Tabel 4F S'!F23<5,'Tabel 4 S'!F23<0.5),"-",IFERROR('Tabel 4 S'!F23/'Tabel 4F S'!F23*100,"-")) -> - | G23: =IF(OR('Tabel 4F S'!G23<5,'Tabel 4 S'!G23<0.5),"-",IFERROR('Tabel 4 S'!G23/'Tabel 4F S'!G23*100,"-")) -> - | I23: =IF(OR('Tabel 4F S'!I23<5,'Tabel 4 S'!I23<0.5),"-",IFERROR('Tabel 4 S'!I23/'Tabel 4F S'!I23*100,"-")) -> 1.027350427
A24: Læge | C24: =IF(OR('Tabel 4F S'!C24<5,'Tabel 4 S'!C24<0.5),"-",IFERROR('Tabel 4 S'!C24/'Tabel 4F S'!C24*100,"-")) -> 13.26506024 | D24: =IF(OR('Tabel 4F S'!D24<5,'Tabel 4 S'!D24<0.5),"-",IFERROR('Tabel 4 S'!D24/'Tabel 4F S'!D24*100,"-")) -> 2.527075812 | E24: =IF(OR('Tabel 4F S'!E24<5,'Tabel 4 S'!E24<0.5),"-",IFERROR('Tabel 4 S'!E24/'Tabel 4F S'!E24*100,"-")) -> 1.226993865 | F24: =IF(OR('Tabel 4F S'!F24<5,'Tabel 4 S'!F24<0.5),"-",IFERROR('Tabel 4 S'!F24/'Tabel 4F S'!F24*100,"-")) -> 0.7633587786 | G24: =IF(OR('Tabel 4F S'!G24<5,'Tabel 4 S'!G24<0.5),"-",IFERROR('Tabel 4 S'!G24/'Tabel 4F S'!G24*100,"-")) -> - | I24: =IF(OR('Tabel 4F S'!I24<5,'Tabel 4 S'!I24<0.5),"-",IFERROR('Tabel 4 S'!I24/'Tabel 4F S'!I24*100,"-")) -> 2.882030178
A25: Tandlæge | C25: =IF(OR('Tabel 4F S'!C25<5,'Tabel 4 S'!C25<0.5),"-",IFERROR('Tabel 4 S'!C25/'Tabel 4F S'!C25*100,"-")) -> 10.37931034 | D25: =IF(OR('Tabel 4F S'!D25<5,'Tabel 4 S'!D25<0.5),"-",IFERROR('Tabel 4 S'!D25/'Tabel 4F S'!D25*100,"-")) -> - | E25: =IF(OR('Tabel 4F S'!E25<5,'Tabel 4 S'!E25<0.5),"-",IFERROR('Tabel 4 S'!E25/'Tabel 4F S'!E25*100,"-")) -> - | F25: =IF(OR('Tabel 4F S'!F25<5,'Tabel 4 S'!F25<0.5),"-",IFERROR('Tabel 4 S'!F25/'Tabel 4F S'!F25*100,"-")) -> - | G25: =IF(OR('Tabel 4F S'!G25<5,'Tabel 4 S'!G25<0.5),"-",IFERROR('Tabel 4 S'!G25/'Tabel 4F S'!G25*100,"-")) -> - | I25: =IF(OR('Tabel 4F S'!I25<5,'Tabel 4 S'!I25<0.5),"-",IFERROR('Tabel 4 S'!I25/'Tabel 4F S'!I25*100,"-")) -> 1.672222222
A26: Arkitekt | C26: =IF(OR('Tabel 4F S'!C26<5,'Tabel 4 S'!C26<0.5),"-",IFERROR('Tabel 4 S'!C26/'Tabel 4F S'!C26*100,"-")) -> - | D26: =IF(OR('Tabel 4F S'!D26<5,'Tabel 4 S'!D26<0.5),"-",IFERROR('Tabel 4 S'!D26/'Tabel 4F S'!D26*100,"-")) -> 4.615384615 | E26: =IF(OR('Tabel 4F S'!E26<5,'Tabel 4 S'!E26<0.5),"-",IFERROR('Tabel 4 S'!E26/'Tabel 4F S'!E26*100,"-")) -> 11.94029851 | F26: =IF(OR('Tabel 4F S'!F26<5,'Tabel 4 S'!F26<0.5),"-",IFERROR('Tabel 4 S'!F26/'Tabel 4F S'!F26*100,"-")) -> 7.352941176 | G26: =IF(OR('Tabel 4F S'!G26<5,'Tabel 4 S'!G26<0.5),"-",IFERROR('Tabel 4 S'!G26/'Tabel 4F S'!G26*100,"-")) -> - | I26: =IF(OR('Tabel 4F S'!I26<5,'Tabel 4 S'!I26<0.5),"-",IFERROR('Tabel 4 S'!I26/'Tabel 4F S'!I26*100,"-")) -> 6.378486056
A27: Landinspek. | C27: =IF(OR('Tabel 4F S'!C27<5,'Tabel 4 S'!C27<0.5),"-",IFERROR('Tabel 4 S'!C27/'Tabel 4F S'!C27*100,"-")) -> 14.42857143 | D27: =IF(OR('Tabel 4F S'!D27<5,'Tabel 4 S'!D27<0.5),"-",IFERROR('Tabel 4 S'!D27/'Tabel 4F S'!D27*100,"-")) -> - | E27: =IF(OR('Tabel 4F S'!E27<5,'Tabel 4 S'!E27<0.5),"-",IFERROR('Tabel 4 S'!E27/'Tabel 4F S'!E27*100,"-")) -> - | F27: =IF(OR('Tabel 4F S'!F27<5,'Tabel 4 S'!F27<0.5),"-",IFERROR('Tabel 4 S'!F27/'Tabel 4F S'!F27*100,"-")) -> - | G27: =IF(OR('Tabel 4F S'!G27<5,'Tabel 4 S'!G27<0.5),"-",IFERROR('Tabel 4 S'!G27/'Tabel 4F S'!G27*100,"-")) -> - | I27: =IF(OR('Tabel 4F S'!I27<5,'Tabel 4 S'!I27<0.5),"-",IFERROR('Tabel 4 S'!I27/'Tabel 4F S'!I27*100,"-")) -> 1.402777778
A28: Bibliotekar | C28: =IF(OR('Tabel 4F S'!C28<5,'Tabel 4 S'!C28<0.5),"-",IFERROR('Tabel 4 S'!C28/'Tabel 4F S'!C28*100,"-")) -> 18.27272727 | D28: =IF(OR('Tabel 4F S'!D28<5,'Tabel 4 S'!D28<0.5),"-",IFERROR('Tabel 4 S'!D28/'Tabel 4F S'!D28*100,"-")) -> 10.14492754 | E28: =IF(OR('Tabel 4F S'!E28<5,'Tabel 4 S'!E28<0.5),"-",IFERROR('Tabel 4 S'!E28/'Tabel 4F S'!E28*100,"-")) -> 4.273504274 | F28: =IF(OR('Tabel 4F S'!F28<5,'Tabel 4 S'!F28<0.5),"-",IFERROR('Tabel 4 S'!F28/'Tabel 4F S'!F28*100,"-")) -> 1.694915254 | G28: =IF(OR('Tabel 4F S'!G28<5,'Tabel 4 S'!G28<0.5),"-",IFERROR('Tabel 4 S'!G28/'Tabel 4F S'!G28*100,"-")) -> 1.333333333 | I28: =IF(OR('Tabel 4F S'!I28<5,'Tabel 4 S'!I28<0.5),"-",IFERROR('Tabel 4 S'!I28/'Tabel 4F S'!I28*100,"-")) -> 4.361538462
A29: Musikudd. | C29: =IF(OR('Tabel 4F S'!C29<5,'Tabel 4 S'!C29<0.5),"-",IFERROR('Tabel 4 S'!C29/'Tabel 4F S'!C29*100,"-")) -> - | D29: =IF(OR('Tabel 4F S'!D29<5,'Tabel 4 S'!D29<0.5),"-",IFERROR('Tabel 4 S'!D29/'Tabel 4F S'!D29*100,"-")) -> 10 | E29: =IF(OR('Tabel 4F S'!E29<5,'Tabel 4 S'!E29<0.5),"-",IFERROR('Tabel 4 S'!E29/'Tabel 4F S'!E29*100,"-")) -> - | F29: =IF(OR('Tabel 4F S'!F29<5,'Tabel 4 S'!F29<0.5),"-",IFERROR('Tabel 4 S'!F29/'Tabel 4F S'!F29*100,"-")) -> - | G29: =IF(OR('Tabel 4F S'!G29<5,'Tabel 4 S'!G29<0.5),"-",IFERROR('Tabel 4 S'!G29/'Tabel 4F S'!G29*100,"-")) -> 5.882352941 | I29: =IF(OR('Tabel 4F S'!I29<5,'Tabel 4 S'!I29<0.5),"-",IFERROR('Tabel 4 S'!I29/'Tabel 4F S'!I29*100,"-")) -> 2.894230769
A30: Teolog | C30: =IF(OR('Tabel 4F S'!C30<5,'Tabel 4 S'!C30<0.5),"-",IFERROR('Tabel 4 S'!C30/'Tabel 4F S'!C30*100,"-")) -> 14.42857143 | D30: =IF(OR('Tabel 4F S'!D30<5,'Tabel 4 S'!D30<0.5),"-",IFERROR('Tabel 4 S'!D30/'Tabel 4F S'!D30*100,"-")) -> 3.448275862 | E30: =IF(OR('Tabel 4F S'!E30<5,'Tabel 4 S'!E30<0.5),"-",IFERROR('Tabel 4 S'!E30/'Tabel 4F S'!E30*100,"-")) -> 1.785714286 | F30: =IF(OR('Tabel 4F S'!F30<5,'Tabel 4 S'!F30<0.5),"-",IFERROR('Tabel 4 S'!F30/'Tabel 4F S'!F30*100,"-")) -> - | G30: =IF(OR('Tabel 4F S'!G30<5,'Tabel 4 S'!G30<0.5),"-",IFERROR('Tabel 4 S'!G30/'Tabel 4F S'!G30*100,"-")) -> - | I30: =IF(OR('Tabel 4F S'!I30<5,'Tabel 4 S'!I30<0.5),"-",IFERROR('Tabel 4 S'!I30/'Tabel 4F S'!I30*100,"-")) -> 1.406542056
A31: Psykolog | C31: =IF(OR('Tabel 4F S'!C31<5,'Tabel 4 S'!C31<0.5),"-",IFERROR('Tabel 4 S'!C31/'Tabel 4F S'!C31*100,"-")) -> 19.24358974 | D31: =IF(OR('Tabel 4F S'!D31<5,'Tabel 4 S'!D31<0.5),"-",IFERROR('Tabel 4 S'!D31/'Tabel 4F S'!D31*100,"-")) -> 7 | E31: =IF(OR('Tabel 4F S'!E31<5,'Tabel 4 S'!E31<0.5),"-",IFERROR('Tabel 4 S'!E31/'Tabel 4F S'!E31*100,"-")) -> 2.51572327 | F31: =IF(OR('Tabel 4F S'!F31<5,'Tabel 4 S'!F31<0.5),"-",IFERROR('Tabel 4 S'!F31/'Tabel 4F S'!F31*100,"-")) -> 1.694915254 | G31: =IF(OR('Tabel 4F S'!G31<5,'Tabel 4 S'!G31<0.5),"-",IFERROR('Tabel 4 S'!G31/'Tabel 4F S'!G31*100,"-")) -> 1.724137931 | I31: =IF(OR('Tabel 4F S'!I31<5,'Tabel 4 S'!I31<0.5),"-",IFERROR('Tabel 4 S'!I31/'Tabel 4F S'!I31*100,"-")) -> 5.874388254
A32: Jurist | C32: =IF(OR('Tabel 4F S'!C32<5,'Tabel 4 S'!C32<0.5),"-",IFERROR('Tabel 4 S'!C32/'Tabel 4F S'!C32*100,"-")) -> 4.76984127 | D32: =IF(OR('Tabel 4F S'!D32<5,'Tabel 4 S'!D32<0.5),"-",IFERROR('Tabel 4 S'!D32/'Tabel 4F S'!D32*100,"-")) -> 1.445086705 | E32: =IF(OR('Tabel 4F S'!E32<5,'Tabel 4 S'!E32<0.5),"-",IFERROR('Tabel 4 S'!E32/'Tabel 4F S'!E32*100,"-")) -> 0.3067484663 | F32: =IF(OR('Tabel 4F S'!F32<5,'Tabel 4 S'!F32<0.5),"-",IFERROR('Tabel 4 S'!F32/'Tabel 4F S'!F32*100,"-")) -> 1.086956522 | G32: =IF(OR('Tabel 4F S'!G32<5,'Tabel 4 S'!G32<0.5),"-",IFERROR('Tabel 4 S'!G32/'Tabel 4F S'!G32*100,"-")) -> 2.02020202 | I32: =IF(OR('Tabel 4F S'!I32<5,'Tabel 4 S'!I32<0.5),"-",IFERROR('Tabel 4 S'!I32/'Tabel 4F S'!I32*100,"-")) -> 1.450127877
A33: Økonom | C33: =IF(OR('Tabel 4F S'!C33<5,'Tabel 4 S'!C33<0.5),"-",IFERROR('Tabel 4 S'!C33/'Tabel 4F S'!C33*100,"-")) -> 2.58974359 | D33: =IF(OR('Tabel 4F S'!D33<5,'Tabel 4 S'!D33<0.5),"-",IFERROR('Tabel 4 S'!D33/'Tabel 4F S'!D33*100,"-")) -> 3.305785124 | E33: =IF(OR('Tabel 4F S'!E33<5,'Tabel 4 S'!E33<0.5),"-",IFERROR('Tabel 4 S'!E33/'Tabel 4F S'!E33*100,"-")) -> 2.43902439 | F33: =IF(OR('Tabel 4F S'!F33<5,'Tabel 4 S'!F33<0.5),"-",IFERROR('Tabel 4 S'!F33/'Tabel 4F S'!F33*100,"-")) -> 0.8810572687 | G33: =IF(OR('Tabel 4F S'!G33<5,'Tabel 4 S'!G33<0.5),"-",IFERROR('Tabel 4 S'!G33/'Tabel 4F S'!G33*100,"-")) -> 6.666666667 | I33: =IF(OR('Tabel 4F S'!I33<5,'Tabel 4 S'!I33<0.5),"-",IFERROR('Tabel 4 S'!I33/'Tabel 4F S'!I33*100,"-")) -> 2.350671141
A34: Samf. Adm. | C34: =IF(OR('Tabel 4F S'!C34<5,'Tabel 4 S'!C34<0.5),"-",IFERROR('Tabel 4 S'!C34/'Tabel 4F S'!C34*100,"-")) -> 18.234375 | D34: =IF(OR('Tabel 4F S'!D34<5,'Tabel 4 S'!D34<0.5),"-",IFERROR('Tabel 4 S'!D34/'Tabel 4F S'!D34*100,"-")) -> 5.722460658 | E34: =IF(OR('Tabel 4F S'!E34<5,'Tabel 4 S'!E34<0.5),"-",IFERROR('Tabel 4 S'!E34/'Tabel 4F S'!E34*100,"-")) -> 3.144654088 | F34: =IF(OR('Tabel 4F S'!F34<5,'Tabel 4 S'!F34<0.5),"-",IFERROR('Tabel 4 S'!F34/'Tabel 4F S'!F34*100,"-")) -> 2.505694761 | G34: =IF(OR('Tabel 4F S'!G34<5,'Tabel 4 S'!G34<0.5),"-",IFERROR('Tabel 4 S'!G34/'Tabel 4F S'!G34*100,"-")) -> 3.875968992 | I34: =IF(OR('Tabel 4F S'!I34<5,'Tabel 4 S'!I34<0.5),"-",IFERROR('Tabel 4 S'!I34/'Tabel 4F S'!I34*100,"-")) -> 5.298806683
A35: Cand. Merc. | C35: =IF(OR('Tabel 4F S'!C35<5,'Tabel 4 S'!C35<0.5),"-",IFERROR('Tabel 4 S'!C35/'Tabel 4F S'!C35*100,"-")) -> 12.89547038 | D35: =IF(OR('Tabel 4F S'!D35<5,'Tabel 4 S'!D35<0.5),"-",IFERROR('Tabel 4 S'!D35/'Tabel 4F S'!D35*100,"-")) -> 3.9408867 | E35: =IF(OR('Tabel 4F S'!E35<5,'Tabel 4 S'!E35<0.5),"-",IFERROR('Tabel 4 S'!E35/'Tabel 4F S'!E35*100,"-")) -> 1.916932907 | F35: =IF(OR('Tabel 4F S'!F35<5,'Tabel 4 S'!F35<0.5),"-",IFERROR('Tabel 4 S'!F35/'Tabel 4F S'!F35*100,"-")) -> 4.942965779 | G35: =IF(OR('Tabel 4F S'!G35<5,'Tabel 4 S'!G35<0.5),"-",IFERROR('Tabel 4 S'!G35/'Tabel 4F S'!G35*100,"-")) -> 7.368421053 | I35: =IF(OR('Tabel 4F S'!I35<5,'Tabel 4 S'!I35<0.5),"-",IFERROR('Tabel 4 S'!I35/'Tabel 4F S'!I35*100,"-")) -> 4.859761296
A36: HA | C36: =IF(OR('Tabel 4F S'!C36<5,'Tabel 4 S'!C36<0.5),"-",IFERROR('Tabel 4 S'!C36/'Tabel 4F S'!C36*100,"-")) -> 15.640625 | D36: =IF(OR('Tabel 4F S'!D36<5,'Tabel 4 S'!D36<0.5),"-",IFERROR('Tabel 4 S'!D36/'Tabel 4F S'!D36*100,"-")) -> 4.109589041 | E36: =IF(OR('Tabel 4F S'!E36<5,'Tabel 4 S'!E36<0.5),"-",IFERROR('Tabel 4 S'!E36/'Tabel 4F S'!E36*100,"-")) -> 3.378378378 | F36: =IF(OR('Tabel 4F S'!F36<5,'Tabel 4 S'!F36<0.5),"-",IFERROR('Tabel 4 S'!F36/'Tabel 4F S'!F36*100,"-")) -> 3.265306122 | G36: =IF(OR('Tabel 4F S'!G36<5,'Tabel 4 S'!G36<0.5),"-",IFERROR('Tabel 4 S'!G36/'Tabel 4F S'!G36*100,"-")) -> 9.836065574 | I36: =IF(OR('Tabel 4F S'!I36<5,'Tabel 4 S'!I36<0.5),"-",IFERROR('Tabel 4 S'!I36/'Tabel 4F S'!I36*100,"-")) -> 5.416243655
A37: HD | C37: =IF(OR('Tabel 4F S'!C37<5,'Tabel 4 S'!C37<0.5),"-",IFERROR('Tabel 4 S'!C37/'Tabel 4F S'!C37*100,"-")) -> 15.65625 | D37: =IF(OR('Tabel 4F S'!D37<5,'Tabel 4 S'!D37<0.5),"-",IFERROR('Tabel 4 S'!D37/'Tabel 4F S'!D37*100,"-")) -> 5.357142857 | E37: =IF(OR('Tabel 4F S'!E37<5,'Tabel 4 S'!E37<0.5),"-",IFERROR('Tabel 4 S'!E37/'Tabel 4F S'!E37*100,"-")) -> 2.222222222 | F37: =IF(OR('Tabel 4F S'!F37<5,'Tabel 4 S'!F37<0.5),"-",IFERROR('Tabel 4 S'!F37/'Tabel 4F S'!F37*100,"-")) -> 1.6 | G37: =IF(OR('Tabel 4F S'!G37<5,'Tabel 4 S'!G37<0.5),"-",IFERROR('Tabel 4 S'!G37/'Tabel 4F S'!G37*100,"-")) -> 5.882352941 | I37: =IF(OR('Tabel 4F S'!I37<5,'Tabel 4 S'!I37<0.5),"-",IFERROR('Tabel 4 S'!I37/'Tabel 4F S'!I37*100,"-")) -> 3.705653021
A38: Komm. og Sprog | C38: =IF(OR('Tabel 4F S'!C38<5,'Tabel 4 S'!C38<0.5),"-",IFERROR('Tabel 4 S'!C38/'Tabel 4F S'!C38*100,"-")) -> 22.05084746 | D38: =IF(OR('Tabel 4F S'!D38<5,'Tabel 4 S'!D38<0.5),"-",IFERROR('Tabel 4 S'!D38/'Tabel 4F S'!D38*100,"-")) -> 7.299270073 | E38: =IF(OR('Tabel 4F S'!E38<5,'Tabel 4 S'!E38<0.5),"-",IFERROR('Tabel 4 S'!E38/'Tabel 4F S'!E38*100,"-")) -> 2.808988764 | F38: =IF(OR('Tabel 4F S'!F38<5,'Tabel 4 S'!F38<0.5),"-",IFERROR('Tabel 4 S'!F38/'Tabel 4F S'!F38*100,"-")) -> 6.707317073 | G38: =IF(OR('Tabel 4F S'!G38<5,'Tabel 4 S'!G38<0.5),"-",IFERROR('Tabel 4 S'!G38/'Tabel 4F S'!G38*100,"-")) -> 10.71428571 | I38: =IF(OR('Tabel 4F S'!I38<5,'Tabel 4 S'!I38<0.5),"-",IFERROR('Tabel 4 S'!I38/'Tabel 4F S'!I38*100,"-")) -> 7.718649518
A39: Bygningskonst. | C39: =IF(OR('Tabel 4F S'!C39<5,'Tabel 4 S'!C39<0.5),"-",IFERROR('Tabel 4 S'!C39/'Tabel 4F S'!C39*100,"-")) -> 8.286624204 | D39: =IF(OR('Tabel 4F S'!D39<5,'Tabel 4 S'!D39<0.5),"-",IFERROR('Tabel 4 S'!D39/'Tabel 4F S'!D39*100,"-")) -> 0.8565310493 | E39: =IF(OR('Tabel 4F S'!E39<5,'Tabel 4 S'!E39<0.5),"-",IFERROR('Tabel 4 S'!E39/'Tabel 4F S'!E39*100,"-")) -> 1.801801802 | F39: =IF(OR('Tabel 4F S'!F39<5,'Tabel 4 S'!F39<0.5),"-",IFERROR('Tabel 4 S'!F39/'Tabel 4F S'!F39*100,"-")) -> 1.578947368 | G39: =IF(OR('Tabel 4F S'!G39<5,'Tabel 4 S'!G39<0.5),"-",IFERROR('Tabel 4 S'!G39/'Tabel 4F S'!G39*100,"-")) -> 7.01754386 | I39: =IF(OR('Tabel 4F S'!I39<5,'Tabel 4 S'!I39<0.5),"-",IFERROR('Tabel 4 S'!I39/'Tabel 4F S'!I39*100,"-")) -> 2.492524917
A40: Cand. IT. | C40: =IF(OR('Tabel 4F S'!C40<5,'Tabel 4 S'!C40<0.5),"-",IFERROR('Tabel 4 S'!C40/'Tabel 4F S'!C40*100,"-")) -> 22.61290323 | D40: =IF(OR('Tabel 4F S'!D40<5,'Tabel 4 S'!D40<0.5),"-",IFERROR('Tabel 4 S'!D40/'Tabel 4F S'!D40*100,"-")) -> 7.272727273 | E40: =IF(OR('Tabel 4F S'!E40<5,'Tabel 4 S'!E40<0.5),"-",IFERROR('Tabel 4 S'!E40/'Tabel 4F S'!E40*100,"-")) -> 5 | F40: =IF(OR('Tabel 4F S'!F40<5,'Tabel 4 S'!F40<0.5),"-",IFERROR('Tabel 4 S'!F40/'Tabel 4F S'!F40*100,"-")) -> 6.666666667 | G40: =IF(OR('Tabel 4F S'!G40<5,'Tabel 4 S'!G40<0.5),"-",IFERROR('Tabel 4 S'!G40/'Tabel 4F S'!G40*100,"-")) -> - | I40: =IF(OR('Tabel 4F S'!I40<5,'Tabel 4 S'!I40<0.5),"-",IFERROR('Tabel 4 S'!I40/'Tabel 4F S'!I40*100,"-")) -> 8.478813559
A41: Bac. Samf. | C41: =IF(OR('Tabel 4F S'!C41<5,'Tabel 4 S'!C41<0.5),"-",IFERROR('Tabel 4 S'!C41/'Tabel 4F S'!C41*100,"-")) -> 11.82352941 | D41: =IF(OR('Tabel 4F S'!D41<5,'Tabel 4 S'!D41<0.5),"-",IFERROR('Tabel 4 S'!D41/'Tabel 4F S'!D41*100,"-")) -> 4.347826087 | E41: =IF(OR('Tabel 4F S'!E41<5,'Tabel 4 S'!E41<0.5),"-",IFERROR('Tabel 4 S'!E41/'Tabel 4F S'!E41*100,"-")) -> 6.896551724 | F41: =IF(OR('Tabel 4F S'!F41<5,'Tabel 4 S'!F41<0.5),"-",IFERROR('Tabel 4 S'!F41/'Tabel 4F S'!F41*100,"-")) -> 6.896551724 | G41: =IF(OR('Tabel 4F S'!G41<5,'Tabel 4 S'!G41<0.5),"-",IFERROR('Tabel 4 S'!G41/'Tabel 4F S'!G41*100,"-")) -> - | I41: =IF(OR('Tabel 4F S'!I41<5,'Tabel 4 S'!I41<0.5),"-",IFERROR('Tabel 4 S'!I41/'Tabel 4F S'!I41*100,"-")) -> 6.87254902
A42: Bac. Hum. | C42: =IF(OR('Tabel 4F S'!C42<5,'Tabel 4 S'!C42<0.5),"-",IFERROR('Tabel 4 S'!C42/'Tabel 4F S'!C42*100,"-")) -> 15.96808511 | D42: =IF(OR('Tabel 4F S'!D42<5,'Tabel 4 S'!D42<0.5),"-",IFERROR('Tabel 4 S'!D42/'Tabel 4F S'!D42*100,"-")) -> 14.28571429 | E42: =IF(OR('Tabel 4F S'!E42<5,'Tabel 4 S'!E42<0.5),"-",IFERROR('Tabel 4 S'!E42/'Tabel 4F S'!E42*100,"-")) -> 4.918032787 | F42: =IF(OR('Tabel 4F S'!F42<5,'Tabel 4 S'!F42<0.5),"-",IFERROR('Tabel 4 S'!F42/'Tabel 4F S'!F42*100,"-")) -> 6.756756757 | G42: =IF(OR('Tabel 4F S'!G42<5,'Tabel 4 S'!G42<0.5),"-",IFERROR('Tabel 4 S'!G42/'Tabel 4F S'!G42*100,"-")) -> 12 | I42: =IF(OR('Tabel 4F S'!I42<5,'Tabel 4 S'!I42<0.5),"-",IFERROR('Tabel 4 S'!I42/'Tabel 4F S'!I42*100,"-")) -> 11.11419753
A43: Bac. Nat. | C43: =IF(OR('Tabel 4F S'!C43<5,'Tabel 4 S'!C43<0.5),"-",IFERROR('Tabel 4 S'!C43/'Tabel 4F S'!C43*100,"-")) -> 17.78888889 | D43: =IF(OR('Tabel 4F S'!D43<5,'Tabel 4 S'!D43<0.5),"-",IFERROR('Tabel 4 S'!D43/'Tabel 4F S'!D43*100,"-")) -> 8.108108108 | E43: =IF(OR('Tabel 4F S'!E43<5,'Tabel 4 S'!E43<0.5),"-",IFERROR('Tabel 4 S'!E43/'Tabel 4F S'!E43*100,"-")) -> - | F43: =IF(OR('Tabel 4F S'!F43<5,'Tabel 4 S'!F43<0.5),"-",IFERROR('Tabel 4 S'!F43/'Tabel 4F S'!F43*100,"-")) -> 3.333333333 | G43: =IF(OR('Tabel 4F S'!G43<5,'Tabel 4 S'!G43<0.5),"-",IFERROR('Tabel 4 S'!G43/'Tabel 4F S'!G43*100,"-")) -> - | I43: =IF(OR('Tabel 4F S'!I43<5,'Tabel 4 S'!I43<0.5),"-",IFERROR('Tabel 4 S'!I43/'Tabel 4F S'!I43*100,"-")) -> 9.240963855
A44: Andre | C44: =IF(OR('Tabel 4F S'!C44<5,'Tabel 4 S'!C44<0.5),"-",IFERROR('Tabel 4 S'!C44/'Tabel 4F S'!C44*100,"-")) -> 14.82222222 | D44: =IF(OR('Tabel 4F S'!D44<5,'Tabel 4 S'!D44<0.5),"-",IFERROR('Tabel 4 S'!D44/'Tabel 4F S'!D44*100,"-")) -> 7.922535211 | E44: =IF(OR('Tabel 4F S'!E44<5,'Tabel 4 S'!E44<0.5),"-",IFERROR('Tabel 4 S'!E44/'Tabel 4F S'!E44*100,"-")) -> 3.307392996 | F44: =IF(OR('Tabel 4F S'!F44<5,'Tabel 4 S'!F44<0.5),"-",IFERROR('Tabel 4 S'!F44/'Tabel 4F S'!F44*100,"-")) -> 5.251141553 | G44: =IF(OR('Tabel 4F S'!G44<5,'Tabel 4 S'!G44<0.5),"-",IFERROR('Tabel 4 S'!G44/'Tabel 4F S'!G44*100,"-")) -> 4.807692308 | I44: =IF(OR('Tabel 4F S'!I44<5,'Tabel 4 S'!I44<0.5),"-",IFERROR('Tabel 4 S'!I44/'Tabel 4F S'!I44*100,"-")) -> 6.173376275
A46: Total | C46: =IF(OR('Tabel 4F S'!C46<5,'Tabel 4 S'!C46<0.5),"-",IFERROR('Tabel 4 S'!C46/'Tabel 4F S'!C46*100,"-")) -> 14.71173742 | D46: =IF(OR('Tabel 4F S'!D46<5,'Tabel 4 S'!D46<0.5),"-",IFERROR('Tabel 4 S'!D46/'Tabel 4F S'!D46*100,"-")) -> 5.351211711 | E46: =IF(OR('Tabel 4F S'!E46<5,'Tabel 4 S'!E46<0.5),"-",IFERROR('Tabel 4 S'!E46/'Tabel 4F S'!E46*100,"-")) -> 2.567601092 | F46: =IF(OR('Tabel 4F S'!F46<5,'Tabel 4 S'!F46<0.5),"-",IFERROR('Tabel 4 S'!F46/'Tabel 4F S'!F46*100,"-")) -> 2.656720325 | G46: =IF(OR('Tabel 4F S'!G46<5,'Tabel 4 S'!G46<0.5),"-",IFERROR('Tabel 4 S'!G46/'Tabel 4F S'!G46*100,"-")) -> 4.67771639 | I46: =IF(OR('Tabel 4F S'!I46<5,'Tabel 4 S'!I46<0.5),"-",IFERROR('Tabel 4 S'!I46/'Tabel 4F S'!I46*100,"-")) -> 4.716763203
A48: Ingeniører i alt | C48: =IF(OR('Tabel 4F S'!C48<5,'Tabel 4 S'!C48<0.5),"-",IFERROR('Tabel 4 S'!C48/'Tabel 4F S'!C48*100,"-")) -> 9.957345972 | D48: =IF(OR('Tabel 4F S'!D48<5,'Tabel 4 S'!D48<0.5),"-",IFERROR('Tabel 4 S'!D48/'Tabel 4F S'!D48*100,"-")) -> 2.485004284 | E48: =IF(OR('Tabel 4F S'!E48<5,'Tabel 4 S'!E48<0.5),"-",IFERROR('Tabel 4 S'!E48/'Tabel 4F S'!E48*100,"-")) -> 1.253918495 | F48: =IF(OR('Tabel 4F S'!F48<5,'Tabel 4 S'!F48<0.5),"-",IFERROR('Tabel 4 S'!F48/'Tabel 4F S'!F48*100,"-")) -> 1.325352715 | G48: =IF(OR('Tabel 4F S'!G48<5,'Tabel 4 S'!G48<0.5),"-",IFERROR('Tabel 4 S'!G48/'Tabel 4F S'!G48*100,"-")) -> 4.475524476 | I48: =IF(OR('Tabel 4F S'!I48<5,'Tabel 4 S'!I48<0.5),"-",IFERROR('Tabel 4 S'!I48/'Tabel 4F S'!I48*100,"-")) -> 2.469060596
A49: Magistre i alt | C49: =IF(OR('Tabel 4F S'!C49<5,'Tabel 4 S'!C49<0.5),"-",IFERROR('Tabel 4 S'!C49/'Tabel 4F S'!C49*100,"-")) -> 26.0483871 | D49: =IF(OR('Tabel 4F S'!D49<5,'Tabel 4 S'!D49<0.5),"-",IFERROR('Tabel 4 S'!D49/'Tabel 4F S'!D49*100,"-")) -> 9.881914232 | E49: =IF(OR('Tabel 4F S'!E49<5,'Tabel 4 S'!E49<0.5),"-",IFERROR('Tabel 4 S'!E49/'Tabel 4F S'!E49*100,"-")) -> 4.033149171 | F49: =IF(OR('Tabel 4F S'!F49<5,'Tabel 4 S'!F49<0.5),"-",IFERROR('Tabel 4 S'!F49/'Tabel 4F S'!F49*100,"-")) -> 4.092071611 | G49: =IF(OR('Tabel 4F S'!G49<5,'Tabel 4 S'!G49<0.5),"-",IFERROR('Tabel 4 S'!G49/'Tabel 4F S'!G49*100,"-")) -> 5.078125 | I49: =IF(OR('Tabel 4F S'!I49<5,'Tabel 4 S'!I49<0.5),"-",IFERROR('Tabel 4 S'!I49/'Tabel 4F S'!I49*100,"-")) -> 7.566811123
A50: DJØF'ere i alt | C50: =IF(OR('Tabel 4F S'!C50<5,'Tabel 4 S'!C50<0.5),"-",IFERROR('Tabel 4 S'!C50/'Tabel 4F S'!C50*100,"-")) -> 12.57768362 | D50: =IF(OR('Tabel 4F S'!D50<5,'Tabel 4 S'!D50<0.5),"-",IFERROR('Tabel 4 S'!D50/'Tabel 4F S'!D50*100,"-")) -> 4.09556314 | E50: =IF(OR('Tabel 4F S'!E50<5,'Tabel 4 S'!E50<0.5),"-",IFERROR('Tabel 4 S'!E50/'Tabel 4F S'!E50*100,"-")) -> 2.210526316 | F50: =IF(OR('Tabel 4F S'!F50<5,'Tabel 4 S'!F50<0.5),"-",IFERROR('Tabel 4 S'!F50/'Tabel 4F S'!F50*100,"-")) -> 2.918855809 | G50: =IF(OR('Tabel 4F S'!G50<5,'Tabel 4 S'!G50<0.5),"-",IFERROR('Tabel 4 S'!G50/'Tabel 4F S'!G50*100,"-")) -> 5.361305361 | I50: =IF(OR('Tabel 4F S'!I50<5,'Tabel 4 S'!I50<0.5),"-",IFERROR('Tabel 4 S'!I50/'Tabel 4F S'!I50*100,"-")) -> 4.235406558
A57: Greve
C59: Under 30 år | D59: 30 - 39 år | E59: 40 - 49 år | F59: 50 - 59 år | G59: Over 60 år | I59: I alt
A61: Civ. ing. | C61: =IF(OR('Tabel 4F S'!C61<5,'Tabel 4 S'!C61<0.5),"-",IFERROR('Tabel 4 S'!C61/'Tabel 4F S'!C61*100,"-")) -> - | D61: =IF(OR('Tabel 4F S'!D61<5,'Tabel 4 S'!D61<0.5),"-",IFERROR('Tabel 4 S'!D61/'Tabel 4F S'!D61*100,"-")) -> 1.724137931 | E61: =IF(OR('Tabel 4F S'!E61<5,'Tabel 4 S'!E61<0.5),"-",IFERROR('Tabel 4 S'!E61/'Tabel 4F S'!E61*100,"-")) -> - | F61: =IF(OR('Tabel 4F S'!F61<5,'Tabel 4 S'!F61<0.5),"-",IFERROR('Tabel 4 S'!F61/'Tabel 4F S'!F61*100,"-")) -> - | G61: =IF(OR('Tabel 4F S'!G61<5,'Tabel 4 S'!G61<0.5),"-",IFERROR('Tabel 4 S'!G61/'Tabel 4F S'!G61*100,"-")) -> 10.52631579 | I61: =IF(OR('Tabel 4F S'!I61<5,'Tabel 4 S'!I61<0.5),"-",IFERROR('Tabel 4 S'!I61/'Tabel 4F S'!I61*100,"-")) -> 1.5625
A62: Diplom ing. | C62: =IF(OR('Tabel 4F S'!C62<5,'Tabel 4 S'!C62<0.5),"-",IFERROR('Tabel 4 S'!C62/'Tabel 4F S'!C62*100,"-")) -> 8.695652174 | D62: =IF(OR('Tabel 4F S'!D62<5,'Tabel 4 S'!D62<0.5),"-",IFERROR('Tabel 4 S'!D62/'Tabel 4F S'!D62*100,"-")) -> 1.639344262 | E62: =IF(OR('Tabel 4F S'!E62<5,'Tabel 4 S'!E62<0.5),"-",IFERROR('Tabel 4 S'!E62/'Tabel 4F S'!E62*100,"-")) -> 1.162790698 | F62: =IF(OR('Tabel 4F S'!F62<5,'Tabel 4 S'!F62<0.5),"-",IFERROR('Tabel 4 S'!F62/'Tabel 4F S'!F62*100,"-")) -> 1.369863014 | G62: =IF(OR('Tabel 4F S'!G62<5,'Tabel 4 S'!G62<0.5),"-",IFERROR('Tabel 4 S'!G62/'Tabel 4F S'!G62*100,"-")) -> 2.631578947 | I62: =IF(OR('Tabel 4F S'!I62<5,'Tabel 4 S'!I62<0.5),"-",IFERROR('Tabel 4 S'!I62/'Tabel 4F S'!I62*100,"-")) -> 1.97740113
A63: Cand. Scient. Tek | C63: =IF(OR('Tabel 4F S'!C63<5,'Tabel 4 S'!C63<0.5),"-",IFERROR('Tabel 4 S'!C63/'Tabel 4F S'!C63*100,"-")) -> 23.07692308 | D63: =IF(OR('Tabel 4F S'!D63<5,'Tabel 4 S'!D63<0.5),"-",IFERROR('Tabel 4 S'!D63/'Tabel 4F S'!D63*100,"-")) -> 8.333333333 | E63: =IF(OR('Tabel 4F S'!E63<5,'Tabel 4 S'!E63<0.5),"-",IFERROR('Tabel 4 S'!E63/'Tabel 4F S'!E63*100,"-")) -> - | F63: =IF(OR('Tabel 4F S'!F63<5,'Tabel 4 S'!F63<0.5),"-",IFERROR('Tabel 4 S'!F63/'Tabel 4F S'!F63*100,"-")) -> 10 | G63: =IF(OR('Tabel 4F S'!G63<5,'Tabel 4 S'!G63<0.5),"-",IFERROR('Tabel 4 S'!G63/'Tabel 4F S'!G63*100,"-")) -> - | I63: =IF(OR('Tabel 4F S'!I63<5,'Tabel 4 S'!I63<0.5),"-",IFERROR('Tabel 4 S'!I63/'Tabel 4F S'!I63*100,"-")) -> 7.865168539
A64: MA. Hum. | C64: =IF(OR('Tabel 4F S'!C64<5,'Tabel 4 S'!C64<0.5),"-",IFERROR('Tabel 4 S'!C64/'Tabel 4F S'!C64*100,"-")) -> 26.66666667 | D64: =IF(OR('Tabel 4F S'!D64<5,'Tabel 4 S'!D64<0.5),"-",IFERROR('Tabel 4 S'!D64/'Tabel 4F S'!D64*100,"-")) -> 6.382978723 | E64: =IF(OR('Tabel 4F S'!E64<5,'Tabel 4 S'!E64<0.5),"-",IFERROR('Tabel 4 S'!E64/'Tabel 4F S'!E64*100,"-")) -> 1.851851852 | F64: =IF(OR('Tabel 4F S'!F64<5,'Tabel 4 S'!F64<0.5),"-",IFERROR('Tabel 4 S'!F64/'Tabel 4F S'!F64*100,"-")) -> 15 | G64: =IF(OR('Tabel 4F S'!G64<5,'Tabel 4 S'!G64<0.5),"-",IFERROR('Tabel 4 S'!G64/'Tabel 4F S'!G64*100,"-")) -> - | I64: =IF(OR('Tabel 4F S'!I64<5,'Tabel 4 S'!I64<0.5),"-",IFERROR('Tabel 4 S'!I64/'Tabel 4F S'!I64*100,"-")) -> 7.692307692
A65: MA. Nat. | C65: =IF(OR('Tabel 4F S'!C65<5,'Tabel 4 S'!C65<0.5),"-",IFERROR('Tabel 4 S'!C65/'Tabel 4F S'!C65*100,"-")) -> - | D65: =IF(OR('Tabel 4F S'!D65<5,'Tabel 4 S'!D65<0.5),"-",IFERROR('Tabel 4 S'!D65/'Tabel 4F S'!D65*100,"-")) -> 6.666666667 | E65: =IF(OR('Tabel 4F S'!E65<5,'Tabel 4 S'!E65<0.5),"-",IFERROR('Tabel 4 S'!E65/'Tabel 4F S'!E65*100,"-")) -> - | F65: =IF(OR('Tabel 4F S'!F65<5,'Tabel 4 S'!F65<0.5),"-",IFERROR('Tabel 4 S'!F65/'Tabel 4F S'!F65*100,"-")) -> - | G65: =IF(OR('Tabel 4F S'!G65<5,'Tabel 4 S'!G65<0.5),"-",IFERROR('Tabel 4 S'!G65/'Tabel 4F S'!G65*100,"-")) -> - | I65: =IF(OR('Tabel 4F S'!I65<5,'Tabel 4 S'!I65<0.5),"-",IFERROR('Tabel 4 S'!I65/'Tabel 4F S'!I65*100,"-")) -> 2.53164557
A66: MA. Ph.d. | C66: =IF(OR('Tabel 4F S'!C66<5,'Tabel 4 S'!C66<0.5),"-",IFERROR('Tabel 4 S'!C66/'Tabel 4F S'!C66*100,"-")) -> - | D66: =IF(OR('Tabel 4F S'!D66<5,'Tabel 4 S'!D66<0.5),"-",IFERROR('Tabel 4 S'!D66/'Tabel 4F S'!D66*100,"-")) -> 20 | E66: =IF(OR('Tabel 4F S'!E66<5,'Tabel 4 S'!E66<0.5),"-",IFERROR('Tabel 4 S'!E66/'Tabel 4F S'!E66*100,"-")) -> - | F66: =IF(OR('Tabel 4F S'!F66<5,'Tabel 4 S'!F66<0.5),"-",IFERROR('Tabel 4 S'!F66/'Tabel 4F S'!F66*100,"-")) -> - | G66: =IF(OR('Tabel 4F S'!G66<5,'Tabel 4 S'!G66<0.5),"-",IFERROR('Tabel 4 S'!G66/'Tabel 4F S'!G66*100,"-")) -> - | I66: =IF(OR('Tabel 4F S'!I66<5,'Tabel 4 S'!I66<0.5),"-",IFERROR('Tabel 4 S'!I66/'Tabel 4F S'!I66*100,"-")) -> 11.11111111
A67: MA. Samf. | C67: =IF(OR('Tabel 4F S'!C67<5,'Tabel 4 S'!C67<0.5),"-",IFERROR('Tabel 4 S'!C67/'Tabel 4F S'!C67*100,"-")) -> - | D67: =IF(OR('Tabel 4F S'!D67<5,'Tabel 4 S'!D67<0.5),"-",IFERROR('Tabel 4 S'!D67/'Tabel 4F S'!D67*100,"-")) -> 11.11111111 | E67: =IF(OR('Tabel 4F S'!E67<5,'Tabel 4 S'!E67<0.5),"-",IFERROR('Tabel 4 S'!E67/'Tabel 4F S'!E67*100,"-")) -> - | F67: =IF(OR('Tabel 4F S'!F67<5,'Tabel 4 S'!F67<0.5),"-",IFERROR('Tabel 4 S'!F67/'Tabel 4F S'!F67*100,"-")) -> - | G67: =IF(OR('Tabel 4F S'!G67<5,'Tabel 4 S'!G67<0.5),"-",IFERROR('Tabel 4 S'!G67/'Tabel 4F S'!G67*100,"-")) -> - | I67: =IF(OR('Tabel 4F S'!I67<5,'Tabel 4 S'!I67<0.5),"-",IFERROR('Tabel 4 S'!I67/'Tabel 4F S'!I67*100,"-")) -> 12.5
A68: Øvrige Mag. | C68: =IF(OR('Tabel 4F S'!C68<5,'Tabel 4 S'!C68<0.5),"-",IFERROR('Tabel 4 S'!C68/'Tabel 4F S'!C68*100,"-")) -> - | D68: =IF(OR('Tabel 4F S'!D68<5,'Tabel 4 S'!D68<0.5),"-",IFERROR('Tabel 4 S'!D68/'Tabel 4F S'!D68*100,"-")) -> - | E68: =IF(OR('Tabel 4F S'!E68<5,'Tabel 4 S'!E68<0.5),"-",IFERROR('Tabel 4 S'!E68/'Tabel 4F S'!E68*100,"-")) -> - | F68: =IF(OR('Tabel 4F S'!F68<5,'Tabel 4 S'!F68<0.5),"-",IFERROR('Tabel 4 S'!F68/'Tabel 4F S'!F68*100,"-")) -> - | G68: =IF(OR('Tabel 4F S'!G68<5,'Tabel 4 S'!G68<0.5),"-",IFERROR('Tabel 4 S'!G68/'Tabel 4F S'!G68*100,"-")) -> - | I68: =IF(OR('Tabel 4F S'!I68<5,'Tabel 4 S'!I68<0.5),"-",IFERROR('Tabel 4 S'!I68/'Tabel 4F S'!I68*100,"-")) -> -
A69: Agronom | C69: =IF(OR('Tabel 4F S'!C69<5,'Tabel 4 S'!C69<0.5),"-",IFERROR('Tabel 4 S'!C69/'Tabel 4F S'!C69*100,"-")) -> - | D69: =IF(OR('Tabel 4F S'!D69<5,'Tabel 4 S'!D69<0.5),"-",IFERROR('Tabel 4 S'!D69/'Tabel 4F S'!D69*100,"-")) -> - | E69: =IF(OR('Tabel 4F S'!E69<5,'Tabel 4 S'!E69<0.5),"-",IFERROR('Tabel 4 S'!E69/'Tabel 4F S'!E69*100,"-")) -> - | F69: =IF(OR('Tabel 4F S'!F69<5,'Tabel 4 S'!F69<0.5),"-",IFERROR('Tabel 4 S'!F69/'Tabel 4F S'!F69*100,"-")) -> - | G69: =IF(OR('Tabel 4F S'!G69<5,'Tabel 4 S'!G69<0.5),"-",IFERROR('Tabel 4 S'!G69/'Tabel 4F S'!G69*100,"-")) -> - | I69: =IF(OR('Tabel 4F S'!I69<5,'Tabel 4 S'!I69<0.5),"-",IFERROR('Tabel 4 S'!I69/'Tabel 4F S'!I69*100,"-")) -> 6.666666667
A70: Landsk. Arkt. | C70: =IF(OR('Tabel 4F S'!C70<5,'Tabel 4 S'!C70<0.5),"-",IFERROR('Tabel 4 S'!C70/'Tabel 4F S'!C70*100,"-")) -> - | D70: =IF(OR('Tabel 4F S'!D70<5,'Tabel 4 S'!D70<0.5),"-",IFERROR('Tabel 4 S'!D70/'Tabel 4F S'!D70*100,"-")) -> - | E70: =IF(OR('Tabel 4F S'!E70<5,'Tabel 4 S'!E70<0.5),"-",IFERROR('Tabel 4 S'!E70/'Tabel 4F S'!E70*100,"-")) -> - | F70: =IF(OR('Tabel 4F S'!F70<5,'Tabel 4 S'!F70<0.5),"-",IFERROR('Tabel 4 S'!F70/'Tabel 4F S'!F70*100,"-")) -> - | G70: =IF(OR('Tabel 4F S'!G70<5,'Tabel 4 S'!G70<0.5),"-",IFERROR('Tabel 4 S'!G70/'Tabel 4F S'!G70*100,"-")) -> - | I70: =IF(OR('Tabel 4F S'!I70<5,'Tabel 4 S'!I70<0.5),"-",IFERROR('Tabel 4 S'!I70/'Tabel 4F S'!I70*100,"-")) -> 20
A71: Hortonom | C71: =IF(OR('Tabel 4F S'!C71<5,'Tabel 4 S'!C71<0.5),"-",IFERROR('Tabel 4 S'!C71/'Tabel 4F S'!C71*100,"-")) -> - | D71: =IF(OR('Tabel 4F S'!D71<5,'Tabel 4 S'!D71<0.5),"-",IFERROR('Tabel 4 S'!D71/'Tabel 4F S'!D71*100,"-")) -> - | E71: =IF(OR('Tabel 4F S'!E71<5,'Tabel 4 S'!E71<0.5),"-",IFERROR('Tabel 4 S'!E71/'Tabel 4F S'!E71*100,"-")) -> - | F71: =IF(OR('Tabel 4F S'!F71<5,'Tabel 4 S'!F71<0.5),"-",IFERROR('Tabel 4 S'!F71/'Tabel 4F S'!F71*100,"-")) -> - | G71: =IF(OR('Tabel 4F S'!G71<5,'Tabel 4 S'!G71<0.5),"-",IFERROR('Tabel 4 S'!G71/'Tabel 4F S'!G71*100,"-")) -> - | I71: =IF(OR('Tabel 4F S'!I71<5,'Tabel 4 S'!I71<0.5),"-",IFERROR('Tabel 4 S'!I71/'Tabel 4F S'!I71*100,"-")) -> -
A72: Forstkand. | C72: =IF(OR('Tabel 4F S'!C72<5,'Tabel 4 S'!C72<0.5),"-",IFERROR('Tabel 4 S'!C72/'Tabel 4F S'!C72*100,"-")) -> - | D72: =IF(OR('Tabel 4F S'!D72<5,'Tabel 4 S'!D72<0.5),"-",IFERROR('Tabel 4 S'!D72/'Tabel 4F S'!D72*100,"-")) -> - | E72: =IF(OR('Tabel 4F S'!E72<5,'Tabel 4 S'!E72<0.5),"-",IFERROR('Tabel 4 S'!E72/'Tabel 4F S'!E72*100,"-")) -> - | F72: =IF(OR('Tabel 4F S'!F72<5,'Tabel 4 S'!F72<0.5),"-",IFERROR('Tabel 4 S'!F72/'Tabel 4F S'!F72*100,"-")) -> - | G72: =IF(OR('Tabel 4F S'!G72<5,'Tabel 4 S'!G72<0.5),"-",IFERROR('Tabel 4 S'!G72/'Tabel 4F S'!G72*100,"-")) -> - | I72: =IF(OR('Tabel 4F S'!I72<5,'Tabel 4 S'!I72<0.5),"-",IFERROR('Tabel 4 S'!I72/'Tabel 4F S'!I72*100,"-")) -> -
A73: Jordbrugsakad. | C73: =IF(OR('Tabel 4F S'!C73<5,'Tabel 4 S'!C73<0.5),"-",IFERROR('Tabel 4 S'!C73/'Tabel 4F S'!C73*100,"-")) -> - | D73: =IF(OR('Tabel 4F S'!D73<5,'Tabel 4 S'!D73<0.5),"-",IFERROR('Tabel 4 S'!D73/'Tabel 4F S'!D73*100,"-")) -> - | E73: =IF(OR('Tabel 4F S'!E73<5,'Tabel 4 S'!E73<0.5),"-",IFERROR('Tabel 4 S'!E73/'Tabel 4F S'!E73*100,"-")) -> - | F73: =IF(OR('Tabel 4F S'!F73<5,'Tabel 4 S'!F73<0.5),"-",IFERROR('Tabel 4 S'!F73/'Tabel 4F S'!F73*100,"-")) -> - | G73: =IF(OR('Tabel 4F S'!G73<5,'Tabel 4 S'!G73<0.5),"-",IFERROR('Tabel 4 S'!G73/'Tabel 4F S'!G73*100,"-")) -> - | I73: =IF(OR('Tabel 4F S'!I73<5,'Tabel 4 S'!I73<0.5),"-",IFERROR('Tabel 4 S'!I73/'Tabel 4F S'!I73*100,"-")) -> 9.090909091
A74: Mejeriing. | C74: =IF(OR('Tabel 4F S'!C74<5,'Tabel 4 S'!C74<0.5),"-",IFERROR('Tabel 4 S'!C74/'Tabel 4F S'!C74*100,"-")) -> - | D74: =IF(OR('Tabel 4F S'!D74<5,'Tabel 4 S'!D74<0.5),"-",IFERROR('Tabel 4 S'!D74/'Tabel 4F S'!D74*100,"-")) -> - | E74: =IF(OR('Tabel 4F S'!E74<5,'Tabel 4 S'!E74<0.5),"-",IFERROR('Tabel 4 S'!E74/'Tabel 4F S'!E74*100,"-")) -> - | F74: =IF(OR('Tabel 4F S'!F74<5,'Tabel 4 S'!F74<0.5),"-",IFERROR('Tabel 4 S'!F74/'Tabel 4F S'!F74*100,"-")) -> - | G74: =IF(OR('Tabel 4F S'!G74<5,'Tabel 4 S'!G74<0.5),"-",IFERROR('Tabel 4 S'!G74/'Tabel 4F S'!G74*100,"-")) -> - | I74: =IF(OR('Tabel 4F S'!I74<5,'Tabel 4 S'!I74<0.5),"-",IFERROR('Tabel 4 S'!I74/'Tabel 4F S'!I74*100,"-")) -> -
A75: Levn.m.kand. | C75: =IF(OR('Tabel 4F S'!C75<5,'Tabel 4 S'!C75<0.5),"-",IFERROR('Tabel 4 S'!C75/'Tabel 4F S'!C75*100,"-")) -> - | D75: =IF(OR('Tabel 4F S'!D75<5,'Tabel 4 S'!D75<0.5),"-",IFERROR('Tabel 4 S'!D75/'Tabel 4F S'!D75*100,"-")) -> - | E75: =IF(OR('Tabel 4F S'!E75<5,'Tabel 4 S'!E75<0.5),"-",IFERROR('Tabel 4 S'!E75/'Tabel 4F S'!E75*100,"-")) -> - | F75: =IF(OR('Tabel 4F S'!F75<5,'Tabel 4 S'!F75<0.5),"-",IFERROR('Tabel 4 S'!F75/'Tabel 4F S'!F75*100,"-")) -> - | G75: =IF(OR('Tabel 4F S'!G75<5,'Tabel 4 S'!G75<0.5),"-",IFERROR('Tabel 4 S'!G75/'Tabel 4F S'!G75*100,"-")) -> - | I75: =IF(OR('Tabel 4F S'!I75<5,'Tabel 4 S'!I75<0.5),"-",IFERROR('Tabel 4 S'!I75/'Tabel 4F S'!I75*100,"-")) -> -
A76: Dyrlæge | C76: =IF(OR('Tabel 4F S'!C76<5,'Tabel 4 S'!C76<0.5),"-",IFERROR('Tabel 4 S'!C76/'Tabel 4F S'!C76*100,"-")) -> - | D76: =IF(OR('Tabel 4F S'!D76<5,'Tabel 4 S'!D76<0.5),"-",IFERROR('Tabel 4 S'!D76/'Tabel 4F S'!D76*100,"-")) -> - | E76: =IF(OR('Tabel 4F S'!E76<5,'Tabel 4 S'!E76<0.5),"-",IFERROR('Tabel 4 S'!E76/'Tabel 4F S'!E76*100,"-")) -> - | F76: =IF(OR('Tabel 4F S'!F76<5,'Tabel 4 S'!F76<0.5),"-",IFERROR('Tabel 4 S'!F76/'Tabel 4F S'!F76*100,"-")) -> - | G76: =IF(OR('Tabel 4F S'!G76<5,'Tabel 4 S'!G76<0.5),"-",IFERROR('Tabel 4 S'!G76/'Tabel 4F S'!G76*100,"-")) -> - | I76: =IF(OR('Tabel 4F S'!I76<5,'Tabel 4 S'!I76<0.5),"-",IFERROR('Tabel 4 S'!I76/'Tabel 4F S'!I76*100,"-")) -> -
A77: Farmaceut | C77: =IF(OR('Tabel 4F S'!C77<5,'Tabel 4 S'!C77<0.5),"-",IFERROR('Tabel 4 S'!C77/'Tabel 4F S'!C77*100,"-")) -> 16.66666667 | D77: =IF(OR('Tabel 4F S'!D77<5,'Tabel 4 S'!D77<0.5),"-",IFERROR('Tabel 4 S'!D77/'Tabel 4F S'!D77*100,"-")) -> - | E77: =IF(OR('Tabel 4F S'!E77<5,'Tabel 4 S'!E77<0.5),"-",IFERROR('Tabel 4 S'!E77/'Tabel 4F S'!E77*100,"-")) -> - | F77: =IF(OR('Tabel 4F S'!F77<5,'Tabel 4 S'!F77<0.5),"-",IFERROR('Tabel 4 S'!F77/'Tabel 4F S'!F77*100,"-")) -> - | G77: =IF(OR('Tabel 4F S'!G77<5,'Tabel 4 S'!G77<0.5),"-",IFERROR('Tabel 4 S'!G77/'Tabel 4F S'!G77*100,"-")) -> - | I77: =IF(OR('Tabel 4F S'!I77<5,'Tabel 4 S'!I77<0.5),"-",IFERROR('Tabel 4 S'!I77/'Tabel 4F S'!I77*100,"-")) -> 1.492537313
A78: Læge | C78: =IF(OR('Tabel 4F S'!C78<5,'Tabel 4 S'!C78<0.5),"-",IFERROR('Tabel 4 S'!C78/'Tabel 4F S'!C78*100,"-")) -> - | D78: =IF(OR('Tabel 4F S'!D78<5,'Tabel 4 S'!D78<0.5),"-",IFERROR('Tabel 4 S'!D78/'Tabel 4F S'!D78*100,"-")) -> - | E78: =IF(OR('Tabel 4F S'!E78<5,'Tabel 4 S'!E78<0.5),"-",IFERROR('Tabel 4 S'!E78/'Tabel 4F S'!E78*100,"-")) -> 10 | F78: =IF(OR('Tabel 4F S'!F78<5,'Tabel 4 S'!F78<0.5),"-",IFERROR('Tabel 4 S'!F78/'Tabel 4F S'!F78*100,"-")) -> - | G78: =IF(OR('Tabel 4F S'!G78<5,'Tabel 4 S'!G78<0.5),"-",IFERROR('Tabel 4 S'!G78/'Tabel 4F S'!G78*100,"-")) -> - | I78: =IF(OR('Tabel 4F S'!I78<5,'Tabel 4 S'!I78<0.5),"-",IFERROR('Tabel 4 S'!I78/'Tabel 4F S'!I78*100,"-")) -> 2.272727273
A79: Tandlæge | C79: =IF(OR('Tabel 4F S'!C79<5,'Tabel 4 S'!C79<0.5),"-",IFERROR('Tabel 4 S'!C79/'Tabel 4F S'!C79*100,"-")) -> - | D79: =IF(OR('Tabel 4F S'!D79<5,'Tabel 4 S'!D79<0.5),"-",IFERROR('Tabel 4 S'!D79/'Tabel 4F S'!D79*100,"-")) -> - | E79: =IF(OR('Tabel 4F S'!E79<5,'Tabel 4 S'!E79<0.5),"-",IFERROR('Tabel 4 S'!E79/'Tabel 4F S'!E79*100,"-")) -> - | F79: =IF(OR('Tabel 4F S'!F79<5,'Tabel 4 S'!F79<0.5),"-",IFERROR('Tabel 4 S'!F79/'Tabel 4F S'!F79*100,"-")) -> - | G79: =IF(OR('Tabel 4F S'!G79<5,'Tabel 4 S'!G79<0.5),"-",IFERROR('Tabel 4 S'!G79/'Tabel 4F S'!G79*100,"-")) -> - | I79: =IF(OR('Tabel 4F S'!I79<5,'Tabel 4 S'!I79<0.5),"-",IFERROR('Tabel 4 S'!I79/'Tabel 4F S'!I79*100,"-")) -> -
A80: Arkitekt | C80: =IF(OR('Tabel 4F S'!C80<5,'Tabel 4 S'!C80<0.5),"-",IFERROR('Tabel 4 S'!C80/'Tabel 4F S'!C80*100,"-")) -> - | D80: =IF(OR('Tabel 4F S'!D80<5,'Tabel 4 S'!D80<0.5),"-",IFERROR('Tabel 4 S'!D80/'Tabel 4F S'!D80*100,"-")) -> - | E80: =IF(OR('Tabel 4F S'!E80<5,'Tabel 4 S'!E80<0.5),"-",IFERROR('Tabel 4 S'!E80/'Tabel 4F S'!E80*100,"-")) -> - | F80: =IF(OR('Tabel 4F S'!F80<5,'Tabel 4 S'!F80<0.5),"-",IFERROR('Tabel 4 S'!F80/'Tabel 4F S'!F80*100,"-")) -> - | G80: =IF(OR('Tabel 4F S'!G80<5,'Tabel 4 S'!G80<0.5),"-",IFERROR('Tabel 4 S'!G80/'Tabel 4F S'!G80*100,"-")) -> - | I80: =IF(OR('Tabel 4F S'!I80<5,'Tabel 4 S'!I80<0.5),"-",IFERROR('Tabel 4 S'!I80/'Tabel 4F S'!I80*100,"-")) -> -
A81: Landinspek. | C81: =IF(OR('Tabel 4F S'!C81<5,'Tabel 4 S'!C81<0.5),"-",IFERROR('Tabel 4 S'!C81/'Tabel 4F S'!C81*100,"-")) -> - | D81: =IF(OR('Tabel 4F S'!D81<5,'Tabel 4 S'!D81<0.5),"-",IFERROR('Tabel 4 S'!D81/'Tabel 4F S'!D81*100,"-")) -> - | E81: =IF(OR('Tabel 4F S'!E81<5,'Tabel 4 S'!E81<0.5),"-",IFERROR('Tabel 4 S'!E81/'Tabel 4F S'!E81*100,"-")) -> - | F81: =IF(OR('Tabel 4F S'!F81<5,'Tabel 4 S'!F81<0.5),"-",IFERROR('Tabel 4 S'!F81/'Tabel 4F S'!F81*100,"-")) -> - | G81: =IF(OR('Tabel 4F S'!G81<5,'Tabel 4 S'!G81<0.5),"-",IFERROR('Tabel 4 S'!G81/'Tabel 4F S'!G81*100,"-")) -> - | I81: =IF(OR('Tabel 4F S'!I81<5,'Tabel 4 S'!I81<0.5),"-",IFERROR('Tabel 4 S'!I81/'Tabel 4F S'!I81*100,"-")) -> -
A82: Bibliotekar | C82: =IF(OR('Tabel 4F S'!C82<5,'Tabel 4 S'!C82<0.5),"-",IFERROR('Tabel 4 S'!C82/'Tabel 4F S'!C82*100,"-")) -> - | D82: =IF(OR('Tabel 4F S'!D82<5,'Tabel 4 S'!D82<0.5),"-",IFERROR('Tabel 4 S'!D82/'Tabel 4F S'!D82*100,"-")) -> - | E82: =IF(OR('Tabel 4F S'!E82<5,'Tabel 4 S'!E82<0.5),"-",IFERROR('Tabel 4 S'!E82/'Tabel 4F S'!E82*100,"-")) -> - | F82: =IF(OR('Tabel 4F S'!F82<5,'Tabel 4 S'!F82<0.5),"-",IFERROR('Tabel 4 S'!F82/'Tabel 4F S'!F82*100,"-")) -> - | G82: =IF(OR('Tabel 4F S'!G82<5,'Tabel 4 S'!G82<0.5),"-",IFERROR('Tabel 4 S'!G82/'Tabel 4F S'!G82*100,"-")) -> - | I82: =IF(OR('Tabel 4F S'!I82<5,'Tabel 4 S'!I82<0.5),"-",IFERROR('Tabel 4 S'!I82/'Tabel 4F S'!I82*100,"-")) -> -
A83: Musikudd. | C83: =IF(OR('Tabel 4F S'!C83<5,'Tabel 4 S'!C83<0.5),"-",IFERROR('Tabel 4 S'!C83/'Tabel 4F S'!C83*100,"-")) -> - | D83: =IF(OR('Tabel 4F S'!D83<5,'Tabel 4 S'!D83<0.5),"-",IFERROR('Tabel 4 S'!D83/'Tabel 4F S'!D83*100,"-")) -> - | E83: =IF(OR('Tabel 4F S'!E83<5,'Tabel 4 S'!E83<0.5),"-",IFERROR('Tabel 4 S'!E83/'Tabel 4F S'!E83*100,"-")) -> - | F83: =IF(OR('Tabel 4F S'!F83<5,'Tabel 4 S'!F83<0.5),"-",IFERROR('Tabel 4 S'!F83/'Tabel 4F S'!F83*100,"-")) -> - | G83: =IF(OR('Tabel 4F S'!G83<5,'Tabel 4 S'!G83<0.5),"-",IFERROR('Tabel 4 S'!G83/'Tabel 4F S'!G83*100,"-")) -> - | I83: =IF(OR('Tabel 4F S'!I83<5,'Tabel 4 S'!I83<0.5),"-",IFERROR('Tabel 4 S'!I83/'Tabel 4F S'!I83*100,"-")) -> -
A84: Teolog | C84: =IF(OR('Tabel 4F S'!C84<5,'Tabel 4 S'!C84<0.5),"-",IFERROR('Tabel 4 S'!C84/'Tabel 4F S'!C84*100,"-")) -> - | D84: =IF(OR('Tabel 4F S'!D84<5,'Tabel 4 S'!D84<0.5),"-",IFERROR('Tabel 4 S'!D84/'Tabel 4F S'!D84*100,"-")) -> - | E84: =IF(OR('Tabel 4F S'!E84<5,'Tabel 4 S'!E84<0.5),"-",IFERROR('Tabel 4 S'!E84/'Tabel 4F S'!E84*100,"-")) -> - | F84: =IF(OR('Tabel 4F S'!F84<5,'Tabel 4 S'!F84<0.5),"-",IFERROR('Tabel 4 S'!F84/'Tabel 4F S'!F84*100,"-")) -> - | G84: =IF(OR('Tabel 4F S'!G84<5,'Tabel 4 S'!G84<0.5),"-",IFERROR('Tabel 4 S'!G84/'Tabel 4F S'!G84*100,"-")) -> - | I84: =IF(OR('Tabel 4F S'!I84<5,'Tabel 4 S'!I84<0.5),"-",IFERROR('Tabel 4 S'!I84/'Tabel 4F S'!I84*100,"-")) -> -
A85: Psykolog | C85: =IF(OR('Tabel 4F S'!C85<5,'Tabel 4 S'!C85<0.5),"-",IFERROR('Tabel 4 S'!C85/'Tabel 4F S'!C85*100,"-")) -> - | D85: =IF(OR('Tabel 4F S'!D85<5,'Tabel 4 S'!D85<0.5),"-",IFERROR('Tabel 4 S'!D85/'Tabel 4F S'!D85*100,"-")) -> - | E85: =IF(OR('Tabel 4F S'!E85<5,'Tabel 4 S'!E85<0.5),"-",IFERROR('Tabel 4 S'!E85/'Tabel 4F S'!E85*100,"-")) -> - | F85: =IF(OR('Tabel 4F S'!F85<5,'Tabel 4 S'!F85<0.5),"-",IFERROR('Tabel 4 S'!F85/'Tabel 4F S'!F85*100,"-")) -> - | G85: =IF(OR('Tabel 4F S'!G85<5,'Tabel 4 S'!G85<0.5),"-",IFERROR('Tabel 4 S'!G85/'Tabel 4F S'!G85*100,"-")) -> - | I85: =IF(OR('Tabel 4F S'!I85<5,'Tabel 4 S'!I85<0.5),"-",IFERROR('Tabel 4 S'!I85/'Tabel 4F S'!I85*100,"-")) -> 4.545454545
A86: Jurist | C86: =IF(OR('Tabel 4F S'!C86<5,'Tabel 4 S'!C86<0.5),"-",IFERROR('Tabel 4 S'!C86/'Tabel 4F S'!C86*100,"-")) -> - | D86: =IF(OR('Tabel 4F S'!D86<5,'Tabel 4 S'!D86<0.5),"-",IFERROR('Tabel 4 S'!D86/'Tabel 4F S'!D86*100,"-")) -> - | E86: =IF(OR('Tabel 4F S'!E86<5,'Tabel 4 S'!E86<0.5),"-",IFERROR('Tabel 4 S'!E86/'Tabel 4F S'!E86*100,"-")) -> - | F86: =IF(OR('Tabel 4F S'!F86<5,'Tabel 4 S'!F86<0.5),"-",IFERROR('Tabel 4 S'!F86/'Tabel 4F S'!F86*100,"-")) -> - | G86: =IF(OR('Tabel 4F S'!G86<5,'Tabel 4 S'!G86<0.5),"-",IFERROR('Tabel 4 S'!G86/'Tabel 4F S'!G86*100,"-")) -> - | I86: =IF(OR('Tabel 4F S'!I86<5,'Tabel 4 S'!I86<0.5),"-",IFERROR('Tabel 4 S'!I86/'Tabel 4F S'!I86*100,"-")) -> -
A87: Økonom | C87: =IF(OR('Tabel 4F S'!C87<5,'Tabel 4 S'!C87<0.5),"-",IFERROR('Tabel 4 S'!C87/'Tabel 4F S'!C87*100,"-")) -> - | D87: =IF(OR('Tabel 4F S'!D87<5,'Tabel 4 S'!D87<0.5),"-",IFERROR('Tabel 4 S'!D87/'Tabel 4F S'!D87*100,"-")) -> 10 | E87: =IF(OR('Tabel 4F S'!E87<5,'Tabel 4 S'!E87<0.5),"-",IFERROR('Tabel 4 S'!E87/'Tabel 4F S'!E87*100,"-")) -> 4.166666667 | F87: =IF(OR('Tabel 4F S'!F87<5,'Tabel 4 S'!F87<0.5),"-",IFERROR('Tabel 4 S'!F87/'Tabel 4F S'!F87*100,"-")) -> - | G87: =IF(OR('Tabel 4F S'!G87<5,'Tabel 4 S'!G87<0.5),"-",IFERROR('Tabel 4 S'!G87/'Tabel 4F S'!G87*100,"-")) -> - | I87: =IF(OR('Tabel 4F S'!I87<5,'Tabel 4 S'!I87<0.5),"-",IFERROR('Tabel 4 S'!I87/'Tabel 4F S'!I87*100,"-")) -> 3.703703704
A88: Samf. Adm. | C88: =IF(OR('Tabel 4F S'!C88<5,'Tabel 4 S'!C88<0.5),"-",IFERROR('Tabel 4 S'!C88/'Tabel 4F S'!C88*100,"-")) -> 11.11111111 | D88: =IF(OR('Tabel 4F S'!D88<5,'Tabel 4 S'!D88<0.5),"-",IFERROR('Tabel 4 S'!D88/'Tabel 4F S'!D88*100,"-")) -> 1.960784314 | E88: =IF(OR('Tabel 4F S'!E88<5,'Tabel 4 S'!E88<0.5),"-",IFERROR('Tabel 4 S'!E88/'Tabel 4F S'!E88*100,"-")) -> - | F88: =IF(OR('Tabel 4F S'!F88<5,'Tabel 4 S'!F88<0.5),"-",IFERROR('Tabel 4 S'!F88/'Tabel 4F S'!F88*100,"-")) -> - | G88: =IF(OR('Tabel 4F S'!G88<5,'Tabel 4 S'!G88<0.5),"-",IFERROR('Tabel 4 S'!G88/'Tabel 4F S'!G88*100,"-")) -> - | I88: =IF(OR('Tabel 4F S'!I88<5,'Tabel 4 S'!I88<0.5),"-",IFERROR('Tabel 4 S'!I88/'Tabel 4F S'!I88*100,"-")) -> 1.6
A89: Cand. Merc. | C89: =IF(OR('Tabel 4F S'!C89<5,'Tabel 4 S'!C89<0.5),"-",IFERROR('Tabel 4 S'!C89/'Tabel 4F S'!C89*100,"-")) -> - | D89: =IF(OR('Tabel 4F S'!D89<5,'Tabel 4 S'!D89<0.5),"-",IFERROR('Tabel 4 S'!D89/'Tabel 4F S'!D89*100,"-")) -> 0.9523809524 | E89: =IF(OR('Tabel 4F S'!E89<5,'Tabel 4 S'!E89<0.5),"-",IFERROR('Tabel 4 S'!E89/'Tabel 4F S'!E89*100,"-")) -> - | F89: =IF(OR('Tabel 4F S'!F89<5,'Tabel 4 S'!F89<0.5),"-",IFERROR('Tabel 4 S'!F89/'Tabel 4F S'!F89*100,"-")) -> 2.985074627 | G89: =IF(OR('Tabel 4F S'!G89<5,'Tabel 4 S'!G89<0.5),"-",IFERROR('Tabel 4 S'!G89/'Tabel 4F S'!G89*100,"-")) -> 8.333333333 | I89: =IF(OR('Tabel 4F S'!I89<5,'Tabel 4 S'!I89<0.5),"-",IFERROR('Tabel 4 S'!I89/'Tabel 4F S'!I89*100,"-")) -> 1.333333333
A90: HA | C90: =IF(OR('Tabel 4F S'!C90<5,'Tabel 4 S'!C90<0.5),"-",IFERROR('Tabel 4 S'!C90/'Tabel 4F S'!C90*100,"-")) -> - | D90: =IF(OR('Tabel 4F S'!D90<5,'Tabel 4 S'!D90<0.5),"-",IFERROR('Tabel 4 S'!D90/'Tabel 4F S'!D90*100,"-")) -> - | E90: =IF(OR('Tabel 4F S'!E90<5,'Tabel 4 S'!E90<0.5),"-",IFERROR('Tabel 4 S'!E90/'Tabel 4F S'!E90*100,"-")) -> - | F90: =IF(OR('Tabel 4F S'!F90<5,'Tabel 4 S'!F90<0.5),"-",IFERROR('Tabel 4 S'!F90/'Tabel 4F S'!F90*100,"-")) -> - | G90: =IF(OR('Tabel 4F S'!G90<5,'Tabel 4 S'!G90<0.5),"-",IFERROR('Tabel 4 S'!G90/'Tabel 4F S'!G90*100,"-")) -> - | I90: =IF(OR('Tabel 4F S'!I90<5,'Tabel 4 S'!I90<0.5),"-",IFERROR('Tabel 4 S'!I90/'Tabel 4F S'!I90*100,"-")) -> 1.428571429
A91: HD | C91: =IF(OR('Tabel 4F S'!C91<5,'Tabel 4 S'!C91<0.5),"-",IFERROR('Tabel 4 S'!C91/'Tabel 4F S'!C91*100,"-")) -> - | D91: =IF(OR('Tabel 4F S'!D91<5,'Tabel 4 S'!D91<0.5),"-",IFERROR('Tabel 4 S'!D91/'Tabel 4F S'!D91*100,"-")) -> - | E91: =IF(OR('Tabel 4F S'!E91<5,'Tabel 4 S'!E91<0.5),"-",IFERROR('Tabel 4 S'!E91/'Tabel 4F S'!E91*100,"-")) -> - | F91: =IF(OR('Tabel 4F S'!F91<5,'Tabel 4 S'!F91<0.5),"-",IFERROR('Tabel 4 S'!F91/'Tabel 4F S'!F91*100,"-")) -> - | G91: =IF(OR('Tabel 4F S'!G91<5,'Tabel 4 S'!G91<0.5),"-",IFERROR('Tabel 4 S'!G91/'Tabel 4F S'!G91*100,"-")) -> 11.76470588 | I91: =IF(OR('Tabel 4F S'!I91<5,'Tabel 4 S'!I91<0.5),"-",IFERROR('Tabel 4 S'!I91/'Tabel 4F S'!I91*100,"-")) -> 2.666666667
A92: Komm. og Sprog | C92: =IF(OR('Tabel 4F S'!C92<5,'Tabel 4 S'!C92<0.5),"-",IFERROR('Tabel 4 S'!C92/'Tabel 4F S'!C92*100,"-")) -> - | D92: =IF(OR('Tabel 4F S'!D92<5,'Tabel 4 S'!D92<0.5),"-",IFERROR('Tabel 4 S'!D92/'Tabel 4F S'!D92*100,"-")) -> 18.18181818 | E92: =IF(OR('Tabel 4F S'!E92<5,'Tabel 4 S'!E92<0.5),"-",IFERROR('Tabel 4 S'!E92/'Tabel 4F S'!E92*100,"-")) -> - | F92: =IF(OR('Tabel 4F S'!F92<5,'Tabel 4 S'!F92<0.5),"-",IFERROR('Tabel 4 S'!F92/'Tabel 4F S'!F92*100,"-")) -> 7.142857143 | G92: =IF(OR('Tabel 4F S'!G92<5,'Tabel 4 S'!G92<0.5),"-",IFERROR('Tabel 4 S'!G92/'Tabel 4F S'!G92*100,"-")) -> 12.5 | I92: =IF(OR('Tabel 4F S'!I92<5,'Tabel 4 S'!I92<0.5),"-",IFERROR('Tabel 4 S'!I92/'Tabel 4F S'!I92*100,"-")) -> 6.779661017
A93: Bygningskonst. | C93: =IF(OR('Tabel 4F S'!C93<5,'Tabel 4 S'!C93<0.5),"-",IFERROR('Tabel 4 S'!C93/'Tabel 4F S'!C93*100,"-")) -> 37.5 | D93: =IF(OR('Tabel 4F S'!D93<5,'Tabel 4 S'!D93<0.5),"-",IFERROR('Tabel 4 S'!D93/'Tabel 4F S'!D93*100,"-")) -> - | E93: =IF(OR('Tabel 4F S'!E93<5,'Tabel 4 S'!E93<0.5),"-",IFERROR('Tabel 4 S'!E93/'Tabel 4F S'!E93*100,"-")) -> 5 | F93: =IF(OR('Tabel 4F S'!F93<5,'Tabel 4 S'!F93<0.5),"-",IFERROR('Tabel 4 S'!F93/'Tabel 4F S'!F93*100,"-")) -> - | G93: =IF(OR('Tabel 4F S'!G93<5,'Tabel 4 S'!G93<0.5),"-",IFERROR('Tabel 4 S'!G93/'Tabel 4F S'!G93*100,"-")) -> 14.28571429 | I93: =IF(OR('Tabel 4F S'!I93<5,'Tabel 4 S'!I93<0.5),"-",IFERROR('Tabel 4 S'!I93/'Tabel 4F S'!I93*100,"-")) -> 6.578947368
A94: Cand. IT. | C94: =IF(OR('Tabel 4F S'!C94<5,'Tabel 4 S'!C94<0.5),"-",IFERROR('Tabel 4 S'!C94/'Tabel 4F S'!C94*100,"-")) -> - | D94: =IF(OR('Tabel 4F S'!D94<5,'Tabel 4 S'!D94<0.5),"-",IFERROR('Tabel 4 S'!D94/'Tabel 4F S'!D94*100,"-")) -> - | E94: =IF(OR('Tabel 4F S'!E94<5,'Tabel 4 S'!E94<0.5),"-",IFERROR('Tabel 4 S'!E94/'Tabel 4F S'!E94*100,"-")) -> 11.11111111 | F94: =IF(OR('Tabel 4F S'!F94<5,'Tabel 4 S'!F94<0.5),"-",IFERROR('Tabel 4 S'!F94/'Tabel 4F S'!F94*100,"-")) -> - | G94: =IF(OR('Tabel 4F S'!G94<5,'Tabel 4 S'!G94<0.5),"-",IFERROR('Tabel 4 S'!G94/'Tabel 4F S'!G94*100,"-")) -> - | I94: =IF(OR('Tabel 4F S'!I94<5,'Tabel 4 S'!I94<0.5),"-",IFERROR('Tabel 4 S'!I94/'Tabel 4F S'!I94*100,"-")) -> 4.166666667
A95: Bac. Samf. | C95: =IF(OR('Tabel 4F S'!C95<5,'Tabel 4 S'!C95<0.5),"-",IFERROR('Tabel 4 S'!C95/'Tabel 4F S'!C95*100,"-")) -> - | D95: =IF(OR('Tabel 4F S'!D95<5,'Tabel 4 S'!D95<0.5),"-",IFERROR('Tabel 4 S'!D95/'Tabel 4F S'!D95*100,"-")) -> - | E95: =IF(OR('Tabel 4F S'!E95<5,'Tabel 4 S'!E95<0.5),"-",IFERROR('Tabel 4 S'!E95/'Tabel 4F S'!E95*100,"-")) -> - | F95: =IF(OR('Tabel 4F S'!F95<5,'Tabel 4 S'!F95<0.5),"-",IFERROR('Tabel 4 S'!F95/'Tabel 4F S'!F95*100,"-")) -> - | G95: =IF(OR('Tabel 4F S'!G95<5,'Tabel 4 S'!G95<0.5),"-",IFERROR('Tabel 4 S'!G95/'Tabel 4F S'!G95*100,"-")) -> - | I95: =IF(OR('Tabel 4F S'!I95<5,'Tabel 4 S'!I95<0.5),"-",IFERROR('Tabel 4 S'!I95/'Tabel 4F S'!I95*100,"-")) -> 11.11111111
A96: Bac. Hum. | C96: =IF(OR('Tabel 4F S'!C96<5,'Tabel 4 S'!C96<0.5),"-",IFERROR('Tabel 4 S'!C96/'Tabel 4F S'!C96*100,"-")) -> - | D96: =IF(OR('Tabel 4F S'!D96<5,'Tabel 4 S'!D96<0.5),"-",IFERROR('Tabel 4 S'!D96/'Tabel 4F S'!D96*100,"-")) -> 60 | E96: =IF(OR('Tabel 4F S'!E96<5,'Tabel 4 S'!E96<0.5),"-",IFERROR('Tabel 4 S'!E96/'Tabel 4F S'!E96*100,"-")) -> - | F96: =IF(OR('Tabel 4F S'!F96<5,'Tabel 4 S'!F96<0.5),"-",IFERROR('Tabel 4 S'!F96/'Tabel 4F S'!F96*100,"-")) -> - | G96: =IF(OR('Tabel 4F S'!G96<5,'Tabel 4 S'!G96<0.5),"-",IFERROR('Tabel 4 S'!G96/'Tabel 4F S'!G96*100,"-")) -> - | I96: =IF(OR('Tabel 4F S'!I96<5,'Tabel 4 S'!I96<0.5),"-",IFERROR('Tabel 4 S'!I96/'Tabel 4F S'!I96*100,"-")) -> 20
A97: Bac. Nat. | C97: =IF(OR('Tabel 4F S'!C97<5,'Tabel 4 S'!C97<0.5),"-",IFERROR('Tabel 4 S'!C97/'Tabel 4F S'!C97*100,"-")) -> - | D97: =IF(OR('Tabel 4F S'!D97<5,'Tabel 4 S'!D97<0.5),"-",IFERROR('Tabel 4 S'!D97/'Tabel 4F S'!D97*100,"-")) -> - | E97: =IF(OR('Tabel 4F S'!E97<5,'Tabel 4 S'!E97<0.5),"-",IFERROR('Tabel 4 S'!E97/'Tabel 4F S'!E97*100,"-")) -> - | F97: =IF(OR('Tabel 4F S'!F97<5,'Tabel 4 S'!F97<0.5),"-",IFERROR('Tabel 4 S'!F97/'Tabel 4F S'!F97*100,"-")) -> - | G97: =IF(OR('Tabel 4F S'!G97<5,'Tabel 4 S'!G97<0.5),"-",IFERROR('Tabel 4 S'!G97/'Tabel 4F S'!G97*100,"-")) -> - | I97: =IF(OR('Tabel 4F S'!I97<5,'Tabel 4 S'!I97<0.5),"-",IFERROR('Tabel 4 S'!I97/'Tabel 4F S'!I97*100,"-")) -> 16.66666667
A98: Andre | C98: =IF(OR('Tabel 4F S'!C98<5,'Tabel 4 S'!C98<0.5),"-",IFERROR('Tabel 4 S'!C98/'Tabel 4F S'!C98*100,"-")) -> 9.090909091 | D98: =IF(OR('Tabel 4F S'!D98<5,'Tabel 4 S'!D98<0.5),"-",IFERROR('Tabel 4 S'!D98/'Tabel 4F S'!D98*100,"-")) -> 10.34482759 | E98: =IF(OR('Tabel 4F S'!E98<5,'Tabel 4 S'!E98<0.5),"-",IFERROR('Tabel 4 S'!E98/'Tabel 4F S'!E98*100,"-")) -> 2.127659574 | F98: =IF(OR('Tabel 4F S'!F98<5,'Tabel 4 S'!F98<0.5),"-",IFERROR('Tabel 4 S'!F98/'Tabel 4F S'!F98*100,"-")) -> - | G98: =IF(OR('Tabel 4F S'!G98<5,'Tabel 4 S'!G98<0.5),"-",IFERROR('Tabel 4 S'!G98/'Tabel 4F S'!G98*100,"-")) -> - | I98: =IF(OR('Tabel 4F S'!I98<5,'Tabel 4 S'!I98<0.5),"-",IFERROR('Tabel 4 S'!I98/'Tabel 4F S'!I98*100,"-")) -> 5.063291139
A100: Total | C100: =IF(OR('Tabel 4F S'!C100<5,'Tabel 4 S'!C100<0.5),"-",IFERROR('Tabel 4 S'!C100/'Tabel 4F S'!C100*100,"-")) -> 12.71676301 | D100: =IF(OR('Tabel 4F S'!D100<5,'Tabel 4 S'!D100<0.5),"-",IFERROR('Tabel 4 S'!D100/'Tabel 4F S'!D100*100,"-")) -> 3.903903904 | E100: =IF(OR('Tabel 4F S'!E100<5,'Tabel 4 S'!E100<0.5),"-",IFERROR('Tabel 4 S'!E100/'Tabel 4F S'!E100*100,"-")) -> 1.232665639 | F100: =IF(OR('Tabel 4F S'!F100<5,'Tabel 4 S'!F100<0.5),"-",IFERROR('Tabel 4 S'!F100/'Tabel 4F S'!F100*100,"-")) -> 1.706484642 | G100: =IF(OR('Tabel 4F S'!G100<5,'Tabel 4 S'!G100<0.5),"-",IFERROR('Tabel 4 S'!G100/'Tabel 4F S'!G100*100,"-")) -> 4.395604396 | I100: =IF(OR('Tabel 4F S'!I100<5,'Tabel 4 S'!I100<0.5),"-",IFERROR('Tabel 4 S'!I100/'Tabel 4F S'!I100*100,"-")) -> 3.280141844
A102: Ingeniører i alt | C102: =IF(OR('Tabel 4F S'!C102<5,'Tabel 4 S'!C102<0.5),"-",IFERROR('Tabel 4 S'!C102/'Tabel 4F S'!C102*100,"-")) -> 5.882352941 | D102: =IF(OR('Tabel 4F S'!D102<5,'Tabel 4 S'!D102<0.5),"-",IFERROR('Tabel 4 S'!D102/'Tabel 4F S'!D102*100,"-")) -> 1.680672269 | E102: =IF(OR('Tabel 4F S'!E102<5,'Tabel 4 S'!E102<0.5),"-",IFERROR('Tabel 4 S'!E102/'Tabel 4F S'!E102*100,"-")) -> 0.7142857143 | F102: =IF(OR('Tabel 4F S'!F102<5,'Tabel 4 S'!F102<0.5),"-",IFERROR('Tabel 4 S'!F102/'Tabel 4F S'!F102*100,"-")) -> 1.020408163 | G102: =IF(OR('Tabel 4F S'!G102<5,'Tabel 4 S'!G102<0.5),"-",IFERROR('Tabel 4 S'!G102/'Tabel 4F S'!G102*100,"-")) -> 5.263157895 | I102: =IF(OR('Tabel 4F S'!I102<5,'Tabel 4 S'!I102<0.5),"-",IFERROR('Tabel 4 S'!I102/'Tabel 4F S'!I102*100,"-")) -> 1.831501832
A103: Magistre i alt | C103: =IF(OR('Tabel 4F S'!C103<5,'Tabel 4 S'!C103<0.5),"-",IFERROR('Tabel 4 S'!C103/'Tabel 4F S'!C103*100,"-")) -> 21.73913043 | D103: =IF(OR('Tabel 4F S'!D103<5,'Tabel 4 S'!D103<0.5),"-",IFERROR('Tabel 4 S'!D103/'Tabel 4F S'!D103*100,"-")) -> 7.594936709 | E103: =IF(OR('Tabel 4F S'!E103<5,'Tabel 4 S'!E103<0.5),"-",IFERROR('Tabel 4 S'!E103/'Tabel 4F S'!E103*100,"-")) -> 2.222222222 | F103: =IF(OR('Tabel 4F S'!F103<5,'Tabel 4 S'!F103<0.5),"-",IFERROR('Tabel 4 S'!F103/'Tabel 4F S'!F103*100,"-")) -> 5.357142857 | G103: =IF(OR('Tabel 4F S'!G103<5,'Tabel 4 S'!G103<0.5),"-",IFERROR('Tabel 4 S'!G103/'Tabel 4F S'!G103*100,"-")) -> - | I103: =IF(OR('Tabel 4F S'!I103<5,'Tabel 4 S'!I103<0.5),"-",IFERROR('Tabel 4 S'!I103/'Tabel 4F S'!I103*100,"-")) -> 6.037735849
A104: DJØF'ere i alt | C104: =IF(OR('Tabel 4F S'!C104<5,'Tabel 4 S'!C104<0.5),"-",IFERROR('Tabel 4 S'!C104/'Tabel 4F S'!C104*100,"-")) -> 4.255319149 | D104: =IF(OR('Tabel 4F S'!D104<5,'Tabel 4 S'!D104<0.5),"-",IFERROR('Tabel 4 S'!D104/'Tabel 4F S'!D104*100,"-")) -> 1.408450704 | E104: =IF(OR('Tabel 4F S'!E104<5,'Tabel 4 S'!E104<0.5),"-",IFERROR('Tabel 4 S'!E104/'Tabel 4F S'!E104*100,"-")) -> 0.4854368932 | F104: =IF(OR('Tabel 4F S'!F104<5,'Tabel 4 S'!F104<0.5),"-",IFERROR('Tabel 4 S'!F104/'Tabel 4F S'!F104*100,"-")) -> 1.204819277 | G104: =IF(OR('Tabel 4F S'!G104<5,'Tabel 4 S'!G104<0.5),"-",IFERROR('Tabel 4 S'!G104/'Tabel 4F S'!G104*100,"-")) -> 2.857142857 | I104: =IF(OR('Tabel 4F S'!I104<5,'Tabel 4 S'!I104<0.5),"-",IFERROR('Tabel 4 S'!I104/'Tabel 4F S'!I104*100,"-")) -> 1.349325337
A111: Køge
C113: Under 30 år | D113: 30 - 39 år | E113: 40 - 49 år | F113: 50 - 59 år | G113: Over 60 år | I113: I alt
A115: Civ. ing. | C115: =IF(OR('Tabel 4F S'!C115<5,'Tabel 4 S'!C115<0.5),"-",IFERROR('Tabel 4 S'!C115/'Tabel 4F S'!C115*100,"-")) -> - | D115: =IF(OR('Tabel 4F S'!D115<5,'Tabel 4 S'!D115<0.5),"-",IFERROR('Tabel 4 S'!D115/'Tabel 4F S'!D115*100,"-")) -> - | E115: =IF(OR('Tabel 4F S'!E115<5,'Tabel 4 S'!E115<0.5),"-",IFERROR('Tabel 4 S'!E115/'Tabel 4F S'!E115*100,"-")) -> - | F115: =IF(OR('Tabel 4F S'!F115<5,'Tabel 4 S'!F115<0.5),"-",IFERROR('Tabel 4 S'!F115/'Tabel 4F S'!F115*100,"-")) -> - | G115: =IF(OR('Tabel 4F S'!G115<5,'Tabel 4 S'!G115<0.5),"-",IFERROR('Tabel 4 S'!G115/'Tabel 4F S'!G115*100,"-")) -> - | I115: =IF(OR('Tabel 4F S'!I115<5,'Tabel 4 S'!I115<0.5),"-",IFERROR('Tabel 4 S'!I115/'Tabel 4F S'!I115*100,"-")) -> -
A116: Diplom ing. | C116: =IF(OR('Tabel 4F S'!C116<5,'Tabel 4 S'!C116<0.5),"-",IFERROR('Tabel 4 S'!C116/'Tabel 4F S'!C116*100,"-")) -> - | D116: =IF(OR('Tabel 4F S'!D116<5,'Tabel 4 S'!D116<0.5),"-",IFERROR('Tabel 4 S'!D116/'Tabel 4F S'!D116*100,"-")) -> 1.818181818 | E116: =IF(OR('Tabel 4F S'!E116<5,'Tabel 4 S'!E116<0.5),"-",IFERROR('Tabel 4 S'!E116/'Tabel 4F S'!E116*100,"-")) -> - | F116: =IF(OR('Tabel 4F S'!F116<5,'Tabel 4 S'!F116<0.5),"-",IFERROR('Tabel 4 S'!F116/'Tabel 4F S'!F116*100,"-")) -> 1.910828025 | G116: =IF(OR('Tabel 4F S'!G116<5,'Tabel 4 S'!G116<0.5),"-",IFERROR('Tabel 4 S'!G116/'Tabel 4F S'!G116*100,"-")) -> 6.666666667 | I116: =IF(OR('Tabel 4F S'!I116<5,'Tabel 4 S'!I116<0.5),"-",IFERROR('Tabel 4 S'!I116/'Tabel 4F S'!I116*100,"-")) -> 1.983002833
A117: Cand. Scient. Tek | C117: =IF(OR('Tabel 4F S'!C117<5,'Tabel 4 S'!C117<0.5),"-",IFERROR('Tabel 4 S'!C117/'Tabel 4F S'!C117*100,"-")) -> 18.75 | D117: =IF(OR('Tabel 4F S'!D117<5,'Tabel 4 S'!D117<0.5),"-",IFERROR('Tabel 4 S'!D117/'Tabel 4F S'!D117*100,"-")) -> 4.347826087 | E117: =IF(OR('Tabel 4F S'!E117<5,'Tabel 4 S'!E117<0.5),"-",IFERROR('Tabel 4 S'!E117/'Tabel 4F S'!E117*100,"-")) -> 5.555555556 | F117: =IF(OR('Tabel 4F S'!F117<5,'Tabel 4 S'!F117<0.5),"-",IFERROR('Tabel 4 S'!F117/'Tabel 4F S'!F117*100,"-")) -> 16.66666667 | G117: =IF(OR('Tabel 4F S'!G117<5,'Tabel 4 S'!G117<0.5),"-",IFERROR('Tabel 4 S'!G117/'Tabel 4F S'!G117*100,"-")) -> - | I117: =IF(OR('Tabel 4F S'!I117<5,'Tabel 4 S'!I117<0.5),"-",IFERROR('Tabel 4 S'!I117/'Tabel 4F S'!I117*100,"-")) -> 8.695652174
A118: MA. Hum. | C118: =IF(OR('Tabel 4F S'!C118<5,'Tabel 4 S'!C118<0.5),"-",IFERROR('Tabel 4 S'!C118/'Tabel 4F S'!C118*100,"-")) -> 25 | D118: =IF(OR('Tabel 4F S'!D118<5,'Tabel 4 S'!D118<0.5),"-",IFERROR('Tabel 4 S'!D118/'Tabel 4F S'!D118*100,"-")) -> 6.451612903 | E118: =IF(OR('Tabel 4F S'!E118<5,'Tabel 4 S'!E118<0.5),"-",IFERROR('Tabel 4 S'!E118/'Tabel 4F S'!E118*100,"-")) -> 3.797468354 | F118: =IF(OR('Tabel 4F S'!F118<5,'Tabel 4 S'!F118<0.5),"-",IFERROR('Tabel 4 S'!F118/'Tabel 4F S'!F118*100,"-")) -> 7.142857143 | G118: =IF(OR('Tabel 4F S'!G118<5,'Tabel 4 S'!G118<0.5),"-",IFERROR('Tabel 4 S'!G118/'Tabel 4F S'!G118*100,"-")) -> 6.666666667 | I118: =IF(OR('Tabel 4F S'!I118<5,'Tabel 4 S'!I118<0.5),"-",IFERROR('Tabel 4 S'!I118/'Tabel 4F S'!I118*100,"-")) -> 6.926406926
A119: MA. Nat. | C119: =IF(OR('Tabel 4F S'!C119<5,'Tabel 4 S'!C119<0.5),"-",IFERROR('Tabel 4 S'!C119/'Tabel 4F S'!C119*100,"-")) -> 28.57142857 | D119: =IF(OR('Tabel 4F S'!D119<5,'Tabel 4 S'!D119<0.5),"-",IFERROR('Tabel 4 S'!D119/'Tabel 4F S'!D119*100,"-")) -> 3.846153846 | E119: =IF(OR('Tabel 4F S'!E119<5,'Tabel 4 S'!E119<0.5),"-",IFERROR('Tabel 4 S'!E119/'Tabel 4F S'!E119*100,"-")) -> 3.703703704 | F119: =IF(OR('Tabel 4F S'!F119<5,'Tabel 4 S'!F119<0.5),"-",IFERROR('Tabel 4 S'!F119/'Tabel 4F S'!F119*100,"-")) -> 10.52631579 | G119: =IF(OR('Tabel 4F S'!G119<5,'Tabel 4 S'!G119<0.5),"-",IFERROR('Tabel 4 S'!G119/'Tabel 4F S'!G119*100,"-")) -> - | I119: =IF(OR('Tabel 4F S'!I119<5,'Tabel 4 S'!I119<0.5),"-",IFERROR('Tabel 4 S'!I119/'Tabel 4F S'!I119*100,"-")) -> 7.547169811
A120: MA. Ph.d. | C120: =IF(OR('Tabel 4F S'!C120<5,'Tabel 4 S'!C120<0.5),"-",IFERROR('Tabel 4 S'!C120/'Tabel 4F S'!C120*100,"-")) -> - | D120: =IF(OR('Tabel 4F S'!D120<5,'Tabel 4 S'!D120<0.5),"-",IFERROR('Tabel 4 S'!D120/'Tabel 4F S'!D120*100,"-")) -> - | E120: =IF(OR('Tabel 4F S'!E120<5,'Tabel 4 S'!E120<0.5),"-",IFERROR('Tabel 4 S'!E120/'Tabel 4F S'!E120*100,"-")) -> - | F120: =IF(OR('Tabel 4F S'!F120<5,'Tabel 4 S'!F120<0.5),"-",IFERROR('Tabel 4 S'!F120/'Tabel 4F S'!F120*100,"-")) -> - | G120: =IF(OR('Tabel 4F S'!G120<5,'Tabel 4 S'!G120<0.5),"-",IFERROR('Tabel 4 S'!G120/'Tabel 4F S'!G120*100,"-")) -> - | I120: =IF(OR('Tabel 4F S'!I120<5,'Tabel 4 S'!I120<0.5),"-",IFERROR('Tabel 4 S'!I120/'Tabel 4F S'!I120*100,"-")) -> 16.66666667
A121: MA. Samf. | C121: =IF(OR('Tabel 4F S'!C121<5,'Tabel 4 S'!C121<0.5),"-",IFERROR('Tabel 4 S'!C121/'Tabel 4F S'!C121*100,"-")) -> 33.33333333 | D121: =IF(OR('Tabel 4F S'!D121<5,'Tabel 4 S'!D121<0.5),"-",IFERROR('Tabel 4 S'!D121/'Tabel 4F S'!D121*100,"-")) -> 11.11111111 | E121: =IF(OR('Tabel 4F S'!E121<5,'Tabel 4 S'!E121<0.5),"-",IFERROR('Tabel 4 S'!E121/'Tabel 4F S'!E121*100,"-")) -> - | F121: =IF(OR('Tabel 4F S'!F121<5,'Tabel 4 S'!F121<0.5),"-",IFERROR('Tabel 4 S'!F121/'Tabel 4F S'!F121*100,"-")) -> 20 | G121: =IF(OR('Tabel 4F S'!G121<5,'Tabel 4 S'!G121<0.5),"-",IFERROR('Tabel 4 S'!G121/'Tabel 4F S'!G121*100,"-")) -> - | I121: =IF(OR('Tabel 4F S'!I121<5,'Tabel 4 S'!I121<0.5),"-",IFERROR('Tabel 4 S'!I121/'Tabel 4F S'!I121*100,"-")) -> 14.28571429
A122: Øvrige Mag. | C122: =IF(OR('Tabel 4F S'!C122<5,'Tabel 4 S'!C122<0.5),"-",IFERROR('Tabel 4 S'!C122/'Tabel 4F S'!C122*100,"-")) -> - | D122: =IF(OR('Tabel 4F S'!D122<5,'Tabel 4 S'!D122<0.5),"-",IFERROR('Tabel 4 S'!D122/'Tabel 4F S'!D122*100,"-")) -> - | E122: =IF(OR('Tabel 4F S'!E122<5,'Tabel 4 S'!E122<0.5),"-",IFERROR('Tabel 4 S'!E122/'Tabel 4F S'!E122*100,"-")) -> - | F122: =IF(OR('Tabel 4F S'!F122<5,'Tabel 4 S'!F122<0.5),"-",IFERROR('Tabel 4 S'!F122/'Tabel 4F S'!F122*100,"-")) -> 50 | G122: =IF(OR('Tabel 4F S'!G122<5,'Tabel 4 S'!G122<0.5),"-",IFERROR('Tabel 4 S'!G122/'Tabel 4F S'!G122*100,"-")) -> - | I122: =IF(OR('Tabel 4F S'!I122<5,'Tabel 4 S'!I122<0.5),"-",IFERROR('Tabel 4 S'!I122/'Tabel 4F S'!I122*100,"-")) -> 23.80952381
A123: Agronom | C123: =IF(OR('Tabel 4F S'!C123<5,'Tabel 4 S'!C123<0.5),"-",IFERROR('Tabel 4 S'!C123/'Tabel 4F S'!C123*100,"-")) -> - | D123: =IF(OR('Tabel 4F S'!D123<5,'Tabel 4 S'!D123<0.5),"-",IFERROR('Tabel 4 S'!D123/'Tabel 4F S'!D123*100,"-")) -> - | E123: =IF(OR('Tabel 4F S'!E123<5,'Tabel 4 S'!E123<0.5),"-",IFERROR('Tabel 4 S'!E123/'Tabel 4F S'!E123*100,"-")) -> - | F123: =IF(OR('Tabel 4F S'!F123<5,'Tabel 4 S'!F123<0.5),"-",IFERROR('Tabel 4 S'!F123/'Tabel 4F S'!F123*100,"-")) -> - | G123: =IF(OR('Tabel 4F S'!G123<5,'Tabel 4 S'!G123<0.5),"-",IFERROR('Tabel 4 S'!G123/'Tabel 4F S'!G123*100,"-")) -> 18.18181818 | I123: =IF(OR('Tabel 4F S'!I123<5,'Tabel 4 S'!I123<0.5),"-",IFERROR('Tabel 4 S'!I123/'Tabel 4F S'!I123*100,"-")) -> 5.405405405
A124: Landsk. Arkt. | C124: =IF(OR('Tabel 4F S'!C124<5,'Tabel 4 S'!C124<0.5),"-",IFERROR('Tabel 4 S'!C124/'Tabel 4F S'!C124*100,"-")) -> - | D124: =IF(OR('Tabel 4F S'!D124<5,'Tabel 4 S'!D124<0.5),"-",IFERROR('Tabel 4 S'!D124/'Tabel 4F S'!D124*100,"-")) -> - | E124: =IF(OR('Tabel 4F S'!E124<5,'Tabel 4 S'!E124<0.5),"-",IFERROR('Tabel 4 S'!E124/'Tabel 4F S'!E124*100,"-")) -> - | F124: =IF(OR('Tabel 4F S'!F124<5,'Tabel 4 S'!F124<0.5),"-",IFERROR('Tabel 4 S'!F124/'Tabel 4F S'!F124*100,"-")) -> - | G124: =IF(OR('Tabel 4F S'!G124<5,'Tabel 4 S'!G124<0.5),"-",IFERROR('Tabel 4 S'!G124/'Tabel 4F S'!G124*100,"-")) -> - | I124: =IF(OR('Tabel 4F S'!I124<5,'Tabel 4 S'!I124<0.5),"-",IFERROR('Tabel 4 S'!I124/'Tabel 4F S'!I124*100,"-")) -> -
A125: Hortonom | C125: =IF(OR('Tabel 4F S'!C125<5,'Tabel 4 S'!C125<0.5),"-",IFERROR('Tabel 4 S'!C125/'Tabel 4F S'!C125*100,"-")) -> - | D125: =IF(OR('Tabel 4F S'!D125<5,'Tabel 4 S'!D125<0.5),"-",IFERROR('Tabel 4 S'!D125/'Tabel 4F S'!D125*100,"-")) -> - | E125: =IF(OR('Tabel 4F S'!E125<5,'Tabel 4 S'!E125<0.5),"-",IFERROR('Tabel 4 S'!E125/'Tabel 4F S'!E125*100,"-")) -> - | F125: =IF(OR('Tabel 4F S'!F125<5,'Tabel 4 S'!F125<0.5),"-",IFERROR('Tabel 4 S'!F125/'Tabel 4F S'!F125*100,"-")) -> - | G125: =IF(OR('Tabel 4F S'!G125<5,'Tabel 4 S'!G125<0.5),"-",IFERROR('Tabel 4 S'!G125/'Tabel 4F S'!G125*100,"-")) -> - | I125: =IF(OR('Tabel 4F S'!I125<5,'Tabel 4 S'!I125<0.5),"-",IFERROR('Tabel 4 S'!I125/'Tabel 4F S'!I125*100,"-")) -> -
A126: Forstkand. | C126: =IF(OR('Tabel 4F S'!C126<5,'Tabel 4 S'!C126<0.5),"-",IFERROR('Tabel 4 S'!C126/'Tabel 4F S'!C126*100,"-")) -> - | D126: =IF(OR('Tabel 4F S'!D126<5,'Tabel 4 S'!D126<0.5),"-",IFERROR('Tabel 4 S'!D126/'Tabel 4F S'!D126*100,"-")) -> - | E126: =IF(OR('Tabel 4F S'!E126<5,'Tabel 4 S'!E126<0.5),"-",IFERROR('Tabel 4 S'!E126/'Tabel 4F S'!E126*100,"-")) -> - | F126: =IF(OR('Tabel 4F S'!F126<5,'Tabel 4 S'!F126<0.5),"-",IFERROR('Tabel 4 S'!F126/'Tabel 4F S'!F126*100,"-")) -> - | G126: =IF(OR('Tabel 4F S'!G126<5,'Tabel 4 S'!G126<0.5),"-",IFERROR('Tabel 4 S'!G126/'Tabel 4F S'!G126*100,"-")) -> - | I126: =IF(OR('Tabel 4F S'!I126<5,'Tabel 4 S'!I126<0.5),"-",IFERROR('Tabel 4 S'!I126/'Tabel 4F S'!I126*100,"-")) -> -
A127: Jordbrugsakad. | C127: =IF(OR('Tabel 4F S'!C127<5,'Tabel 4 S'!C127<0.5),"-",IFERROR('Tabel 4 S'!C127/'Tabel 4F S'!C127*100,"-")) -> - | D127: =IF(OR('Tabel 4F S'!D127<5,'Tabel 4 S'!D127<0.5),"-",IFERROR('Tabel 4 S'!D127/'Tabel 4F S'!D127*100,"-")) -> - | E127: =IF(OR('Tabel 4F S'!E127<5,'Tabel 4 S'!E127<0.5),"-",IFERROR('Tabel 4 S'!E127/'Tabel 4F S'!E127*100,"-")) -> - | F127: =IF(OR('Tabel 4F S'!F127<5,'Tabel 4 S'!F127<0.5),"-",IFERROR('Tabel 4 S'!F127/'Tabel 4F S'!F127*100,"-")) -> - | G127: =IF(OR('Tabel 4F S'!G127<5,'Tabel 4 S'!G127<0.5),"-",IFERROR('Tabel 4 S'!G127/'Tabel 4F S'!G127*100,"-")) -> 13.33333333 | I127: =IF(OR('Tabel 4F S'!I127<5,'Tabel 4 S'!I127<0.5),"-",IFERROR('Tabel 4 S'!I127/'Tabel 4F S'!I127*100,"-")) -> 3.703703704
A128: Mejeriing. | C128: =IF(OR('Tabel 4F S'!C128<5,'Tabel 4 S'!C128<0.5),"-",IFERROR('Tabel 4 S'!C128/'Tabel 4F S'!C128*100,"-")) -> - | D128: =IF(OR('Tabel 4F S'!D128<5,'Tabel 4 S'!D128<0.5),"-",IFERROR('Tabel 4 S'!D128/'Tabel 4F S'!D128*100,"-")) -> - | E128: =IF(OR('Tabel 4F S'!E128<5,'Tabel 4 S'!E128<0.5),"-",IFERROR('Tabel 4 S'!E128/'Tabel 4F S'!E128*100,"-")) -> - | F128: =IF(OR('Tabel 4F S'!F128<5,'Tabel 4 S'!F128<0.5),"-",IFERROR('Tabel 4 S'!F128/'Tabel 4F S'!F128*100,"-")) -> - | G128: =IF(OR('Tabel 4F S'!G128<5,'Tabel 4 S'!G128<0.5),"-",IFERROR('Tabel 4 S'!G128/'Tabel 4F S'!G128*100,"-")) -> - | I128: =IF(OR('Tabel 4F S'!I128<5,'Tabel 4 S'!I128<0.5),"-",IFERROR('Tabel 4 S'!I128/'Tabel 4F S'!I128*100,"-")) -> -
A129: Levn.m.kand. | C129: =IF(OR('Tabel 4F S'!C129<5,'Tabel 4 S'!C129<0.5),"-",IFERROR('Tabel 4 S'!C129/'Tabel 4F S'!C129*100,"-")) -> - | D129: =IF(OR('Tabel 4F S'!D129<5,'Tabel 4 S'!D129<0.5),"-",IFERROR('Tabel 4 S'!D129/'Tabel 4F S'!D129*100,"-")) -> - | E129: =IF(OR('Tabel 4F S'!E129<5,'Tabel 4 S'!E129<0.5),"-",IFERROR('Tabel 4 S'!E129/'Tabel 4F S'!E129*100,"-")) -> - | F129: =IF(OR('Tabel 4F S'!F129<5,'Tabel 4 S'!F129<0.5),"-",IFERROR('Tabel 4 S'!F129/'Tabel 4F S'!F129*100,"-")) -> - | G129: =IF(OR('Tabel 4F S'!G129<5,'Tabel 4 S'!G129<0.5),"-",IFERROR('Tabel 4 S'!G129/'Tabel 4F S'!G129*100,"-")) -> - | I129: =IF(OR('Tabel 4F S'!I129<5,'Tabel 4 S'!I129<0.5),"-",IFERROR('Tabel 4 S'!I129/'Tabel 4F S'!I129*100,"-")) -> -
A130: Dyrlæge | C130: =IF(OR('Tabel 4F S'!C130<5,'Tabel 4 S'!C130<0.5),"-",IFERROR('Tabel 4 S'!C130/'Tabel 4F S'!C130*100,"-")) -> - | D130: =IF(OR('Tabel 4F S'!D130<5,'Tabel 4 S'!D130<0.5),"-",IFERROR('Tabel 4 S'!D130/'Tabel 4F S'!D130*100,"-")) -> - | E130: =IF(OR('Tabel 4F S'!E130<5,'Tabel 4 S'!E130<0.5),"-",IFERROR('Tabel 4 S'!E130/'Tabel 4F S'!E130*100,"-")) -> - | F130: =IF(OR('Tabel 4F S'!F130<5,'Tabel 4 S'!F130<0.5),"-",IFERROR('Tabel 4 S'!F130/'Tabel 4F S'!F130*100,"-")) -> - | G130: =IF(OR('Tabel 4F S'!G130<5,'Tabel 4 S'!G130<0.5),"-",IFERROR('Tabel 4 S'!G130/'Tabel 4F S'!G130*100,"-")) -> - | I130: =IF(OR('Tabel 4F S'!I130<5,'Tabel 4 S'!I130<0.5),"-",IFERROR('Tabel 4 S'!I130/'Tabel 4F S'!I130*100,"-")) -> 3.03030303
A131: Farmaceut | C131: =IF(OR('Tabel 4F S'!C131<5,'Tabel 4 S'!C131<0.5),"-",IFERROR('Tabel 4 S'!C131/'Tabel 4F S'!C131*100,"-")) -> 14.28571429 | D131: =IF(OR('Tabel 4F S'!D131<5,'Tabel 4 S'!D131<0.5),"-",IFERROR('Tabel 4 S'!D131/'Tabel 4F S'!D131*100,"-")) -> - | E131: =IF(OR('Tabel 4F S'!E131<5,'Tabel 4 S'!E131<0.5),"-",IFERROR('Tabel 4 S'!E131/'Tabel 4F S'!E131*100,"-")) -> - | F131: =IF(OR('Tabel 4F S'!F131<5,'Tabel 4 S'!F131<0.5),"-",IFERROR('Tabel 4 S'!F131/'Tabel 4F S'!F131*100,"-")) -> - | G131: =IF(OR('Tabel 4F S'!G131<5,'Tabel 4 S'!G131<0.5),"-",IFERROR('Tabel 4 S'!G131/'Tabel 4F S'!G131*100,"-")) -> - | I131: =IF(OR('Tabel 4F S'!I131<5,'Tabel 4 S'!I131<0.5),"-",IFERROR('Tabel 4 S'!I131/'Tabel 4F S'!I131*100,"-")) -> 2.040816327
A132: Læge | C132: =IF(OR('Tabel 4F S'!C132<5,'Tabel 4 S'!C132<0.5),"-",IFERROR('Tabel 4 S'!C132/'Tabel 4F S'!C132*100,"-")) -> - | D132: =IF(OR('Tabel 4F S'!D132<5,'Tabel 4 S'!D132<0.5),"-",IFERROR('Tabel 4 S'!D132/'Tabel 4F S'!D132*100,"-")) -> 8.333333333 | E132: =IF(OR('Tabel 4F S'!E132<5,'Tabel 4 S'!E132<0.5),"-",IFERROR('Tabel 4 S'!E132/'Tabel 4F S'!E132*100,"-")) -> - | F132: =IF(OR('Tabel 4F S'!F132<5,'Tabel 4 S'!F132<0.5),"-",IFERROR('Tabel 4 S'!F132/'Tabel 4F S'!F132*100,"-")) -> - | G132: =IF(OR('Tabel 4F S'!G132<5,'Tabel 4 S'!G132<0.5),"-",IFERROR('Tabel 4 S'!G132/'Tabel 4F S'!G132*100,"-")) -> - | I132: =IF(OR('Tabel 4F S'!I132<5,'Tabel 4 S'!I132<0.5),"-",IFERROR('Tabel 4 S'!I132/'Tabel 4F S'!I132*100,"-")) -> 3.571428571
A133: Tandlæge | C133: =IF(OR('Tabel 4F S'!C133<5,'Tabel 4 S'!C133<0.5),"-",IFERROR('Tabel 4 S'!C133/'Tabel 4F S'!C133*100,"-")) -> - | D133: =IF(OR('Tabel 4F S'!D133<5,'Tabel 4 S'!D133<0.5),"-",IFERROR('Tabel 4 S'!D133/'Tabel 4F S'!D133*100,"-")) -> - | E133: =IF(OR('Tabel 4F S'!E133<5,'Tabel 4 S'!E133<0.5),"-",IFERROR('Tabel 4 S'!E133/'Tabel 4F S'!E133*100,"-")) -> - | F133: =IF(OR('Tabel 4F S'!F133<5,'Tabel 4 S'!F133<0.5),"-",IFERROR('Tabel 4 S'!F133/'Tabel 4F S'!F133*100,"-")) -> - | G133: =IF(OR('Tabel 4F S'!G133<5,'Tabel 4 S'!G133<0.5),"-",IFERROR('Tabel 4 S'!G133/'Tabel 4F S'!G133*100,"-")) -> - | I133: =IF(OR('Tabel 4F S'!I133<5,'Tabel 4 S'!I133<0.5),"-",IFERROR('Tabel 4 S'!I133/'Tabel 4F S'!I133*100,"-")) -> -
A134: Arkitekt | C134: =IF(OR('Tabel 4F S'!C134<5,'Tabel 4 S'!C134<0.5),"-",IFERROR('Tabel 4 S'!C134/'Tabel 4F S'!C134*100,"-")) -> - | D134: =IF(OR('Tabel 4F S'!D134<5,'Tabel 4 S'!D134<0.5),"-",IFERROR('Tabel 4 S'!D134/'Tabel 4F S'!D134*100,"-")) -> - | E134: =IF(OR('Tabel 4F S'!E134<5,'Tabel 4 S'!E134<0.5),"-",IFERROR('Tabel 4 S'!E134/'Tabel 4F S'!E134*100,"-")) -> - | F134: =IF(OR('Tabel 4F S'!F134<5,'Tabel 4 S'!F134<0.5),"-",IFERROR('Tabel 4 S'!F134/'Tabel 4F S'!F134*100,"-")) -> - | G134: =IF(OR('Tabel 4F S'!G134<5,'Tabel 4 S'!G134<0.5),"-",IFERROR('Tabel 4 S'!G134/'Tabel 4F S'!G134*100,"-")) -> - | I134: =IF(OR('Tabel 4F S'!I134<5,'Tabel 4 S'!I134<0.5),"-",IFERROR('Tabel 4 S'!I134/'Tabel 4F S'!I134*100,"-")) -> -
A135: Landinspek. | C135: =IF(OR('Tabel 4F S'!C135<5,'Tabel 4 S'!C135<0.5),"-",IFERROR('Tabel 4 S'!C135/'Tabel 4F S'!C135*100,"-")) -> - | D135: =IF(OR('Tabel 4F S'!D135<5,'Tabel 4 S'!D135<0.5),"-",IFERROR('Tabel 4 S'!D135/'Tabel 4F S'!D135*100,"-")) -> - | E135: =IF(OR('Tabel 4F S'!E135<5,'Tabel 4 S'!E135<0.5),"-",IFERROR('Tabel 4 S'!E135/'Tabel 4F S'!E135*100,"-")) -> - | F135: =IF(OR('Tabel 4F S'!F135<5,'Tabel 4 S'!F135<0.5),"-",IFERROR('Tabel 4 S'!F135/'Tabel 4F S'!F135*100,"-")) -> - | G135: =IF(OR('Tabel 4F S'!G135<5,'Tabel 4 S'!G135<0.5),"-",IFERROR('Tabel 4 S'!G135/'Tabel 4F S'!G135*100,"-")) -> - | I135: =IF(OR('Tabel 4F S'!I135<5,'Tabel 4 S'!I135<0.5),"-",IFERROR('Tabel 4 S'!I135/'Tabel 4F S'!I135*100,"-")) -> -
